Workbook

Sheet 21.1 (Simple WWR example)
B9: Parameters | F9: Mu(t) | G9: Sigma(t) | H9: Normal EPE | I9: survival | J9: s'(t) | K9: Sigma'(t) | L9: Mu'(t) | M9: Wrong-way EPE
B10: Mu | C10: 0 | E10: 1e-07 | F10: =E10*Mu -> 0 | G10: =SQRT(E10)*Sigma -> 3.16227766e-05 | H10: =F10*NORMSDIST(F10/G10)+G10*NORMDIST(F10/G10,0,1,FALSE) -> 1.261566261e-05 | I10: =EXP(-Spread*E10/LGD) -> 0.999999998 | J10: =NORMSINV(I10) -> 5.884193359 | K10: =SQRT(1-Correlation^2)*G10 -> 2.738612788e-05 | L10: =F10+Correlation*G10*J10 -> 9.303726604e-05 | M10: =L10*NORMSDIST(L10/K10)+K10*NORMDIST(L10/K10,0,1,FALSE) -> 9.303966491e-05 | O10: Blue = Inputs
B11: Sigma | C11: 0.1 | E11: 0.05 | F11: 0 | G11: 0.02236067977 | H11: =F11*NORMSDIST(F11/G11)+G11*NORMDIST(F11/G11,0,1,FALSE) -> 0.008920620581 | I11: 0.9990004998 | J11: =NORMSINV(I11) -> 3.090380787 | K11: 0.01936491673 | L11: 0.03455150758 | M11: 0.03483911599 | O11: Grey = Fixed
B12: Spread | C12: 0.012 | E12: 0.1 | F12: 0 | G12: 0.0316227766 | H12: =F12*NORMSDIST(F12/G12)+G12*NORMDIST(F12/G12,0,1,FALSE) -> 0.01261566261 | I12: 0.9980019987 | J12: 2.87847712 | K12: 0.02738612788 | L12: 0.04551271946 | M12: 0.04606197537 | O12: White = Calculations
B13: LGD | C13: 0.6 | E13: 0.15 | F13: 0 | G13: 0.03872983346 | H13: 0.01545096808 | I13: 0.9970044955 | J13: 2.748273073 | K13: 0.03354101966 | L13: 0.05322007921 | M13: 0.05402438504 | O13: Green = Results
B14: Correlation | C14: 0.5 | E14: 0.2 | F14: 0 | G14: 0.04472135955 | H14: 0.01784124116 | I14: 0.9960079893 | J14: 2.652744785 | K14: 0.03872983346 | L14: 0.05931717667 | M14: 0.06037301646
E15: 0.25 | F15: 0 | G15: 0.05 | H15: 0.01994711402 | I15: 0.9950124792 | J15: 2.576693294 | K15: 0.04330127019 | L15: 0.06441733236 | M15: 0.0657224971
E16: 0.3 | F16: 0 | G16: 0.05477225575 | H16: 0.02185096861 | I16: 0.9940179641 | J16: 2.513202263 | K16: 0.0474341649 | L16: 0.06882687856 | M16: 0.07037986491
E17: 0.35 | F17: 0 | G17: 0.05916079783 | H17: 0.0236017436 | I17: 0.9930244429 | J17: 2.458519651 | K17: 0.05123475383 | L17: 0.07272399201 | M17: 0.07452372973
E18: 0.4 | F18: 0 | G18: 0.0632455532 | H18: 0.02523132522 | I18: 0.9920319148 | J18: 2.410374103 | K18: 0.05477225575 | L18: 0.0762227218 | M18: 0.07826842885
E19: 0.5 | F19: 0 | G19: 0.07071067812 | H19: 0.02820947918 | I19: 0.9900498337 | J19: 2.328221738 | K19: 0.06123724357 | L19: 0.08231506894 | M19: 0.08485112606
E20: 0.6 | F20: 0 | G20: 0.07745966692 | H20: 0.03090193616 | I20: 0.9880717129 | J20: 2.259431219 | K20: 0.06708203932 | L20: 0.08750739483 | M20: 0.09053250654
E21: 0.8 | F21: 0 | G21: 0.0894427191 | H21: 0.03568248232 | I21: 0.9841273201 | J21: 2.147602334 | K21: 0.07745966692 | L21: 0.09604369613 | M21: 0.1000453606
E22: 1 | F22: 0 | G22: 0.1 | H22: 0.03989422804 | I22: 0.9801986733 | J22: 2.057869592 | K22: 0.08660254038 | L22: 0.1028934796 | M22: 0.1078717606
E23: 1.2 | F23: 0 | G23: 0.1095445115 | H23: 0.04370193722 | I23: 0.9762857098 | J23: 1.982452841 | K23: 0.09486832981 | L23: 0.108583414 | M23: 0.1145397948
E24: 1.4 | F24: 0 | G24: 0.1183215957 | H24: 0.04720348719 | I24: 0.9723883668 | J24: 1.917115449 | K24: 0.1024695077 | L24: 0.1134180795 | M24: 0.1203548227
E25: 1.6 | F25: 0 | G25: 0.1264911064 | H25: 0.05046265044 | I25: 0.9685065821 | J25: 1.859284408 | K25: 0.1095445115 | L25: 0.117591471 | M25: 0.1255112973
E26: 1.8 | F26: 0 | G26: 0.1341640786 | H26: 0.05352372348 | I26: 0.9646402935 | J26: 1.807274993 | K26: 0.1161895004 | L26: 0.1212356922 | M26: 0.1301416016
E27: 2 | F27: 0 | G27: 0.1414213562 | H27: 0.05641895835 | I27: 0.9607894392 | J27: 1.759921475 | K27: 0.1224744871 | L27: 0.1244452409 | M27: 0.1343404061
E28: 2.2 | F28: 0 | G28: 0.1483239697 | H28: 0.05917270273 | I28: 0.9569539575 | J28: 1.716382349 | K28: 0.1284523258 | L28: 0.1272903218 | M28: 0.1381780214
E29: 2.4 | F29: 0 | G29: 0.1549193338 | H29: 0.06180387232 | I29: 0.9531337871 | J29: 1.676029442 | K29: 0.1341640786 | L29: 0.1298246823 | M29: 0.1417082574
E30: 2.6 | F30: 0 | G30: 0.161245155 | H30: 0.06432750983 | I30: 0.9493288668 | J30: 1.638380874 | K30: 0.1396424004 | L30: 0.132090489 | M30: 0.1449733138
E31: 2.8 | F31: 0 | G31: 0.1673320053 | H31: 0.06675581178 | I31: 0.9455391359 | J31: 1.60305855 | K31: 0.1449137675 | L31: 0.1341215009 | M31: 0.1480069628
E32: 3 | F32: 0 | G32: 0.1732050808 | H32: 0.06909882989 | I32: 0.9417645336 | J32: 1.569760102 | K32: 0.15 | L32: 0.1359452126 | M32: 0.1508366982
E33: 3.2 | F33: 0 | G33: 0.1788854382 | H33: 0.07136496465 | I33: 0.9380049995 | J33: 1.538239767 | K33: 0.1549193338 | L33: 0.1375843474 | M33: 0.1534852324
E34: 3.4 | F34: 0 | G34: 0.1843908891 | H34: 0.0735613218 | I34: 0.9342604736 | J34: 1.508294959 | K34: 0.1596871942 | L34: 0.1390579243 | M34: 0.155971567
E35: 3.6 | F35: 0 | G35: 0.1897366596 | H35: 0.07569397566 | I35: 0.9305308958 | J35: 1.479756624 | K35: 0.1643167673 | L35: 0.1403820394 | M35: 0.1583117755
E36: 3.8 | F36: 0 | G36: 0.1949358869 | H36: 0.07776816725 | I36: 0.9268162066 | J36: 1.452482157 | K36: 0.1688194302 | L36: 0.1415704488 | M36: 0.1605195881
E37: 4 | F37: 0 | G37: 0.2 | H37: 0.07978845608 | I37: 0.9231163464 | J37: 1.426350109 | K37: 0.1732050808 | L37: 0.1426350109 | M37: 0.1626068346
E38: 4.2 | F38: 0 | G38: 0.2049390153 | H38: 0.08175883811 | I38: 0.9194312561 | J38: 1.401256153 | K38: 0.1774823935 | L38: 0.1435860281 | M38: 0.1645837876
E39: 4.4 | F39: 0 | G39: 0.2097617696 | H39: 0.08368283872 | I39: 0.9157608767 | J39: 1.377109983 | K39: 0.1816590212 | L39: 0.1444325136 | M39: 0.1664594289
E40: 4.6 | F40: 0 | G40: 0.2144761059 | H40: 0.08556358678 | I40: 0.9121051495 | J40: 1.353832881 | K40: 0.1857417562 | L40: 0.1451824021 | M40: 0.1682416618
E41: 4.8 | F41: 0 | G41: 0.219089023 | H41: 0.08740387445 | I41: 0.9084640161 | J41: 1.331355794 | K41: 0.1897366596 | L41: 0.14584272 | M41: 0.1699374804
E42: 5 | F42: =E42*Mu -> 0 | G42: =SQRT(E42)*Sigma -> 0.2236067977 | H42: 0.08920620581 | I42: =EXP(-Spread*E42/LGD) -> 0.904837418 | J42: 1.309617799 | K42: =SQRT(1-Correlation^2)*G42 -> 0.1936491673 | L42: =F42+Correlation*G42*J42 -> 0.1464197212 | M42: 0.1715531066
E43: 5.2 | F43: 0 | G43: 0.228035085 | H43: 0.09097283683 | I43: 0.9012252974 | J43: 1.288564864 | K43: 0.1974841766 | L43: 0.1469189991 | M43: 0.173094102
E44: 5.4 | F44: 0 | G44: 0.2323790008 | H44: 0.09270580849 | I44: 0.8976275964 | J44: 1.268148828 | K44: 0.201246118 | L44: 0.1473455788 | M44: 0.1745654597
E45: 5.6 | F45: 0 | G45: 0.2366431913 | H45: 0.09440697439 | I45: 0.8940442575 | J45: 1.248326578 | K45: 0.2049390153 | L45: 0.1477039926 | M45: 0.175971681
E46: 5.8 | F46: 0 | G46: 0.2408318916 | H46: 0.09607802402 | I46: 0.8904752233 | J46: 1.229059353 | K46: 0.2085665361 | L46: 0.1479983445 | M46: 0.1773168386
E47: 6 | F47: 0 | G47: 0.2449489743 | H47: 0.09772050238 | I47: 0.8869204367 | J47: 1.210312178 | K47: 0.2121320344 | L47: 0.1482323632 | M47: 0.1786046312
E48: 6.2 | F48: 0 | G48: 0.248997992 | H48: 0.09933582673 | I48: 0.8833798409 | J48: 1.192053373 | K48: 0.2156385865 | L48: 0.148409448 | M48: 0.1798384277
E49: 6.4 | F49: 0 | G49: 0.2529822128 | H49: 0.1009253009 | I49: 0.8798533791 | J49: 1.174254152 | K49: 0.219089023 | L49: 0.1485327068 | M49: 0.1810213069
E50: 6.6 | F50: 0 | G50: 0.2569046516 | H50: 0.1024901275 | I50: 0.8763409951 | J50: 1.156888275 | K50: 0.2224859546 | L50: 0.1486049896 | M50: 0.1821560898
E51: 6.8 | F51: 0 | G51: 0.2607680962 | H51: 0.104031419 | I51: 0.8728426325 | J51: 1.139931753 | K51: 0.2258317958 | L51: 0.1486289165 | M51: 0.1832453685
E52: 7 | F52: 0 | G52: 0.2645751311 | H52: 0.1055502061 | I52: 0.8693582354 | J52: 1.123362595 | K52: 0.2291287847 | L52: 0.1486069029 | M52: 0.1842915305
E53: 7.2 | F53: 0 | G53: 0.2683281573 | H53: 0.107047447 | I53: 0.8658877481 | J53: 1.107160588 | K53: 0.2323790008 | L53: 0.1485411802 | M53: 0.1852967803
E54: 7.4 | F54: 0 | G54: 0.2720294102 | H54: 0.1085240332 | I54: 0.8624311149 | J54: 1.09130711 | K54: 0.2355843798 | L54: 0.1484338148 | M54: 0.1862631574
E55: 7.6 | F55: 0 | G55: 0.275680975 | H55: 0.1099807968 | I55: 0.8589882807 | J55: 1.075784964 | K55: 0.2387467277 | L55: 0.1482867239 | M55: 0.1871925534
E56: 7.8 | F56: 0 | G56: 0.2792848009 | H56: 0.1114185153 | I56: 0.8555591904 | J56: 1.060578233 | K56: 0.2418677324 | L56: 0.1481016902 | M56: 0.1880867255
E57: 8 | F57: 0 | G57: 0.2828427125 | H57: 0.1128379167 | I57: 0.852143789 | J57: 1.045672157 | K57: 0.2449489743 | L57: 0.1478803746 | M57: 0.1889473096
E58: 8.2 | F58: 0 | G58: 0.2863564213 | H58: 0.1142396837 | I58: 0.8487420219 | J58: 1.031053022 | K58: 0.2479919354 | L58: 0.1476243267 | M58: 0.1897758309
E59: 8.4 | F59: 0 | G59: 0.2898275349 | H59: 0.1156244577 | I59: 0.8453538347 | J59: 1.016708059 | K59: 0.250998008 | L59: 0.1473349953 | M59: 0.1905737144
E60: 8.6 | F60: =E60*Mu -> 0 | G60: =SQRT(E60)*Sigma -> 0.293257566 | H60: 0.1169928421 | I60: 0.8419791732 | J60: 1.002625363 | K60: =SQRT(1-Correlation^2)*G60 -> 0.253968502 | L60: =F60+Correlation*G60*J60 -> 0.1470137368 | M60: 0.1913422932
E61: 8.8 | F61: 0 | G61: 0.2966479395 | H61: 0.1183454055 | I61: 0.8386179833 | J61: 0.9887938102 | K61: 0.2569046516 | L61: 0.1466618232 | M61: 0.1920828165
E62: 9 | F62: 0 | G62: 0.3 | H62: 0.1196826841 | I62: 0.8352702114 | J62: 0.9752029942 | K62: 0.2598076211 | L62: 0.1462804491 | M62: 0.1927964564
E63: 9.2 | F63: 0 | G63: 0.3033150178 | H63: 0.1210051849 | I63: 0.8319358038 | J63: 0.9618431635 | K63: 0.2626785107 | L63: 0.1458707381 | M63: 0.1934843145
E64: 9.4 | F64: 0 | G64: 0.3065941943 | H64: 0.122313387 | I64: 0.8286147072 | J64: 0.9487051666 | K64: 0.2655183609 | L64: 0.1454337481 | M64: 0.1941474275
E65: 9.6 | F65: 0 | G65: 0.3098386677 | H65: 0.1236077446 | I65: 0.8253068685 | J65: 0.9357804038 | K65: 0.2683281573 | L65: 0.1449704768 | M65: 0.1947867718
E66: 9.8 | F66: 0 | G66: 0.3130495168 | H66: 0.1248886881 | I66: 0.8220122347 | J66: 0.9230607823 | K66: 0.2711088342 | L66: 0.144481866 | M66: 0.1954032688
E67: 10 | F67: 0 | G67: 0.316227766 | H67: 0.1261566261 | I67: 0.8187307531 | J67: 0.9105386774 | K67: 0.2738612788 | L67: 0.1439688059 | M67: 0.1959977884

Sheet 21.2 (Copula WWR)
B9: Inputs | I9: Blue = Inputs
B10: Credit Curve | C10: YYY | E10: CVA | F10: =(SUMPRODUCT(D16:AQ16,D17:AQ17)-SUMPRODUCT(C16:AP16,D17:AQ17))*60%*10000 -> -35.47537176 | I10: Grey = Fixed | AV10: XXX | AW10: YYY | AX10: ZZZ | AY10: ZYX
B11: LGD | C11: 0.6 | E11: CVA (WWR) | F11: =(SUMPRODUCT(D16:AQ16,D18:AQ18)-SUMPRODUCT(C16:AP16,D18:AQ18))*60%*10000 -> -50.55650346 | I11: White = Calculations | AU11: 1 | AV11: 0.0005 | AW11: 0.005 | AX11: 0.0018 | AY11: 0.145 | AZ11: =INDIRECT(CreditCurve) -> 0.005
B12: Correlation | C12: 0.25 | I12: Green = Results | AU12: 3 | AV12: 0.0009 | AW12: 0.012 | AX12: 0.005 | AY12: 0.13 | AZ12: 0.012
AU13: 5 | AV13: 0.0022 | AW13: 0.017 | AX13: 0.0092 | AY13: 0.125 | AZ13: 0.017
C14: 0 | D14: =C14+0.25 -> 0.25 | E14: =D14+0.25 -> 0.5 | F14: 0.75 | G14: 1 | H14: 1.25 | I14: 1.5 | J14: 1.75 | K14: 2 | L14: 2.25 | M14: 2.5 | N14: 2.75 | O14: 3 | P14: 3.25 | Q14: 3.5 | R14: 3.75 | S14: 4 | T14: 4.25 | U14: 4.5 | V14: 4.75 | W14: 5 | X14: 5.25 | Y14: 5.5 | Z14: 5.75 | AA14: 6 | AB14: 6.25 | AC14: 6.5 | AD14: 6.75 | AE14: 7 | AF14: 7.25 | AG14: 7.5 | AH14: 7.75 | AI14: 8 | AJ14: 8.25 | AK14: 8.5 | AL14: 8.75 | AM14: 9 | AN14: 9.25 | AO14: 9.5 | AP14: 9.75 | AQ14: 10 | AU14: 7 | AV14: 0.0035 | AW14: 0.0195 | AX14: 0.012 | AY14: 0.1225 | AZ14: 0.0195
C15: =Cubic_Spline(Tenors, CreditSpreadCurve,C14) -> 0.001356559485 | D15: =Cubic_Spline(Tenors, CreditSpreadCurve,D14) -> 0.00225173092 | E15: =Cubic_Spline(Tenors, CreditSpreadCurve,E14) -> 0.003160349417 | F15: =Cubic_Spline(Tenors, CreditSpreadCurve,F14) -> 0.004077933398 | G15: =Cubic_Spline(Tenors, CreditSpreadCurve,G14) -> 0.004999999888 | H15: =Cubic_Spline(Tenors, CreditSpreadCurve,H14) -> 0.005922066378 | I15: =Cubic_Spline(Tenors, CreditSpreadCurve,I14) -> 0.006839650126 | J15: =Cubic_Spline(Tenors, CreditSpreadCurve,J14) -> 0.007748268856 | K15: =Cubic_Spline(Tenors, CreditSpreadCurve,K14) -> 0.008643440291 | L15: =Cubic_Spline(Tenors, CreditSpreadCurve,L14) -> 0.009520681573 | M15: =Cubic_Spline(Tenors, CreditSpreadCurve,M14) -> 0.01037551031 | N15: =Cubic_Spline(Tenors, CreditSpreadCurve,N14) -> 0.01120344399 | O15: =Cubic_Spline(Tenors, CreditSpreadCurve,O14) -> 0.0120000001 | P15: =Cubic_Spline(Tenors, CreditSpreadCurve,P14) -> 0.01276127217 | Q15: =Cubic_Spline(Tenors, CreditSpreadCurve,Q14) -> 0.01348565921 | R15: =Cubic_Spline(Tenors, CreditSpreadCurve,R14) -> 0.01417213722 | S15: =Cubic_Spline(Tenors, CreditSpreadCurve,S14) -> 0.01481967939 | T15: =Cubic_Spline(Tenors, CreditSpreadCurve,T14) -> 0.01542726169 | U15: =Cubic_Spline(Tenors, CreditSpreadCurve,U14) -> 0.01599385966 | V15: =Cubic_Spline(Tenors, CreditSpreadCurve,V14) -> 0.01651844764 | W15: =Cubic_Spline(Tenors, CreditSpreadCurve,W14) -> 0.01700000092 | X15: =Cubic_Spline(Tenors, CreditSpreadCurve,X14) -> 0.01743811875 | Y15: =Cubic_Spline(Tenors, CreditSpreadCurve,Y14) -> 0.01783490075 | Z15: =Cubic_Spline(Tenors, CreditSpreadCurve,Z14) -> 0.01819306891 | AA15: =Cubic_Spline(Tenors, CreditSpreadCurve,AA14) -> 0.01851534517 | AB15: =Cubic_Spline(Tenors, CreditSpreadCurve,AB14) -> 0.01880445383 | AC15: =Cubic_Spline(Tenors, CreditSpreadCurve,AC14) -> 0.01906311733 | AD15: =Cubic_Spline(Tenors, CreditSpreadCurve,AD14) -> 0.01929405855 | AE15: =Cubic_Spline(Tenors, CreditSpreadCurve,AE14) -> 0.0195000004 | AF15: =Cubic_Spline(Tenors, CreditSpreadCurve,AF14) -> 0.01968348539 | AG15: =Cubic_Spline(Tenors, CreditSpreadCurve,AG14) -> 0.01984632996 | AH15: =Cubic_Spline(Tenors, CreditSpreadCurve,AH14) -> 0.01999017562 | AI15: =Cubic_Spline(Tenors, CreditSpreadCurve,AI14) -> 0.02011665845 | AJ15: =Cubic_Spline(Tenors, CreditSpreadCurve,AJ14) -> 0.02022741538 | AK15: =Cubic_Spline(Tenors, CreditSpreadCurve,AK14) -> 0.02032408615 | AL15: =Cubic_Spline(Tenors, CreditSpreadCurve,AL14) -> 0.02040830677 | AM15: =Cubic_Spline(Tenors, CreditSpreadCurve,AM14) -> 0.020481717 | AN15: =Cubic_Spline(Tenors, CreditSpreadCurve,AN14) -> 0.02054595329 | AO15: =Cubic_Spline(Tenors, CreditSpreadCurve,AO14) -> 0.02060265401 | AP15: =Cubic_Spline(Tenors, CreditSpreadCurve,AP14) -> 0.02065345703 | AQ15: =Cubic_Spline(Tenors, CreditSpreadCurve,AQ14) -> 0.02070000023 | AU15: 10 | AV15: 0.0045 | AW15: 0.0207 | AX15: 0.0135 | AY15: 0.12 | AZ15: 0.0207
B16: Survival | C16: =EXP(-C15*C14/LGD) -> 1 | D16: =EXP(-D15*D14/LGD) -> 0.9990622188 | E16: 0.9973698404 | F16: 0.994915553 | G16: 0.9917012928 | H16: 0.9877381583 | I16: 0.983046235 | J16: 0.9776543297 | K16: 0.9715996252 | L16: 0.9649272627 | M16: 0.9576898575 | N16: 0.9499469688 | O16: 0.9417645331 | P16: 0.9332113676 | Q16: 0.924348286 | R16: 0.9152336806 | S16: 0.905925811 | T16: 0.8964825623 | U16: 0.8869612826 | V16: 0.8774186418 | W16: 0.8679105051 | X16: 0.8584871738 | Y16: 0.8491778862 | Z16: 0.8400026405 | AA16: 0.8309767593 | AB16: 0.8221111062 | AC16: 0.8134123484 | AD16: 0.804883157 | AE16: 0.7965224178 | AF16: 0.7883271462 | AG16: 0.7802982002 | AH16: 0.7724357578 | AI16: 0.7647379043 | AJ16: 0.7572006801 | AK16: 0.7498181611 | AL16: 0.742582621 | AM16: 0.7354845429 | AN16: 0.7285127781 | AO16: 0.7216545707 | AP16: 0.7148956602 | AQ16: 0.7082203508 | AU16: 20 | AV16: 0.0049 | AW16: 0.0211 | AX16: 0.0142 | AY16: 0.115 | AZ16: 0.0211
B17: EPE (no WWR) | C17: =SUMIF(C23:C1022,">0")/10000 -> 3.968129313e-07 | D17: =SUMIF(D23:D10022,">0")/10000 -> 0.0119347082 | E17: =SUMIF(E23:E10022,">0")/10000 -> 0.0175921347 | F17: 0.02190199435 | G17: 0.02483747916 | H17: 0.02703000176 | I17: 0.02831645954 | J17: 0.02948534927 | K17: 0.03018482897 | L17: 0.03075946233 | M17: 0.03110390318 | N17: 0.0311095908 | O17: 0.03100972167 | P17: 0.03059502654 | Q17: 0.03004448655 | R17: 0.02941012445 | S17: 0.02869367889 | T17: 0.02810274542 | U17: 0.02728623241 | V17: 0.02644038105 | W17: 0.02529389359 | X17: 0.02428359125 | Y17: 0.02340045399 | Z17: 0.02227083454 | AA17: 0.02102771635 | AB17: 0.01981982734 | AC17: 0.01858815911 | AD17: 0.01729111812 | AE17: 0.01612117558 | AF17: 0.01480282722 | AG17: 0.01359681913 | AH17: 0.0121713824 | AI17: 0.01090707932 | AJ17: 0.009555726472 | AK17: 0.008251058216 | AL17: 0.00689276602 | AM17: 0.005532758845 | AN17: 0.004162007735 | AO17: 0.002783439934 | AP17: 0.001392692764 | AQ17: 0
B18: EPE (WWR) | C18: =SUMIF(C20:C20,">0")/10000 -> 0 | D18: =SUMPRODUCT(--(D23:D10022>0),D23:D10022,AU10024:AU20023) -> 0.02577729292 | E18: =SUMPRODUCT(--(E23:E10022>0),E23:E10022,AV10024:AV20023) -> 0.03492560236 | F18: =SUMPRODUCT(--(F23:F10022>0),F23:F10022,AW10024:AW20023) -> 0.04123201396 | G18: =SUMPRODUCT(--(G23:G10022>0),G23:G10022,AX10024:AX20023) -> 0.04494486889 | H18: =SUMPRODUCT(--(H23:H10022>0),H23:H10022,AY10024:AY20023) -> 0.04726642653 | I18: =SUMPRODUCT(--(I23:I10022>0),I23:I10022,AZ10024:AZ20023) -> 0.0481413978 | J18: =SUMPRODUCT(--(J23:J10022>0),J23:J10022,BA10024:BA20023) -> 0.04881832325 | K18: =SUMPRODUCT(--(K23:K10022>0),K23:K10022,BB10024:BB20023) -> 0.04900606475 | L18: =SUMPRODUCT(--(L23:L10022>0),L23:L10022,BC10024:BC20023) -> 0.0489553849 | M18: =SUMPRODUCT(--(M23:M10022>0),M23:M10022,BD10024:BD20023) -> 0.04868988835 | N18: =SUMPRODUCT(--(N23:N10022>0),N23:N10022,BE10024:BE20023) -> 0.04781318404 | O18: =SUMPRODUCT(--(O23:O10022>0),O23:O10022,BF10024:BF20023) -> 0.04679548243 | P18: =SUMPRODUCT(--(P23:P10022>0),P23:P10022,BG10024:BG20023) -> 0.045492782 | Q18: =SUMPRODUCT(--(Q23:Q10022>0),Q23:Q10022,BH10024:BH20023) -> 0.04402875026 | R18: =SUMPRODUCT(--(R23:R10022>0),R23:R10022,BI10024:BI20023) -> 0.04247903639 | S18: =SUMPRODUCT(--(S23:S10022>0),S23:S10022,BJ10024:BJ20023) -> 0.04085681248 | T18: =SUMPRODUCT(--(T23:T10022>0),T23:T10022,BK10024:BK20023) -> 0.03947496605 | U18: =SUMPRODUCT(--(U23:U10022>0),U23:U10022,BL10024:BL20023) -> 0.0378473299 | V18: =SUMPRODUCT(--(V23:V10022>0),V23:V10022,BM10024:BM20023) -> 0.0362491464 | W18: =SUMPRODUCT(--(W23:W10022>0),W23:W10022,BN10024:BN20023) -> 0.03427383234 | X18: =SUMPRODUCT(--(X23:X10022>0),X23:X10022,BO10024:BO20023) -> 0.03254526998 | Y18: =SUMPRODUCT(--(Y23:Y10022>0),Y23:Y10022,BP10024:BP20023) -> 0.03102232277 | Z18: =SUMPRODUCT(--(Z23:Z10022>0),Z23:Z10022,BQ10024:BQ20023) -> 0.02922092397 | AA18: =SUMPRODUCT(--(AA23:AA10022>0),AA23:AA10022,BR10024:BR20023) -> 0.0273325837 | AB18: =SUMPRODUCT(--(AB23:AB10022>0),AB23:AB10022,BS10024:BS20023) -> 0.02553945234 | AC18: =SUMPRODUCT(--(AC23:AC10022>0),AC23:AC10022,BT10024:BT20023) -> 0.02375795117 | AD18: =SUMPRODUCT(--(AD23:AD10022>0),AD23:AD10022,BU10024:BU20023) -> 0.02192337703 | AE18: =SUMPRODUCT(--(AE23:AE10022>0),AE23:AE10022,BV10024:BV20023) -> 0.0202629975 | AF18: =SUMPRODUCT(--(AF23:AF10022>0),AF23:AF10022,BW10024:BW20023) -> 0.01846752442 | AG18: =SUMPRODUCT(--(AG23:AG10022>0),AG23:AG10022,BX10024:BX20023) -> 0.01682725743 | AH18: =SUMPRODUCT(--(AH23:AH10022>0),AH23:AH10022,BY10024:BY20023) -> 0.0149534347 | AI18: =SUMPRODUCT(--(AI23:AI10022>0),AI23:AI10022,BZ10024:BZ20023) -> 0.01329767994 | AJ18: =SUMPRODUCT(--(AJ23:AJ10022>0),AJ23:AJ10022,CA10024:CA20023) -> 0.01156884193 | AK18: =SUMPRODUCT(--(AK23:AK10022>0),AK23:AK10022,CB10024:CB20023) -> 0.00991572222 | AL18: =SUMPRODUCT(--(AL23:AL10022>0),AL23:AL10022,CC10024:CC20023) -> 0.00822782542 | AM18: =SUMPRODUCT(--(AM23:AM10022>0),AM23:AM10022,CD10024:CD20023) -> 0.006559820983 | AN18: =SUMPRODUCT(--(AN23:AN10022>0),AN23:AN10022,CE10024:CE20023) -> 0.004902074064 | AO18: =SUMPRODUCT(--(AO23:AO10022>0),AO23:AO10022,CF10024:CF20023) -> 0.003257485211 | AP18: =SUMPRODUCT(--(AP23:AP10022>0),AP23:AP10022,CG10024:CG20023) -> 0.001619829595 | AQ18: =SUMPRODUCT(--(AQ23:AQ10022>0),AQ23:AQ10022,CH10024:CH20023) -> 0
C21: =SQRT(1-Correlation^2) -> 0.9682458366
C22: Simulation are sorted
B23: 1 | C23: 3.968129313e-06 | D23: -0.09179639717 | E23: -0.1128703925 | F23: -0.1179519664 | G23: -0.1564499219 | H23: -0.1680414908 | I23: -0.1681041699 | J23: -0.1744512999 | K23: -0.1767060536 | L23: -0.1854823195 | M23: -0.1733740075 | N23: -0.1798543648 | O23: -0.1720881313 | P23: -0.1674852619 | Q23: -0.1686078391 | R23: -0.1674398575 | S23: -0.1454428183 | T23: -0.1497008634 | U23: -0.1484522837 | V23: -0.1462317215 | W23: -0.1375965293 | X23: -0.1446037225 | Y23: -0.1268900104 | Z23: -0.1240545969 | AA23: -0.1184169447 | AB23: -0.1160650973 | AC23: -0.10268409 | AD23: -0.1001526938 | AE23: -0.09458797634 | AF23: -0.09093920678 | AG23: -0.08239517767 | AH23: -0.07561840113 | AI23: -0.07097343671 | AJ23: -0.06495869626 | AK23: -0.05490540159 | AL23: -0.05128934482 | AM23: -0.03793351485 | AN23: -0.0272829876 | AO23: -0.01935798245 | AP23: -0.009842616267 | AQ23: 0 | AS23: =B23/10000 -> 0.0001 | AU23: =NORMSDIST(-(Correlation*NORMSINV(D$16)-NORMSINV($AS23))/CorrTerm) -> 1.710365315e-06 | AV23: =NORMSDIST(-(Correlation*NORMSINV(E$16)-NORMSINV($AS23))/CorrTerm) -> 2.539170721e-06 | AW23: =NORMSDIST(-(Correlation*NORMSINV(F$16)-NORMSINV($AS23))/CorrTerm) -> 3.325478888e-06 | AX23: =NORMSDIST(-(Correlation*NORMSINV(G$16)-NORMSINV($AS23))/CorrTerm) -> 4.107537177e-06 | AY23: =NORMSDIST(-(Correlation*NORMSINV(H$16)-NORMSINV($AS23))/CorrTerm) -> 4.898008859e-06 | AZ23: =NORMSDIST(-(Correlation*NORMSINV(I$16)-NORMSINV($AS23))/CorrTerm) -> 5.702367775e-06 | BA23: =NORMSDIST(-(Correlation*NORMSINV(J$16)-NORMSINV($AS23))/CorrTerm) -> 6.523051254e-06 | BB23: =NORMSDIST(-(Correlation*NORMSINV(K$16)-NORMSINV($AS23))/CorrTerm) -> 7.36085666e-06 | BC23: =NORMSDIST(-(Correlation*NORMSINV(L$16)-NORMSINV($AS23))/CorrTerm) -> 8.215518105e-06 | BD23: =NORMSDIST(-(Correlation*NORMSINV(M$16)-NORMSINV($AS23))/CorrTerm) -> 9.085974472e-06 | BE23: =NORMSDIST(-(Correlation*NORMSINV(N$16)-NORMSINV($AS23))/CorrTerm) -> 9.970500266e-06 | BF23: =NORMSDIST(-(Correlation*NORMSINV(O$16)-NORMSINV($AS23))/CorrTerm) -> 1.086676949e-05 | BG23: =NORMSDIST(-(Correlation*NORMSINV(P$16)-NORMSINV($AS23))/CorrTerm) -> 1.177218725e-05 | BH23: =NORMSDIST(-(Correlation*NORMSINV(Q$16)-NORMSINV($AS23))/CorrTerm) -> 1.268490828e-05 | BI23: =NORMSDIST(-(Correlation*NORMSINV(R$16)-NORMSINV($AS23))/CorrTerm) -> 1.360310535e-05 | BJ23: =NORMSDIST(-(Correlation*NORMSINV(S$16)-NORMSINV($AS23))/CorrTerm) -> 1.452469898e-05 | BK23: =NORMSDIST(-(Correlation*NORMSINV(T$16)-NORMSINV($AS23))/CorrTerm) -> 1.544736768e-05 | BL23: =NORMSDIST(-(Correlation*NORMSINV(U$16)-NORMSINV($AS23))/CorrTerm) -> 1.636855008e-05 | BM23: =NORMSDIST(-(Correlation*NORMSINV(V$16)-NORMSINV($AS23))/CorrTerm) -> 1.728544644e-05 | BN23: =NORMSDIST(-(Correlation*NORMSINV(W$16)-NORMSINV($AS23))/CorrTerm) -> 1.819502062e-05 | BO23: =NORMSDIST(-(Correlation*NORMSINV(X$16)-NORMSINV($AS23))/CorrTerm) -> 1.909444688e-05 | BP23: =NORMSDIST(-(Correlation*NORMSINV(Y$16)-NORMSINV($AS23))/CorrTerm) -> 1.998258556e-05 | BQ23: =NORMSDIST(-(Correlation*NORMSINV(Z$16)-NORMSINV($AS23))/CorrTerm) -> 2.08588753e-05 | BR23: =NORMSDIST(-(Correlation*NORMSINV(AA$16)-NORMSINV($AS23))/CorrTerm) -> 2.172293649e-05 | BS23: =NORMSDIST(-(Correlation*NORMSINV(AB$16)-NORMSINV($AS23))/CorrTerm) -> 2.257458952e-05 | BT23: =NORMSDIST(-(Correlation*NORMSINV(AC$16)-NORMSINV($AS23))/CorrTerm) -> 2.341386648e-05 | BU23: =NORMSDIST(-(Correlation*NORMSINV(AD$16)-NORMSINV($AS23))/CorrTerm) -> 2.424102676e-05 | BV23: =NORMSDIST(-(Correlation*NORMSINV(AE$16)-NORMSINV($AS23))/CorrTerm) -> 2.505656946e-05 | BW23: =NORMSDIST(-(Correlation*NORMSINV(AF$16)-NORMSINV($AS23))/CorrTerm) -> 2.586107602e-05 | BX23: =NORMSDIST(-(Correlation*NORMSINV(AG$16)-NORMSINV($AS23))/CorrTerm) -> 2.665466671e-05 | BY23: =NORMSDIST(-(Correlation*NORMSINV(AH$16)-NORMSINV($AS23))/CorrTerm) -> 2.743745263e-05 | BZ23: =NORMSDIST(-(Correlation*NORMSINV(AI$16)-NORMSINV($AS23))/CorrTerm) -> 2.820969063e-05 | CA23: =NORMSDIST(-(Correlation*NORMSINV(AJ$16)-NORMSINV($AS23))/CorrTerm) -> 2.897179534e-05 | CB23: =NORMSDIST(-(Correlation*NORMSINV(AK$16)-NORMSINV($AS23))/CorrTerm) -> 2.972434721e-05 | CC23: =NORMSDIST(-(Correlation*NORMSINV(AL$16)-NORMSINV($AS23))/CorrTerm) -> 3.046809104e-05 | CD23: =NORMSDIST(-(Correlation*NORMSINV(AM$16)-NORMSINV($AS23))/CorrTerm) -> 3.120394916e-05 | CE23: =NORMSDIST(-(Correlation*NORMSINV(AN$16)-NORMSINV($AS23))/CorrTerm) -> 3.193301848e-05 | CF23: =NORMSDIST(-(Correlation*NORMSINV(AO$16)-NORMSINV($AS23))/CorrTerm) -> 3.265658087e-05 | CG23: =NORMSDIST(-(Correlation*NORMSINV(AP$16)-NORMSINV($AS23))/CorrTerm) -> 3.337610476e-05 | CH23: =NORMSDIST(-(Correlation*NORMSINV(AQ$16)-NORMSINV($AS23))/CorrTerm) -> 3.409324983e-05
B24: =B23+1 -> 2 | C24: 3.968129313e-06 | D24: -0.08441100341 | E24: -0.1050247487 | F24: -0.1174512517 | G24: -0.142989955 | H24: -0.1492614579 | I24: -0.1646465521 | J24: -0.1690132077 | K24: -0.1751989276 | L24: -0.17239654 | M24: -0.1703342392 | N24: -0.1641613928 | O24: -0.1648961525 | P24: -0.1673620558 | Q24: -0.1679731853 | R24: -0.153986668 | S24: -0.1430883133 | T24: -0.1428567114 | U24: -0.1421751455 | V24: -0.1448700053 | W24: -0.1364487782 | X24: -0.1285138163 | Y24: -0.1241321942 | Z24: -0.1220933183 | AA24: -0.1119197753 | AB24: -0.1103201816 | AC24: -0.1025374555 | AD24: -0.09814129403 | AE24: -0.09318352901 | AF24: -0.08266113248 | AG24: -0.07930821127 | AH24: -0.07427995565 | AI24: -0.06569674811 | AJ24: -0.05831375238 | AK24: -0.0532655434 | AL24: -0.04657353458 | AM24: -0.03661218811 | AN24: -0.02679073605 | AO24: -0.01847485921 | AP24: -0.009512310002 | AQ24: 0 | AS24: =B24/10000 -> 0.0002 | AU24: 4.117329536e-06 | AV24: 6.023813784e-06 | AW24: 7.809864294e-06 | AX24: 9.56974254e-06 | AY24: 1.133504681e-05 | AZ24: 1.311968847e-05 | BA24: 1.493012621e-05 | BB24: 1.676884055e-05 | BC24: 1.863578679e-05 | BD24: 2.052908307e-05 | BE24: 2.244535711e-05 | BF24: 2.437992558e-05 | BG24: 2.632753535e-05 | BH24: 2.828455528e-05 | BI24: 3.024739122e-05 | BJ24: 3.221191263e-05 | BK24: 3.417348294e-05 | BL24: 3.612697069e-05 | BM24: 3.80667577e-05 | BN24: 3.998674736e-05 | BO24: 4.188130755e-05 | BP24: 4.374836309e-05 | BQ24: 4.55870388e-05 | BR24: 4.739682104e-05 | BS24: 4.917759507e-05 | BT24: 5.092966861e-05 | BU24: 5.265380336e-05 | BV24: 5.435123967e-05 | BW24: 5.602336841e-05 | BX24: 5.767060481e-05 | BY24: 5.929333264e-05 | BZ24: 6.089222625e-05 | CA24: 6.246827472e-05 | CB24: 6.402279756e-05 | CC24: 6.55574411e-05 | CD24: 6.707420476e-05 | CE24: 6.857543431e-05 | CF24: 7.006384237e-05 | CG24: 7.154251098e-05 | CH24: 7.30149004e-05
B25: =B24+1 -> 3 | C25: 3.968129313e-06 | D25: -0.083885981 | E25: -0.1024137919 | F25: -0.1173707154 | G25: -0.13303583 | H25: -0.1454649865 | I25: -0.1593281018 | J25: -0.1649758609 | K25: -0.1579856221 | L25: -0.1617918353 | M25: -0.1680381253 | N25: -0.1616974389 | O25: -0.1598959209 | P25: -0.1622937121 | Q25: -0.1550530388 | R25: -0.1508952363 | S25: -0.1423704653 | T25: -0.1420331908 | U25: -0.1398432222 | V25: -0.1421665496 | W25: -0.1356202541 | X25: -0.1283560638 | Y25: -0.1230986583 | Z25: -0.1177749735 | AA25: -0.1116877937 | AB25: -0.1098409984 | AC25: -0.1020642373 | AD25: -0.09508716159 | AE25: -0.09058766047 | AF25: -0.08264641892 | AG25: -0.07510039949 | AH25: -0.07268666228 | AI25: -0.06398357019 | AJ25: -0.05684656563 | AK25: -0.05309141169 | AL25: -0.04397771147 | AM25: -0.03565681694 | AN25: -0.02610165153 | AO25: -0.01780545346 | AP25: -0.009247320593 | AQ25: 0 | AS25: 0.0003 | AU25: 6.901751494e-06 | AV25: 1.000866233e-05 | AW25: 1.289711598e-05 | AX25: 1.57271648e-05 | AY25: 1.855285042e-05 | AZ25: 2.139821718e-05 | BA25: 2.427468343e-05 | BB25: 2.718696859e-05 | BC25: 3.013558805e-05 | BD25: 3.311804506e-05 | BE25: 3.612944067e-05 | BF25: 3.916279706e-05 | BG25: 4.221024559e-05 | BH25: 4.526645815e-05 | BI25: 4.832615722e-05 | BJ25: 5.1383227e-05 | BK25: 5.443076925e-05 | BL25: 5.746112721e-05 | BM25: 6.046590337e-05 | BN25: 6.343597621e-05 | BO25: 6.6362959e-05 | BP25: 6.924396243e-05 | BQ25: 7.207793192e-05 | BR25: 7.486434936e-05 | BS25: 7.760329037e-05 | BT25: 8.029545992e-05 | BU25: 8.294223997e-05 | BV25: 8.554572653e-05 | BW25: 8.810822614e-05 | BX25: 9.063053324e-05 | BY25: 9.311338194e-05 | BZ25: 9.555793941e-05 | CA25: 9.796584234e-05 | CB25: 0.0001003392203 | CC25: 0.0001026806894 | CD25: 0.000104993392 | CE25: 0.0001072809857 | CF25: 0.0001095476737 | CG25: 0.0001117982087 | CH25: 0.0001140379046
B26: 4 | C26: 3.968129313e-06 | D26: -0.08231108985 | E26: -0.1012557149 | F26: -0.1142521001 | G26: -0.1244211388 | H26: -0.1435699982 | I26: -0.1531755555 | J26: -0.1648173663 | K26: -0.150866019 | L26: -0.1577691725 | M26: -0.1599392293 | N26: -0.1571544251 | O26: -0.1524867562 | P26: -0.161262369 | Q26: -0.1494915927 | R26: -0.1496165328 | S26: -0.1414451734 | T26: -0.1387239892 | U26: -0.1370640702 | V26: -0.1368852283 | W26: -0.1329057801 | X26: -0.1276893227 | Y26: -0.1223475233 | Z26: -0.1151775693 | AA26: -0.1113322665 | AB26: -0.106279311 | AC26: -0.1014169457 | AD26: -0.09497776668 | AE26: -0.08988066295 | AF26: -0.08024449518 | AG26: -0.07503514059 | AH26: -0.07195652973 | AI26: -0.06295259757 | AJ26: -0.05669553163 | AK26: -0.05235248944 | AL26: -0.04316970016 | AM26: -0.03504111246 | AN26: -0.02608801541 | AO26: -0.01727385764 | AP26: -0.008989031656 | AQ26: 0 | AS26: 0.0004 | AU26: 9.97010739e-06 | AV26: 1.436584103e-05 | AW26: 1.842982199e-05 | AX26: 2.239526774e-05 | AY26: 2.634132461e-05 | AZ26: 3.030346593e-05 | BA26: 3.429879502e-05 | BB26: 3.833470761e-05 | BC26: 4.241255327e-05 | BD26: 4.652939491e-05 | BE26: 5.067891726e-05 | BF26: 5.485191584e-05 | BG26: 5.903795817e-05 | BH26: 6.323009974e-05 | BI26: 6.742145451e-05 | BJ26: 7.160398268e-05 | BK26: 7.576857611e-05 | BL26: 7.990509784e-05 | BM26: 8.40024116e-05 | BN26: 8.804840866e-05 | BO26: 9.203199541e-05 | BP26: 9.594956059e-05 | BQ26: 9.97999693e-05 | BR26: 0.0001035827937 | BS26: 0.0001072983907 | BT26: 0.0001109479496 | BU26: 0.0001145335565 | BV26: 0.0001180582434 | BW26: 0.0001215253067 | BX26: 0.0001249359799 | BY26: 0.0001282914021 | BZ26: 0.0001315932862 | CA26: 0.0001348439672 | CB26: 0.0001380464334 | CC26: 0.0001412043175 | CD26: 0.0001443219489 | CE26: 0.000147404339 | CF26: 0.0001504572213 | CG26: 0.0001534870556 | CH26: 0.0001565010442
B27: 5 | C27: 3.968129313e-06 | D27: -0.07660786555 | E27: -0.1003708296 | F27: -0.1129403981 | G27: -0.1231505635 | H27: -0.1422104389 | I27: -0.1461634217 | J27: -0.1627292776 | K27: -0.1478158228 | L27: -0.1547644609 | M27: -0.1573448724 | N27: -0.1567054075 | O27: -0.1501950091 | P27: -0.1589837208 | Q27: -0.1480404486 | R27: -0.1426324731 | S27: -0.1413214562 | T27: -0.1382105648 | U27: -0.1361151316 | V27: -0.1354931879 | W27: -0.1328883833 | X27: -0.1258837779 | Y27: -0.1217177087 | Z27: -0.1130595495 | AA27: -0.1099986424 | AB27: -0.1052333006 | AC27: -0.1003232656 | AD27: -0.09465881613 | AE27: -0.08794585568 | AF27: -0.08018307196 | AG27: -0.0737582859 | AH27: -0.06726477454 | AI27: -0.06164963389 | AJ27: -0.05600396469 | AK27: -0.0498177317 | AL27: -0.04294648326 | AM27: -0.03488468806 | AN27: -0.0252484145 | AO27: -0.01708821836 | AP27: -0.008677489741 | AQ27: 0 | AS27: 0.0005 | AU27: 1.327232098e-05 | AV27: 1.902743217e-05 | AW27: 2.432485347e-05 | AX27: 2.947704487e-05 | AY27: 3.459045844e-05 | AZ27: 3.971307346e-05 | BA27: 4.48682852e-05 | BB27: 5.006653546e-05 | BC27: 5.531024364e-05 | BD27: 6.059618595e-05 | BE27: 6.591673199e-05 | BF27: 7.126051702e-05 | BG27: 7.66145972e-05 | BH27: 8.197048475e-05 | BI27: 8.731975265e-05 | BJ27: 9.265249334e-05 | BK27: 9.795743706e-05 | BL27: 0.0001032220093 | BM27: 0.000108432374 | BN27: 0.0001135734713 | BO27: 0.0001186315445 | BP27: 0.0001236023359 | BQ27: 0.0001284847106 | BR27: 0.0001332784073 | BS27: 0.0001379841366 | BT27: 0.0001426036415 | BU27: 0.0001471397782 | BV27: 0.0001515965777 | BW27: 0.0001559783845 | BX27: 0.0001602869177 | BY27: 0.0001645237647 | BZ27: 0.0001686912252 | CA27: 0.0001727923723 | CB27: 0.0001768310904 | CC27: 0.0001808120644 | CD27: 0.0001847408446 | CE27: 0.0001886238278 | CF27: 0.0001924683073 | CG27: 0.0001962824776 | CH27: 0.0002000754538
B28: 6 | C28: 3.968129313e-06 | D28: -0.07614964375 | E28: -0.09855698895 | F28: -0.1120299325 | G28: -0.1229202835 | H28: -0.1396961566 | I28: -0.1443896896 | J28: -0.1512058151 | K28: -0.14566727 | L28: -0.1524534761 | M28: -0.1561380052 | N28: -0.15480041 | O28: -0.1501684131 | P28: -0.1586548316 | Q28: -0.1475478764 | R28: -0.141759118 | S28: -0.1407749986 | T28: -0.137912824 | U28: -0.1346999378 | V28: -0.1341227653 | W28: -0.1321858623 | X28: -0.124855774 | Y28: -0.1173156404 | Z28: -0.1116450125 | AA28: -0.1094688638 | AB28: -0.1041640514 | AC28: -0.09991386588 | AD28: -0.09439449368 | AE28: -0.087310702 | AF28: -0.08009467399 | AG28: -0.07308641987 | AH28: -0.06710499205 | AI28: -0.06096329974 | AJ28: -0.05591529172 | AK28: -0.04821649728 | AL28: -0.04082942557 | AM28: -0.03423059088 | AN28: -0.02505358145 | AO28: -0.01691594713 | AP28: -0.008671700949 | AQ28: 0 | AS28: 0.0006 | AU28: 1.677631286e-05 | AV28: 2.395017311e-05 | AW28: 3.052947063e-05 | AX28: 3.691115016e-05 | AY28: 4.323087297e-05 | AZ28: 4.955005879e-05 | BA28: 5.589892402e-05 | BB28: 6.229128139e-05 | BC28: 6.873082928e-05 | BD28: 7.521419596e-05 | BE28: 8.173252946e-05 | BF28: 8.827236847e-05 | BG28: 9.481830922e-05 | BH28: 0.0001013603878 | BI28: 0.000107888698 | BJ28: 0.0001143915163 | BK28: 0.0001208554565 | BL28: 0.0001272655466 | BM28: 0.0001336052871 | BN28: 0.0001398567021 | BO28: 0.000146003411 | BP28: 0.0001520405754 | BQ28: 0.0001579671282 | BR28: 0.0001637830389 | BS28: 0.000169489433 | BT28: 0.000175088665 | BU28: 0.0001805844162 | BV28: 0.0001859817692 | BW28: 0.000191286164 | BX28: 0.0001964998446 | BY28: 0.0002016248825 | BZ28: 0.0002066641983 | CA28: 0.0002116216354 | CB28: 0.0002165020055 | CC28: 0.0002213110744 | CD28: 0.0002260556409 | CE28: 0.0002307435125 | CF28: 0.000235383566 | CG28: 0.0002399857519 | CH28: 0.0002445611184
B29: 7 | C29: 3.968129313e-06 | D29: -0.07519374282 | E29: -0.0979983311 | F29: -0.1115444013 | G29: -0.1221667965 | H29: -0.1345025022 | I29: -0.138496655 | J29: -0.1485092064 | K29: -0.1431736902 | L29: -0.1497451422 | M29: -0.1557428532 | N29: -0.154050666 | O29: -0.1475354583 | P29: -0.1511320129 | Q29: -0.1462443941 | R29: -0.1413068251 | S29: -0.1404969657 | T29: -0.1359218567 | U29: -0.1334895168 | V29: -0.1335910448 | W29: -0.1319101593 | X29: -0.124208836 | Y29: -0.116482276 | Z29: -0.1101232839 | AA29: -0.109040308 | AB29: -0.1041227318 | AC29: -0.09959609895 | AD29: -0.09305192145 | AE29: -0.0866216924 | AF29: -0.07980297914 | AG29: -0.07294444755 | AH29: -0.06699557162 | AI29: -0.06042645205 | AJ29: -0.05521684498 | AK29: -0.04785387189 | AL29: -0.04076097461 | AM29: -0.03392147327 | AN29: -0.02495416207 | AO29: -0.01674780847 | AP29: -0.008671033438 | AQ29: 0 | AS29: 0.0007 | AU29: 2.045944556e-05 | AV29: 2.910366982e-05 | AW29: 3.700673735e-05 | AX29: 4.46547285e-05 | AY29: 5.221420568e-05 | AZ29: 5.976086185e-05 | BA29: 6.733220798e-05 | BB29: 7.494571987e-05 | BC29: 8.260656454e-05 | BD29: 9.03113496e-05 | BE29: 9.805008885e-05 | BF29: 0.0001058072853 | BG29: 0.0001135651251 | BH29: 0.0001213122304 | BI29: 0.0001290372729 | BJ29: 0.0001367267616 | BK29: 0.0001443652359 | BL29: 0.0001519353639 | BM29: 0.0001594180178 | BN29: 0.0001667923377 | BO29: 0.0001740393565 | BP29: 0.0001811537121 | BQ29: 0.0001881344651 | BR29: 0.0001949818717 | BS29: 0.0002016975254 | BT29: 0.0002082844423 | BU29: 0.0002147471764 | BV29: 0.0002210919063 | BW29: 0.0002273252086 | BX29: 0.0002334498861 | BY29: 0.0002394685248 | BZ29: 0.0002453846957 | CA29: 0.0002512030399 | CB29: 0.0002569293227 | CC29: 0.0002625704154 | CD29: 0.0002681343881 | CE29: 0.0002736304805 | CF29: 0.0002790691725 | CG29: 0.0002844621887 | CH29: 0.0002898225259
B30: 8 | C30: 3.968129313e-06 | D30: -0.07495915996 | E30: -0.09618465863 | F30: -0.1108554676 | G30: -0.1220835238 | H30: -0.1302188155 | I30: -0.1356620379 | J30: -0.1459505166 | K30: -0.1426405315 | L30: -0.1493849278 | M30: -0.1540098338 | N30: -0.1494504276 | O30: -0.1475197144 | P30: -0.1483351615 | Q30: -0.146120815 | R30: -0.1405825301 | S30: -0.1389553176 | T30: -0.1344360359 | U30: -0.1331132301 | V30: -0.1324885076 | W30: -0.1281667492 | X30: -0.1210609323 | Y30: -0.1160582296 | Z30: -0.1096029427 | AA30: -0.1075008031 | AB30: -0.1025222906 | AC30: -0.09792638777 | AD30: -0.092803243 | AE30: -0.08632295956 | AF30: -0.07885796042 | AG30: -0.07286997239 | AH30: -0.06624229035 | AI30: -0.06002312355 | AJ30: -0.05472344945 | AK30: -0.04731112078 | AL30: -0.04068267835 | AM30: -0.03386478461 | AN30: -0.02491352857 | AO30: -0.01673750677 | AP30: -0.008477221217 | AQ30: 0 | AS30: 0.0008 | AU30: 2.4304731e-05 | AV30: 3.446519663e-05 | AW30: 4.372910796e-05 | AX30: 5.267588659e-05 | AY30: 6.150452855e-05 | AZ30: 7.030575581e-05 | BA30: 7.912480487e-05 | BB30: 8.798308165e-05 | BC30: 9.688739636e-05 | BD30: 0.0001058344541 | BE30: 0.0001148132165 | BF30: 0.0001238062094 | BG30: 0.0001327932565 | BH30: 0.0001417616246 | BI30: 0.0001506986164 | BJ30: 0.0001595890189 | BK30: 0.0001684153367 | BL30: 0.000177157914 | BM30: 0.0001857950268 | BN30: 0.0001943029627 | BO30: 0.0002026602024 | BP30: 0.000210860912 | BQ30: 0.0002189043325 | BR30: 0.0002267910572 | BS30: 0.0002345231942 | BT30: 0.0002421044659 | BU30: 0.0002495403404 | BV30: 0.0002568381321 | BW30: 0.00026400559 | BX30: 0.000271046105 | BY30: 0.000277962805 | BZ30: 0.0002847599367 | CA30: 0.0002914429634 | CB30: 0.0002980186265 | CC30: 0.0003044949244 | CD30: 0.0003108812182 | CE30: 0.0003171881983 | CF30: 0.0003234279642 | CG30: 0.00032961403 | CH30: 0.0003357613545
B31: 9 | C31: 3.968129313e-06 | D31: -0.07461775051 | E31: -0.09607530097 | F31: -0.1106999465 | G31: -0.1216941938 | H31: -0.1301965315 | I31: -0.1332715039 | J31: -0.1445772562 | K31: -0.1423551022 | L31: -0.1390109883 | M31: -0.1523188437 | N31: -0.1490443687 | O31: -0.1461766869 | P31: -0.1473537108 | Q31: -0.1448615571 | R31: -0.1391454412 | S31: -0.1389291605 | T31: -0.1331470432 | U31: -0.1325461495 | V31: -0.1275198285 | W31: -0.1275134105 | X31: -0.1210301315 | Y31: -0.1153133289 | Z31: -0.1077292861 | AA31: -0.1073505898 | AB31: -0.101897357 | AC31: -0.09685600439 | AD31: -0.09167755474 | AE31: -0.08626368274 | AF31: -0.07869358192 | AG31: -0.07199437272 | AH31: -0.06613143382 | AI31: -0.05996040838 | AJ31: -0.05449744039 | AK31: -0.04622348538 | AL31: -0.04061793984 | AM31: -0.03346372507 | AN31: -0.02484396072 | AO31: -0.01673467798 | AP31: -0.008468071607 | AQ31: 0 | AS31: 0.0009 | AU31: 2.829886294e-05 | AV31: 4.001700868e-05 | AW31: 5.067512145e-05 | AX31: 6.094982043e-05 | AY31: 7.107394215e-05 | AZ31: 8.115393267e-05 | BA31: 9.124315128e-05 | BB31: 0.0001013671812 | BC31: 0.000111534638 | BD31: 0.0001217424351 | BE31: 0.0001319785596 | BF31: 0.0001422236159 | BG31: 0.0001524551119 | BH31: 0.0001626590135 | BI31: 0.0001728213049 | BJ31: 0.0001829250938 | BK31: 0.0001929508873 | BL31: 0.0002028767395 | BM31: 0.0002126783621 | BN31: 0.0002223292188 | BO31: 0.0002318052707 | BP31: 0.0002411002593 | BQ31: 0.0002502136544 | BR31: 0.0002591464312 | BS31: 0.000267901255 | BT31: 0.0002764825942 | BU31: 0.0002848968687 | BV31: 0.0002931525635 | BW31: 0.0003012586323 | BX31: 0.0003092190806 | BY31: 0.0003170376024 | BZ31: 0.0003247191428 | CA31: 0.0003322700091 | CB31: 0.0003396979389 | CC31: 0.0003470120764 | CD31: 0.0003542230916 | CE31: 0.0003613431411 | CF31: 0.0003683859591 | CG31: 0.0003753668622 | CH31: 0.000382302783
B32: 10 | C32: 3.968129313e-06 | D32: -0.07394191341 | E32: -0.09562376826 | F32: -0.1104366265 | G32: -0.1202767469 | H32: -0.1295905064 | I32: -0.1323487217 | J32: -0.1407476855 | K32: -0.141658832 | L32: -0.1375098421 | M32: -0.1518332546 | N32: -0.1478043671 | O32: -0.1441380157 | P32: -0.1455752771 | Q32: -0.144214533 | R32: -0.1389834399 | S32: -0.1387083058 | T32: -0.1328522672 | U32: -0.1323646451 | V32: -0.1272436917 | W32: -0.1247341129 | X32: -0.1206698212 | Y32: -0.1152530733 | Z32: -0.1037854443 | AA32: -0.1064975813 | AB32: -0.1008309863 | AC32: -0.09546590072 | AD32: -0.09121575361 | AE32: -0.0860606692 | AF32: -0.07664495513 | AG32: -0.07163491991 | AH32: -0.06607941218 | AI32: -0.05990090792 | AJ32: -0.05402954384 | AK32: -0.04608070427 | AL32: -0.04053276465 | AM32: -0.0333361689 | AN32: -0.02472451794 | AO32: -0.01662174158 | AP32: -0.008318905481 | AQ32: 0 | AS32: 0.001 | AU32: 3.243108432e-05 | AV32: 4.574479963e-05 | AW32: 5.78275089e-05 | AX32: 6.945660216e-05 | AY32: 8.090006147e-05 | AZ32: 9.228070269e-05 | BA32: 0.0001036603777 | BB32: 0.0001150690778 | BC32: 0.0001265173763 | BD32: 0.0001380024988 | BE32: 0.0001495115321 | BF32: 0.000161023213 | BG32: 0.0001725127778 | BH32: 0.0001839649442 | BI32: 0.0001953644247 | BJ32: 0.0002066926883 | BK32: 0.0002179282807 | BL32: 0.000229046998 | BM32: 0.0002400220168 | BN32: 0.0002508240057 | BO32: 0.0002614264365 | BP32: 0.0002718226696 | BQ32: 0.0002820124475 | BR32: 0.0002919971688 | BS32: 0.0003017800947 | BT32: 0.0003113664757 | BU32: 0.0003207637177 | BV32: 0.0003299815083 | BW32: 0.0003390300346 | BX32: 0.0003479139408 | BY32: 0.0003566375088 | BZ32: 0.0003652064032 | CA32: 0.0003736277943 | CB32: 0.0003819104342 | CC32: 0.00039006463 | CD32: 0.0003981023759 | CE32: 0.0004060373094 | CF32: 0.0004138848122 | CG32: 0.0004216620148 | CH32: 0.0004293878341
B33: 11 | C33: 3.968129313e-06 | D33: -0.07265661204 | E33: -0.09516406899 | F33: -0.1096485588 | G33: -0.1197986498 | H33: -0.1291882238 | I33: -0.1320065807 | J33: -0.1392515563 | K33: -0.1401235875 | L33: -0.1374688499 | M33: -0.1511720301 | N33: -0.1471436352 | O33: -0.1440807195 | P33: -0.1422131791 | Q33: -0.1431595526 | R33: -0.1387746284 | S33: -0.1385574574 | T33: -0.1318180156 | U33: -0.1314298106 | V33: -0.1252316923 | W33: -0.1245789462 | X33: -0.1190552222 | Y33: -0.1150172031 | Z33: -0.103563729 | AA33: -0.104797762 | AB33: -0.1007151299 | AC33: -0.0935478888 | AD33: -0.09058849268 | AE33: -0.0837163377 | AF33: -0.07631303487 | AG33: -0.0711153872 | AH33: -0.0659958069 | AI33: -0.05987278735 | AJ33: -0.05307615258 | AK33: -0.04596510786 | AL33: -0.04040920516 | AM33: -0.03296019066 | AN33: -0.02449511967 | AO33: -0.01648072215 | AP33: -0.008291498604 | AQ33: 0 | AS33: 0.0011 | AU33: 3.66924848e-05 | AV33: 5.163674784e-05 | AW33: 6.517202509e-05 | AX33: 7.81798159e-05 | AY33: 9.096446831e-05 | AZ33: 0.0001036657726 | BA33: 0.0001163544202 | BB33: 0.0001290650272 | BC33: 0.0001418102683 | BD33: 0.0001545877807 | BE33: 0.0001673838212 | BF33: 0.0001801753106 | BG33: 0.0001929352571 | BH33: 0.0002056471794 | BI33: 0.0002182945635 | BJ33: 0.0002308572783 | BK33: 0.0002433119422 | BL33: 0.0002556321238 | BM33: 0.0002677884935 | BN33: 0.0002797489514 | BO33: 0.0002914845091 | BP33: 0.0003029881863 | BQ33: 0.0003142600392 | BR33: 0.0003253019275 | BS33: 0.0003361177441 | BT33: 0.0003467135552 | BU33: 0.0003570977837 | BV33: 0.0003672813487 | BW33: 0.0003772756977 | BX33: 0.0003870861353 | BY33: 0.0003967175515 | BZ33: 0.0004061763491 | CA33: 0.0004154705794 | CB33: 0.0004246100254 | CC33: 0.0004336061724 | CD33: 0.0004424723529 | CE33: 0.0004512236984 | CF33: 0.0004598772495 | CG33: 0.0004684519613 | CH33: 0.0004769687437
B34: 12 | C34: 3.968129313e-06 | D34: -0.07236267054 | E34: -0.09508475811 | F34: -0.1074160803 | G34: -0.1186086573 | H34: -0.1285707402 | I34: -0.1318116362 | J34: -0.1389855347 | K34: -0.14010806 | L34: -0.1362698627 | M34: -0.1510252713 | N34: -0.1465591461 | O34: -0.1422197519 | P34: -0.1422041937 | Q34: -0.1419351299 | R34: -0.1381440565 | S34: -0.1374703896 | T34: -0.1313795002 | U34: -0.1288794528 | V34: -0.1243824653 | W34: -0.1236561054 | X34: -0.1181353104 | Y34: -0.1147652558 | Z34: -0.103536581 | AA34: -0.1046162191 | AB34: -0.1005053374 | AC34: -0.0934616855 | AD34: -0.09048593488 | AE34: -0.08341313908 | AF34: -0.07571821245 | AG34: -0.07063329243 | AH34: -0.06597425778 | AI34: -0.05957430358 | AJ34: -0.05276582752 | AK34: -0.04586619523 | AL34: -0.04003371816 | AM34: -0.0328726144 | AN34: -0.02437987141 | AO34: -0.01637540973 | AP34: -0.008055784514 | AQ34: 0 | AS34: 0.0012 | AU34: 4.107553988e-05 | AV34: 5.768289195e-05 | AW34: 7.269668498e-05 | AX34: 8.710566759e-05 | AY34: 0.0001012517026 | AZ34: 0.0001152921243 | BA34: 0.0001293067912 | BB34: 0.0001433351494 | BC34: 0.0001573921113 | BD34: 0.0001714758201 | BE34: 0.0001855717699 | BF34: 0.0001996551158 | BG34: 0.0002136966796 | BH34: 0.0002276788282 | BI34: 0.0002415838641 | BJ34: 0.0002553900932 | BK34: 0.000269072239 | BL34: 0.0002826016724 | BM34: 0.0002959465846 | BN34: 0.000309072133 | BO34: 0.0003219468968 | BP34: 0.0003345635927 | BQ34: 0.0003469226287 | BR34: 0.0003590263611 | BS34: 0.0003708793476 | BT34: 0.0003824885008 | BU34: 0.0003938632895 | BV34: 0.0004050158915 | BW34: 0.0004159590386 | BX34: 0.0004266987165 | BY34: 0.0004372404418 | BZ34: 0.0004475913729 | CA34: 0.0004577604582 | CB34: 0.0004677585272 | CC34: 0.000477598257 | CD34: 0.0004872943317 | CE34: 0.000496863388 | CF34: 0.0005063241364 | CG34: 0.0005156973658 | CH34: 0.0005250059872
B35: 13 | C35: 3.968129313e-06 | D35: -0.07195740463 | E35: -0.09490704764 | F35: -0.1068684351 | G35: -0.1182605573 | H35: -0.1283326836 | I35: -0.1311183541 | J35: -0.1377821946 | K35: -0.1397399499 | L35: -0.1359275849 | M35: -0.1503790291 | N35: -0.1429022823 | O35: -0.1418731271 | P35: -0.1388166617 | Q35: -0.1393499394 | R35: -0.137103565 | S35: -0.1363144649 | T35: -0.1308820655 | U35: -0.1283456656 | V35: -0.1236581252 | W35: -0.1232209494 | X35: -0.116285968 | Y35: -0.1136161763 | Z35: -0.1031814064 | AA35: -0.1036539242 | AB35: -0.09904439264 | AC35: -0.09231758895 | AD35: -0.09034700354 | AE35: -0.08334684821 | AF35: -0.07492426293 | AG35: -0.07006723147 | AH35: -0.06414792892 | AI35: -0.0590916519 | AJ35: -0.0526560001 | AK35: -0.04580905059 | AL35: -0.03988315533 | AM35: -0.0328645841 | AN35: -0.02428970271 | AO35: -0.01624588565 | AP35: -0.00804699766 | AQ35: 0 | AS35: 0.0013 | AU35: 4.557379467e-05 | AV35: 6.387470353e-05 | AW35: 8.0391242e-05 | AX35: 9.622237742e-05 | AY35: 0.0001117485745 | AZ35: 0.0001271452514 | BA35: 0.0001425017439 | BB35: 0.0001578625237 | BC35: 0.0001732448703 | BD35: 0.0001886475233 | BE35: 0.0002040552794 | BF35: 0.0002194415759 | BG35: 0.000234775089 | BH35: 0.0002500370791 | BI35: 0.0002652087063 | BJ35: 0.0002802667489 | BK35: 0.0002951840667 | BL35: 0.0003099298615 | BM35: 0.0003244698715 | BN35: 0.0003387665361 | BO35: 0.0003527860287 | BP35: 0.0003665207985 | BQ35: 0.0003799716408 | BR35: 0.0003931414419 | BS35: 0.0004060354552 | BT35: 0.0004186614683 | BU35: 0.0004310300229 | BV35: 0.0004431545806 | BW35: 0.00045504918 | BX35: 0.0004667205069 | BY35: 0.0004781747216 | BZ35: 0.0004894197544 | CA35: 0.000500465466 | CB35: 0.000511323746 | CC35: 0.0005220084768 | CD35: 0.0005325357054 | CE35: 0.000542923585 | CF35: 0.0005531925053 | CG35: 0.0005633650976 | CH35: 0.0005734662813
B36: 14 | C36: 3.968129313e-06 | D36: -0.07187711123 | E36: -0.09399168539 | F36: -0.1066898713 | G36: -0.117885587 | H36: -0.1270266937 | I36: -0.130558091 | J36: -0.13272757 | K36: -0.1395387395 | L36: -0.1352832551 | M36: -0.1502337311 | N36: -0.1404297294 | O36: -0.1391311842 | P36: -0.1378949195 | Q36: -0.1384052815 | R36: -0.135316175 | S36: -0.1359576639 | T36: -0.1296917841 | U36: -0.1280347772 | V36: -0.1234696209 | W36: -0.1215950976 | X36: -0.1156898355 | Y36: -0.1120334775 | Z36: -0.103021855 | AA36: -0.1032397189 | AB36: -0.09821405906 | AC36: -0.09231675975 | AD36: -0.08659258223 | AE36: -0.08277594318 | AF36: -0.07488974781 | AG36: -0.07004285021 | AH36: -0.06392262214 | AI36: -0.05884624418 | AJ36: -0.05245910947 | AK36: -0.04573961693 | AL36: -0.03970974162 | AM36: -0.03224602896 | AN36: -0.02387229215 | AO36: -0.01608404038 | AP36: -0.008014827773 | AQ36: 0 | AS36: 0.0014 | AU36: 5.018163928e-05 | AV36: 7.020478397e-05 | AW36: 8.824681848e-05 | AX36: 0.0001055197499 | AY36: 0.0001224436785 | AZ36: 0.0001392126195 | BA36: 0.0001559256821 | BB36: 0.0001726325494 | BC36: 0.0001893529925 | BD36: 0.0002060864341 | BE36: 0.000222817036 | BF36: 0.0002395165647 | BG36: 0.00025615159 | BH36: 0.0002727023093 | BI36: 0.0002891487802 | BJ36: 0.0003054662868 | BK36: 0.0003216258561 | BL36: 0.0003375945476 | BM36: 0.000353335672 | BN36: 0.0003688089747 | BO36: 0.0003839782485 | BP36: 0.0003988357087 | BQ36: 0.0004133825718 | BR36: 0.0004276222851 | BS36: 0.0004415608265 | BT36: 0.0004552068861 | BU36: 0.0004685721035 | BV36: 0.000481671247 | BW36: 0.0004945196839 | BX36: 0.0005071248171 | BY36: 0.0005194934671 | BZ36: 0.0005316343512 | CA36: 0.0005435582561 | CB36: 0.0005552781451 | CC36: 0.0005668091175 | CD36: 0.0005781685944 | CE36: 0.0005893762553 | CF36: 0.0006004541781 | CG36: 0.0006114268439 | CH36: 0.0006223211875
B37: 15 | C37: 3.968129313e-06 | D37: -0.07152277235 | E37: -0.0931952255 | F37: -0.1065136441 | G37: -0.117789814 | H37: -0.1257940317 | I37: -0.1301444137 | J37: -0.1301328661 | K37: -0.1380669755 | L37: -0.1351141236 | M37: -0.1498413789 | N37: -0.1386310347 | O37: -0.1389901192 | P37: -0.1370848546 | Q37: -0.1361606768 | R37: -0.1352327711 | S37: -0.1348421033 | T37: -0.1294840964 | U37: -0.1277519984 | V37: -0.1233089566 | W37: -0.1212200833 | X37: -0.1156166854 | Y37: -0.111127892 | Z37: -0.1025058629 | AA37: -0.1029019536 | AB37: -0.09721555274 | AC37: -0.09198620107 | AD37: -0.08642129146 | AE37: -0.08234020314 | AF37: -0.07459633259 | AG37: -0.06972409855 | AH37: -0.06323981766 | AI37: -0.05799866525 | AJ37: -0.0524175233 | AK37: -0.04565617048 | AL37: -0.03943543863 | AM37: -0.03191477651 | AN37: -0.02371994305 | AO37: -0.01606261091 | AP37: -0.007976874567 | AQ37: 0 | AS37: 0.0015 | AU37: 5.489414425e-05 | AV37: 7.666664295e-05 | AW37: 9.625563588e-05 | AX37: 0.0001149888605 | AY37: 0.0001333270388 | AZ37: 0.0001514832737 | BA37: 0.0001695667303 | BB37: 0.0001876324816 | BC37: 0.0002057029097 | BD37: 0.0002237782035 | BE37: 0.0002418419504 | BF37: 0.0002598642919 | BG37: 0.0002778097294 | BH37: 0.0002956574395 | BI37: 0.0003133864148 | BJ37: 0.0003309704789 | BK37: 0.0003483788543 | BL37: 0.0003655764849 | BM37: 0.0003825242785 | BN37: 0.0003991793096 | BO37: 0.0004155030144 | BP37: 0.0004314874069 | BQ37: 0.000447134156 | BR37: 0.0004624472995 | BS37: 0.0004774335676 | BT37: 0.000492102578 | BU37: 0.0005064670919 | BV37: 0.0005205432066 | BW37: 0.0005343476372 | BX37: 0.0005478885212 | BY37: 0.0005611733539 | BZ37: 0.0005742116538 | CA37: 0.0005870151471 | CB37: 0.0005995978825 | CC37: 0.0006119761877 | CD37: 0.0006241688681 | CE37: 0.0006361971387 | CF37: 0.0006480847737 | CG37: 0.0006598581114 | CH37: 0.0006715461079
B38: 16 | C38: 3.968129313e-06 | D38: -0.07141488413 | E38: -0.09230634933 | F38: -0.1064456622 | G38: -0.1175854824 | H38: -0.1247595196 | I38: -0.1300248933 | J38: -0.1285224301 | K38: -0.1349253494 | L38: -0.1351062157 | M38: -0.1483315712 | N38: -0.1385407966 | O38: -0.1372821042 | P38: -0.1365874267 | Q38: -0.1360710039 | R38: -0.1342110062 | S38: -0.1346884141 | T38: -0.1293082089 | U38: -0.1253126424 | V38: -0.1231945403 | W38: -0.1201278971 | X38: -0.1146854892 | Y38: -0.1100235275 | Z38: -0.1024441047 | AA38: -0.1027631036 | AB38: -0.09651890674 | AC38: -0.09148077958 | AD38: -0.08640900089 | AE38: -0.08151618766 | AF38: -0.07427658462 | AG38: -0.06972221696 | AH38: -0.06318010768 | AI38: -0.05793234717 | AJ38: -0.05192560592 | AK38: -0.0453121114 | AL38: -0.03941761063 | AM38: -0.0317159501 | AN38: -0.02367327119 | AO38: -0.01605685244 | AP38: -0.007920413589 | AQ38: 0 | AS38: 0.0016 | AU38: 5.970693719e-05 | AV38: 8.325453252e-05 | AW38: 0.000104410813 | AX38: 0.0001246218213 | AY38: 0.0001443898453 | AZ38: 0.0001639475453 | BA38: 0.0001834144141 | BB38: 0.0002028510854 | BC38: 0.0002222826671 | BD38: 0.0002417101948 | BE38: 0.0002611167403 | BF38: 0.0002804708639 | BG38: 0.0002997350361 | BH38: 0.0003188874532 | BI38: 0.0003379060797 | BJ38: 0.0003567633101 | BK38: 0.0003754265909 | BL38: 0.0003938587757 | BM38: 0.000412018393 | BN38: 0.0004298598687 | BO38: 0.0004473423064 | BP38: 0.0004644575486 | BQ38: 0.0004812077471 | BR38: 0.0004975975583 | BS38: 0.0005136344903 | BT38: 0.0005293291127 | BU38: 0.0005446953308 | BV38: 0.0005597505913 | BW38: 0.000574512976 | BX38: 0.0005889913722 | BY38: 0.000603193965 | BZ38: 0.000617131087 | CA38: 0.0006308154164 | CB38: 0.0006442620989 | CC38: 0.0006574887008 | CD38: 0.0006705154217 | CE38: 0.0006833650204 | CF38: 0.0006960629751 | CG38: 0.0007086374879 | CH38: 0.0007211195419
B39: 17 | C39: 3.968129313e-06 | D39: -0.07088985354 | E39: -0.09197635203 | F39: -0.1063359797 | G39: -0.1168785568 | H39: -0.1241910545 | I39: -0.1296633946 | J39: -0.1284318354 | K39: -0.1338069137 | L39: -0.1350135154 | M39: -0.1445032603 | N39: -0.1384252224 | O39: -0.1371509026 | P39: -0.1356590554 | Q39: -0.1360121465 | R39: -0.1331127406 | S39: -0.1344656869 | T39: -0.1282351514 | U39: -0.1245864344 | V39: -0.1230565389 | W39: -0.1195453491 | X39: -0.1142690058 | Y39: -0.1098119037 | Z39: -0.1024181092 | AA39: -0.1014084197 | AB39: -0.09581602375 | AC39: -0.09114732741 | AD39: -0.08620813457 | AE39: -0.08141482049 | AF39: -0.07402510909 | AG39: -0.06925922148 | AH39: -0.06308977855 | AI39: -0.05788790751 | AJ39: -0.05189535273 | AK39: -0.04506201158 | AL39: -0.03871918509 | AM39: -0.03158013844 | AN39: -0.023619995 | AO39: -0.01592496428 | AP39: -0.007917324309 | AQ39: 0 | AS39: 0.0017 | AU39: 6.461610817e-05 | AV39: 8.996332014e-05 | AW39: 0.0001127062117 | AX39: 0.0001344116019 | AY39: 0.0001556242512 | AZ39: 0.0001765968289 | BA39: 0.0001974594158 | BB39: 0.0002182783717 | BC39: 0.0002390816409 | BD39: 0.0002598711834 | BE39: 0.0002806296122 | BF39: 0.0003013239497 | BG39: 0.0003219146715 | BH39: 0.000342379033 | BI39: 0.0003626940062 | BJ39: 0.0003828305869 | BK39: 0.0004027544729 | BL39: 0.0004224264526 | BM39: 0.0004418026978 | BN39: 0.0004608350075 | BO39: 0.0004794801756 | BP39: 0.0004977299021 | BQ39: 0.0005155868504 | BR39: 0.0005330563221 | BS39: 0.0005501466279 | BT39: 0.0005668693122 | BU39: 0.0005832394454 | BV39: 0.0005992758434 | BW39: 0.0006149979723 | BX39: 0.0006304154843 | BY39: 0.0006455372673 | BZ39: 0.0006603744811 | CA39: 0.0006749407673 | CB39: 0.0006892523795 | CC39: 0.0007033281326 | CD39: 0.0007171896292 | CE39: 0.00073086118 | CF39: 0.0007443699744 | CG39: 0.0007577460844 | CH39: 0.0007710225252
B40: 18 | C40: 3.968129313e-06 | D40: -0.06960843264 | E40: -0.09140643213 | F40: -0.1057399113 | G40: -0.1152828847 | H40: -0.1241599682 | I40: -0.1290825848 | J40: -0.1282619963 | K40: -0.1319480868 | L40: -0.1348342597 | M40: -0.1415671978 | N40: -0.1374282351 | O40: -0.1362267508 | P40: -0.1350462964 | Q40: -0.1354790748 | R40: -0.1311548803 | S40: -0.1343860114 | T40: -0.1280654057 | U40: -0.1236166959 | V40: -0.1228341032 | W40: -0.1195040209 | X40: -0.1140306466 | Y40: -0.1091008257 | Z40: -0.1020748547 | AA40: -0.1010117555 | AB40: -0.09564526519 | AC40: -0.09107828674 | AD40: -0.08562256421 | AE40: -0.08139670581 | AF40: -0.07368776959 | AG40: -0.06922853095 | AH40: -0.06298822653 | AI40: -0.05714374332 | AJ40: -0.05180636043 | AK40: -0.04478999315 | AL40: -0.03821846078 | AM40: -0.03131858795 | AN40: -0.02329998472 | AO40: -0.01587240479 | AP40: -0.007901558406 | AQ40: 0 | AS40: 0.0018 | AU40: 6.961813594e-05 | AV40: 9.678838976e-05 | AW40: 0.000121136317 | AX40: 0.0001443518906 | AY40: 0.0001670232167 | AZ40: 0.000189423408 | BA40: 0.0002116933853 | BB40: 0.0002339053931 | BC40: 0.0002560903193 | BD40: 0.0002782511238 | BE40: 0.0003003700161 | BF40: 0.0003224125223 | BG40: 0.0003443371587 | BH40: 0.000366120278 | BI40: 0.0003877378936 | BJ40: 0.000409159633 | BK40: 0.0004303494714 | BL40: 0.0004512661559 | BM40: 0.0004718635242 | BN40: 0.0004920907694 | BO40: 0.0005119023973 | BP40: 0.0005312899936 | BQ40: 0.0005502567607 | BR40: 0.0005688086707 | BS40: 0.0005869548606 | BT40: 0.0006047078712 | BU40: 0.0006220839583 | BV40: 0.0006391033255 | BW40: 0.0006557868399 | BX40: 0.0006721449328 | BY40: 0.0006881872079 | BZ40: 0.0007039256638 | CA40: 0.0007193749171 | CB40: 0.0007345523391 | CC40: 0.0007494780029 | CD40: 0.0007641749223 | CE40: 0.0007786689677 | CF40: 0.0007929890462 | CG40: 0.0008071671056 | CH40: 0.0008212381978
B41: 19 | C41: 3.968129313e-06 | D41: -0.0692985911 | E41: -0.09069507171 | F41: -0.1050812979 | G41: -0.1150479056 | H41: -0.122553934 | I41: -0.1285842934 | J41: -0.1256658551 | K41: -0.1311925128 | L41: -0.1347226789 | M41: -0.1411121963 | N41: -0.1372249261 | O41: -0.1360675397 | P41: -0.1342805597 | Q41: -0.1349106415 | R41: -0.1305119915 | S41: -0.1342146407 | T41: -0.1272970044 | U41: -0.1230494207 | V41: -0.1224412618 | W41: -0.1187405153 | X41: -0.1137083121 | Y41: -0.1090163912 | Z41: -0.1020674902 | AA41: -0.1008927128 | AB41: -0.0954898413 | AC41: -0.09080883115 | AD41: -0.08540547216 | AE41: -0.08134728452 | AF41: -0.07345377192 | AG41: -0.06863470493 | AH41: -0.06290018985 | AI41: -0.05698347385 | AJ41: -0.05123829009 | AK41: -0.04460532213 | AL41: -0.03786623881 | AM41: -0.03121758255 | AN41: -0.02298572693 | AO41: -0.0155186131 | AP41: -0.007883862224 | AQ41: 0 | AS41: 0.0019 | AU41: 7.470982939e-05 | AV41: 0.0001037255635 | AW41: 0.0001296961418 | AX41: 0.0001544369843 | AY41: 0.0001785803845 | AZ41: 0.0002024203186 | BA41: 0.0002261087901 | BB41: 0.0002497240822 | BC41: 0.0002733001299 | BD41: 0.0002968409664 | BE41: 0.0003203284511 | BF41: 0.0003437266548 | BG41: 0.0003669921694 | BH41: 0.0003901004814 | BI41: 0.0004130266794 | BJ41: 0.0004357390511 | BK41: 0.0004581998752 | BL41: 0.0004803658806 | BM41: 0.0005021885924 | BN41: 0.0005236146186 | BO41: 0.0005445961979 | BP41: 0.0005651248286 | BQ41: 0.0005852042784 | BR41: 0.0006048412144 | BS41: 0.000624045622 | BT41: 0.0006428310595 | BU41: 0.0006612149871 | BV41: 0.0006792190139 | BW41: 0.0006968654242 | BX41: 0.0007141654413 | BY41: 0.0007311293974 | BZ41: 0.0007477701414 | CA41: 0.0007641032749 | CB41: 0.0007801472971 | CC41: 0.0007959235479 | CD41: 0.0008114564603 | CE41: 0.0008267734716 | CF41: 0.0008419052128 | CG41: 0.000856885513 | CH41: 0.0008717514652
B42: 20 | C42: 3.968129313e-06 | D42: -0.0690638323 | E42: -0.09059185924 | F42: -0.1050487634 | G42: -0.1132113794 | H42: -0.1218657214 | I42: -0.1280716927 | J42: -0.1252162457 | K42: -0.1297529106 | L42: -0.1347072735 | M42: -0.1400749244 | N42: -0.1371429491 | O42: -0.1353830724 | P42: -0.1335024021 | Q42: -0.1343175828 | R42: -0.130441564 | S42: -0.1340038616 | T42: -0.1272847273 | U42: -0.1223473115 | V42: -0.1216856802 | W42: -0.1186260718 | X42: -0.1136053969 | Y42: -0.10891996 | Z42: -0.1020105692 | AA42: -0.1002458645 | AB42: -0.09533301318 | AC42: -0.09003820066 | AD42: -0.08457521774 | AE42: -0.08054836898 | AF42: -0.07316749832 | AG42: -0.068594108 | AH42: -0.06288306036 | AI42: -0.056969647 | AJ42: -0.05088681654 | AK42: -0.04458170342 | AL42: -0.03767832358 | AM42: -0.03109537423 | AN42: -0.02296504724 | AO42: -0.01537371939 | AP42: -0.007860727436 | AQ42: 0 | AS42: 0.002 | AU42: 7.988828053e-05 | AV42: 0.0001107710386 | AW42: 0.0001383811509 | AX42: 0.0001646617 | AY42: 0.0001902899811 | AZ42: 0.0002155812394 | BA42: 0.0002406987962 | BB42: 0.0002657271227 | BC42: 0.0002907033016 | BD42: 0.0003156325103 | BE42: 0.0003404963105 | BF42: 0.000365257358 | BG42: 0.0003898703534 | BH42: 0.0004143099537 | BI42: 0.0004385503547 | BJ42: 0.0004625585325 | BK42: 0.0004862950942 | BL42: 0.0005097147732 | BM42: 0.0005327668035 | BN42: 0.0005553952272 | BO42: 0.0005775500373 | BP42: 0.00059922267 | BQ42: 0.0006204174836 | BR42: 0.0006411418634 | BS42: 0.0006614066652 | BT42: 0.0006812264844 | BU42: 0.000700620004 | BV42: 0.0007196102555 | BW42: 0.0007382209554 | BX42: 0.0007564641325 | BY42: 0.0007743508586 | BZ42: 0.0007918948438 | CA42: 0.0008091126853 | CB42: 0.0008260240188 | CC42: 0.0008426514596 | CD42: 0.0008590208677 | CE42: 0.0008751612538 | CF42: 0.0008911049788 | CG42: 0.0009068877579 | CH42: 0.0009225487298
B43: 21 | C43: 3.968129313e-06 | D43: -0.06671663762 | E43: -0.08852174638 | F43: -0.1045931908 | G43: -0.1127764866 | H43: -0.1217991964 | I43: -0.1275734887 | J43: -0.1251708596 | K43: -0.1290697049 | L43: -0.1336935704 | M43: -0.1397982536 | N43: -0.1371390329 | O43: -0.1350284774 | P43: -0.1330521466 | Q43: -0.1338955528 | R43: -0.13020367 | S43: -0.13385921 | T43: -0.127054894 | U43: -0.1213642077 | V43: -0.1203626785 | W43: -0.118609923 | X43: -0.1125930906 | Y43: -0.1079957693 | Z43: -0.1009306914 | AA43: -0.1001392827 | AB43: -0.09518984286 | AC43: -0.0899223033 | AD43: -0.08433012095 | AE43: -0.08016880573 | AF43: -0.07286858833 | AG43: -0.0683066165 | AH43: -0.0627656266 | AI43: -0.05660359276 | AJ43: -0.05087452307 | AK43: -0.04449956582 | AL43: -0.03711588981 | AM43: -0.03104182152 | AN43: -0.02283408432 | AO43: -0.01531915024 | AP43: -0.007815263455 | AQ43: 0 | AS43: 0.0021 | AU43: 8.515082623e-05 | AV43: 0.0001179213367 | AW43: 0.000147187199 | AX43: 0.0001750213038 | AY43: 0.0002021467356 | AZ43: 0.0002289004022 | BA43: 0.0002554571707 | BB43: 0.0002819078449 | BC43: 0.0003082927526 | BD43: 0.0003346182849 | BE43: 0.000360865757 | BF43: 0.0003869964482 | BG43: 0.0004129632017 | BH43: 0.0004387398791 | BI43: 0.0004642998156 | BJ43: 0.0004896087029 | BK43: 0.0005146255007 | BL43: 0.0005393029694 | BM43: 0.0005635880717 | BN43: 0.0005874223041 | BO43: 0.0006107534334 | BP43: 0.0006335728586 | BQ43: 0.0006558855532 | BR43: 0.0006776996428 | BS43: 0.0006990268743 | BT43: 0.0007198828994 | BU43: 0.0007402876416 | BV43: 0.0007602655709 | BW43: 0.0007798418506 | BX43: 0.0007990293269 | BY43: 0.000817839823 | BZ43: 0.0008362879206 | CA43: 0.0008543912214 | CB43: 0.0008721705071 | CC43: 0.0008896496762 | CD43: 0.0009068560227 | CE43: 0.0009238201373 | CF43: 0.0009405761163 | CG43: 0.000957161566 | CH43: 0.0009736176744
B44: 22 | C44: 3.968129313e-06 | D44: -0.06610703207 | E44: -0.08711428683 | F44: -0.1043406556 | G44: -0.1126605157 | H44: -0.1208087938 | I44: -0.12654085 | J44: -0.1240887041 | K44: -0.1287847878 | L44: -0.1335477935 | M44: -0.1392851852 | N44: -0.1370694219 | O44: -0.1346970371 | P44: -0.1315427183 | Q44: -0.1332760712 | R44: -0.1300927781 | S44: -0.1338538659 | T44: -0.1264687477 | U44: -0.1210588585 | V44: -0.1197697289 | W44: -0.1185172039 | X44: -0.1122520146 | Y44: -0.1068942298 | Z44: -0.1009084902 | AA44: -0.09991373091 | AB44: -0.09518757318 | AC44: -0.08968953732 | AD44: -0.08429596605 | AE44: -0.07996105082 | AF44: -0.07275380977 | AG44: -0.0679333618 | AH44: -0.06230228884 | AI44: -0.05651989351 | AJ44: -0.05082701681 | AK44: -0.04411659712 | AL44: -0.03710169995 | AM44: -0.03102865062 | AN44: -0.02276119778 | AO44: -0.01530724039 | AP44: -0.007794378714 | AQ44: 0 | AS44: 0.0022 | AU44: 9.049501669e-05 | AV44: 0.0001251732613 | AW44: 0.0001561104803 | AX44: 0.0001855114517 | AY44: 0.0002141458144 | AZ44: 0.00024237252 | BA44: 0.0002703782028 | BB44: 0.0002982601397 | BC44: 0.0003260619991 | BD44: 0.0003537914529 | BE44: 0.0003814296194 | BF44: 0.0004089364403 | BG44: 0.000436262933 | BH44: 0.0004633821987 | BI44: 0.000490266742 | BJ44: 0.0005168809971 | BK44: 0.0005431823001 | BL44: 0.0005691214598 | BM44: 0.0005946431881 | BN44: 0.0006196864543 | BO44: 0.0006441968187 | BP44: 0.0006681656673 | BQ44: 0.000691598612 | BR44: 0.0007145045404 | BS44: 0.0007368961104 | BT44: 0.0007587900483 | BU44: 0.000780207535 | BV44: 0.0008011744945 | BW44: 0.0008217175508 | BX44: 0.0008418503798 | BY44: 0.0008615855662 | BZ44: 0.0008809385733 | CA44: 0.0008999280171 | CB44: 0.0009185758332 | CC44: 0.0009369072109 | CD44: 0.0009549508854 | CE44: 0.0009727390332 | CF44: 0.0009903074915 | CG44: 0.001007695762 | CH44: 0.001024947086
B45: 23 | C45: 3.968129313e-06 | D45: -0.06608296152 | E45: -0.08685138353 | F45: -0.1041277706 | G45: -0.1126579735 | H45: -0.1205507508 | I45: -0.1261104162 | J45: -0.1240769682 | K45: -0.1275558147 | L45: -0.1333010514 | M45: -0.1378317377 | N45: -0.1367728802 | O45: -0.1339868662 | P45: -0.131534834 | Q45: -0.1331290561 | R45: -0.1293135298 | S45: -0.1318263403 | T45: -0.1251105204 | U45: -0.1208945341 | V45: -0.1185306459 | W45: -0.1183804509 | X45: -0.1114956504 | Y45: -0.1055491599 | Z45: -0.1008373757 | AA45: -0.09970743521 | AB45: -0.09418364031 | AC45: -0.08966913515 | AD45: -0.08416176639 | AE45: -0.07927213478 | AF45: -0.07228540457 | AG45: -0.06779065904 | AH45: -0.06205914578 | AI45: -0.05616832103 | AJ45: -0.05046678455 | AK45: -0.04382591305 | AL45: -0.03706852966 | AM45: -0.03091123957 | AN45: -0.02267069736 | AO45: -0.01530414082 | AP45: -0.007787560099 | AQ45: 0 | AS45: 0.0023 | AU45: 9.591858924e-05 | AV45: 0.0001325238634 | AW45: 0.0001651474856 | AX45: 0.0001961281412 | AY45: 0.0002262827657 | AZ45: 0.0002559927257 | BA45: 0.0002854566377 | BB45: 0.0003147783884 | BC45: 0.0003440050794 | BD45: 0.0003731457293 | BE45: 0.0004021813085 | BF45: 0.0004310704579 | BG45: 0.0004597624015 | BH45: 0.0004882295129 | BI45: 0.0005164434964 | BJ45: 0.0005443675545 | BK45: 0.0005719574231 | BL45: 0.0005991619803 | BM45: 0.0006259237068 | BN45: 0.0006521790631 | BO45: 0.0006778714224 | BP45: 0.0007029921804 | BQ45: 0.0007275476102 | BR45: 0.0007515473824 | BS45: 0.0007750050848 | BT45: 0.0007979385363 | BU45: 0.0008203701912 | BV45: 0.0008423274426 | BW45: 0.0008638383884 | BX45: 0.0008849175455 | BY45: 0.0009055782708 | BZ45: 0.0009258369186 | CA45: 0.0009457131278 | CB45: 0.0009652299962 | CC45: 0.0009844140113 | CD45: 0.001003295356 | CE45: 0.001021907798 | CF45: 0.001040288921 | CG45: 0.001058480125 | CH45: 0.00107652671
B46: 24 | C46: 3.968129313e-06 | D46: -0.06587825489 | E46: -0.08678183187 | F46: -0.103205446 | G46: -0.111184609 | H46: -0.1204870665 | I46: -0.125145813 | J46: -0.123424471 | K46: -0.1266604591 | L46: -0.1325850538 | M46: -0.1371290733 | N46: -0.136390308 | O46: -0.1328139105 | P46: -0.1303483362 | Q46: -0.1326681764 | R46: -0.129234509 | S46: -0.13169325 | T46: -0.1249130063 | U46: -0.1207553743 | V46: -0.118461578 | W46: -0.118160208 | X46: -0.1114511315 | Y46: -0.1046638372 | Z46: -0.1005345144 | AA46: -0.09928978425 | AB46: -0.093872214 | AC46: -0.08958864741 | AD46: -0.0840863196 | AE46: -0.07887466591 | AF46: -0.07190128228 | AG46: -0.06729673715 | AH46: -0.06197442033 | AI46: -0.05597086695 | AJ46: -0.05018931672 | AK46: -0.04373748342 | AL46: -0.03700691285 | AM46: -0.03056247359 | AN46: -0.02259362037 | AO46: -0.01522362355 | AP46: -0.007755708404 | AQ46: 0 | AS46: 0.0024 | AU46: 0.0001014194465 | AV46: 0.0001399704119 | AW46: 0.0001742949677 | AX46: 0.0002068676703 | AY46: 0.0002385534744 | AZ46: 0.0002697565221 | BA46: 0.0003006876215 | BB46: 0.0003314574028 | BC46: 0.0003621164908 | BD46: 0.0003926753151 | BE46: 0.0004231147458 | BF46: 0.00045339216 | BG46: 0.000483455019 | BH46: 0.0005132750016 | BI46: 0.000542823041 | BJ46: 0.0005720611336 | BK46: 0.0006009434372 | BL46: 0.0006294169204 | BM46: 0.0006574218515 | BN46: 0.0006848922004 | BO46: 0.0007117691714 | BP46: 0.000738044193 | BQ46: 0.0007637242209 | BR46: 0.0007888197291 | BS46: 0.0008133452537 | BT46: 0.000837319723 | BU46: 0.0008607668808 | BV46: 0.0008837156032 | BW46: 0.0009061954755 | BX46: 0.000928221866 | BY46: 0.0009498089138 | BZ46: 0.0009709738738 | CA46: 0.0009917374158 | CB46: 0.001012123808 | CC46: 0.001032160842 | CD46: 0.001051880156 | CE46: 0.001071317114 | CF46: 0.00109051105 | CG46: 0.00110950527 | CH46: 0.001128347131
B47: 25 | C47: 3.968129313e-06 | D47: -0.06558266257 | E47: -0.08645806634 | F47: -0.1030579803 | G47: -0.1103850581 | H47: -0.1199750443 | I47: -0.12412133 | J47: -0.1223920437 | K47: -0.1251835746 | L47: -0.1325766589 | M47: -0.1368276967 | N47: -0.1360266119 | O47: -0.132571041 | P47: -0.1299740071 | Q47: -0.1321703802 | R47: -0.1291896347 | S47: -0.13054257 | T47: -0.123608955 | U47: -0.1201655604 | V47: -0.1183453111 | W47: -0.1173942306 | X47: -0.1106612052 | Y47: -0.1041741077 | Z47: -0.1001828335 | AA47: -0.0973654869 | AB47: -0.09350003326 | AC47: -0.08846637746 | AD47: -0.08390462459 | AE47: -0.0781821393 | AF47: -0.07179378363 | AG47: -0.06724893736 | AH47: -0.06162230777 | AI47: -0.05570292014 | AJ47: -0.05013931235 | AK47: -0.04365762999 | AL47: -0.03697623475 | AM47: -0.03030693793 | AN47: -0.0225504964 | AO47: -0.01508522656 | AP47: -0.007709031111 | AQ47: 0 | AS47: 0.0025 | AU47: 0.0001069956375 | AV47: 0.0001475103689 | AW47: 0.0001835499111 | AX47: 0.0002177266034 | AY47: 0.0002509541231 | AZ47: 0.0002836597391 | BA47: 0.0003160666555 | BB47: 0.0003482923757 | BC47: 0.0003803911362 | BD47: 0.0004123748403 | BE47: 0.0004442243043 | BF47: 0.0004758956776 | BG47: 0.0005073346896 | BH47: 0.0005385123558 | BI47: 0.0005693988669 | BJ47: 0.0005999550381 | BK47: 0.0006301334715 | BL47: 0.0006598792459 | BM47: 0.000689130436 | BN47: 0.0007178185391 | BO47: 0.0007458826085 | BP47: 0.0007733141271 | BQ47: 0.0008001207547 | BR47: 0.0008263137878 | BS47: 0.0008519087291 | BT47: 0.0008769256327 | BU47: 0.0009013895468 | BV47: 0.0009253308447 | BW47: 0.0009487806109 | BX47: 0.0009717550762 | BY47: 0.0009942691716 | BZ47: 0.001016341061 | CA47: 0.001037992453 | CB47: 0.001059248794 | CC47: 0.001080139188 | CD47: 0.001100696732 | CE47: 0.001120958393 | CF47: 0.00114096526 | CG47: 0.001160762546 | CH47: 0.001180399672
B48: 26 | C48: 3.968129313e-06 | D48: -0.06524562622 | E48: -0.08573262479 | F48: -0.1028706646 | G48: -0.1103832703 | H48: -0.1194333728 | I48: -0.124044583 | J48: -0.122341638 | K48: -0.1251396458 | L48: -0.1312544411 | M48: -0.1367092548 | N48: -0.1343339611 | O48: -0.1325131797 | P48: -0.1298399386 | Q48: -0.1319541506 | R48: -0.1286577438 | S48: -0.1292553104 | T48: -0.1235096988 | U48: -0.1187974532 | V48: -0.1182873242 | W48: -0.1172814166 | X48: -0.1105454084 | Y48: -0.1032644748 | Z48: -0.1001749631 | AA48: -0.09709958096 | AB48: -0.09347677169 | AC48: -0.08800345009 | AD48: -0.08330631698 | AE48: -0.07809986647 | AF48: -0.07161141616 | AG48: -0.06708606671 | AH48: -0.06161425812 | AI48: -0.05551362284 | AJ48: -0.04999456159 | AK48: -0.0436017178 | AL48: -0.03686790231 | AM48: -0.0301946698 | AN48: -0.02249809475 | AO48: -0.01506750872 | AP48: -0.007701831618 | AQ48: 0 | AS48: 0.0026 | AU48: 0.0001126453425 | AV48: 0.0001551413692 | AW48: 0.000192909507 | AX48: 0.000228701742 | AY48: 0.0002634811593 | AZ48: 0.0002976984977 | BA48: 0.0003315895563 | BB48: 0.0003652788386 | BC48: 0.0003988242789 | BD48: 0.0004322393159 | BE48: 0.0004655047578 | BF48: 0.0004985755615 | BG48: 0.0005313957545 | BH48: 0.0005639357202 | BI48: 0.0005961649348 | BJ48: 0.0006280430564 | BK48: 0.0006595211532 | BL48: 0.0006905424338 | BM48: 0.0007210427979 | BN48: 0.000750951287 | BO48: 0.0007802048216 | BP48: 0.00080879496 | BQ48: 0.0008367300866 | BR48: 0.0008640223393 | BS48: 0.0008906882046 | BT48: 0.0009167488785 | BU48: 0.0009422307282 | BV48: 0.0009671656374 | BW48: 0.0009915862019 | BX48: 0.001015509525 | BY48: 0.001038951339 | BZ48: 0.001061930726 | CA48: 0.001084470441 | CB48: 0.001106597115 | CC48: 0.001128341171 | CD48: 0.001149737169 | CE48: 0.001170823688 | CF48: 0.001191643573 | CG48: 0.001212243951 | CH48: 0.001232676306
B49: 27 | C49: 3.968129313e-06 | D49: -0.06509672756 | E49: -0.08555395892 | F49: -0.1027800903 | G49: -0.1102636041 | H49: -0.1190238947 | I49: -0.1234558875 | J49: -0.1221211607 | K49: -0.1247390464 | L49: -0.131180572 | M49: -0.1363314752 | N49: -0.134088788 | O49: -0.1323769922 | P49: -0.1296883976 | Q49: -0.1317602217 | R49: -0.1286231086 | S49: -0.1286272101 | T49: -0.1234671792 | U49: -0.1187375721 | V49: -0.1176696015 | W49: -0.1168799466 | X49: -0.1103068347 | Y49: -0.1032115557 | Z49: -0.09994605263 | AA49: -0.09704303619 | AB49: -0.09282738361 | AC49: -0.08704037315 | AD49: -0.0831322321 | AE49: -0.07776321328 | AF49: -0.07075070809 | AG49: -0.06706764343 | AH49: -0.06128482363 | AI49: -0.05521992134 | AJ49: -0.04986275419 | AK49: -0.04350661059 | AL49: -0.03685572258 | AM49: -0.03012676296 | AN49: -0.02223030662 | AO49: -0.01494972075 | AP49: -0.007641561447 | AQ49: 0 | AS49: 0.0027 | AU49: 0.0001183668587 | AV49: 0.0001628612015 | AW49: 0.0002023711316 | AX49: 0.0002397900996 | AY49: 0.0002761312678 | AZ49: 0.0003118691791 | BA49: 0.0003472524224 | BB49: 0.0003824126254 | BC49: 0.0004174115045 | BD49: 0.0004522640938 | BE49: 0.0004869512382 | BF49: 0.0005214267369 | BG49: 0.000555632945 | BH49: 0.0005895396443 | BI49: 0.0006231156238 | BJ49: 0.0006563194083 | BK49: 0.0006891005533 | BL49: 0.0007214004167 | BM49: 0.0007531527409 | BN49: 0.0007842841286 | BO49: 0.0008147293849 | BP49: 0.0008444801638 | BQ49: 0.0008735455945 | BR49: 0.0009019386746 | BS49: 0.0009296768912 | BT49: 0.0009567825975 | BU49: 0.0009832834939 | BV49: 0.001009212987 | BW49: 0.001034605197 | BX49: 0.001059478108 | BY49: 0.001083848263 | BZ49: 0.001107735669 | CA49: 0.001131164138 | CB49: 0.001154161491 | CC49: 0.001176759476 | CD49: 0.001198994124 | CE49: 0.001220905626 | CF49: 0.001242538592 | CG49: 0.001263942061 | CH49: 0.001285169589
B50: 28 | C50: 3.968129313e-06 | D50: -0.06449648459 | E50: -0.08551660934 | F50: -0.1025267918 | G50: -0.1092411477 | H50: -0.1187902926 | I50: -0.1215085178 | J50: -0.1215499537 | K50: -0.1247293081 | L50: -0.130777705 | M50: -0.1357925442 | N50: -0.1332373564 | O50: -0.1316156928 | P50: -0.1294167562 | Q50: -0.1309454135 | R50: -0.1283606426 | S50: -0.1277041122 | T50: -0.1234177682 | U50: -0.1179709079 | V50: -0.1176350171 | W50: -0.1165353473 | X50: -0.1098927321 | Y50: -0.1031592233 | Z50: -0.09983969091 | AA50: -0.09564060938 | AB50: -0.09254597746 | AC50: -0.08681975292 | AD50: -0.08302231989 | AE50: -0.07744706461 | AF50: -0.07066673679 | AG50: -0.06652679772 | AH50: -0.06119850292 | AI50: -0.05465313717 | AJ50: -0.04972583336 | AK50: -0.04322742509 | AL50: -0.03676497932 | AM50: -0.03001489836 | AN50: -0.02219555161 | AO50: -0.01473487061 | AP50: -0.007558024511 | AQ50: 0 | AS50: 0.0028 | AU50: 0.000124158589 | AV50: 0.0001706677938 | AW50: 0.0002119323272 | AX50: 0.0002509888803 | AY50: 0.0002889013459 | AZ50: 0.0003261683981 | BA50: 0.0003630516056 | BB50: 0.0003996898416 | BC50: 0.0004361486871 | BD50: 0.0004724448307 | BE50: 0.000508559198 | BF50: 0.0005444444646 | BG50: 0.0005800413419 | BH50: 0.0006153190403 | BI50: 0.0006502456882 | BJ50: 0.0006847787005 | BK50: 0.0007188661408 | BL50: 0.0007524475352 | BM50: 0.0007854544863 | BN50: 0.0008178111749 | BO50: 0.0008494503071 | BP50: 0.0008803636533 | BQ50: 0.0009105611064 | BR50: 0.0009400565416 | BS50: 0.0009688684629 | BT50: 0.0009970203957 | BU50: 0.001024541387 | BV50: 0.00105146638 | BW50: 0.001077831028 | BX50: 0.001103654208 | BY50: 0.001128953281 | BZ50: 0.001153749189 | CA50: 0.001178066805 | CB50: 0.001201935148 | CC50: 0.001225387297 | CD50: 0.00124846076 | CE50: 0.001271197344 | CF50: 0.001293643428 | CG50: 0.001315849969 | CH50: 0.001337872594
B51: 29 | C51: 3.968129313e-06 | D51: -0.06432840115 | E51: -0.08551596946 | F51: -0.1019875464 | G51: -0.1090866808 | H51: -0.1180373062 | I51: -0.1213422558 | J51: -0.1205608808 | K51: -0.1242370105 | L51: -0.1304528092 | M51: -0.1352585538 | N51: -0.1322771677 | O51: -0.1294498959 | P51: -0.1288344306 | Q51: -0.1302503437 | R51: -0.1282343778 | S51: -0.1273776121 | T51: -0.1229070352 | U51: -0.1179282611 | V51: -0.1171897387 | W51: -0.1154863102 | X51: -0.1094197106 | Y51: -0.1030893206 | Z51: -0.09972681389 | AA51: -0.09508351381 | AB51: -0.09242009135 | AC51: -0.08625658864 | AD51: -0.08275522551 | AE51: -0.0771341241 | AF51: -0.07060196439 | AG51: -0.06614655017 | AH51: -0.06116032213 | AI51: -0.05457213171 | AJ51: -0.04951318386 | AK51: -0.04282159676 | AL51: -0.03664455404 | AM51: -0.02978005423 | AN51: -0.02216729649 | AO51: -0.01459736968 | AP51: -0.007556810981 | AQ51: 0 | AS51: 0.0029 | AU51: 0.0001300190319 | AV51: 0.0001785591992 | AW51: 0.0002215907865 | AX51: 0.0002622954603 | AY51: 0.0003017884832 | AZ51: 0.0003405929802 | BA51: 0.0003789836856 | BB51: 0.0004171068371 | BC51: 0.0004550319612 | BD51: 0.0004927774585 | BE51: 0.0005303243786 | BF51: 0.0005676243072 | BG51: 0.0006046163405 | BH51: 0.0006412691465 | BI51: 0.0006775502195 | BJ51: 0.0007134158874 | BK51: 0.0007488127422 | BL51: 0.0007836784965 | BM51: 0.0008179426308 | BN51: 0.0008515269201 | BO51: 0.0008843619881 | BP51: 0.000916439741 | BQ51: 0.0009477708545 | BR51: 0.0009783700983 | BS51: 0.001008257009 | BT51: 0.0010374563 | BU51: 0.001065998377 | BV51: 0.001093919732 | BW51: 0.001121257562 | BX51: 0.001148031647 | BY51: 0.001174260174 | BZ51: 0.001199965027 | CA51: 0.001225172148 | CB51: 0.001249911761 | CC51: 0.001274218281 | CD51: 0.001298130698 | CE51: 0.00132169244 | CF51: 0.001344951658 | CG51: 0.00136796123 | CH51: 0.001390778857
B52: 30 | C52: 3.968129313e-06 | D52: -0.06394838107 | E52: -0.08522524913 | F52: -0.1012300751 | G52: -0.1090444239 | H52: -0.1176440505 | I52: -0.1203543203 | J52: -0.120555418 | K52: -0.1240222769 | L52: -0.1301936617 | M52: -0.1346010349 | N52: -0.1322649293 | O52: -0.128850045 | P52: -0.1287723008 | Q52: -0.1289679159 | R52: -0.1282217444 | S52: -0.1273635681 | T52: -0.121579613 | U52: -0.117902963 | V52: -0.1163250101 | W52: -0.1149049598 | X52: -0.1091680611 | Y52: -0.1021674968 | Z52: -0.09843778976 | AA52: -0.09460835259 | AB52: -0.09232571816 | AC52: -0.0860941909 | AD52: -0.08242071539 | AE52: -0.0768819025 | AF52: -0.06999473905 | AG52: -0.06614183233 | AH52: -0.0611364599 | AI52: -0.05446128422 | AJ52: -0.0494723432 | AK52: -0.04281460485 | AL52: -0.03662435217 | AM52: -0.02970289414 | AN52: -0.02213065701 | AO52: -0.01453902405 | AP52: -0.007556167347 | AQ52: 0 | AS52: 0.003 | AU52: 0.0001359467724 | AV52: 0.0001865335848 | AW52: 0.0002313443377 | AX52: 0.0002737073713 | AY52: 0.000314789943 | AZ52: 0.0003551399413 | BA52: 0.0003950454486 | BB52: 0.0004346601832 | BC52: 0.0004740576962 | BD52: 0.0005132581574 | BE52: 0.0005522427826 | BF52: 0.0005909621004 | BG52: 0.0006293536201 | BH52: 0.0006673854961 | BI52: 0.000705024614 | BJ52: 0.0007422262374 | BK52: 0.0007789355065 | BL52: 0.0008150883391 | BM52: 0.00085061211 | BN52: 0.0008854262044 | BO52: 0.0009194591803 | BP52: 0.0009527030983 | BQ52: 0.0009851694353 | BR52: 0.001016873873 | BS52: 0.001047836995 | BT52: 0.001078084717 | BU52: 0.001107648817 | BV52: 0.001136567346 | BW52: 0.001164879058 | BX52: 0.001192604642 | BY52: 0.00121976312 | BZ52: 0.001246377326 | CA52: 0.001272474279 | CB52: 0.001298085413 | CC52: 0.001323246484 | CD52: 0.001347997969 | CE52: 0.001372384923 | CF52: 0.001396457271 | CG52: 0.001420269816 | CH52: 0.001443882335
B53: 31 | C53: 3.968129313e-06 | D53: -0.06333592363 | E53: -0.08431434724 | F53: -0.1007272312 | G53: -0.1082948054 | H53: -0.1162184157 | I53: -0.1196745758 | J53: -0.1204043085 | K53: -0.1238681561 | L53: -0.130127107 | M53: -0.1339651456 | N53: -0.1319851448 | O53: -0.1286287827 | P53: -0.1282314408 | Q53: -0.1286143384 | R53: -0.1274200221 | S53: -0.1261928166 | T53: -0.1201330066 | U53: -0.1176531692 | V53: -0.1161458468 | W53: -0.1147463072 | X53: -0.1089998993 | Y53: -0.1019430719 | Z53: -0.09826531717 | AA53: -0.09458213717 | AB53: -0.0921180464 | AC53: -0.08563559779 | AD53: -0.08210211283 | AE53: -0.07658963035 | AF53: -0.06968006163 | AG53: -0.06608385596 | AH53: -0.06095476711 | AI53: -0.05400676305 | AJ53: -0.04945647177 | AK53: -0.04262459653 | AL53: -0.03638211647 | AM53: -0.02967503401 | AN53: -0.02185281684 | AO53: -0.01452383401 | AP53: -0.007548166135 | AQ53: 0 | AS53: 0.0031 | AU53: 0.0001419404743 | AV53: 0.0001945892207 | AW53: 0.000241190933 | AX53: 0.0002852222868 | AY53: 0.0003279031465 | AZ53: 0.0003698064706 | BA53: 0.000411233868 | BB53: 0.0004523466517 | BC53: 0.0004932224753 | BD53: 0.0005338833331 | BE53: 0.0005743106493 | BF53: 0.0006144539274 | BG53: 0.0006542491177 | BH53: 0.0006936638891 | BI53: 0.000732664544 | BJ53: 0.0007712053034 | BK53: 0.0008092298755 | BL53: 0.000846672401 | BM53: 0.0008834581659 | BN53: 0.0009195041814 | BO53: 0.0009547369552 | BP53: 0.0009891487213 | BQ53: 0.001022751776 | BR53: 0.001055562727 | BS53: 0.001087603225 | BT53: 0.001118900396 | BU53: 0.001149487406 | BV53: 0.001179403876 | BW53: 0.001208690127 | BX53: 0.001237367766 | BY53: 0.001265456658 | BZ53: 0.001292980594 | CA53: 0.001319967676 | CB53: 0.001346450553 | CC53: 0.001372466331 | CD53: 0.001398056977 | CE53: 0.001423269176 | CF53: 0.001448154632 | CG53: 0.001472770076 | CH53: 0.001497177362
B54: 32 | C54: 3.968129313e-06 | D54: -0.06311920528 | E54: -0.08402270556 | F54: -0.1007044855 | G54: -0.1082871304 | H54: -0.1156729343 | I54: -0.1195449234 | J54: -0.1198203466 | K54: -0.1226610096 | L54: -0.1295707318 | M54: -0.13390554 | N54: -0.1318895421 | O54: -0.1284464029 | P54: -0.1280650986 | Q54: -0.1285642975 | R54: -0.1272538463 | S54: -0.1260368994 | T54: -0.1199839785 | U54: -0.1174102001 | V54: -0.1158140806 | W54: -0.1145945227 | X54: -0.1085403448 | Y54: -0.1017152678 | Z54: -0.09801504948 | AA54: -0.09373082237 | AB54: -0.09175701816 | AC54: -0.0852294509 | AD54: -0.08198065839 | AE54: -0.07644491708 | AF54: -0.0693905013 | AG54: -0.066053787 | AH54: -0.06065248249 | AI54: -0.05393313323 | AJ54: -0.04931526723 | AK54: -0.04252823502 | AL54: -0.0361591188 | AM54: -0.02938706837 | AN54: -0.02184512965 | AO54: -0.0145235726 | AP54: -0.007538143661 | AQ54: 0 | AS54: 0.0032 | AU54: 0.0001479988734 | AV54: 0.0002027244719 | AW54: 0.0002511286372 | AX54: 0.000296838009 | AY54: 0.0003411256586 | AZ54: 0.0003845899148 | BA54: 0.000427546088 | BB54: 0.0004701631975 | BC54: 0.0005125230757 | BD54: 0.0005546495967 | BE54: 0.0005965244334 | BF54: 0.0006380960967 | BG54: 0.0006792990048 | BH54: 0.0007201003688 | BI54: 0.0007604659329 | BJ54: 0.000800348897 | BK54: 0.0008396915566 | BL54: 0.0008784262931 | BM54: 0.0009164763198 | BN54: 0.0009537562891 | BO54: 0.0009901906746 | BP54: 0.001025771902 | BQ54: 0.001060513102 | BR54: 0.00109443183 | BS54: 0.00112755081 | BT54: 0.001159898399 | BU54: 0.00119150916 | BV54: 0.001222424297 | BW54: 0.001252685704 | BX54: 0.001282315918 | BY54: 0.001311335654 | BZ54: 0.001339769666 | CA54: 0.001367647146 | CB54: 0.001395001966 | CC54: 0.001421872584 | CD54: 0.001448302463 | CE54: 0.001474339921 | CF54: 0.001500038447 | CG54: 0.001525456699 | CH54: 0.001550658615
B55: 33 | C55: 3.968129313e-06 | D55: -0.06300007225 | E55: -0.08311613403 | F55: -0.1005877135 | G55: -0.1074480047 | H55: -0.1155409192 | I55: -0.1190668115 | J55: -0.1193065555 | K55: -0.1222234609 | L55: -0.1290101809 | M55: -0.1337956675 | N55: -0.1313378689 | O55: -0.1281793657 | P55: -0.1274291611 | Q55: -0.1283955798 | R55: -0.1260039604 | S55: -0.1247925671 | T55: -0.1194747027 | U55: -0.1168647697 | V55: -0.1155292384 | W55: -0.1139350153 | X55: -0.1082502348 | Y55: -0.1016603364 | Z55: -0.09757309715 | AA55: -0.09293362986 | AB55: -0.0910204657 | AC55: -0.08518305123 | AD55: -0.08196226998 | AE55: -0.07629677615 | AF55: -0.06938135957 | AG55: -0.06592653507 | AH55: -0.0606440476 | AI55: -0.05352522358 | AJ55: -0.04924272353 | AK55: -0.0424015655 | AL55: -0.03604958959 | AM55: -0.02925140639 | AN55: -0.02184346435 | AO55: -0.01447299128 | AP55: -0.007514367053 | AQ55: 0 | AS55: 0.0033 | AU55: 0.0001541207716 | AV55: 0.0002109377894 | AW55: 0.0002611556183 | AX55: 0.0003085524585 | AY55: 0.0003544551763 | AZ55: 0.0003994877651 | BA55: 0.0004439794086 | BB55: 0.0004881069423 | BC55: 0.0005319564525 | BD55: 0.0005755537464 | BE55: 0.0006188807863 | BF55: 0.0006618851221 | BG55: 0.0007044996664 | BH55: 0.0007466912001 | BI55: 0.000788424933 | BJ55: 0.0008296530657 | BK55: 0.0008703165 | BL55: 0.0009103458747 | BM55: 0.0009496623469 | BN55: 0.0009881782254 | BO55: 0.001025815965 | BP55: 0.001062568199 | BQ55: 0.001098448915 | BR55: 0.001133476623 | BS55: 0.001167675144 | BT55: 0.001201074073 | BU55: 0.001233709382 | BV55: 0.00126562387 | BW55: 0.001296861016 | BX55: 0.001327444291 | BY55: 0.001357395271 | BZ55: 0.001386739678 | CA55: 0.0014155078 | CB55: 0.001443734739 | CC55: 0.001471460308 | CD55: 0.001498729473 | CE55: 0.001525592189 | CF55: 0.00155210373 | CG55: 0.001578324689 | CH55: 0.001604321083
B56: 34 | C56: 3.968129313e-06 | D56: -0.06285844361 | E56: -0.08301056712 | F56: -0.1003411387 | G56: -0.1073396121 | H56: -0.1150435617 | I56: -0.1188370311 | J56: -0.1192837021 | K56: -0.1222082132 | L56: -0.1289963212 | M56: -0.1315864138 | N56: -0.1312592624 | O56: -0.1278394247 | P56: -0.1273523442 | Q56: -0.1265607233 | R56: -0.1259435389 | S56: -0.1238558527 | T56: -0.1192213292 | U56: -0.1167489298 | V56: -0.115107908 | W56: -0.1138961641 | X56: -0.1081950106 | Y56: -0.1016024055 | Z56: -0.09703204598 | AA56: -0.0924915234 | AB56: -0.09085817031 | AC56: -0.08506433089 | AD56: -0.0813453434 | AE56: -0.07610437747 | AF56: -0.06913683378 | AG56: -0.06587340347 | AH56: -0.06060250934 | AI56: -0.05340985219 | AJ56: -0.04913112751 | AK56: -0.04236036791 | AL56: -0.03580375167 | AM56: -0.02918832536 | AN56: -0.0218016629 | AO56: -0.01442050035 | AP56: -0.007492468535 | AQ56: 0 | AS56: 0.0034 | AU56: 0.0001603050313 | AV56: 0.0002192277037 | AW56: 0.0002712701391 | AX56: 0.000320363664 | AY56: 0.0003678895167 | AZ56: 0.0004144976446 | BA56: 0.0004605312727 | BB56: 0.000506175161 | BC56: 0.0005515197229 | BD56: 0.000596592752 | BE56: 0.0006413765398 | BF56: 0.0006858177057 | BG56: 0.0007298476836 | BH56: 0.0007734328505 | BI56: 0.0008165379065 | BJ56: 0.0008591140731 | BK56: 0.0009011008771 | BL56: 0.0009424272323 | BM56: 0.0009830122548 | BN56: 0.001022765925 | BO56: 0.001061608693 | BP56: 0.00109953342 | BQ56: 0.001136554962 | BR56: 0.001172692806 | BS56: 0.001207971876 | BT56: 0.001242423022 | BU56: 0.001276083638 | BV56: 0.001308998125 | BW56: 0.001341211557 | BX56: 0.00137274835 | BY56: 0.001403630944 | BZ56: 0.001433886039 | CA56: 0.001463545025 | CB56: 0.001492644236 | CC56: 0.00152122485 | CD56: 0.001549333336 | CE56: 0.001577021292 | CF56: 0.001604345781 | CG56: 0.001631369329 | CH56: 0.00165816004
B57: 35 | C57: 3.968129313e-06 | D57: -0.06272620116 | E57: -0.08294180384 | F57: -0.1001933944 | G57: -0.1072474896 | H57: -0.1149344669 | I57: -0.1182542021 | J57: -0.1189427279 | K57: -0.1221476489 | L57: -0.1285293993 | M57: -0.1308610683 | N57: -0.1310007027 | O57: -0.1276102983 | P57: -0.1271102507 | Q57: -0.1253601969 | R57: -0.1259233131 | S57: -0.1237730107 | T57: -0.1191619656 | U57: -0.1167057033 | V57: -0.1149626809 | W57: -0.113038911 | X57: -0.1079818367 | Y57: -0.100546796 | Z57: -0.09697566348 | AA57: -0.09236762572 | AB57: -0.09032353341 | AC57: -0.08494376299 | AD57: -0.08129114365 | AE57: -0.07577248646 | AF57: -0.06912115335 | AG57: -0.06575718484 | AH57: -0.06059180623 | AI57: -0.05334102409 | AJ57: -0.0489791205 | AK57: -0.04230362295 | AL57: -0.03566804082 | AM57: -0.02911098891 | AN57: -0.02171133167 | AO57: -0.01439248501 | AP57: -0.007444537738 | AQ57: 0 | AS57: 0.0035 | AU57: 0.0001665505708 | AV57: 0.0002275928185 | AW57: 0.0002814705495 | AX57: 0.0003322697537 | AY57: 0.0003814266081 | AZ57: 0.0004296172978 | BA57: 0.0004771992547 | BB57: 0.0005243652689 | BC57: 0.0005712101538 | BD57: 0.0006177637411 | BE57: 0.0006640086906 | BF57: 0.0007098907221 | BG57: 0.0007553398167 | BH57: 0.0008003219739 | BI57: 0.0008448014074 | BJ57: 0.0008887283805 | BK57: 0.0009320410633 | BL57: 0.000974666661 | BM57: 0.001016522265 | BN57: 0.00105751554 | BO57: 0.00109756495 | BP57: 0.001136663596 | BQ57: 0.001174827223 | BR57: 0.001212076307 | BS57: 0.001248436891 | BT57: 0.00128394109 | BU57: 0.001318627733 | BV57: 0.001352542833 | BW57: 0.001385733068 | BX57: 0.001418223805 | BY57: 0.001450038357 | BZ57: 0.001481204409 | CA57: 0.001511754458 | CB57: 0.001541726076 | CC57: 0.001571161809 | CD57: 0.001600109636 | CE57: 0.0016286228 | CF57: 0.001656760154 | CG57: 0.001684586165 | CH57: 0.001712171021
B58: 36 | C58: 3.968129313e-06 | D58: -0.06261278405 | E58: -0.08284963549 | F58: -0.09999282857 | G58: -0.1068741608 | H58: -0.1148728058 | I58: -0.1180199018 | J58: -0.1180623148 | K58: -0.1212109836 | L58: -0.1282537804 | M58: -0.1297691162 | N58: -0.1309049036 | O58: -0.1272921195 | P58: -0.1268259056 | Q58: -0.1253590117 | R58: -0.1259196858 | S58: -0.1215470984 | T58: -0.1191310558 | U58: -0.1166022837 | V58: -0.1143989804 | W58: -0.1128173626 | X58: -0.1078900997 | Y58: -0.1005290031 | Z58: -0.09682302843 | AA58: -0.09227034374 | AB58: -0.08985838043 | AC58: -0.08487355141 | AD58: -0.08022672146 | AE58: -0.07574506031 | AF58: -0.06909346026 | AG58: -0.06546131884 | AH58: -0.05982137591 | AI58: -0.05329215771 | AJ58: -0.04886973639 | AK58: -0.0419289333 | AL58: -0.03564922345 | AM58: -0.0290851159 | AN58: -0.02168392217 | AO58: -0.0143544261 | AP58: -0.007419975278 | AQ58: 0 | AS58: 0.0036 | AU58: 0.00017285636 | AV58: 0.0002360318047 | AW58: 0.0002917552794 | AX58: 0.0003442689477 | AY58: 0.0003950644811 | AZ58: 0.0004448445812 | BA58: 0.0004939810497 | BB58: 0.000542674811 | BC58: 0.0005910251493 | BD58: 0.0006390639862 | BE58: 0.000686774388 | BF58: 0.0007341012051 | BG58: 0.0007809729915 | BH58: 0.0008273553953 | BI58: 0.0008732121668 | BJ58: 0.0009184926314 | BK58: 0.0009631336205 | BL58: 0.001007060647 | BM58: 0.001050188793 | BN58: 0.001092423424 | BO58: 0.001133681027 | BP58: 0.001173954966 | BQ58: 0.001213261887 | BR58: 0.001251623268 | BS58: 0.001289066288 | BT58: 0.00132562434 | BU58: 0.001361337694 | BV58: 0.001396253988 | BW58: 0.001430421512 | BX58: 0.001463866593 | BY58: 0.001496613424 | BZ58: 0.001528690679 | CA58: 0.001560131969 | CB58: 0.001590976111 | CC58: 0.001621267021 | CD58: 0.001651054193 | CE58: 0.001680392518 | CF58: 0.001709342646 | CG58: 0.00173797098 | CH58: 0.001766349801
B59: 37 | C59: 3.968129313e-06 | D59: -0.06224907655 | E59: -0.08281145893 | F59: -0.09978704685 | G59: -0.1065942962 | H59: -0.1147242331 | I59: -0.1176888536 | J59: -0.1176442283 | K59: -0.1210344811 | L59: -0.1275705415 | M59: -0.1296876658 | N59: -0.1305060479 | O59: -0.1269117009 | P59: -0.126535601 | Q59: -0.1248301199 | R59: -0.124852082 | S59: -0.1214214688 | T59: -0.1190600989 | U59: -0.116577547 | V59: -0.1143795962 | W59: -0.1119683247 | X59: -0.1077868691 | Y59: -0.1001189666 | Z59: -0.09662174266 | AA59: -0.0919074467 | AB59: -0.0896344009 | AC59: -0.08470197787 | AD59: -0.07993903766 | AE59: -0.07558724579 | AF59: -0.0689165068 | AG59: -0.06545155125 | AH59: -0.05953503483 | AI59: -0.05324842927 | AJ59: -0.04882489554 | AK59: -0.04189449326 | AL59: -0.03558494407 | AM59: -0.02900049316 | AN59: -0.02161200685 | AO59: -0.01433659386 | AP59: -0.007406251757 | AQ59: 0 | AS59: 0.0037 | AU59: 0.0001792214162 | AV59: 0.0002445433954 | AW59: 0.0003021228335 | AX59: 0.0003563595508 | AY59: 0.0004088012606 | AZ59: 0.0004601774547 | BA59: 0.0005108744646 | BB59: 0.0005611014514 | BC59: 0.0006109622405 | BD59: 0.0006604908935 | BE59: 0.0007096709214 | BF59: 0.000758446335 | BG59: 0.0008067442862 | BH59: 0.0008545300976 | BI59: 0.0009017670789 | BJ59: 0.0009484036373 | BK59: 0.0009943752834 | BL59: 0.001039605854 | BM59: 0.001084008437 | BN59: 0.001127486112 | BO59: 0.001169953405 | BP59: 0.001211403959 | BQ59: 0.001251855334 | BR59: 0.00129133003 | BS59: 0.001329856369 | BT59: 0.001367469034 | BU59: 0.00140420975 | BV59: 0.001440127789 | BW59: 0.001475273061 | BX59: 0.001509672861 | BY59: 0.001543352267 | BZ59: 0.001576340951 | CA59: 0.001608673641 | CB59: 0.001640390406 | CC59: 0.001671536537 | CD59: 0.001702163044 | CE59: 0.001732326472 | CF59: 0.001762089267 | CG59: 0.001791519778 | CH59: 0.001820692374
B60: 38 | C60: 3.968129313e-06 | D60: -0.06194110108 | E60: -0.08265847114 | F60: -0.09977497638 | G60: -0.1065557439 | H60: -0.1137933229 | I60: -0.1176673995 | J60: -0.1175991546 | K60: -0.1209162162 | L60: -0.127553096 | M60: -0.129417532 | N60: -0.1284836131 | O60: -0.1268506712 | P60: -0.1262338024 | Q60: -0.124768505 | R60: -0.124820654 | S60: -0.1213434996 | T60: -0.1189271766 | U60: -0.1161309013 | V60: -0.1141066257 | W60: -0.1119245052 | X60: -0.1075976293 | Y60: -0.1001036913 | Z60: -0.09652683558 | AA60: -0.09175303477 | AB60: -0.08961514486 | AC60: -0.08457468304 | AD60: -0.07964373458 | AE60: -0.07548817938 | AF60: -0.06882989342 | AG60: -0.06526644026 | AH60: -0.05945380119 | AI60: -0.05318956473 | AJ60: -0.04877329879 | AK60: -0.04182384465 | AL60: -0.03546686109 | AM60: -0.02897094442 | AN60: -0.02154830109 | AO60: -0.01430658519 | AP60: -0.007404339161 | AQ60: 0 | AS60: 0.0038 | AU60: 0.0001856448014 | AV60: 0.0002531263817 | AW60: 0.0003125717851 | AX60: 0.0003685399466 | AY60: 0.000422635159 | AZ60: 0.0004756139739 | BA60: 0.0005278774097 | BB60: 0.0005796429652 | BC60: 0.0006310190759 | BD60: 0.0006820419931 | BE60: 0.0007326957102 | BF60: 0.0007829234274 | BG60: 0.00083265092 | BH60: 0.0008818432097 | BI60: 0.0009304631883 | BJ60: 0.0009784583645 | BK60: 0.001025762946 | BL60: 0.001072299109 | BM60: 0.00111797796 | BN60: 0.001162700311 | BO60: 0.00120637874 | BP60: 0.00124900718 | BQ60: 0.001290604127 | BR60: 0.001331193112 | BS60: 0.001370803614 | BT60: 0.00140947162 | BU60: 0.00144724032 | BV60: 0.001484160625 | BW60: 0.001520284079 | BX60: 0.001555638948 | BY60: 0.001590251205 | BZ60: 0.001624151523 | CA60: 0.001657375756 | CB60: 0.001689965225 | CC60: 0.001721966604 | CD60: 0.001753432424 | CE60: 0.001784420885 | CF60: 0.001814996234 | CG60: 0.001845228764 | CH60: 0.001875194936
B61: 39 | C61: 3.968129313e-06 | D61: -0.06191864636 | E61: -0.08256896633 | F61: -0.09945953829 | G61: -0.1054940463 | H61: -0.113768453 | I61: -0.1175404855 | J61: -0.1168064631 | K61: -0.1208111746 | L61: -0.1274765322 | M61: -0.1290992729 | N61: -0.1279917067 | O61: -0.1261358503 | P61: -0.1262162027 | Q61: -0.1242369869 | R61: -0.1247367412 | S61: -0.1211134464 | T61: -0.1188474806 | U61: -0.1159526161 | V61: -0.1129568695 | W61: -0.1119233466 | X61: -0.1070851931 | Y61: -0.1000112518 | Z61: -0.09615145534 | AA61: -0.09165025392 | AB61: -0.08952130503 | AC61: -0.08451559437 | AD61: -0.079236362 | AE61: -0.07536649222 | AF61: -0.06817606092 | AG61: -0.06522068254 | AH61: -0.05936082101 | AI61: -0.05301981206 | AJ61: -0.04865999692 | AK61: -0.04168568018 | AL61: -0.03545138092 | AM61: -0.02896323806 | AN61: -0.02154134379 | AO61: -0.01424891893 | AP61: -0.007379485898 | AQ61: 0 | AS61: 0.0039 | AU61: 0.0001921256184 | AV61: 0.0002617796083 | AW61: 0.0003231007712 | AX61: 0.0003808085914 | AY61: 0.0004365644698 | AZ61: 0.0004911522831 | BA61: 0.0005449878912 | BB61: 0.0005982972299 | BC61: 0.0006511934128 | BD61: 0.0007037149301 | BE61: 0.000755846294 | BF61: 0.0008075299238 | BG61: 0.0008586902423 | BH61: 0.0009092919955 | BI61: 0.0009592976794 | BJ61: 0.001008653923 | BK61: 0.001057293648 | BL61: 0.001105137388 | BM61: 0.001152094283 | BN61: 0.001198062885 | BO61: 0.001242953843 | BP61: 0.001286761398 | BQ61: 0.001329504991 | BR61: 0.001371209201 | BS61: 0.001411904678 | BT61: 0.001451628721 | BU61: 0.001490425993 | BV61: 0.001528349062 | BW61: 0.001565451105 | BX61: 0.001601761371 | BY61: 0.001637306734 | BZ61: 0.001672118874 | CA61: 0.001706234773 | CB61: 0.001739697015 | CC61: 0.001772553657 | CD61: 0.001804858755 | CE61: 0.001836672168 | CF61: 0.001868059947 | CG61: 0.00189909433 | CH61: 0.001929853873
B62: 40 | C62: 3.968129313e-06 | D62: -0.06190595498 | E62: -0.08224515179 | F62: -0.09932579443 | G62: -0.1051531905 | H62: -0.1132597368 | I62: -0.1172983085 | J62: -0.1166555977 | K62: -0.1203247827 | L62: -0.1268774148 | M62: -0.12901863 | N62: -0.1279614258 | O62: -0.1259112707 | P62: -0.1257046611 | Q62: -0.1240687871 | R62: -0.124185145 | S62: -0.1206126298 | T62: -0.1185861342 | U62: -0.1158148807 | V62: -0.1129489626 | W62: -0.1118151095 | X62: -0.1069467176 | Y62: -0.09998860197 | Z62: -0.09612131821 | AA62: -0.0916025785 | AB62: -0.08918991349 | AC62: -0.08435815604 | AD62: -0.07919914264 | AE62: -0.07525761606 | AF62: -0.06787356494 | AG62: -0.06514624836 | AH62: -0.05925415731 | AI62: -0.052954338 | AJ62: -0.04829837239 | AK62: -0.04163717271 | AL62: -0.03544950291 | AM62: -0.02894971807 | AN62: -0.02146948157 | AO62: -0.01424485898 | AP62: -0.007376518754 | AQ62: 0 | AS62: 0.004 | AU62: 0.0001986630084 | AV62: 0.0002705019699 | AW62: 0.0003337084885 | AX62: 0.0003931640095 | AY62: 0.0004505875622 | AZ62: 0.000506790609 | BA62: 0.0005622040043 | BB62: 0.0006170622183 | BC62: 0.0006714831096 | BD62: 0.0007255074557 | BE62: 0.0007791203245 | BF62: 0.0008322633822 | BG62: 0.0008848597241 | BH62: 0.0009368738448 | BI62: 0.0009882678659 | BJ62: 0.001038987557 | BK62: 0.00108896457 | BL62: 0.001138117809 | BM62: 0.001186354465 | BN62: 0.001233570845 | BO62: 0.00127967568 | BP62: 0.001324663532 | BQ62: 0.001368554808 | BR62: 0.001411375143 | BS62: 0.001453156371 | BT62: 0.001493937115 | BU62: 0.001533763524 | BV62: 0.001572689825 | BW62: 0.001610770842 | BX62: 0.001648036813 | BY62: 0.001684515517 | BZ62: 0.001720239649 | CA62: 0.001755247325 | CB62: 0.001789582393 | CC62: 0.0018232943 | CD62: 0.001856438629 | CE62: 0.001889076903 | CF62: 0.001921276978 | CG62: 0.001953113041 | CH62: 0.001984665743
B63: 41 | C63: 3.968129313e-06 | D63: -0.06185337618 | E63: -0.08100323147 | F63: -0.09847789273 | G63: -0.1049460029 | H63: -0.1128882011 | I63: -0.1169805048 | J63: -0.1166098759 | K63: -0.1201822373 | L63: -0.1267918807 | M63: -0.1287338581 | N63: -0.1278125782 | O63: -0.1258182921 | P63: -0.1255498847 | Q63: -0.1239200482 | R63: -0.1241303438 | S63: -0.1203942339 | T63: -0.1172500974 | U63: -0.1157894615 | V63: -0.1126969787 | W63: -0.1117807244 | X63: -0.1059523111 | Y63: -0.09985983206 | Z63: -0.09597112617 | AA63: -0.09073402002 | AB63: -0.08882921649 | AC63: -0.0838348 | AD63: -0.07911190313 | AE63: -0.07503209415 | AF63: -0.06782644683 | AG63: -0.06466044983 | AH63: -0.0591929184 | AI63: -0.05294086519 | AJ63: -0.04823588544 | AK63: -0.04124966397 | AL63: -0.03541960536 | AM63: -0.02890813961 | AN63: -0.0214656943 | AO63: -0.01416266093 | AP63: -0.0073529042 | AQ63: 0 | AS63: 0.0041 | AU63: 0.0002052561483 | AV63: 0.0002792924076 | AW63: 0.0003443936892 | AX63: 0.0004056047884 | AY63: 0.0004647028753 | AZ63: 0.0005225272555 | BA63: 0.0005795239272 | BB63: 0.0006359359917 | BC63: 0.0006918861188 | BD63: 0.0007474174207 | BE63: 0.0008025155569 | BF63: 0.0008571214691 | BG63: 0.000911156949 | BH63: 0.0009645862636 | BI63: 0.001017371182 | BJ63: 0.001069456633 | BK63: 0.001120773016 | BL63: 0.001171237621 | BM63: 0.001220755702 | BN63: 0.001269221337 | BO63: 0.00131654135 | BP63: 0.001362710643 | BQ63: 0.001407750598 | BR63: 0.001451687924 | BS63: 0.00149455565 | BT63: 0.001536393731 | BU63: 0.001577249812 | BV63: 0.001617179792 | BW63: 0.001656240147 | BX63: 0.001694462111 | BY63: 0.001731874373 | BZ63: 0.00176851065 | CA63: 0.001804410198 | CB63: 0.001839618132 | CC63: 0.001874185293 | CD63: 0.001908168798 | CE63: 0.001941631832 | CF63: 0.001974644061 | CG63: 0.002007281623 | CH63: 0.002039627267
B64: 42 | C64: 3.968129313e-06 | D64: -0.06182450789 | E64: -0.08086045282 | F64: -0.097458494 | G64: -0.1046696455 | H64: -0.1124546045 | I64: -0.1167386425 | J64: -0.1165800786 | K64: -0.1197970621 | L64: -0.1264618778 | M64: -0.1276676209 | N64: -0.1264606753 | O64: -0.1251138693 | P64: -0.1248972675 | Q64: -0.123805685 | R64: -0.1234552104 | S64: -0.1198694472 | T64: -0.1166111257 | U64: -0.1157748955 | V64: -0.1121477633 | W64: -0.1111766443 | X64: -0.1055043177 | Y64: -0.09985437718 | Z64: -0.09582870336 | AA64: -0.09069036052 | AB64: -0.08872235616 | AC64: -0.08339930879 | AD64: -0.07880674185 | AE64: -0.07417178942 | AF64: -0.06766372215 | AG64: -0.06438195773 | AH64: -0.05917647657 | AI64: -0.05285688019 | AJ64: -0.04812529171 | AK64: -0.0412195248 | AL64: -0.03541897655 | AM64: -0.02871614998 | AN64: -0.02127769745 | AO64: -0.014135939 | AP64: -0.00735065692 | AQ64: 0 | AS64: 0.0042 | AU64: 0.0002119042487 | AV64: 0.0002881499064 | AW64: 0.0003551551771 | AX64: 0.0004181295745 | AY64: 0.0004789089142 | AZ64: 0.0005383605978 | BA64: 0.0005969459155 | BB64: 0.0006549166944 | BC64: 0.0007124004806 | BD64: 0.0007694427682 | BE64: 0.0008260298436 | BF64: 0.000882101952 | BG64: 0.0009375796053 | BH64: 0.000992426867 | BI64: 0.001046605175 | BJ64: 0.001100058634 | BK64: 0.001152716409 | BL64: 0.001204494192 | BM64: 0.001255295313 | BN64: 0.001305011633 | BO64: 0.001353548084 | BP64: 0.001400899921 | BQ64: 0.001447089519 | BR64: 0.001492144668 | BS64: 0.001536099606 | BT64: 0.001578995634 | BU64: 0.0016208819 | BV64: 0.001661815981 | BW64: 0.001701856017 | BX64: 0.001741034242 | BY64: 0.001779380264 | BZ64: 0.001816928824 | CA64: 0.001853720324 | CB64: 0.001889801152 | CC64: 0.001925223547 | CD64: 0.001960046159 | CE64: 0.001994333845 | CF64: 0.002028158079 | CG64: 0.002061596953 | CH64: 0.002094735313
B65: 43 | C65: 3.968129313e-06 | D65: -0.06174553871 | E65: -0.08066025484 | F65: -0.09693742363 | G65: -0.1039502092 | H65: -0.1117068999 | I65: -0.1165949428 | J65: -0.1165604663 | K65: -0.1194852125 | L65: -0.1263670122 | M65: -0.1271236634 | N65: -0.1260307891 | O65: -0.1246608808 | P65: -0.1246662434 | Q65: -0.1236151888 | R65: -0.1223418399 | S65: -0.1198470452 | T65: -0.1165445693 | U65: -0.115755029 | V65: -0.1120185684 | W65: -0.1111510032 | X65: -0.1054894416 | Y65: -0.0997808708 | Z65: -0.09497364031 | AA65: -0.09037494567 | AB65: -0.08837832375 | AC65: -0.08321938652 | AD65: -0.07878404634 | AE65: -0.07404892527 | AF65: -0.06740848596 | AG65: -0.06418270289 | AH65: -0.05879460897 | AI65: -0.05280494474 | AJ65: -0.04797026003 | AK65: -0.04107933555 | AL65: -0.03519551228 | AM65: -0.028685411 | AN65: -0.02121975617 | AO65: -0.01408131083 | AP65: -0.007300322041 | AQ65: 0 | AS65: 0.0043 | AU65: 0.000218606551 | AV65: 0.0002970734915 | AW65: 0.0003659918044 | AX65: 0.0004307370695 | AY65: 0.0004932042452 | AZ65: 0.0005542890784 | BA65: 0.0006144682971 | BB65: 0.0006740025478 | BC65: 0.0007330243172 | BD65: 0.0007915815277 | BE65: 0.0008496611275 | BF65: 0.0009072026931 | BG65: 0.00096412548 | BH65: 0.001020393371 | BI65: 0.001075967495 | BJ65: 0.001130791151 | BK65: 0.001184792285 | BL65: 0.001237885005 | BM65: 0.001289970732 | BN65: 0.001340939124 | BO65: 0.001390693232 | BP65: 0.00143922868 | BQ65: 0.001486568847 | BR65: 0.001532742623 | BS65: 0.00157778546 | BT65: 0.001621740017 | BU65: 0.001664656956 | BV65: 0.001706595541 | BW65: 0.001747615581 | BX65: 0.001787750318 | BY65: 0.001827030284 | BZ65: 0.001865491251 | CA65: 0.001903174771 | CB65: 0.001940128509 | CC65: 0.001976406106 | CD65: 0.002012067751 | CE65: 0.00204717997 | CF65: 0.002081816052 | CG65: 0.002116056044 | CH65: 0.00214998689
B66: 44 | C66: 3.968129313e-06 | D66: -0.06167885954 | E66: -0.08033753096 | F66: -0.09683921497 | G66: -0.103455197 | H66: -0.1111156516 | I66: -0.1162665012 | J66: -0.1162658116 | K66: -0.1182981857 | L66: -0.1259008359 | M66: -0.1265536774 | N66: -0.1259172438 | O66: -0.1242846529 | P66: -0.1229146713 | Q66: -0.1235013904 | R66: -0.1221471296 | S66: -0.119253668 | T66: -0.1162154332 | U66: -0.1154287517 | V66: -0.1119089353 | W66: -0.1110385698 | X66: -0.1054729548 | Y66: -0.09934902815 | Z66: -0.09487176049 | AA66: -0.08985081671 | AB66: -0.08826880232 | AC66: -0.08321180865 | AD66: -0.07864834805 | AE66: -0.07361015911 | AF66: -0.06704067619 | AG66: -0.06401493834 | AH66: -0.05865788717 | AI66: -0.05276631838 | AJ66: -0.04783870895 | AK66: -0.04105494443 | AL66: -0.0351483756 | AM66: -0.02860642249 | AN66: -0.02121239988 | AO66: -0.0140632863 | AP66: -0.007287504754 | AQ66: 0 | AS66: 0.0044 | AU66: 0.0002253623262 | AV66: 0.0003060622268 | AW66: 0.0003769024687 | AX66: 0.0004434260267 | AY66: 0.0005075874919 | AZ66: 0.0005703112024 | BA66: 0.0006320894676 | BB66: 0.0006931918459 | BC66: 0.0007537558276 | BD66: 0.0008138318093 | BE66: 0.0008734074361 | BF66: 0.0009324216425 | BG66: 0.0009907924511 | BH66: 0.001048483588 | BI66: 0.001105455892 | BJ66: 0.001161651875 | BK66: 0.00121699828 | BL66: 0.001271407647 | BM66: 0.001324779501 | BN66: 0.001377001309 | BO66: 0.001427974255 | BP66: 0.001477694346 | BQ66: 0.001526185979 | BR66: 0.001573479153 | BS66: 0.00161961055 | BT66: 0.001664624196 | BU66: 0.001708572274 | BV66: 0.001751515744 | BW66: 0.001793516092 | BX66: 0.001834607575 | BY66: 0.001874821655 | BZ66: 0.001914195139 | CA66: 0.001952770735 | CB66: 0.001990597388 | CC66: 0.002027730144 | CD66: 0.002064230737 | CE66: 0.002100167364 | CF66: 0.002135615131 | CG66: 0.002170656041 | CH66: 0.00220537914
B67: 45 | C67: 3.968129313e-06 | D67: -0.06166361411 | E67: -0.08018831472 | F67: -0.0959642645 | G67: -0.1029724308 | H67: -0.1111017059 | I67: -0.1161651133 | J67: -0.1154738364 | K67: -0.1181063377 | L67: -0.1248414342 | M67: -0.1263589137 | N67: -0.1259064195 | O67: -0.1236421096 | P67: -0.122634929 | Q67: -0.1232433672 | R67: -0.1219840373 | S67: -0.1191564427 | T67: -0.1160720336 | U67: -0.114722699 | V67: -0.1118379703 | W67: -0.110962061 | X67: -0.1039007575 | Y67: -0.0993381295 | Z67: -0.0948423878 | AA67: -0.08982019294 | AB67: -0.08807885664 | AC67: -0.08319942711 | AD67: -0.07862313832 | AE67: -0.07352658094 | AF67: -0.06677542175 | AG67: -0.06383315486 | AH67: -0.05859018367 | AI67: -0.05243455053 | AJ67: -0.04761996109 | AK67: -0.04105384023 | AL67: -0.0350876511 | AM67: -0.02850271931 | AN67: -0.02113617593 | AO67: -0.01405779259 | AP67: -0.007257371331 | AQ67: 0 | AS67: 0.0045 | AU67: 0.000232170873 | AV67: 0.0003151152117 | AW67: 0.0003878861102 | AX67: 0.000456195248 | AY67: 0.000522057332 | AZ67: 0.0005864255337 | BA67: 0.0006498078861 | BB67: 0.0007124829501 | BC67: 0.0007745932825 | BD67: 0.0008361917992 | BE67: 0.0008972668761 | BF67: 0.0009577568332 | BG67: 0.001017578483 | BH67: 0.001076695418 | BI67: 0.001135068206 | BJ67: 0.001192638592 | BK67: 0.00124933213 | BL67: 0.001305059807 | BM67: 0.001359719265 | BN67: 0.001413195792 | BO67: 0.001465388721 | BP67: 0.001516294453 | BQ67: 0.001565938416 | BR67: 0.001614351733 | BS67: 0.001661572326 | BT67: 0.001707645594 | BU67: 0.001752625256 | BV67: 0.001796573975 | BW67: 0.001839554918 | BX67: 0.001881603366 | BY67: 0.001922751715 | BZ67: 0.001963037813 | CA67: 0.002002505527 | CB67: 0.00204120509 | CC67: 0.002079192956 | CD67: 0.002116532402 | CE67: 0.002153293306 | CF67: 0.002189552588 | CG67: 0.002225394211 | CH67: 0.002260909322
B68: 46 | C68: 3.968129313e-06 | D68: -0.06151428669 | E68: -0.08005931837 | F68: -0.09447124677 | G68: -0.1029225833 | H68: -0.111026302 | I68: -0.115971477 | J68: -0.1152313205 | K68: -0.117352165 | L68: -0.124720545 | M68: -0.1261401738 | N68: -0.1252111745 | O68: -0.1234453534 | P68: -0.1223237915 | Q68: -0.1232278224 | R68: -0.1218416858 | S68: -0.1191084691 | T68: -0.1160622632 | U68: -0.1145906551 | V68: -0.1116918077 | W68: -0.1107447021 | X68: -0.1038246259 | Y68: -0.09927224663 | Z68: -0.09447164704 | AA68: -0.08972974444 | AB68: -0.08800817235 | AC68: -0.08319378644 | AD68: -0.07725250198 | AE68: -0.07352566975 | AF68: -0.06667190065 | AG68: -0.06364938753 | AH68: -0.05857845244 | AI68: -0.05236237892 | AJ68: -0.04717469798 | AK68: -0.04105365814 | AL68: -0.03508478324 | AM68: -0.0284659959 | AN68: -0.02107017543 | AO68: -0.01403001026 | AP68: -0.007239369616 | AQ68: 0 | AS68: 0.0046 | AU68: 0.0002390315157 | AV68: 0.0003242315793 | AW68: 0.000398941709 | AX68: 0.0004690435808 | AY68: 0.0005366124936 | AZ68: 0.0006026306917 | BA68: 0.0006676220712 | BB68: 0.0007318742857 | BC68: 0.0007955350201 | BD68: 0.0008586597542 | BE68: 0.0009212376289 | BF68: 0.0009832063759 | BG68: 0.001044481621 | BH68: 0.001105026844 | BI68: 0.001164802364 | BJ68: 0.001223749175 | BK68: 0.00128179166 | BL68: 0.001338839263 | BM68: 0.001394787761 | BN68: 0.001449520274 | BO68: 0.001502934295 | BP68: 0.001555026633 | BQ68: 0.001605823763 | BR68: 0.001655357941 | BS68: 0.00170366834 | BT68: 0.001750801745 | BU68: 0.001796813415 | BV68: 0.001841767725 | BW68: 0.001885729535 | BX68: 0.00192873515 | BY68: 0.001970817909 | BZ68: 0.002012016706 | CA68: 0.002052376572 | CB68: 0.00209194903 | CC68: 0.002130791946 | CD68: 0.002168970146 | CE68: 0.002206555185 | CF68: 0.002243625807 | CG68: 0.002280267932 | CH68: 0.002316574813
B69: 47 | C69: 3.968129313e-06 | D69: -0.06144088501 | E69: -0.08005740959 | F69: -0.09352091374 | G69: -0.1028512085 | H69: -0.110975605 | I69: -0.1158286383 | J69: -0.1151742971 | K69: -0.1171421332 | L69: -0.1240104176 | M69: -0.1257309066 | N69: -0.1249246342 | O69: -0.1232166853 | P69: -0.1220487778 | Q69: -0.1230689149 | R69: -0.1211876513 | S69: -0.1189995782 | T69: -0.1160506694 | U69: -0.1145382582 | V69: -0.1114976003 | W69: -0.1102326988 | X69: -0.1038065882 | Y69: -0.09896226957 | Z69: -0.09423011039 | AA69: -0.08954246466 | AB69: -0.0879970727 | AC69: -0.08277297846 | AD69: -0.07720091847 | AE69: -0.07336931755 | AF69: -0.06657400549 | AG69: -0.0634664277 | AH69: -0.05855798203 | AI69: -0.05223725239 | AJ69: -0.0467209059 | AK69: -0.04094800253 | AL69: -0.03503467468 | AM69: -0.02844926696 | AN69: -0.02106200934 | AO69: -0.01400008579 | AP69: -0.00721954085 | AQ69: 0 | AS69: 0.0047 | AU69: 0.0002459436032 | AV69: 0.0003334104945 | AW69: 0.0004100682831 | AX69: 0.0004819699152 | AY69: 0.0005512517524 | AZ69: 0.0006189253475 | BA69: 0.0006855305976 | BB69: 0.0007513643377 | BC69: 0.0008165794419 | BD69: 0.0008812339982 | BE69: 0.0009453179454 | BF69: 0.001008768454 | BG69: 0.001071499984 | BH69: 0.001133475928 | BI69: 0.001194656374 | BJ69: 0.001254981582 | BK69: 0.001314374779 | BL69: 0.001372743884 | BM69: 0.001429982817 | BN69: 0.001485972546 | BO69: 0.001540608733 | BP69: 0.001593888614 | BQ69: 0.001645839719 | BR69: 0.00169649545 | BS69: 0.001745896242 | BT69: 0.001794090276 | BU69: 0.00184113436 | BV69: 0.001887094589 | BW69: 0.001932037519 | BX69: 0.001976000491 | BY69: 0.002019017789 | BZ69: 0.002061129358 | CA69: 0.002102381399 | CB69: 0.002142826726 | CC69: 0.002182524624 | CD69: 0.002221541469 | CE69: 0.002259950499 | CF69: 0.002297832279 | CG69: 0.002335274692 | CH69: 0.002372373094
B70: 48 | C70: 3.968129313e-06 | D70: -0.06122028064 | E70: -0.07959386841 | F70: -0.09343371684 | G70: -0.1027521337 | H70: -0.1107335408 | I70: -0.1152516914 | J70: -0.1151153128 | K70: -0.1169136652 | L70: -0.1239892169 | M70: -0.1256393256 | N70: -0.1249225255 | O70: -0.123059585 | P70: -0.1220390622 | Q70: -0.122394057 | R70: -0.1211055489 | S70: -0.1188173248 | T70: -0.1159317312 | U70: -0.1144883949 | V70: -0.1114586272 | W70: -0.1100590286 | X70: -0.1033304022 | Y70: -0.09887992828 | Z70: -0.09413053026 | AA70: -0.08931333735 | AB70: -0.0874836066 | AC70: -0.08273024757 | AD70: -0.07676288944 | AE70: -0.07334233831 | AF70: -0.06647772296 | AG70: -0.0634606614 | AH70: -0.05854876312 | AI70: -0.05220899251 | AJ70: -0.04658188595 | AK70: -0.04086563334 | AL70: -0.03499022497 | AM70: -0.02826297907 | AN70: -0.02102832269 | AO70: -0.01398529427 | AP70: -0.007213486425 | AQ70: 0 | AS70: 0.0048 | AU70: 0.0002529065073 | AV70: 0.0003426511521 | AW70: 0.0004212648857 | AX70: 0.000494973182 | AY70: 0.000565973929 | AZ70: 0.0006353082211 | BA70: 0.0007035320925 | BB70: 0.0007709516475 | BC70: 0.0008377250092 | BD70: 0.0009039129176 | BE70: 0.0009695061427 | BF70: 0.001034441319 | BG70: 0.001098631766 | BH70: 0.001162040805 | BI70: 0.001224628318 | BJ70: 0.001286333847 | BK70: 0.001347079478 | BL70: 0.001406771618 | BM70: 0.001465302344 | BN70: 0.001522550483 | BO70: 0.001578409882 | BP70: 0.001632878211 | BQ70: 0.001685984072 | BR70: 0.001737762025 | BS70: 0.001788253776 | BT70: 0.00183750891 | BU70: 0.001885585795 | BV70: 0.001932552252 | BW70: 0.001978476543 | BX70: 0.002023397047 | BY70: 0.002067349 | BZ70: 0.002110373404 | CA70: 0.002152517631 | CB70: 0.002193835795 | CC70: 0.002234388599 | CD70: 0.002274243974 | CE70: 0.002313476844 | CF70: 0.002352169595 | CG70: 0.002390412076 | CH70: 0.002428301748
B71: 49 | C71: 3.968129313e-06 | D71: -0.06107573946 | E71: -0.07948016799 | F71: -0.09303442609 | G71: -0.1026410045 | H71: -0.1103454721 | I71: -0.1143247551 | J71: -0.1145685823 | K71: -0.1168317592 | L71: -0.1238218582 | M71: -0.1250690957 | N71: -0.124726113 | O71: -0.1228601354 | P71: -0.1214784315 | Q71: -0.1219573308 | R71: -0.1210008613 | S71: -0.1188137875 | T71: -0.1155339358 | U71: -0.1143856957 | V71: -0.1113708928 | W71: -0.109855305 | X71: -0.1031465808 | Y71: -0.098791348 | Z71: -0.09412276069 | AA71: -0.08930161322 | AB71: -0.0873414451 | AC71: -0.0824377729 | AD71: -0.07648469099 | AE71: -0.07325358819 | AF71: -0.06633133915 | AG71: -0.06342478492 | AH71: -0.05847551233 | AI71: -0.05205201092 | AJ71: -0.04656259732 | AK71: -0.04085147138 | AL71: -0.03497069997 | AM71: -0.02825596158 | AN71: -0.02100922381 | AO71: -0.01394077988 | AP71: -0.00719799457 | AQ71: 0 | AS71: 0.0049 | AU71: 0.0002599196217 | AV71: 0.0003519527751 | AW71: 0.0004325306035 | AX71: 0.0005080523499 | AY71: 0.0005807778863 | AZ71: 0.0006517780787 | BA71: 0.0007216252333 | BB71: 0.0007906348095 | BC71: 0.0008589702396 | BD71: 0.0009266949582 | BE71: 0.0009938005996 | BF71: 0.001060223289 | BG71: 0.001125875223 | BH71: 0.001190719681 | BI71: 0.001254716352 | BJ71: 0.00131780408 | BK71: 0.001379903822 | BL71: 0.001440920491 | BM71: 0.001500744332 | BN71: 0.001559252042 | BO71: 0.001616335665 | BP71: 0.001671993321 | BQ71: 0.001726254695 | BR71: 0.001779155514 | BS71: 0.001830738768 | BT71: 0.001881055456 | BU71: 0.001930165512 | BV71: 0.001978138491 | BW71: 0.002025044369 | BX71: 0.002070922567 | BY71: 0.00211580928 | BZ71: 0.002159746569 | CA71: 0.002202782986 | CB71: 0.002244973945 | CC71: 0.002286381572 | CD71: 0.002327075356 | CE71: 0.002367131907 | CF71: 0.002406635439 | CG71: 0.002445677764 | CH71: 0.002484358451
B72: 50 | C72: 3.968129313e-06 | D72: -0.06084638977 | E72: -0.07942559838 | F72: -0.09292911132 | G72: -0.1025819453 | H72: -0.1103170274 | I72: -0.1142368939 | J72: -0.114487712 | K72: -0.1165038175 | L72: -0.1229448595 | M72: -0.1250048305 | N72: -0.1245323645 | O72: -0.1226211453 | P72: -0.1210270248 | Q72: -0.1219025235 | R72: -0.1202882574 | S72: -0.1186229473 | T72: -0.1150921103 | U72: -0.1143533698 | V72: -0.1109960178 | W72: -0.109122947 | X72: -0.10264483 | Y72: -0.09873782857 | Z72: -0.09372269719 | AA72: -0.08929908561 | AB72: -0.08723332803 | AC72: -0.08227028888 | AD72: -0.07640941017 | AE72: -0.07324859674 | AF72: -0.06625555064 | AG72: -0.0633492872 | AH72: -0.05802177582 | AI72: -0.05199959396 | AJ72: -0.04649918343 | AK72: -0.04072317448 | AL72: -0.03487326283 | AM72: -0.02822326756 | AN72: -0.0208964692 | AO72: -0.01393295719 | AP72: -0.007142109269 | AQ72: 0 | AS72: 0.005 | AU72: 0.0002669823605 | AV72: 0.0003613146131 | AW72: 0.000443864555 | AX72: 0.0005212064234 | AY72: 0.000595662527 | AZ72: 0.0006683337302 | BA72: 0.0007398087437 | BB72: 0.0008104124682 | BC72: 0.0008803137034 | BD72: 0.0009495786217 | BE72: 0.001018199753 | BF72: 0.001086112739 | BG72: 0.001153228679 | BH72: 0.001219510826 | BI72: 0.001284918699 | BJ72: 0.001349390457 | BK72: 0.001412845949 | BL72: 0.001475188602 | BM72: 0.001536306844 | BN72: 0.001596075256 | BO72: 0.001654384086 | BP72: 0.001711231921 | BQ72: 0.00176664954 | BR72: 0.001820673848 | BS72: 0.001873349129 | BT72: 0.001924727805 | BU72: 0.001974871385 | BV72: 0.002023851166 | BW72: 0.002071738841 | BX72: 0.002118574883 | BY72: 0.00216439645 | BZ72: 0.002209246668 | CA72: 0.002253175268 | CB72: 0.002296238973 | CC72: 0.002338501333 | CD72: 0.002380033398 | CE72: 0.002420913468 | CF72: 0.002461227584 | CG72: 0.002501069525 | CH72: 0.002540540969
B73: 51 | C73: 3.968129313e-06 | D73: -0.06080086811 | E73: -0.07923526774 | F73: -0.09288078312 | G73: -0.1025150198 | H73: -0.1095435549 | I73: -0.1132116829 | J73: -0.114400427 | K73: -0.1163139803 | L73: -0.1224169465 | M73: -0.1245348622 | N73: -0.1243224332 | O73: -0.1225736451 | P73: -0.1210003292 | Q73: -0.1218825439 | R73: -0.1200759351 | S73: -0.1182041775 | T73: -0.1148520908 | U73: -0.1139849536 | V73: -0.1094385607 | W73: -0.1085847061 | X73: -0.1025047318 | Y73: -0.09867123022 | Z73: -0.09357746871 | AA73: -0.08918413793 | AB73: -0.08722524327 | AC73: -0.08215006101 | AD73: -0.07638454977 | AE73: -0.07322782194 | AF73: -0.06611272683 | AG73: -0.06327788955 | AH73: -0.05795332986 | AI73: -0.05191375437 | AJ73: -0.04648744521 | AK73: -0.04033454492 | AL73: -0.03466080283 | AM73: -0.02816364697 | AN73: -0.02086634183 | AO73: -0.01392585123 | AP73: -0.007131312264 | AQ73: 0 | AS73: 0.0051 | AU73: 0.0002740941574 | AV73: 0.0003707359411 | AW73: 0.0004552658885 | AX73: 0.0005344344413 | AY73: 0.0006106267916 | AZ73: 0.0006849740264 | BA73: 0.0007580813923 | BB73: 0.0008302833155 | BC73: 0.0009017540215 | BD73: 0.0009725624623 | BE73: 0.001042702097 | BF73: 0.001112108107 | BG73: 0.001180690514 | BH73: 0.001248412571 | BI73: 0.001315233643 | BJ73: 0.001381091222 | BK73: 0.001445904062 | BL73: 0.001509574118 | BM73: 0.001571988015 | BN73: 0.001633018226 | BO73: 0.001692553221 | BP73: 0.001750592061 | BQ73: 0.001807166632 | BR73: 0.001862315032 | BS73: 0.001916082845 | BT73: 0.001968523926 | BU73: 0.002019701366 | BV73: 0.002069688214 | BW73: 0.002118557886 | BX73: 0.002166351911 | BY73: 0.002213108414 | BZ73: 0.002258871592 | CA73: 0.002303692362 | CB73: 0.002347628755 | CC73: 0.002390745751 | CD73: 0.002433115965 | CE73: 0.002474819385 | CF73: 0.002515943885 | CG73: 0.002556585212 | CH73: 0.002596847152
B74: 52 | C74: 3.968129313e-06 | D74: -0.06077214318 | E74: -0.07895163285 | F74: -0.09283853056 | G74: -0.1021176797 | H74: -0.1092752764 | I74: -0.1125571057 | J74: -0.1143421799 | K74: -0.1160235339 | L74: -0.1218018081 | M74: -0.1242998064 | N74: -0.1242124587 | O74: -0.1223960715 | P74: -0.1207832142 | Q74: -0.1214511374 | R74: -0.1199731782 | S74: -0.1179105436 | T74: -0.114779218 | U74: -0.1136619121 | V74: -0.1092849155 | W74: -0.108258042 | X74: -0.1024520397 | Y74: -0.09783623757 | Z74: -0.09350993661 | AA74: -0.08884777589 | AB74: -0.08708714769 | AC74: -0.08208814896 | AD74: -0.07615132269 | AE74: -0.07276524004 | AF74: -0.06601837207 | AG74: -0.06315732962 | AH74: -0.05763631922 | AI74: -0.05180867964 | AJ74: -0.04643833146 | AK74: -0.0402939567 | AL74: -0.03446165992 | AM74: -0.02810576897 | AN74: -0.02086554715 | AO74: -0.0139228787 | AP74: -0.007130346355 | AQ74: 0 | AS74: 0.0052 | AU74: 0.0002812544643 | AV74: 0.0003802160578 | AW74: 0.0004667337805 | AX74: 0.0005477354746 | AY74: 0.0006256696563 | AZ74: 0.0007016978572 | BA74: 0.0007764419893 | BB74: 0.0008502460879 | BC74: 0.0009232898617 | BD74: 0.0009956450843 | BE74: 0.001067306174 | BF74: 0.00113820788 | BG74: 0.001208259167 | BH74: 0.001277423307 | BI74: 0.00134565953 | BJ74: 0.001412904681 | BK74: 0.001479076429 | BL74: 0.001544075272 | BM74: 0.001607786044 | BN74: 0.001670079124 | BO74: 0.001730841213 | BP74: 0.001790071859 | BQ74: 0.00184780407 | BR74: 0.001904077142 | BS74: 0.001958937974 | BT74: 0.002012441859 | BU74: 0.002064653483 | BV74: 0.002115647649 | BW74: 0.002165499503 | BX74: 0.002214251638 | BY74: 0.00226194315 | BZ74: 0.002308619312 | CA74: 0.002354332229 | CB74: 0.002399141247 | CC74: 0.002443112777 | CD74: 0.002486320999 | CE74: 0.002528847598 | CF74: 0.002570782278 | CG74: 0.002612222756 | CH74: 0.002653274927
B75: 53 | C75: 3.968129313e-06 | D75: -0.06064298823 | E75: -0.07892865805 | F75: -0.09201595424 | G75: -0.1021088457 | H75: -0.1092505179 | I75: -0.1123855848 | J75: -0.114170497 | K75: -0.1156717507 | L75: -0.1216162871 | M75: -0.1236239602 | N75: -0.1239033897 | O75: -0.1219486308 | P75: -0.1206737049 | Q75: -0.1213443288 | R75: -0.1199258326 | S75: -0.1178762957 | T75: -0.1146754399 | U75: -0.1136224224 | V75: -0.1088228026 | W75: -0.1082375934 | X75: -0.102157395 | Y75: -0.09763787496 | Z75: -0.09349988278 | AA75: -0.08856607965 | AB75: -0.08648245867 | AC75: -0.08189139586 | AD75: -0.07612846756 | AE75: -0.07264607206 | AF75: -0.06598453714 | AG75: -0.06282536737 | AH75: -0.05752703512 | AI75: -0.05172868929 | AJ75: -0.04640769524 | AK75: -0.04018718671 | AL75: -0.03438203758 | AM75: -0.02803770909 | AN75: -0.02075945375 | AO75: -0.01389080035 | AP75: -0.007064946799 | AQ75: 0 | AS75: 0.0053 | AU75: 0.0002884627508 | AV75: 0.0003897542846 | AW75: 0.0004782674346 | AX75: 0.0005611086245 | AY75: 0.0006407901312 | AZ75: 0.0007185041493 | BA75: 0.0007948893848 | BB75: 0.0008702995644 | BC75: 0.0009449199371 | BD75: 0.001018825139 | BE75: 0.00109201058 | BF75: 0.0011644106 | BG75: 0.00123593313 | BH75: 0.001306541479 | BI75: 0.001376194765 | BJ75: 0.001444829196 | BK75: 0.001512361375 | BL75: 0.001578690357 | BM75: 0.001643699195 | BN75: 0.001707256185 | BO75: 0.001769246271 | BP75: 0.001829669502 | BQ75: 0.001888560016 | BR75: 0.001945958323 | BS75: 0.002001912642 | BT75: 0.002056479717 | BU75: 0.002109725831 | BV75: 0.002161727552 | BW75: 0.002212561764 | BX75: 0.002262272125 | BY75: 0.00231089871 | BZ75: 0.00235848787 | CA75: 0.002405092905 | CB75: 0.002450774476 | CC75: 0.002495600431 | CD75: 0.002539646518 | CE75: 0.002582996118 | CF75: 0.00262574077 | CG75: 0.00266798016 | CH75: 0.002709822297
B76: 54 | C76: 3.968129313e-06 | D76: -0.0604410134 | E76: -0.07877545349 | F76: -0.09193500722 | G76: -0.1019624205 | H76: -0.1082628269 | I76: -0.1123444857 | J76: -0.1122786258 | K76: -0.1153779437 | L76: -0.1215111039 | M76: -0.1235537477 | N76: -0.1231344721 | O76: -0.1216724579 | P76: -0.1206330121 | Q76: -0.121312373 | R76: -0.1197144225 | S76: -0.1177007142 | T76: -0.1145714279 | U76: -0.1135165657 | V76: -0.1086744648 | W76: -0.108075067 | X76: -0.10188443 | Y76: -0.09762063134 | Z76: -0.09348416993 | AA76: -0.0884359707 | AB76: -0.08632378297 | AC76: -0.08140818461 | AD76: -0.0760984686 | AE76: -0.07259637368 | AF76: -0.06596960094 | AG76: -0.06263433405 | AH76: -0.05730925312 | AI76: -0.05149549233 | AJ76: -0.04628302625 | AK76: -0.04016287156 | AL76: -0.03437713098 | AM76: -0.02799274024 | AN76: -0.02068969398 | AO76: -0.01388352548 | AP76: -0.00706399542 | AQ76: 0 | AS76: 0.0054 | AU76: 0.0002957185031 | AV76: 0.0003993499645 | AW76: 0.0004898660797 | AX76: 0.0005745530215 | AY76: 0.0006559872583 | AZ76: 0.0007353918644 | BA76: 0.0008134224665 | BB76: 0.0008904425642 | BC76: 0.000966643003 | BD76: 0.001042101323 | BE76: 0.001116813955 | BF76: 0.001190714856 | BG76: 0.001263710943 | BH76: 0.001335765586 | BI76: 0.001406837803 | BJ76: 0.001476863186 | BK76: 0.001545757286 | BL76: 0.001613417725 | BM76: 0.001679725789 | BN76: 0.001744547703 | BO76: 0.001807766665 | BP76: 0.001869383237 | BQ76: 0.001929432699 | BR76: 0.001987956784 | BS76: 0.002045005041 | BT76: 0.002100635674 | BU76: 0.002154916572 | BV76: 0.002207926074 | BW76: 0.002259742806 | BX76: 0.0023104115 | BY76: 0.002359973212 | BZ76: 0.002408475377 | CA76: 0.002455972493 | CB76: 0.002502526539 | CC76: 0.002548206805 | CD76: 0.002593090608 | CE76: 0.002637263028 | CF76: 0.002680817439 | CG76: 0.002723855502 | CH76: 0.002766487334
B77: 55 | C77: 3.968129313e-06 | D77: -0.06043387831 | E77: -0.07877260466 | F77: -0.09167916235 | G77: -0.1018059612 | H77: -0.1076454789 | I77: -0.1122517118 | J77: -0.1119729846 | K77: -0.115047445 | L77: -0.1212684745 | M77: -0.1231886579 | N77: -0.1229068059 | O77: -0.1214345555 | P77: -0.1203201444 | Q77: -0.1212166731 | R77: -0.1192941006 | S77: -0.1171661978 | T77: -0.114496433 | U77: -0.1128564213 | V77: -0.1083317483 | W77: -0.1077012791 | X77: -0.101629318 | Y77: -0.09759844502 | Z77: -0.09333123176 | AA77: -0.08820652419 | AB77: -0.08628765513 | AC77: -0.08135649606 | AD77: -0.07608827763 | AE77: -0.07230419137 | AF77: -0.065918256 | AG77: -0.06236399631 | AH77: -0.05730910175 | AI77: -0.05148723384 | AJ77: -0.04614917611 | AK77: -0.04006066134 | AL77: -0.03432272847 | AM77: -0.02796052767 | AN77: -0.02068582179 | AO77: -0.01388190555 | AP77: -0.007056447609 | AQ77: 0 | AS77: 0.0055 | AU77: 0.000303021223 | AV77: 0.0004090024608 | AW77: 0.0005015289689 | AX77: 0.0005880678235 | AY77: 0.0006712601103 | AZ77: 0.0007523599976 | BA77: 0.0008320401578 | BB77: 0.0009106739447 | BC77: 0.0009884578555 | BD77: 0.001065472374 | BE77: 0.001141714985 | BF77: 0.001217119285 | BG77: 0.001291591198 | BH77: 0.001365094174 | BI77: 0.001437587152 | BJ77: 0.001509005123 | BK77: 0.001579262598 | BL77: 0.001648255782 | BM77: 0.001715864204 | BN77: 0.00178195203 | BO77: 0.001846400723 | BP77: 0.001909211369 | BQ77: 0.001970420404 | BR77: 0.002030070792 | BS77: 0.002088213423 | BT77: 0.002144907969 | BU77: 0.002200223931 | BV77: 0.002254241427 | BW77: 0.002307040832 | BX77: 0.002358667955 | BY77: 0.00240916484 | BZ77: 0.002458580008 | CA77: 0.00250696916 | CB77: 0.002554395599 | CC77: 0.002600930055 | CD77: 0.002646651421 | CE77: 0.002691646476 | CF77: 0.002736010432 | CG77: 0.002779846923 | CH77: 0.00282326818
B78: 56 | C78: 3.968129313e-06 | D78: -0.06042358011 | E78: -0.07873808364 | F78: -0.09155761296 | G78: -0.1017707767 | H78: -0.1073918216 | I78: -0.1116823339 | J78: -0.1117897377 | K78: -0.1150129167 | L78: -0.1211327674 | M78: -0.1230938575 | N78: -0.122828205 | O78: -0.1212723477 | P78: -0.1203035736 | Q78: -0.1211599488 | R78: -0.1191634928 | S78: -0.1168003496 | T78: -0.1140347813 | U78: -0.1127016026 | V78: -0.1082971038 | W78: -0.1062984803 | X78: -0.101555097 | Y78: -0.09742951485 | Z78: -0.09321951899 | AA78: -0.08802917335 | AB78: -0.0862624982 | AC78: -0.08123484068 | AD78: -0.07586644453 | AE78: -0.07212771222 | AF78: -0.06588678467 | AG78: -0.06234057421 | AH78: -0.05717523045 | AI78: -0.05134070944 | AJ78: -0.04614429246 | AK78: -0.04002515669 | AL78: -0.03431142085 | AM78: -0.02788968007 | AN78: -0.02056422983 | AO78: -0.01385457719 | AP78: -0.007041503633 | AQ78: 0 | AS78: 0.0056 | AU78: 0.0003103704276 | AV78: 0.0004187111565 | AW78: 0.0005132553783 | AX78: 0.0006016522143 | AY78: 0.0006866077888 | AZ78: 0.0007694075753 | BA78: 0.0008507414164 | BB78: 0.0009309925994 | BC78: 0.001010363329 | BD78: 0.001088937072 | BE78: 0.001166712398 | BF78: 0.001243622566 | BG78: 0.001319572529 | BH78: 0.001394525837 | BI78: 0.001468441369 | BJ78: 0.001541253528 | BK78: 0.001612875802 | BL78: 0.001683202988 | BM78: 0.001752112872 | BN78: 0.001819467573 | BO78: 0.001885146828 | BP78: 0.001949152263 | BQ78: 0.002011521476 | BR78: 0.002072298675 | BS78: 0.0021315361 | BT78: 0.002189294898 | BU78: 0.002245646193 | BV78: 0.002300671884 | BW78: 0.002354454103 | BX78: 0.002407039742 | BY78: 0.002458471837 | BZ78: 0.0025088 | CA78: 0.002558081139 | CB78: 0.002606379881 | CC78: 0.002653768402 | CD78: 0.002700327172 | CE78: 0.002746144673 | CF78: 0.002791317955 | CG78: 0.002835952628 | CH78: 0.002880163036
B79: 57 | C79: 3.968129313e-06 | D79: -0.06016238673 | E79: -0.07846609042 | F79: -0.0914271058 | G79: -0.1015152616 | H79: -0.1066883489 | I79: -0.1114558645 | J79: -0.1114367446 | K79: -0.1149742241 | L79: -0.1210719249 | M79: -0.1230676232 | N79: -0.1227681481 | O79: -0.121079357 | P79: -0.1197829312 | Q79: -0.1209350159 | R79: -0.1189013106 | S79: -0.1167936535 | T79: -0.1136465925 | U79: -0.1125851411 | V79: -0.1081034846 | W79: -0.1060710225 | X79: -0.1014540887 | Y79: -0.09727585807 | Z79: -0.09321786368 | AA79: -0.08797235245 | AB79: -0.08619179601 | AC79: -0.08092476229 | AD79: -0.07569270888 | AE79: -0.07184088784 | AF79: -0.06575303342 | AG79: -0.06221179749 | AH79: -0.05711592501 | AI79: -0.05116308662 | AJ79: -0.0460557107 | AK79: -0.04000154433 | AL79: -0.03429621256 | AM79: -0.02788385606 | AN79: -0.02054208725 | AO79: -0.01377797366 | AP79: -0.007036756037 | AQ79: 0 | AS79: 0.0057 | AU79: 0.000317765648 | AV79: 0.0004284754528 | AW79: 0.0005250446062 | AX79: 0.0006153054029 | AY79: 0.0007020294228 | AZ79: 0.0007865336541 | BA79: 0.0008695252318 | BB79: 0.0009513974562 | BC79: 0.001032358293 | BD79: 0.001112494234 | BE79: 0.001191804961 | BF79: 0.001270223421 | BG79: 0.001347653616 | BH79: 0.001424059216 | BI79: 0.001499399057 | BJ79: 0.00157360697 | BK79: 0.001646595432 | BL79: 0.00171825785 | BM79: 0.001788470275 | BN79: 0.00185709279 | BO79: 0.001924003417 | BP79: 0.001989204333 | BQ79: 0.002052734311 | BR79: 0.002114638813 | BS79: 0.002174971438 | BT79: 0.002233794814 | BU79: 0.002291181696 | BV79: 0.002347215774 | BW79: 0.002401980939 | BX79: 0.002455525172 | BY79: 0.002507892506 | BZ79: 0.002559133649 | CA79: 0.002609306716 | CB79: 0.002658477666 | CC79: 0.002706720124 | CD79: 0.002754116135 | CE79: 0.00280075589 | CF79: 0.002846738277 | CG79: 0.002892170883 | CH79: 0.002937170167
B80: 58 | C80: 3.968129313e-06 | D80: -0.0601377605 | E80: -0.07802624688 | F80: -0.09129629181 | G80: -0.1012439533 | H80: -0.1062598695 | I80: -0.1113244833 | J80: -0.1112568663 | K80: -0.1149087408 | L80: -0.1205534272 | M80: -0.1228267718 | N80: -0.1226191733 | O80: -0.1204509406 | P80: -0.1195939521 | Q80: -0.1206497327 | R80: -0.1184736743 | S80: -0.1167607502 | T80: -0.1132822185 | U80: -0.1113773248 | V80: -0.1079367926 | W80: -0.1060610042 | X80: -0.1013881533 | Y80: -0.09718215211 | Z80: -0.09314348179 | AA80: -0.08771304876 | AB80: -0.08618948905 | AC80: -0.08091670485 | AD80: -0.07565080505 | AE80: -0.07126316464 | AF80: -0.06574231055 | AG80: -0.06218013067 | AH80: -0.05709902739 | AI80: -0.05114123329 | AJ80: -0.04597809595 | AK80: -0.03996503409 | AL80: -0.03409500444 | AM80: -0.02763375312 | AN80: -0.02051996434 | AO80: -0.01377479455 | AP80: -0.007033462443 | AQ80: 0 | AS80: 0.0058 | AU80: 0.0003252064292 | AV80: 0.0004382947686 | AW80: 0.0005368959712 | AX80: 0.0006290266217 | AY80: 0.0007175241677 | AZ80: 0.0008037373191 | BA80: 0.0008883906247 | BB80: 0.0009718874759 | BC80: 0.001054441654 | BD80: 0.001136142713 | BE80: 0.001216991479 | BF80: 0.001296920611 | BG80: 0.001375833178 | BH80: 0.001453692991 | BI80: 0.00153045886 | BJ80: 0.001606064061 | BK80: 0.001680420074 | BL80: 0.001753418924 | BM80: 0.001824934943 | BN80: 0.001894826186 | BO80: 0.001962968975 | BP80: 0.002029366045 | BQ80: 0.002094057359 | BR80: 0.00215708964 | BS80: 0.002218517854 | BT80: 0.002278406122 | BU80: 0.002336828834 | BV80: 0.002393871479 | BW80: 0.002449619713 | BX80: 0.00250412261 | BY80: 0.002557425204 | BZ80: 0.002609579304 | CA80: 0.002660644236 | CB80: 0.002710687296 | CC80: 0.002759783554 | CD80: 0.002808016642 | CE80: 0.002855478453 | CF80: 0.002902269721 | CG80: 0.002948500009 | CH80: 0.002994287892
B81: 59 | C81: 3.968129313e-06 | D81: -0.06010939125 | E81: -0.0779890464 | F81: -0.09117242814 | G81: -0.1008792527 | H81: -0.106020365 | I81: -0.1110785029 | J81: -0.1110889642 | K81: -0.1143295303 | L81: -0.120152487 | M81: -0.1215181651 | N81: -0.1225699951 | O81: -0.1200767126 | P81: -0.1191273323 | Q81: -0.1205267092 | R81: -0.1178071807 | S81: -0.1164709255 | T81: -0.112608994 | U81: -0.1109968823 | V81: -0.1073728861 | W81: -0.1056942099 | X81: -0.1012816813 | Y81: -0.09716494282 | Z81: -0.092880034 | AA81: -0.08769726635 | AB81: -0.08616305466 | AC81: -0.0809132479 | AD81: -0.07564299132 | AE81: -0.0711543302 | AF81: -0.06555611507 | AG81: -0.06216305224 | AH81: -0.05692185137 | AI81: -0.05106718455 | AJ81: -0.04592358127 | AK81: -0.03995878269 | AL81: -0.03402251134 | AM81: -0.02751263978 | AN81: -0.02044538198 | AO81: -0.01377007688 | AP81: -0.007022150802 | AQ81: 0 | AS81: 0.0059 | AU81: 0.000332692329 | AV81: 0.0004481685398 | AW81: 0.0005488088123 | AX81: 0.000642815126 | AY81: 0.0007330912038 | AZ81: 0.0008210176825 | BA81: 0.0009073366449 | BB81: 0.0009924616506 | BC81: 0.00107661235 | BD81: 0.001159881398 | BE81: 0.001242270796 | BF81: 0.001323712935 | BG81: 0.001404109975 | BH81: 0.001483425886 | BI81: 0.001561619469 | BJ81: 0.00163862346 | BK81: 0.001714348355 | BL81: 0.001788684811 | BM81: 0.001861505452 | BN81: 0.001932666316 | BO81: 0.002002042035 | BP81: 0.002069635915 | BQ81: 0.002135489118 | BR81: 0.002199649637 | BS81: 0.002262173817 | BT81: 0.002323127278 | BU81: 0.002382586053 | BV81: 0.002440637434 | BW81: 0.002497368849 | BX81: 0.002552830472 | BY81: 0.002607068341 | BZ81: 0.002660135368 | CA81: 0.002712092098 | CB81: 0.00276300716 | CC81: 0.002812957082 | CD81: 0.002862027075 | CE81: 0.002910310744 | CF81: 0.002957910666 | CG81: 0.003004938383 | CH81: 0.003051514585
B82: 60 | C82: 3.968129313e-06 | D82: -0.05984197705 | E82: -0.07792397314 | F82: -0.0905600981 | G82: -0.1008485622 | H82: -0.1055656913 | I82: -0.1107897747 | J82: -0.1110033377 | K82: -0.1142891051 | L82: -0.1194647674 | M82: -0.1206810617 | N82: -0.1224260869 | O82: -0.1199724184 | P82: -0.1190661538 | Q82: -0.1204680882 | R82: -0.1177068402 | S82: -0.1151110039 | T82: -0.112081005 | U82: -0.110991354 | V82: -0.1071569652 | W82: -0.1056566541 | X82: -0.1011627324 | Y82: -0.09706449783 | Z82: -0.09239850815 | AA82: -0.08767173635 | AB82: -0.08566554355 | AC82: -0.08089414172 | AD82: -0.07554114894 | AE82: -0.07114926182 | AF82: -0.06538126017 | AG82: -0.06215941509 | AH82: -0.05689759239 | AI82: -0.0509363525 | AJ82: -0.04577645813 | AK82: -0.0398593378 | AL82: -0.03391444965 | AM82: -0.027498382 | AN82: -0.02041313361 | AO82: -0.0137359208 | AP82: -0.00701546473 | AQ82: 0 | AS82: 0.006 | AU82: 0.0003402229179 | AV82: 0.0004580962182 | AW82: 0.0005607824872 | AX82: 0.0006566701923 | AY82: 0.0007487297354 | AZ82: 0.0008383738828 | BA82: 0.0009263623701 | BB82: 0.001013119002 | BC82: 0.001098869351 | BD82: 0.001183709212 | BE82: 0.001267641787 | BF82: 0.001350599228 | BG82: 0.001432482804 | BH82: 0.00151325666 | BI82: 0.00159287961 | BJ82: 0.001671283861 | BK82: 0.001748378942 | BL82: 0.001824054153 | BM82: 0.001898180421 | BN82: 0.001970611778 | BO82: 0.002041221175 | BP82: 0.002110012503 | BQ82: 0.00217702813 | BR82: 0.002242317334 | BS82: 0.002305937844 | BT82: 0.002367956786 | BU82: 0.002428451845 | BV82: 0.002487512121 | BW82: 0.002545226823 | BX82: 0.002601647225 | BY82: 0.002656820375 | BZ82: 0.002710800295 | CA82: 0.002763648748 | CB82: 0.002815435704 | CC82: 0.002866239145 | CD82: 0.00291614587 | CE82: 0.002965251195 | CF82: 0.003013659542 | CG82: 0.003061484432 | CH82: 0.003108848673
B83: 61 | C83: 3.968129313e-06 | D83: -0.05965290543 | E83: -0.07761980212 | F83: -0.09054005164 | G83: -0.100671137 | H83: -0.1047250325 | I83: -0.1095422173 | J83: -0.1107457762 | K83: -0.1141012135 | L83: -0.1194556361 | M83: -0.120281128 | N83: -0.1223552686 | O83: -0.1197606006 | P83: -0.1185979771 | Q83: -0.1204078027 | R83: -0.1170962896 | S83: -0.1142213732 | T83: -0.1120631116 | U83: -0.1109755 | V83: -0.1070629581 | W83: -0.1052164431 | X83: -0.1010528743 | Y83: -0.09680186506 | Z83: -0.09224078482 | AA83: -0.08740209123 | AB83: -0.08562016822 | AC83: -0.08060095162 | AD83: -0.07540563756 | AE83: -0.07108336972 | AF83: -0.06531782195 | AG83: -0.06197979099 | AH83: -0.05666132694 | AI83: -0.05087869396 | AJ83: -0.04576029256 | AK83: -0.0398212718 | AL83: -0.03385231467 | AM83: -0.02732841389 | AN83: -0.02038909341 | AO83: -0.01373296345 | AP83: -0.00701139499 | AQ83: 0 | AS83: 0.0061 | AU83: 0.0003477977779 | AV83: 0.0004680772709 | AW83: 0.0005728163718 | AX83: 0.0006705911178 | AY83: 0.0007644389893 | AZ83: 0.0008558050829 | BA83: 0.0009454669047 | BB83: 0.00103385858 | BC83: 0.001121211656 | BD83: 0.001207625106 | BE83: 0.001293103363 | BF83: 0.001377578361 | BG83: 0.001460950495 | BH83: 0.001543184112 | BI83: 0.001624238048 | BJ83: 0.001704044003 | BK83: 0.001782510546 | BL83: 0.001859525636 | BM83: 0.001934958511 | BN83: 0.002008661211 | BO83: 0.002080505016 | BP83: 0.002150494411 | BQ83: 0.002218672984 | BR83: 0.002285091304 | BS83: 0.002349808494 | BT83: 0.002412893195 | BU83: 0.002474424748 | BV83: 0.002534494072 | BW83: 0.002593192155 | BX83: 0.002650571383 | BY83: 0.002706679815 | BZ83: 0.002761572585 | CA83: 0.002815312682 | CB83: 0.002867971416 | CC83: 0.00291962823 | CD83: 0.002970371511 | CE83: 0.003020298286 | CF83: 0.003069514826 | CG83: 0.003118136632 | CH83: 0.00316628863
B84: 62 | C84: 3.968129313e-06 | D84: -0.05947385849 | E84: -0.07750936414 | F84: -0.09047319534 | G84: -0.100641882 | H84: -0.1044099897 | I84: -0.1094888964 | J84: -0.1103418305 | K84: -0.113655788 | L84: -0.1191719551 | M84: -0.119937207 | N84: -0.1223283845 | O84: -0.1195520755 | P84: -0.1184727327 | Q84: -0.1195085522 | R84: -0.1170376755 | S84: -0.114111238 | T84: -0.1119297842 | U84: -0.1104409318 | V84: -0.1070418952 | W84: -0.1051573683 | X84: -0.1010278901 | Y84: -0.09649905942 | Z84: -0.09211507821 | AA84: -0.08711620282 | AB84: -0.0853610091 | AC84: -0.08023430568 | AD84: -0.07531022514 | AE84: -0.07104476256 | AF84: -0.06527497202 | AG84: -0.06196143444 | AH84: -0.05649050068 | AI84: -0.05083888378 | AJ84: -0.04557345576 | AK84: -0.03976065468 | AL84: -0.03382412388 | AM84: -0.02729063798 | AN84: -0.02036824347 | AO84: -0.01368990519 | AP84: -0.006986113541 | AQ84: 0 | AS84: 0.0062 | AU84: 0.0003554165025 | AV84: 0.0004781111798 | AW84: 0.0005849098593 | AX84: 0.0006845772193 | AY84: 0.0007802182142 | AZ84: 0.0008733104697 | BA84: 0.0009646493787 | BB84: 0.001054679463 | BC84: 0.001143638295 | BD84: 0.001231628064 | BE84: 0.001318654465 | BF84: 0.001404649234 | BG84: 0.001489511917 | BH84: 0.001573207074 | BI84: 0.001655693586 | BJ84: 0.001736902657 | BK84: 0.001816741914 | BL84: 0.001895097981 | BM84: 0.001971838423 | BN84: 0.002046813296 | BO84: 0.00211989222 | BP84: 0.002191080286 | BQ84: 0.002260422311 | BR84: 0.002327970164 | BS84: 0.002393784372 | BT84: 0.002457935097 | BU84: 0.002520503346 | BV84: 0.002581581858 | BW84: 0.002641263412 | BX84: 0.002699601503 | BY84: 0.002756645211 | BZ84: 0.002812450785 | CA84: 0.002867082441 | CB84: 0.002920612835 | CC84: 0.002973122871 | CD84: 0.003024702527 | CE84: 0.003075450545 | CF84: 0.003125475043 | CG84: 0.003174893507 | CH84: 0.003223832978
B85: 63 | C85: 3.968129313e-06 | D85: -0.05946849228 | E85: -0.07739669966 | F85: -0.09001629964 | G85: -0.1005728966 | H85: -0.1040173535 | I85: -0.1093128421 | J85: -0.1101292969 | K85: -0.1136209928 | L85: -0.1190303183 | M85: -0.1196600938 | N85: -0.1213653665 | O85: -0.1193806792 | P85: -0.1178795982 | Q85: -0.1193538395 | R85: -0.1170193556 | S85: -0.1139692363 | T85: -0.1118588082 | U85: -0.110415364 | V85: -0.1068497297 | W85: -0.104901074 | X85: -0.10091598 | Y85: -0.09632104407 | Z85: -0.0921139739 | AA85: -0.08701098953 | AB85: -0.0851752398 | AC85: -0.08011880826 | AD85: -0.07524786975 | AE85: -0.0709641775 | AF85: -0.06501527146 | AG85: -0.06173954411 | AH85: -0.0561129495 | AI85: -0.05071208992 | AJ85: -0.04533469041 | AK85: -0.03970667804 | AL85: -0.03381374864 | AM85: -0.02724660937 | AN85: -0.02033290386 | AO85: -0.01365799132 | AP85: -0.006939282826 | AQ85: 0 | AS85: 0.0063 | AU85: 0.0003630786963 | AV85: 0.0004881974405 | AW85: 0.0005970623594 | AX85: 0.0006986278325 | AY85: 0.0007960666797 | AZ85: 0.0008908892525 | BA85: 0.000983908946 | BB85: 0.001075580753 | BC85: 0.001166148322 | BD85: 0.001255717099 | BE85: 0.001344294064 | BF85: 0.001431810782 | BG85: 0.001518165966 | BH85: 0.001603324412 | BI85: 0.00168724506 | BJ85: 0.001769858633 | BK85: 0.001851071827 | BL85: 0.001930769948 | BM85: 0.002008818895 | BN85: 0.002085066752 | BO85: 0.002159381488 | BP85: 0.002231768812 | BQ85: 0.00230227478 | BR85: 0.002370952572 | BS85: 0.002437864124 | BT85: 0.002503081129 | BU85: 0.002566686264 | BV85: 0.002628774097 | BW85: 0.0026894392 | BX85: 0.002748736187 | BY85: 0.002806715159 | BZ85: 0.002863433485 | CA85: 0.00291895661 | CB85: 0.002973358541 | CC85: 0.003026721645 | CD85: 0.003079137492 | CE85: 0.003130706543 | CF85: 0.003181538763 | CG85: 0.003231753623 | CH85: 0.003281480283
B86: 64 | C86: 3.968129313e-06 | D86: -0.05943666708 | E86: -0.07729629393 | F86: -0.08986850308 | G86: -0.100556514 | H86: -0.1039321801 | I86: -0.1089536128 | J86: -0.1098564971 | K86: -0.1135789907 | L86: -0.1183520217 | M86: -0.1196236663 | N86: -0.1212599662 | O86: -0.1187825704 | P86: -0.1176147053 | Q86: -0.119332835 | R86: -0.1166569867 | S86: -0.1137079737 | T86: -0.1118019597 | U86: -0.1100491389 | V86: -0.106587629 | W86: -0.1048195198 | X86: -0.1008526855 | Y86: -0.09621314276 | Z86: -0.09177798958 | AA86: -0.0869600377 | AB86: -0.08516902712 | AC86: -0.08008350207 | AD86: -0.07519331598 | AE86: -0.07080645604 | AF86: -0.06495724943 | AG86: -0.06171504033 | AH86: -0.05586956746 | AI86: -0.05067634501 | AJ86: -0.04533445665 | AK86: -0.03958082738 | AL86: -0.03370708371 | AM86: -0.02723709742 | AN86: -0.0201556073 | AO86: -0.01365723545 | AP86: -0.006937192516 | AQ86: 0 | AS86: 0.0064 | AU86: 0.000370783974 | AV86: 0.0004983355625 | AW86: 0.0006092732979 | AX86: 0.000712742311 | AY86: 0.0008119836751 | AZ86: 0.0009085406622 | BA86: 0.001003244784 | BB86: 0.001096561578 | BC86: 0.001188740822 | BD86: 0.001279891249 | BE86: 0.00137002116 | BF86: 0.001459061969 | BG86: 0.001546911573 | BH86: 0.001633535025 | BI86: 0.00171889134 | BJ86: 0.001802910774 | BK86: 0.001885499105 | BL86: 0.001966540333 | BM86: 0.002045898702 | BN86: 0.002123420335 | BO86: 0.002198971559 | BP86: 0.002272558713 | BQ86: 0.002344229102 | BR86: 0.002414037223 | BS86: 0.002482046433 | BT86: 0.002548329963 | BU86: 0.002612972166 | BV86: 0.002676069445 | BW86: 0.00273771817 | BX86: 0.002797974077 | BY86: 0.002856888294 | BZ86: 0.002914519314 | CA86: 0.002970933816 | CB86: 0.003026207157 | CC86: 0.00308042317 | CD86: 0.003133675023 | CE86: 0.003186064892 | CF86: 0.003237704598 | CG86: 0.003288715591 | CH86: 0.003339229154
B87: 65 | C87: 3.968129313e-06 | D87: -0.05936023163 | E87: -0.07727226307 | F87: -0.0898587092 | G87: -0.1001392725 | H87: -0.1036017885 | I87: -0.1083617485 | J87: -0.1095780818 | K87: -0.1134987933 | L87: -0.1182548138 | M87: -0.1194903393 | N87: -0.1211456418 | O87: -0.1187282526 | P87: -0.1172497107 | Q87: -0.1191318596 | R87: -0.1165982229 | S87: -0.113340133 | T87: -0.111728169 | U87: -0.1100170524 | V87: -0.1065088356 | W87: -0.1045736059 | X87: -0.1007293859 | Y87: -0.095950304 | Z87: -0.0917398731 | AA87: -0.08694107382 | AB87: -0.08469873503 | AC87: -0.080043589 | AD87: -0.07507903245 | AE87: -0.07032598882 | AF87: -0.06493574988 | AG87: -0.06161639619 | AH87: -0.05580316572 | AI87: -0.05064972988 | AJ87: -0.04531788811 | AK87: -0.03950990598 | AL87: -0.03352440864 | AM87: -0.02700226157 | AN87: -0.02015253213 | AO87: -0.01364377702 | AP87: -0.006932624963 | AQ87: 0 | AS87: 0.0065 | AU87: =NORMSDIST(-(Correlation*NORMSINV(D$16)-NORMSINV($AS87))/CorrTerm) -> 0.0003785319603 | AV87: =NORMSDIST(-(Correlation*NORMSINV(E$16)-NORMSINV($AS87))/CorrTerm) -> 0.0005085250677 | AW87: =NORMSDIST(-(Correlation*NORMSINV(F$16)-NORMSINV($AS87))/CorrTerm) -> 0.0006215421154 | AX87: =NORMSDIST(-(Correlation*NORMSINV(G$16)-NORMSINV($AS87))/CorrTerm) -> 0.0007269200256 | AY87: =NORMSDIST(-(Correlation*NORMSINV(H$16)-NORMSINV($AS87))/CorrTerm) -> 0.0008279685087 | AZ87: =NORMSDIST(-(Correlation*NORMSINV(I$16)-NORMSINV($AS87))/CorrTerm) -> 0.0009262639507 | BA87: =NORMSDIST(-(Correlation*NORMSINV(J$16)-NORMSINV($AS87))/CorrTerm) -> 0.001022656093 | BB87: =NORMSDIST(-(Correlation*NORMSINV(K$16)-NORMSINV($AS87))/CorrTerm) -> 0.001117621091 | BC87: =NORMSDIST(-(Correlation*NORMSINV(L$16)-NORMSINV($AS87))/CorrTerm) -> 0.0012114149 | BD87: =NORMSDIST(-(Correlation*NORMSINV(M$16)-NORMSINV($AS87))/CorrTerm) -> 0.001304149582 | BE87: =NORMSDIST(-(Correlation*NORMSINV(N$16)-NORMSINV($AS87))/CorrTerm) -> 0.001395834782 | BF87: =NORMSDIST(-(Correlation*NORMSINV(O$16)-NORMSINV($AS87))/CorrTerm) -> 0.001486401786 | BG87: =NORMSDIST(-(Correlation*NORMSINV(P$16)-NORMSINV($AS87))/CorrTerm) -> 0.001575747697 | BH87: =NORMSDIST(-(Correlation*NORMSINV(Q$16)-NORMSINV($AS87))/CorrTerm) -> 0.001663837841 | BI87: =NORMSDIST(-(Correlation*NORMSINV(R$16)-NORMSINV($AS87))/CorrTerm) -> 0.001750631325 | BJ87: =NORMSDIST(-(Correlation*NORMSINV(S$16)-NORMSINV($AS87))/CorrTerm) -> 0.001836057953 | BK87: =NORMSDIST(-(Correlation*NORMSINV(T$16)-NORMSINV($AS87))/CorrTerm) -> 0.001920022599 | BL87: =NORMSDIST(-(Correlation*NORMSINV(U$16)-NORMSINV($AS87))/CorrTerm) -> 0.002002407964 | BM87: =NORMSDIST(-(Correlation*NORMSINV(V$16)-NORMSINV($AS87))/CorrTerm) -> 0.002083076654 | BN87: =NORMSDIST(-(Correlation*NORMSINV(W$16)-NORMSINV($AS87))/CorrTerm) -> 0.002161872835 | BO87: =NORMSDIST(-(Correlation*NORMSINV(X$16)-NORMSINV($AS87))/CorrTerm) -> 0.002238661208 | BP87: =NORMSDIST(-(Correlation*NORMSINV(Y$16)-NORMSINV($AS87))/CorrTerm) -> 0.002313448748 | BQ87: =NORMSDIST(-(Correlation*NORMSINV(Z$16)-NORMSINV($AS87))/CorrTerm) -> 0.00238628402 | BR87: =NORMSDIST(-(Correlation*NORMSINV(AA$16)-NORMSINV($AS87))/CorrTerm) -> 0.002457222851 | BS87: =NORMSDIST(-(Correlation*NORMSINV(AB$16)-NORMSINV($AS87))/CorrTerm) -> 0.002526330023 | BT87: =NORMSDIST(-(Correlation*NORMSINV(AC$16)-NORMSINV($AS87))/CorrTerm) -> 0.002593680312 | BU87: =NORMSDIST(-(Correlation*NORMSINV(AD$16)-NORMSINV($AS87))/CorrTerm) -> 0.002659359755 | BV87: =NORMSDIST(-(Correlation*NORMSINV(AE$16)-NORMSINV($AS87))/CorrTerm) -> 0.002723466596 | BW87: =NORMSDIST(-(Correlation*NORMSINV(AF$16)-NORMSINV($AS87))/CorrTerm) -> 0.002786099009 | BX87: =NORMSDIST(-(Correlation*NORMSINV(AG$16)-NORMSINV($AS87))/CorrTerm) -> 0.002847313855 | BY87: =NORMSDIST(-(Correlation*NORMSINV(AH$16)-NORMSINV($AS87))/CorrTerm) -> 0.002907163294 | BZ87: =NORMSDIST(-(Correlation*NORMSINV(AI$16)-NORMSINV($AS87))/CorrTerm) -> 0.002965706945 | CA87: =NORMSDIST(-(Correlation*NORMSINV(AJ$16)-NORMSINV($AS87))/CorrTerm) -> 0.003023012724 | CB87: =NORMSDIST(-(Correlation*NORMSINV(AK$16)-NORMSINV($AS87))/CorrTerm) -> 0.003079157343 | CC87: =NORMSDIST(-(Correlation*NORMSINV(AL$16)-NORMSINV($AS87))/CorrTerm) -> 0.003134226106 | CD87: =NORMSDIST(-(Correlation*NORMSINV(AM$16)-NORMSINV($AS87))/CorrTerm) -> 0.003188313775 | CE87: =NORMSDIST(-(Correlation*NORMSINV(AN$16)-NORMSINV($AS87))/CorrTerm) -> 0.003241524248 | CF87: =NORMSDIST(-(Correlation*NORMSINV(AO$16)-NORMSINV($AS87))/CorrTerm) -> 0.003293971198 | CG87: =NORMSDIST(-(Correlation*NORMSINV(AP$16)-NORMSINV($AS87))/CorrTerm) -> 0.003345778061 | CH87: =NORMSDIST(-(Correlation*NORMSINV(AQ$16)-NORMSINV($AS87))/CorrTerm) -> 0.00339707824
B88: 66 | C88: 3.968129313e-06 | D88: -0.05903579524 | E88: -0.07708811975 | F88: -0.08944187149 | G88: -0.09928322065 | H88: -0.1031644748 | I88: -0.1082242549 | J88: -0.1094140628 | K88: -0.1131916813 | L88: -0.1181031366 | M88: -0.1194882425 | N88: -0.1207719569 | O88: -0.1184854673 | P88: -0.1170889783 | Q88: -0.1188887183 | R88: -0.11643672 | S88: -0.1130412596 | T88: -0.1114141901 | U88: -0.1097471579 | V88: -0.1064696875 | W88: -0.1044147266 | X88: -0.1000303221 | Y88: -0.09591352644 | Z88: -0.09171015134 | AA88: -0.08686574972 | AB88: -0.08437804091 | AC88: -0.07989328192 | AD88: -0.07502777285 | AE88: -0.07024090547 | AF88: -0.06485787299 | AG88: -0.06156522578 | AH88: -0.05574227693 | AI88: -0.05048523998 | AJ88: -0.0450100659 | AK88: -0.03946420182 | AL88: -0.03346753165 | AM88: -0.02687775075 | AN88: -0.0201368953 | AO88: -0.01363522322 | AP88: -0.006931309079 | AQ88: 0 | AS88: =B88/10000 -> 0.0066 | AU88: 0.0003863222896 | AV88: 0.0005187654907 | AW88: 0.0006338682673 | AX88: 0.0007411603635 | AY88: 0.0008440205072 | AZ88: 0.0009440583895 | BA88: 0.001042142094 | BB88: 0.001138758465 | BC88: 0.001234169687 | BD88: 0.001328491187 | BE88: 0.001421733982 | BF88: 0.001513829253 | BG88: 0.001604673326 | BH88: 0.001694231818 | BI88: 0.001782463947 | BJ88: 0.001869299077 | BK88: 0.00195464119 | BL88: 0.002038371704 | BM88: 0.002120351591 | BN88: 0.002200423077 | BO88: 0.002278449242 | BP88: 0.002354437711 | BQ88: 0.002428438317 | BR88: 0.002500508225 | BS88: 0.002570713651 | BT88: 0.002639130924 | BU88: 0.002705847772 | BV88: 0.002770964283 | BW88: 0.002834580442 | BX88: 0.00289675424 | BY88: 0.002957538871 | BZ88: 0.003016995085 | CA88: 0.003075192039 | CB88: 0.003132207802 | CC88: 0.003188129149 | CD88: 0.003243052443 | CE88: 0.003297083303 | CF88: 0.003350337255 | CG88: 0.003402939723 | CH88: 0.00345502623
B89: =B88+1 -> 67 | C89: 3.968129313e-06 | D89: -0.05894659934 | E89: -0.07688075383 | F89: -0.08943191876 | G89: -0.09922814684 | H89: -0.1030634448 | I89: -0.107913425 | J89: -0.1093625629 | K89: -0.1130222409 | L89: -0.1177876907 | M89: -0.1191733354 | N89: -0.1206679193 | O89: -0.1184182863 | P89: -0.1170459748 | Q89: -0.118770985 | R89: -0.1160185523 | S89: -0.1130054385 | T89: -0.1113007739 | U89: -0.1092973568 | V89: -0.1063406238 | W89: -0.1034069732 | X89: -0.1000210046 | Y89: -0.09586961763 | Z89: -0.09158296578 | AA89: -0.08666600858 | AB89: -0.0842757131 | AC89: -0.07976389095 | AD89: -0.07490547972 | AE89: -0.0699533849 | AF89: -0.06478563335 | AG89: -0.06153436447 | AH89: -0.05559888886 | AI89: -0.05044406629 | AJ89: -0.04499586586 | AK89: -0.03945477796 | AL89: -0.03336609818 | AM89: -0.02677625483 | AN89: -0.02005238115 | AO89: -0.01362670512 | AP89: -0.006909376042 | AQ89: 0 | AS89: 0.0067 | AU89: 0.0003941546054 | AV89: 0.0005290563776 | AW89: 0.000646251223 | AX89: 0.0007554627278 | AY89: 0.0008601390148 | AZ89: 0.0009619232692 | BA89: 0.001061702028 | BB89: 0.001159972897 | BC89: 0.001257004339 | BD89: 0.001352915181 | BE89: 0.001447717841 | BF89: 0.001541343415 | BG89: 0.001633687474 | BH89: 0.001724715944 | BI89: 0.001814388166 | BJ89: 0.001902633081 | BK89: 0.001989353793 | BL89: 0.002074430445 | BM89: 0.002157722389 | BN89: 0.002239069918 | BO89: 0.002318334504 | BP89: 0.002395524429 | BQ89: 0.002470690806 | BR89: 0.002543892147 | BS89: 0.00261519611 | BT89: 0.002684680583 | BU89: 0.002752434991 | BV89: 0.002818561274 | BW89: 0.002883161229 | BX89: 0.002946293985 | BY89: 0.003008013774 | BZ89: 0.003068382479 | CA89: 0.003127470501 | CB89: 0.00318535727 | CC89: 0.003242131035 | CD89: 0.003297889759 | CE89: 0.003352740785 | CF89: 0.003406801496 | CG89: 0.003460199302 | CH89: 0.003513071849
B90: 68 | C90: 3.968129313e-06 | D90: -0.05879281977 | E90: -0.07657625036 | F90: -0.08867801131 | G90: -0.09921215376 | H90: -0.1029650379 | I90: -0.1078944635 | J90: -0.1092927308 | K90: -0.1130050575 | L90: -0.116940681 | M90: -0.1189021989 | N90: -0.1202676997 | O90: -0.1180914169 | P90: -0.1169966012 | Q90: -0.1186206662 | R90: -0.1158786406 | S90: -0.1128761208 | T90: -0.1109393357 | U90: -0.1084574269 | V90: -0.1059579208 | W90: -0.1031690747 | X90: -0.09967718641 | Y90: -0.09579847129 | Z90: -0.09133001188 | AA90: -0.08613643188 | AB90: -0.08407471375 | AC90: -0.07966317662 | AD90: -0.07488777893 | AE90: -0.06969040812 | AF90: -0.06473614954 | AG90: -0.06122178894 | AH90: -0.05541383699 | AI90: -0.0504181839 | AJ90: -0.0448391506 | AK90: -0.03909806038 | AL90: -0.03333517201 | AM90: -0.02676640953 | AN90: -0.02002653685 | AO90: -0.01361016019 | AP90: -0.006890378812 | AQ90: 0 | AS90: 0.0068 | AU90: 0.00040202856 | AV90: 0.000539397286 | AW90: 0.0006586904651 | AX90: 0.000769826537 | AY90: 0.0008763233923 | AZ90: 0.0009798578987 | BA90: 0.001081335157 | BB90: 0.001181263604 | BC90: 0.001279918032 | BD90: 0.001377420703 | BE90: 0.001473785462 | BF90: 0.001568943345 | BG90: 0.001662789183 | BH90: 0.001755289231 | BI90: 0.001846402969 | BJ90: 0.00193605893 | BK90: 0.002024159349 | BL90: 0.002110583109 | BM90: 0.002195187951 | BN90: 0.002277812246 | BO90: 0.002358315864 | BP90: 0.00243670776 | BQ90: 0.002513040335 | BR90: 0.002587373453 | BS90: 0.002659776225 | BT90: 0.002730328104 | BU90: 0.00279912022 | BV90: 0.002866256368 | BW90: 0.002931840166 | BX90: 0.00299593188 | BY90: 0.003058586786 | BZ90: 0.003119867906 | CA90: 0.003179846886 | CB90: 0.003238604519 | CC90: 0.003296230531 | CD90: 0.003352824488 | CE90: 0.00340849546 | CF90: 0.003463362684 | CG90: 0.003517555561 | CH90: 0.003571213857
B91: 69 | C91: 3.968129313e-06 | D91: -0.05871185646 | E91: -0.07622054183 | F91: -0.08831323369 | G91: -0.09918399005 | H91: -0.1021581498 | I91: -0.1073452511 | J91: -0.1090571063 | K91: -0.1128434934 | L91: -0.1167717842 | M91: -0.1184637073 | N91: -0.1196893288 | O91: -0.1178922587 | P91: -0.1169777511 | Q91: -0.1177190911 | R91: -0.1158715457 | S91: -0.1123341081 | T91: -0.11065333 | U91: -0.1082003165 | V91: -0.1056886591 | W91: -0.1030241492 | X91: -0.09957732484 | Y91: -0.09578400279 | Z91: -0.09101813231 | AA91: -0.0861255304 | AB91: -0.08394299467 | AC91: -0.07952333935 | AD91: -0.07486071463 | AE91: -0.06937503652 | AF91: -0.06468480918 | AG91: -0.06094202541 | AH91: -0.05540029112 | AI91: -0.05034534732 | AJ91: -0.04480997107 | AK91: -0.03908692578 | AL91: -0.03330091716 | AM91: -0.02669593326 | AN91: -0.02002566002 | AO91: -0.01359272783 | AP91: -0.006886204004 | AQ91: 0 | AS91: 0.0069 | AU91: 0.0004099438142 | AV91: 0.0005497877845 | AW91: 0.0006711854892 | AX91: 0.0007842512237 | AY91: 0.0008925730167 | AZ91: 0.0009978616043 | BA91: 0.001101040759 | BB91: 0.001202629823 | BC91: 0.001302909962 | BD91: 0.001402006911 | BE91: 0.001499935972 | BF91: 0.001596628137 | BG91: 0.001691977519 | BH91: 0.001785950718 | BI91: 0.001878507371 | BJ91: 0.001969575615 | BK91: 0.00205905683 | BL91: 0.002146828648 | BM91: 0.002232747211 | BN91: 0.002316648977 | BO91: 0.002398392227 | BP91: 0.002477986595 | BQ91: 0.002555485779 | BR91: 0.002630951009 | BS91: 0.002704452853 | BT91: 0.002776072337 | BU91: 0.0028459023 | BV91: 0.0029140484 | BW91: 0.002980616079 | BX91: 0.003045666747 | BY91: 0.003109256725 | BZ91: 0.003171450179 | CA91: 0.003232320002 | CB91: 0.003291948355 | CC91: 0.00335042644 | CD91: 0.003407855432 | CE91: 0.003464346126 | CF91: 0.003520019617 | CG91: 0.003575007295 | CH91: 0.00362945105
B92: 70 | C92: 3.968129313e-06 | D92: -0.05842772303 | E92: -0.07613828342 | F92: -0.08800705086 | G92: -0.09903522067 | H92: -0.10169935 | I92: -0.1068137488 | J92: -0.1088591271 | K92: -0.1122115785 | L92: -0.1165919201 | M92: -0.1179653478 | N92: -0.1196224879 | O92: -0.1173562165 | P92: -0.1168737347 | Q92: -0.1174553681 | R92: -0.1157309589 | S92: -0.1122507145 | T92: -0.1105587895 | U92: -0.1080573411 | V92: -0.1056500149 | W92: -0.1027900929 | X92: -0.09890654704 | Y92: -0.09514810075 | Z92: -0.09085018216 | AA92: -0.0858935425 | AB92: -0.08391981377 | AC92: -0.079447001 | AD92: -0.07474128476 | AE92: -0.06910852769 | AF92: -0.06449815714 | AG92: -0.06092175749 | AH92: -0.05539739297 | AI92: -0.05031989946 | AJ92: -0.04474365961 | AK92: -0.03907056561 | AL92: -0.03329327269 | AM92: -0.02669141064 | AN92: -0.01997806659 | AO92: -0.01355888973 | AP92: -0.006883243651 | AQ92: 0 | AS92: 0.007 | AU92: 0.0004179000368 | AV92: 0.000560227452 | AW92: 0.0006837358033 | AX92: 0.0007987362349 | AY92: 0.0009088872806 | AZ92: 0.001015933729 | BA92: 0.001120818134 | BB92: 0.00122407081 | BC92: 0.001325979348 | BD92: 0.00142667299 | BE92: 0.001526168518 | BF92: 0.001624396908 | BG92: 0.001721251571 | BH92: 0.001816699469 | BI92: 0.001910700411 | BJ92: 0.002003182152 | BK92: 0.00209404523 | BL92: 0.002183166039 | BM92: 0.002270399129 | BN92: 0.002355579057 | BO92: 0.002438562524 | BP92: 0.002519359851 | BQ92: 0.002598026048 | BR92: 0.002674623713 | BS92: 0.002749224882 | BT92: 0.00282191216 | BU92: 0.002892780102 | BV92: 0.002961936234 | BW92: 0.003029487826 | BX92: 0.003095497438 | BY92: 0.00316002244 | BZ92: 0.003223128141 | CA92: 0.00328488869 | CB92: 0.003345387614 | CC92: 0.003404717598 | CD92: 0.003462981424 | CE92: 0.003520291613 | CF92: 0.003576771124 | CG92: 0.003632553333 | CH92: 0.003687782255
B93: 71 | C93: 3.968129313e-06 | D93: -0.05817646267 | E93: -0.07606416236 | F93: -0.08774135603 | G93: -0.09863557241 | H93: -0.1016849214 | I93: -0.1066341427 | J93: -0.1082443257 | K93: -0.1122056639 | L93: -0.1162078622 | M93: -0.1179560991 | N93: -0.1195687718 | O93: -0.1173138331 | P93: -0.1167680424 | Q93: -0.1174086134 | R93: -0.1156303818 | S93: -0.1121983885 | T93: -0.1103614912 | U93: -0.1079287343 | V93: -0.1055608121 | W93: -0.1026317102 | X93: -0.09883124983 | Y93: -0.09513703108 | Z93: -0.0907936322 | AA93: -0.08583755665 | AB93: -0.08385860949 | AC93: -0.07925065107 | AD93: -0.07464475176 | AE93: -0.06908872447 | AF93: -0.06427907867 | AG93: -0.06091972694 | AH93: -0.05518258755 | AI93: -0.04988828137 | AJ93: -0.04471390865 | AK93: -0.038890015 | AL93: -0.03327978081 | AM93: -0.02668362713 | AN93: -0.0199593199 | AO93: -0.01353214296 | AP93: -0.006875120684 | AQ93: 0 | AS93: 0.0071 | AU93: 0.0004258969047 | AV93: 0.0005707158776 | AW93: 0.000696340927 | AX93: 0.0008132810308 | AY93: 0.0009252655912 | AZ93: 0.001034073633 | BA93: 0.001140666597 | BB93: 0.00124558584 | BC93: 0.001349125427 | BD93: 0.001451418141 | BE93: 0.001552482273 | BF93: 0.001652248801 | BG93: 0.001750610453 | BH93: 0.001847534571 | BI93: 0.001942981154 | BJ93: 0.002036877585 | BK93: 0.002129123575 | BL93: 0.002219594287 | BM93: 0.002308142694 | BN93: 0.002394601459 | BO93: 0.002478825713 | BP93: 0.002560826477 | BQ93: 0.002640660076 | BR93: 0.00271839049 | BS93: 0.002794091228 | BT93: 0.002867846481 | BU93: 0.002939752527 | BV93: 0.003009918764 | BW93: 0.003078454297 | BX93: 0.003145422836 | BY93: 0.003210882808 | BZ93: 0.003274900668 | CA93: 0.003337551821 | CB93: 0.003398921166 | CC93: 0.003459102871 | CD93: 0.003518201325 | CE93: 0.003576330784 | CF93: 0.003633616064 | CG93: 0.003690192534 | CH93: 0.003746206332
B94: 72 | C94: 3.968129313e-06 | D94: -0.05814986849 | E94: -0.0760205448 | F94: -0.08766303803 | G94: -0.09845611152 | H94: -0.1016487446 | I94: -0.1064160417 | J94: -0.1080881973 | K94: -0.1121558922 | L94: -0.1161007765 | M94: -0.1179470698 | N94: -0.1186535305 | O94: -0.1170092226 | P94: -0.1164781841 | Q94: -0.1173502036 | R94: -0.1156000855 | S94: -0.1117227758 | T94: -0.1102140316 | U94: -0.1078227863 | V94: -0.1051507493 | W94: -0.1023120464 | X94: -0.09866261144 | Y94: -0.09505940047 | Z94: -0.09072736679 | AA94: -0.08582582066 | AB94: -0.08371341385 | AC94: -0.0791511391 | AD94: -0.0743526437 | AE94: -0.06908523925 | AF94: -0.06417139157 | AG94: -0.0609049363 | AH94: -0.05516220305 | AI94: -0.04966480524 | AJ94: -0.04467458608 | AK94: -0.03884027318 | AL94: -0.03311291273 | AM94: -0.02661084093 | AN94: -0.01995748105 | AO94: -0.01350294375 | AP94: -0.006873771064 | AQ94: 0 | AS94: 0.0072 | AU94: 0.0004339341021 | AV94: 0.00058125266 | AW94: 0.0007090003918 | AX94: 0.0008278850847 | AY94: 0.0009417073703 | AZ94: 0.00105228069 | BA94: 0.001160585479 | BB94: 0.001267174206 | BC94: 0.001372347456 | BD94: 0.001476241587 | BE94: 0.001578876427 | BF94: 0.001680182977 | BG94: 0.0017800533 | BH94: 0.001878455135 | BI94: 0.001975348686 | BJ94: 0.00207066098 | BK94: 0.00216429091 | BL94: 0.002256112421 | BM94: 0.00234597692 | BN94: 0.002433715183 | BO94: 0.00251918078 | BP94: 0.002602385444 | BQ94: 0.002683386826 | BR94: 0.002762250292 | BS94: 0.002839050834 | BT94: 0.002913874236 | BU94: 0.002986818503 | BV94: 0.003057994913 | BW94: 0.003127514408 | BX94: 0.003195441855 | BY94: 0.003261836737 | BZ94: 0.003326766663 | CA94: 0.003390308296 | CB94: 0.003452547907 | CC94: 0.003513581152 | CD94: 0.003573514031 | CE94: 0.003632462531 | CF94: 0.003690553329 | CG94: 0.003747923788 | CH94: 0.003804722168
B95: 73 | C95: 3.968129313e-06 | D95: -0.0580176704 | E95: -0.07600644924 | F95: -0.08755211787 | G95: -0.09783129408 | H95: -0.1015203639 | I95: -0.1061530022 | J95: -0.1078648987 | K95: -0.1119187284 | L95: -0.115766397 | M95: -0.1179079508 | N95: -0.1182641286 | O95: -0.1168838785 | P95: -0.1163848985 | Q95: -0.1172387857 | R95: -0.115562998 | S95: -0.1116221488 | T95: -0.1102134771 | U95: -0.1076934725 | V95: -0.1048016307 | W95: -0.1019083914 | X95: -0.0986067023 | Y95: -0.09503919631 | Z95: -0.09069045227 | AA95: -0.08580668453 | AB95: -0.08370629437 | AC95: -0.07911678843 | AD95: -0.07400673162 | AE95: -0.06908253794 | AF95: -0.06416582051 | AG95: -0.0606274157 | AH95: -0.05515480056 | AI95: -0.04960655964 | AJ95: -0.04463696731 | AK95: -0.03878855748 | AL95: -0.03304917126 | AM95: -0.02654978976 | AN95: -0.01995654257 | AO95: -0.01346356575 | AP95: -0.006873251812 | AQ95: 0 | AS95: 0.0073 | AU95: 0.0004420113205 | AV95: 0.0005918374073 | AW95: 0.0007217137397 | AX95: 0.0008425478823 | AY95: 0.0009582120531 | AZ95: 0.00107055429 | BA95: 0.00118057413 | BB95: 0.001288835218 | BC95: 0.001395644708 | BD95: 0.001501142569 | BE95: 0.00160535019 | BF95: 0.001708198618 | BG95: 0.001809579267 | BH95: 0.001909460294 | BI95: 0.002007802119 | BJ95: 0.002104531428 | BK95: 0.002199546307 | BL95: 0.002292719496 | BM95: 0.002383900843 | BN95: 0.002472919251 | BO95: 0.002559626737 | BP95: 0.002644035753 | BQ95: 0.002726205286 | BR95: 0.0028062021 | BS95: 0.002884102672 | BT95: 0.002959994389 | BU95: 0.003033976988 | BV95: 0.003106163632 | BW95: 0.003176667104 | BX95: 0.003245553433 | BY95: 0.003312883164 | BZ95: 0.003378725059 | CA95: 0.003443157043 | CB95: 0.003506266765 | CC95: 0.003568151367 | CD95: 0.003628918463 | CE95: 0.003688685773 | CF95: 0.003747581838 | CG95: 0.003805746013 | CH95: 0.003863328682
B96: 74 | C96: 3.968129313e-06 | D96: -0.05793185264 | E96: -0.07573174938 | F96: -0.08736216096 | G96: -0.09780578517 | H96: -0.1014144357 | I96: -0.1057734829 | J96: -0.1076335148 | K96: -0.1117706564 | L96: -0.115368479 | M96: -0.1175888031 | N96: -0.1181699605 | O96: -0.1168418084 | P96: -0.115848702 | Q96: -0.1172152047 | R96: -0.1151980977 | S96: -0.1115229716 | T96: -0.1101552192 | U96: -0.1076662614 | V96: -0.1047820204 | W96: -0.1017346762 | X96: -0.09822541924 | Y96: -0.09481480302 | Z96: -0.09066532456 | AA96: -0.08579241014 | AB96: -0.08360907803 | AC96: -0.07910305377 | AD96: -0.07397024351 | AE96: -0.06892995165 | AF96: -0.06412759859 | AG96: -0.0603829905 | AH96: -0.05502369161 | AI96: -0.04960018131 | AJ96: -0.04442096551 | AK96: -0.03874104129 | AL96: -0.03304118464 | AM96: -0.0265336961 | AN96: -0.01993136676 | AO96: -0.01346218305 | AP96: -0.006841117338 | AQ96: 0 | AS96: 0.0074 | AU96: 0.0004501282585 | AV96: 0.0006024697366 | AW96: 0.0007344805236 | AX96: 0.0008572689212 | AY96: 0.0009747790884 | AZ96: 0.001088893839 | BA96: 0.001200631912 | BB96: 0.001310568201 | BC96: 0.001419016474 | BD96: 0.001526120346 | BE96: 0.001631902793 | BF96: 0.001736294927 | BG96: 0.001839187533 | BH96: 0.001940549201 | BI96: 0.002040340584 | BJ96: 0.002138488039 | BK96: 0.002234888859 | BL96: 0.002329414589 | BM96: 0.002421913527 | BN96: 0.002512212712 | BO96: 0.002600162618 | BP96: 0.002685776428 | BQ96: 0.002769114472 | BR96: 0.002850244917 | BS96: 0.002929245739 | BT96: 0.003006205929 | BU96: 0.003081226964 | BV96: 0.003154423896 | BW96: 0.003225911357 | BX96: 0.003295756538 | BY96: 0.00336402105 | BZ96: 0.003430774814 | CA96: 0.003496097019 | CB96: 0.003560076692 | CC96: 0.003622812466 | CD96: 0.003684413571 | CE96: 0.003744999459 | CF96: 0.003804700538 | CG96: 0.003863658154 | CH96: 0.00392202482
B97: 75 | C97: 3.968129313e-06 | D97: -0.05782175125 | E97: -0.07569550933 | F97: -0.08726263933 | G97: -0.09728842352 | H97: -0.1010670179 | I97: -0.1057083524 | J97: -0.1070265921 | K97: -0.1115937749 | L97: -0.1149260802 | M97: -0.1172007538 | N97: -0.1176507195 | O97: -0.1167476047 | P97: -0.1158254281 | Q97: -0.116865811 | R97: -0.1147316979 | S97: -0.1114066332 | T97: -0.1100244562 | U97: -0.1076259607 | V97: -0.1046606226 | W97: -0.1017001492 | X97: -0.09815040905 | Y97: -0.09468792259 | Z97: -0.09058997481 | AA97: -0.08578487671 | AB97: -0.08356476127 | AC97: -0.07905393658 | AD97: -0.07371915802 | AE97: -0.06890847569 | AF97: -0.06394879811 | AG97: -0.06038281605 | AH97: -0.05494258288 | AI97: -0.04955968685 | AJ97: -0.0443310362 | AK97: -0.03872456506 | AL97: -0.03295340812 | AM97: -0.02648785378 | AN97: -0.01988362651 | AO97: -0.01337468834 | AP97: -0.006824062803 | AQ97: 0 | AS97: 0.0075 | AU97: 0.0004582846212 | AV97: 0.0006131492737 | AW97: 0.0007473003065 | AX97: 0.0008720477107 | AY97: 0.0009914079376 | AZ97: 0.001107298752 | BA97: 0.001220758203 | BB97: 0.001332372498 | BC97: 0.001442462064 | BD97: 0.001551174195 | BE97: 0.001658533483 | BF97: 0.001764471124 | BG97: 0.001868877294 | BH97: 0.001971721029 | BI97: 0.002072963234 | BJ97: 0.002172529948 | BK97: 0.002270317683 | BL97: 0.0023661968 | BM97: 0.002460014056 | BN97: 0.002551594637 | BO97: 0.002640787484 | BP97: 0.002727606518 | BQ97: 0.00281211342 | BR97: 0.002894377774 | BS97: 0.002974479055 | BT97: 0.00305250787 | BU97: 0.003128567439 | BV97: 0.003202774709 | BW97: 0.003275246163 | BX97: 0.003346050163 | BY97: 0.003415249386 | BZ97: 0.003482914915 | CA97: 0.003549127206 | CB97: 0.003613976669 | CC97: 0.003677563428 | CD97: 0.00373999833 | CE97: 0.003801402563 | CF97: 0.003861908402 | CG97: 0.003921659185 | CH97: 0.003980809552
B98: 76 | C98: 3.968129313e-06 | D98: -0.05778236689 | E98: -0.07554781447 | F98: -0.08707691848 | G98: -0.09702849832 | H98: -0.1009800274 | I98: -0.1051227891 | J98: -0.1069713067 | K98: -0.1111250272 | L98: -0.1148705108 | M98: -0.1171405085 | N98: -0.1175139983 | O98: -0.1159507968 | P98: -0.1152385437 | Q98: -0.1165433073 | R98: -0.114573629 | S98: -0.1113802016 | T98: -0.1099612126 | U98: -0.1074165429 | V98: -0.1045101617 | W98: -0.10166929 | X98: -0.09792514956 | Y98: -0.09465841574 | Z98: -0.09057344151 | AA98: -0.08551509091 | AB98: -0.08337816598 | AC98: -0.07895854722 | AD98: -0.0737168454 | AE98: -0.0687354076 | AF98: -0.06391555551 | AG98: -0.06020532988 | AH98: -0.0547629518 | AI98: -0.04949059375 | AJ98: -0.04421247053 | AK98: -0.03861085508 | AL98: -0.03293685873 | AM98: -0.02648298394 | AN98: -0.01988061476 | AO98: -0.01336157536 | AP98: -0.006823310609 | AQ98: 0 | AS98: 0.0076 | AU98: 0.0004664801206 | AV98: 0.0006238756525 | AW98: 0.0007601726614 | AX98: 0.0008868837711 | AY98: 0.001008098074 | AZ98: 0.001125768463 | BA98: 0.001240952398 | BB98: 0.001354247466 | BC98: 0.001465980801 | BD98: 0.001576303411 | BE98: 0.001685241527 | BF98: 0.001792726451 | BG98: 0.001898647765 | BH98: 0.002002974973 | BI98: 0.002105669242 | BJ98: 0.002206656309 | BK98: 0.002305831916 | BL98: 0.002403065249 | BM98: 0.002498201538 | BN98: 0.002591064121 | BO98: 0.002681500417 | BP98: 0.002769525093 | BQ98: 0.002855201194 | BR98: 0.002938599723 | BS98: 0.003019801667 | BT98: 0.00309889925 | BU98: 0.003175997445 | BV98: 0.003251215096 | BW98: 0.003324670545 | BX98: 0.003396433324 | BY98: 0.003466567183 | BZ98: 0.00353514437 | CA98: 0.003602246611 | CB98: 0.0036679657 | CC98: 0.003732403254 | CD98: 0.00379567174 | CE98: 0.003857894086 | CF98: 0.003919204428 | CG98: 0.003979748104 | CH98: 0.004039681878
B99: 77 | C99: 3.968129313e-06 | D99: -0.05767361318 | E99: -0.07533836136 | F99: -0.08687288966 | G99: -0.09700833984 | H99: -0.1009083342 | I99: -0.1049928308 | J99: -0.1062250955 | K99: -0.1110866518 | L99: -0.1148373919 | M99: -0.1165008528 | N99: -0.1168945285 | O99: -0.1158063933 | P99: -0.1149494152 | Q99: -0.1162639271 | R99: -0.1139993159 | S99: -0.1112157923 | T99: -0.1094369853 | U99: -0.1073325789 | V99: -0.1040423001 | W99: -0.1011157623 | X99: -0.09781300556 | Y99: -0.09454286126 | Z99: -0.09052804252 | AA99: -0.08543087847 | AB99: -0.08314876062 | AC99: -0.07893059518 | AD99: -0.0736624954 | AE99: -0.0686050634 | AF99: -0.06369970147 | AG99: -0.05999316462 | AH99: -0.05461823538 | AI99: -0.04940814838 | AJ99: -0.04415758328 | AK99: -0.03849141312 | AL99: -0.03292003864 | AM99: -0.02647678174 | AN99: -0.01987370765 | AO99: -0.01332739315 | AP99: -0.006822766684 | AQ99: 0 | AS99: 0.0077 | AU99: 0.0004747144746 | AV99: 0.0006346485153 | AW99: 0.0007730971705 | AX99: 0.0009017766336 | AY99: 0.001024848984 | AZ99: 0.001144302416 | BA99: 0.001261213901 | BB99: 0.001376192476 | BC99: 0.001489572025 | BD99: 0.001601507303 | BE99: 0.001712026206 | BF99: 0.001821060163 | BG99: 0.001928498181 | BH99: 0.002034310244 | BI99: 0.0021384578 | BJ99: 0.002240866297 | BK99: 0.002341430715 | BL99: 0.002440019079 | BM99: 0.0025364751 | BN99: 0.002630620279 | BO99: 0.002722300519 | BP99: 0.002811531247 | BQ99: 0.002898376877 | BR99: 0.002982909841 | BS99: 0.003065212642 | BT99: 0.003145379131 | BU99: 0.003223516036 | BV99: 0.003299744108 | BW99: 0.003374183547 | BX99: 0.003446905062 | BY99: 0.00351797348 | BZ99: 0.003587462215 | CA99: 0.003655454266 | CB99: 0.003722042814 | CC99: 0.003787330973 | CD99: 0.003851432829 | CE99: 0.00391447305 | CF99: 0.00397658764 | CG99: 0.004037923933 | CH99: 0.004098640818
B100: 78 | C100: 3.968129313e-06 | D100: -0.05758248904 | E100: -0.07527774662 | F100: -0.08654160488 | G100: -0.09637696789 | H100: -0.1003723746 | I100: -0.1047950565 | J100: -0.106207274 | K100: -0.1109569429 | L100: -0.1145555104 | M100: -0.1164098202 | N100: -0.1163468211 | O100: -0.1156375989 | P100: -0.1148081886 | Q100: -0.1162207228 | R100: -0.1136890373 | S100: -0.111116493 | T100: -0.1092705128 | U100: -0.1072265046 | V100: -0.1038719108 | W100: -0.1010044128 | X100: -0.09771052873 | Y100: -0.0945182685 | Z100: -0.09040927165 | AA100: -0.08529188568 | AB100: -0.08313477692 | AC100: -0.07852157725 | AD100: -0.07358180886 | AE100: -0.06854959725 | AF100: -0.06363529557 | AG100: -0.05985307484 | AH100: -0.0545619755 | AI100: -0.04936349903 | AJ100: -0.04413519624 | AK100: -0.03848868561 | AL100: -0.03287155345 | AM100: -0.02647624751 | AN100: -0.01976943736 | AO100: -0.01331608999 | AP100: -0.006821233676 | AQ100: 0 | AS100: 0.0078 | AU100: 0.0004829874074 | AV100: 0.000645467512 | AW100: 0.0007860734254 | AX100: 0.0009167258395 | AY100: 0.001041660164 | AZ100: 0.001162900067 | BA100: 0.001281542134 | BB100: 0.001398206915 | BC100: 0.001513235091 | BD100: 0.001626785198 | BE100: 0.00173888682 | BF100: 0.001849471536 | BG100: 0.001958427792 | BH100: 0.002065726074 | BI100: 0.00217132812 | BJ100: 0.002275159103 | BK100: 0.002377113257 | BL100: 0.002477057452 | BM100: 0.00257483389 | BN100: 0.002670262247 | BO100: 0.002763186917 | BP100: 0.002853624095 | BQ100: 0.002941639575 | BR100: 0.003027307225 | BS100: 0.003110711071 | BT100: 0.003191946596 | BU100: 0.003271122293 | BV100: 0.003348360818 | BW100: 0.003423784238 | BX100: 0.003497464443 | BY100: 0.003569467336 | BZ100: 0.003639867506 | CA100: 0.003708749225 | CB100: 0.003776207063 | CC100: 0.003842345634 | CD100: 0.003907280645 | CE100: 0.003971138504 | CF100: 0.004034057085 | CG100: 0.004096185718 | CH100: 0.00415768542
B101: 79 | C101: 3.968129313e-06 | D101: -0.05727378461 | E101: -0.07488216385 | F101: -0.08639303643 | G101: -0.09628208633 | H101: -0.1000880514 | I101: -0.1046650371 | J101: -0.1055674386 | K101: -0.1106430242 | L101: -0.1141615854 | M101: -0.1158154101 | N101: -0.1162709481 | O101: -0.1155267258 | P101: -0.1147418439 | Q101: -0.1156456428 | R101: -0.1136843513 | S101: -0.1107971787 | T101: -0.1088838417 | U101: -0.1063661409 | V101: -0.1036640759 | W101: -0.09986285349 | X101: -0.09767248061 | Y101: -0.09422736129 | Z101: -0.09038681148 | AA101: -0.08522987806 | AB101: -0.0829509867 | AC101: -0.07819267886 | AD101: -0.07356290951 | AE101: -0.06851601128 | AF101: -0.06341717607 | AG101: -0.05976629103 | AH101: -0.05451242681 | AI101: -0.04935872749 | AJ101: -0.04410106578 | AK101: -0.03839228324 | AL101: -0.03265402572 | AM101: -0.0264460149 | AN101: -0.0197612471 | AO101: -0.01330374201 | AP101: -0.006817087387 | AQ101: 0 | AS101: 0.0079 | AU101: 0.0004912986488 | AV101: 0.0006563323001 | AW101: 0.0007991010266 | AX101: 0.0009317309404 | AY101: 0.001058531122 | AZ101: 0.001181560884 | BA101: 0.001301936529 | BB101: 0.001420290182 | BC101: 0.001536969369 | BD101: 0.001652136435 | BE101: 0.001765822684 | BF101: 0.001877959861 | BG101: 0.001988435868 | BH101: 0.002097221709 | BI101: 0.00220427943 | BJ101: 0.002309533941 | BK101: 0.002412878738 | BL101: 0.002514179549 | BM101: 0.002613277077 | BN101: 0.00270998918 | BO101: 0.002804158755 | BP101: 0.002895802773 | BQ101: 0.002984988415 | BR101: 0.003071790993 | BS101: 0.003156296065 | BT101: 0.003238600751 | BU101: 0.003318815312 | BV101: 0.003397064319 | BW101: 0.003473471708 | BX101: 0.00354811055 | BY101: 0.003621047836 | BZ101: 0.003692359323 | CA101: 0.003762130566 | CB101: 0.003830457523 | CC101: 0.003897446311 | CD101: 0.003963214259 | CE101: 0.004027889519 | CF101: 0.004091611833 | CG101: 0.004154532529 | CH101: 0.004216814751
B102: 80 | C102: 3.968129313e-06 | D102: -0.05714125211 | E102: -0.07481878082 | F102: -0.08624791787 | G102: -0.09623228522 | H102: -0.09963311919 | I102: -0.1046181462 | J102: -0.1053797746 | K102: -0.1103530082 | L102: -0.1133975409 | M102: -0.1157400998 | N102: -0.1160478963 | O102: -0.1151499187 | P102: -0.1147132119 | Q102: -0.1153600927 | R102: -0.1132985621 | S102: -0.1106794087 | T102: -0.1086155684 | U102: -0.1060143527 | V102: -0.1035973072 | W102: -0.09984784562 | X102: -0.09764541725 | Y102: -0.09366559966 | Z102: -0.0897243272 | AA102: -0.08519772564 | AB102: -0.08231334244 | AC102: -0.07803600452 | AD102: -0.07351132276 | AE102: -0.06850400601 | AF102: -0.06337752236 | AG102: -0.05952926288 | AH102: -0.05437526602 | AI102: -0.04934831453 | AJ102: -0.04409636505 | AK102: -0.038341254 | AL102: -0.03260931796 | AM102: -0.0263891504 | AN102: -0.01975172838 | AO102: -0.01327909409 | AP102: -0.006796493655 | AQ102: 0 | AS102: 0.008 | AU102: 0.0004996479344 | AV102: 0.0006672425442 | AW102: 0.0008121795828 | AX102: 0.0009467914973 | AY102: 0.001075461377 | AZ102: 0.001200284349 | BA102: 0.001322396532 | BB102: 0.001442441691 | BC102: 0.001560774241 | BD102: 0.001677560372 | BE102: 0.001792833128 | BF102: 0.001906524442 | BG102: 0.002018521693 | BH102: 0.002128796415 | BI102: 0.002237310978 | BJ102: 0.002343990039 | BK102: 0.002448726371 | BL102: 0.00255138457 | BM102: 0.002651803849 | BN102: 0.002749800255 | BO102: 0.002845215198 | BP102: 0.002938066435 | BQ102: 0.003028422543 | BR102: 0.003116360284 | BS102: 0.003201966756 | BT102: 0.003285340722 | BU102: 0.003366594216 | BV102: 0.003445853728 | BW102: 0.003523245067 | BX102: 0.003598842493 | BY102: 0.003672714082 | BZ102: 0.003744936768 | CA102: 0.003815597387 | CB102: 0.003884793291 | CC102: 0.003952632098 | CD102: 0.004019232766 | CE102: 0.004084725186 | CF102: 0.004149250975 | CG102: 0.004212963456 | CH102: 0.004276027904
B103: 81 | C103: 3.968129313e-06 | D103: -0.05714039633 | E103: -0.07473038318 | F103: -0.08618392978 | G103: -0.09582145588 | H103: -0.09962543059 | I103: -0.1040498297 | J103: -0.105341187 | K103: -0.1101923808 | L103: -0.1133816844 | M103: -0.1153922787 | N103: -0.115927119 | O103: -0.1151441961 | P103: -0.1146049633 | Q103: -0.11518383 | R103: -0.1132022757 | S103: -0.1106033002 | T103: -0.1084994294 | U103: -0.1056016677 | V103: -0.1033839091 | W103: -0.09979912597 | X103: -0.09701959059 | Y103: -0.09365951564 | Z103: -0.08948676463 | AA103: -0.08507813845 | AB103: -0.08228707304 | AC103: -0.07799697997 | AD103: -0.07341276614 | AE103: -0.06849665995 | AF103: -0.06332998887 | AG103: -0.05943918999 | AH103: -0.05432680838 | AI103: -0.04929947221 | AJ103: -0.04409210601 | AK103: -0.03828254227 | AL103: -0.03259673757 | AM103: -0.02636320016 | AN103: -0.01970787307 | AO103: -0.01326018528 | AP103: -0.006782292264 | AQ103: 0 | AS103: 0.0081 | AU103: 0.0005080350054 | AV103: 0.000678197916 | AW103: 0.0008253087112 | AX103: 0.0009619070807 | AY103: 0.001092450458 | AZ103: 0.001219069953 | BA103: 0.001342921599 | BB103: 0.001464660867 | BC103: 0.001584649104 | BD103: 0.001703056377 | BE103: 0.001819917497 | BF103: 0.001935164604 | BG103: 0.002048684568 | BH103: 0.002160449474 | BI103: 0.002270422027 | BJ103: 0.002378526645 | BK103: 0.002484655389 | BL103: 0.002588671733 | BM103: 0.002690413409 | BN103: 0.002789694665 | BO103: 0.00288635543 | BP103: 0.002980414256 | BQ103: 0.003071941125 | BR103: 0.003161014258 | BS103: 0.003247722296 | BT103: 0.003332165655 | BU103: 0.003414458144 | BV103: 0.00349472818 | BW103: 0.003573103447 | BX103: 0.003649659399 | BY103: 0.003724465199 | BZ103: 0.003797598962 | CA103: 0.003869148807 | CB103: 0.003939213483 | CC103: 0.004007902112 | CD103: 0.004075335279 | CE103: 0.00414164462 | CF103: 0.004206973624 | CG103: 0.004271477613 | CH103: 0.004335323989
B104: 82 | C104: 3.968129313e-06 | D104: -0.05678468679 | E104: -0.07471023633 | F104: -0.08612891886 | G104: -0.09576240151 | H104: -0.09917150885 | I104: -0.1038926085 | J104: -0.105235994 | K104: -0.1100197783 | L104: -0.1132908075 | M104: -0.1152189043 | N104: -0.1158146066 | O104: -0.1148412791 | P104: -0.1143690402 | Q104: -0.1150534022 | R104: -0.113110132 | S104: -0.11050398 | T104: -0.1084085853 | U104: -0.1055092939 | V104: -0.1029839195 | W104: -0.09966244984 | X104: -0.09689483431 | Y104: -0.09330331498 | Z104: -0.08942422273 | AA104: -0.08504030011 | AB104: -0.08211642756 | AC104: -0.07774669459 | AD104: -0.07339234963 | AE104: -0.06842339229 | AF104: -0.06316948304 | AG104: -0.0593253228 | AH104: -0.05420029639 | AI104: -0.04911220115 | AJ104: -0.04388333721 | AK104: -0.03821360702 | AL104: -0.03251448058 | AM104: -0.02633695185 | AN104: -0.01970241511 | AO104: -0.0132279705 | AP104: -0.006777487492 | AQ104: 0 | AS104: 0.0082 | AU104: 0.0005164596081 | AV104: 0.0006891980941 | AW104: 0.000838488037 | AX104: 0.0009770772701 | AY104: 0.001109497903 | AZ104: 0.001237917197 | BA104: 0.001363511199 | BB104: 0.001486947148 | BC104: 0.001608593367 | BD104: 0.001728623834 | BE104: 0.00184707515 | BF104: 0.001963879682 | BG104: 0.002078923809 | BH104: 0.002192180182 | BI104: 0.002303611855 | BJ104: 0.002413143022 | BK104: 0.002520665041 | BL104: 0.002626040274 | BM104: 0.002729104982 | BN104: 0.002829671622 | BO104: 0.002927578653 | BP104: 0.003022845429 | BQ104: 0.003115543346 | BR104: 0.003205752091 | BS104: 0.003293561857 | BT104: 0.003379074714 | BU104: 0.003462406257 | BV104: 0.00354368683 | BW104: 0.003623046001 | BX104: 0.003700560416 | BY104: 0.003776300332 | BZ104: 0.003850345047 | CA104: 0.003922783967 | CB104: 0.003993717238 | CC104: 0.004063255489 | CD104: 0.004131520934 | CE104: 0.004198646955 | CF104: 0.004264778913 | CG104: 0.004330074131 | CH104: 0.004394702139
B105: 83 | C105: 3.968129313e-06 | D105: -0.05677233077 | E105: -0.07470801358 | F105: -0.08603574659 | G105: -0.09536048868 | H105: -0.09866956235 | I105: -0.103892216 | J105: -0.1051653078 | K105: -0.1099691906 | L105: -0.1132014579 | M105: -0.114973863 | N105: -0.1157367538 | O105: -0.1144135449 | P105: -0.114046229 | Q105: -0.1149737555 | R105: -0.1131078701 | S105: -0.1103390295 | T105: -0.1080057632 | U105: -0.1054602748 | V105: -0.1029319955 | W105: -0.09951661577 | X105: -0.09613085649 | Y105: -0.093184208 | Z105: -0.08927279653 | AA105: -0.0849486902 | AB105: -0.08186504753 | AC105: -0.07757042333 | AD105: -0.07318348575 | AE105: -0.06836062155 | AF105: -0.06314054622 | AG105: -0.05929122509 | AH105: -0.05417121687 | AI105: -0.04909945604 | AJ105: -0.04378138004 | AK105: -0.03806919696 | AL105: -0.0324760697 | AM105: -0.02628625486 | AN105: -0.01969779675 | AO105: -0.01321572302 | AP105: -0.006761550599 | AQ105: 0 | AS105: 0.0083 | AU105: 0.0005249214939 | AV105: 0.0007002427635 | AW105: 0.0008517171931 | AX105: 0.0009923016535 | AY105: 0.001126603261 | AZ105: 0.001256825596 | BA105: 0.001384164812 | BB105: 0.001509299984 | BC105: 0.001632606453 | BD105: 0.00175426214 | BE105: 0.00187430546 | BF105: 0.001992669027 | BG105: 0.002109238748 | BH105: 0.002223987851 | BI105: 0.002336879758 | BJ105: 0.00244783845 | BK105: 0.002556754591 | BL105: 0.002663489444 | BM105: 0.002767877807 | BN105: 0.002869730356 | BO105: 0.002968884086 | BP105: 0.003065359165 | BQ105: 0.00315922841 | BR105: 0.00325057298 | BS105: 0.003339484627 | BT105: 0.003426067083 | BU105: 0.003510437733 | BV105: 0.003592728853 | BW105: 0.003673071897 | BX105: 0.00375154471 | BY105: 0.003828218645 | BZ105: 0.003903174185 | CA105: 0.003976502026 | CB105: 0.004048303713 | CC105: 0.004118691384 | CD105: 0.004187788884 | CE105: 0.004255731343 | CF105: 0.004322665996 | CG105: 0.004388752163 | CH105: 0.004454161507
B106: 84 | C106: 3.968129313e-06 | D106: -0.05670823681 | E106: -0.07452665645 | F106: -0.08586481933 | G106: -0.09527293411 | H106: -0.09847715976 | I106: -0.1035312533 | J106: -0.1048782528 | K106: -0.1099184167 | L106: -0.1130325286 | M106: -0.1145912167 | N106: -0.1157108381 | O106: -0.1143060146 | P106: -0.1139936037 | Q106: -0.1147347303 | R106: -0.1130646069 | S106: -0.1102229418 | T106: -0.1074531207 | U106: -0.1052532085 | V106: -0.1028955361 | W106: -0.09947328762 | X106: -0.09608632189 | Y106: -0.09316156038 | Z106: -0.08923886654 | AA106: -0.08482728494 | AB106: -0.08159009709 | AC106: -0.07741151952 | AD106: -0.07307356427 | AE106: -0.06834258461 | AF106: -0.06312206869 | AG106: -0.05913353518 | AH106: -0.05416814663 | AI106: -0.04908993214 | AJ106: -0.04369797666 | AK106: -0.03794743152 | AL106: -0.03246538294 | AM106: -0.02623580464 | AN106: -0.01968004132 | AO106: -0.01319572987 | AP106: -0.006714423037 | AQ106: 0 | AS106: 0.0084 | AU106: 0.0005334204193 | AV106: 0.0007113316157 | AW106: 0.0008649958197 | AX106: 0.001007579828 | AY106: 0.001143766091 | AZ106: 0.001275794671 | BA106: 0.00140488193 | BB106: 0.001531718837 | BC106: 0.001656687797 | BD106: 0.001779970704 | BE106: 0.001901607813 | BF106: 0.002021532005 | BG106: 0.002139628728 | BH106: 0.002255871808 | BI106: 0.002370225047 | BJ106: 0.002482612223 | BK106: 0.00259292332 | BL106: 0.002701018511 | BM106: 0.002806731141 | BN106: 0.002909870112 | BO106: 0.003010270967 | BP106: 0.003107954692 | BQ106: 0.003202995535 | BR106: 0.003295476137 | BS106: 0.003385489814 | BT106: 0.003473141965 | BU106: 0.00355855177 | BV106: 0.003641853442 | BW106: 0.003723180325 | BX106: 0.003802611467 | BY106: 0.00388021932 | BZ106: 0.003956085556 | CA106: 0.00403030216 | CB106: 0.004102972083 | CC106: 0.004174208972 | CD106: 0.004244138304 | CE106: 0.004312896958 | CF106: 0.004380634043 | CG106: 0.004447510881 | CH106: 0.004513701264
B107: 85 | C107: 3.968129313e-06 | D107: -0.05663596486 | E107: -0.07427736455 | F107: -0.08582386087 | G107: -0.09515889045 | H107: -0.09809519459 | I107: -0.1033098868 | J107: -0.1048625802 | K107: -0.109677531 | L107: -0.1126949595 | M107: -0.1145882554 | N107: -0.1156173861 | O107: -0.1142717369 | P107: -0.1139697057 | Q107: -0.1145884324 | R107: -0.1128188858 | S107: -0.1098633355 | T107: -0.1069100301 | U107: -0.1050958028 | V107: -0.1027695037 | W107: -0.09935521104 | X107: -0.09607580681 | Y107: -0.09312919258 | Z107: -0.08914435853 | AA107: -0.08480445621 | AB107: -0.08140158039 | AC107: -0.07736000749 | AD107: -0.07294214617 | AE107: -0.06820753035 | AF107: -0.06306618612 | AG107: -0.05889724928 | AH107: -0.05415220554 | AI107: -0.04906364068 | AJ107: -0.04366415429 | AK107: -0.03794585152 | AL107: -0.03245353273 | AM107: -0.02617828143 | AN107: -0.01966576534 | AO107: -0.01317582219 | AP107: -0.006712734947 | AQ107: 0 | AS107: 0.0085 | AU107: 0.0005419561454 | AV107: 0.0007224643481 | AW107: 0.0008783235644 | AX107: 0.001022911397 | AY107: 0.001160985958 | AZ107: 0.001294823955 | BA107: 0.001425662053 | BB107: 0.001554203178 | BC107: 0.001680836843 | BD107: 0.001805748947 | BE107: 0.001928981607 | BF107: 0.002050467992 | BG107: 0.002170093108 | BH107: 0.002287831395 | BI107: 0.002403647046 | BJ107: 0.002517463651 | BK107: 0.002629170526 | BL107: 0.00273862676 | BM107: 0.002845664257 | BN107: 0.002950090153 | BO107: 0.003051738547 | BP107: 0.003150631255 | BQ107: 0.003246843961 | BR107: 0.003340460794 | BS107: 0.003431576642 | BT107: 0.003520298578 | BU107: 0.00360674758 | BV107: 0.003691059806 | BW107: 0.003773370491 | BX107: 0.003853759891 | BY107: 0.003932301558 | BZ107: 0.004009078357 | CA107: 0.004084183567 | CB107: 0.004157721543 | CC107: 0.004229807446 | CD107: 0.004300568386 | CE107: 0.00437014299 | CF107: 0.004438682245 | CG107: 0.004506349475 | CH107: 0.004573320599
B108: 86 | C108: 3.968129313e-06 | D108: -0.05659341777 | E108: -0.07417295794 | F108: -0.08576132464 | G108: -0.09504357566 | H108: -0.09806442323 | I108: -0.1031573136 | J108: -0.1047536271 | K108: -0.1096196285 | L108: -0.1125497386 | M108: -0.1145842298 | N108: -0.1155205304 | O108: -0.1142188357 | P108: -0.1136695744 | Q108: -0.1144272758 | R108: -0.1125001561 | S108: -0.1098190378 | T108: -0.10678697 | U108: -0.1047796879 | V108: -0.1027246911 | W108: -0.09929401345 | X108: -0.09598330829 | Y108: -0.09292752744 | Z108: -0.08912805527 | AA108: -0.08475692068 | AB108: -0.08104860105 | AC108: -0.0772320831 | AD108: -0.07281359984 | AE108: -0.06818989733 | AF108: -0.06302232564 | AG108: -0.05880640397 | AH108: -0.05410872231 | AI108: -0.04893590602 | AJ108: -0.04364306699 | AK108: -0.03791121315 | AL108: -0.0324370489 | AM108: -0.02608472835 | AN108: -0.01965795883 | AO108: -0.01314896165 | AP108: -0.006710571325 | AQ108: 0 | AS108: 0.0086 | AU108: 0.0005505284381 | AV108: 0.0007336406642 | AW108: 0.0008917000818 | AX108: 0.001038295975 | AY108: 0.001178262439 | AZ108: 0.00131391299 | BA108: 0.001446504693 | BB108: 0.001576752492 | BC108: 0.00170505305 | BD108: 0.001831596302 | BE108: 0.001956426255 | BF108: 0.002079476381 | BG108: 0.002200631262 | BH108: 0.002319865966 | BI108: 0.002437145095 | BJ108: 0.002552392059 | BK108: 0.002665495518 | BL108: 0.002776313489 | BM108: 0.002884676442 | BN108: 0.002990389757 | BO108: 0.003093286096 | BP108: 0.003193388113 | BQ108: 0.003290772939 | BR108: 0.003385526197 | BS108: 0.003477744352 | BT108: 0.003567536158 | BU108: 0.003655024397 | BV108: 0.003740347172 | BW108: 0.003823641619 | BX108: 0.003904989201 | BY108: 0.003984464576 | BZ108: 0.004062151803 | CA108: 0.00413814546 | CB108: 0.004212551305 | CC108: 0.004285486016 | CD108: 0.004357078337 | CE108: 0.004427468648 | CF108: 0.00449680981 | CG108: 0.004565267151 | CH108: 0.00463301872
B109: 87 | C109: 3.968129313e-06 | D109: -0.0565451361 | E109: -0.07415105828 | F109: -0.08568412528 | G109: -0.09487693506 | H109: -0.09790912181 | I109: -0.1027278382 | J109: -0.1045646925 | K109: -0.1094036706 | L109: -0.1123137283 | M109: -0.1145685745 | N109: -0.1153159577 | O109: -0.114195362 | P109: -0.1135876714 | Q109: -0.1143978739 | R109: -0.1124581599 | S109: -0.109544836 | T109: -0.1067167109 | U109: -0.104768096 | V109: -0.1020063326 | W109: -0.09927246455 | X109: -0.09527783778 | Y109: -0.09286881055 | Z109: -0.08911127687 | AA109: -0.08469479849 | AB109: -0.0809595502 | AC109: -0.07703998612 | AD109: -0.07280401967 | AE109: -0.06818636181 | AF109: -0.06296025638 | AG109: -0.05880208456 | AH109: -0.05404138925 | AI109: -0.0489213435 | AJ109: -0.04363152329 | AK109: -0.03783995596 | AL109: -0.03228312115 | AM109: -0.02605006311 | AN109: -0.01960759944 | AO109: -0.01310255646 | AP109: -0.006708799617 | AQ109: 0 | AS109: 0.0087 | AU109: 0.0005591370678 | AV109: 0.0007448602734 | AW109: 0.0009051250331 | AX109: 0.001053733181 | AY109: 0.001195595117 | AZ109: 0.001333061328 | BA109: 0.001467409371 | BB109: 0.001599366273 | BC109: 0.001729335887 | BD109: 0.001857512216 | BE109: 0.00198394118 | BF109: 0.002108556575 | BG109: 0.002231242574 | BH109: 0.00235197489 | BI109: 0.002470718546 | BJ109: 0.002587396786 | BK109: 0.002701897623 | BL109: 0.002814078012 | BM109: 0.002923766999 | BN109: 0.003030768217 | BO109: 0.003134912898 | BP109: 0.003236224544 | BQ109: 0.003334781739 | BR109: 0.003430671609 | BS109: 0.003523992202 | BT109: 0.003614853957 | BU109: 0.003703381467 | BV109: 0.003789714785 | BW109: 0.003873992949 | BX109: 0.003956298634 | BY109: 0.004036707609 | BZ109: 0.004115305128 | CA109: 0.004192187068 | CB109: 0.004267460597 | CC109: 0.004341243909 | CD109: 0.004413667385 | CE109: 0.004484873157 | CF109: 0.004555015964 | CG109: 0.004624263135 | CH109: 0.004692794853
B110: 88 | C110: 3.968129313e-06 | D110: -0.05632958744 | E110: -0.07405189294 | F110: -0.08558839588 | G110: -0.09482972379 | H110: -0.09742092114 | I110: -0.1027062583 | J110: -0.1043401424 | K110: -0.1092242294 | L110: -0.11227403 | M110: -0.1143402944 | N110: -0.1152378475 | O110: -0.1139519776 | P110: -0.113503075 | Q110: -0.1143786777 | R110: -0.1122204677 | S110: -0.1094684216 | T110: -0.1063408037 | U110: -0.1040567398 | V110: -0.1019984989 | W110: -0.09918738314 | X110: -0.09486120526 | Y110: -0.09282695867 | Z110: -0.08906935521 | AA110: -0.08459310661 | AB110: -0.08086860132 | AC110: -0.07702621894 | AD110: -0.07279810466 | AE110: -0.06818333575 | AF110: -0.0629405269 | AG110: -0.0587109053 | AH110: -0.05380780314 | AI110: -0.04872563378 | AJ110: -0.04351498399 | AK110: -0.03778305174 | AL110: -0.03213326724 | AM110: -0.02604151449 | AN110: -0.01959878377 | AO110: -0.01308954753 | AP110: -0.006706554785 | AQ110: 0 | AS110: 0.0088 | AU110: 0.0005677818092 | AV110: 0.0007561228904 | AW110: 0.0009185980862 | AX110: 0.001069222644 | AY110: 0.001212983585 | AZ110: 0.001352268528 | BA110: 0.001488375618 | BB110: 0.001622044023 | BC110: 0.001753684831 | BD110: 0.001883496144 | BE110: 0.002011525817 | BF110: 0.002137707988 | BG110: 0.002261926442 | BH110: 0.002384157548 | BI110: 0.002504366764 | BJ110: 0.002622477183 | BK110: 0.00273837618 | BL110: 0.002851919657 | BM110: 0.002962935246 | BN110: 0.00307122484 | BO110: 0.003176618252 | BP110: 0.003279139839 | BQ110: 0.003378869646 | BR110: 0.003475896308 | BS110: 0.003570319464 | BT110: 0.003662251244 | BU110: 0.003751818054 | BV110: 0.003839161903 | BW110: 0.003924423736 | BX110: 0.004007687445 | BY110: 0.004089029907 | BZ110: 0.004168537579 | CA110: 0.004246307638 | CB110: 0.004322448665 | CC110: 0.00439708037 | CD110: 0.004470334773 | CE110: 0.004542355759 | CF110: 0.004613299947 | CG110: 0.004683336669 | CH110: 0.004752648237
B111: 89 | C111: 3.968129313e-06 | D111: -0.05624151332 | E111: -0.07404953948 | F111: -0.08550041376 | G111: -0.09471399446 | H111: -0.09740352029 | I111: -0.1026201408 | J111: -0.1042425343 | K111: -0.109173597 | L111: -0.1122701637 | M111: -0.1140076305 | N111: -0.1151757331 | O111: -0.1136308581 | P111: -0.1133543506 | Q111: -0.1141484594 | R111: -0.1121038641 | S111: -0.1094410884 | T111: -0.106301218 | U111: -0.1040230339 | V111: -0.1017277509 | W111: -0.09891972328 | X111: -0.09479324336 | Y111: -0.09249348734 | Z111: -0.08891063611 | AA111: -0.08452367449 | AB111: -0.08071492381 | AC111: -0.07681263739 | AD111: -0.07264741314 | AE111: -0.06811913998 | AF111: -0.06289225551 | AG111: -0.05870174289 | AH111: -0.05351973291 | AI111: -0.04867346904 | AJ111: -0.04345463993 | AK111: -0.03778231635 | AL111: -0.03206698535 | AM111: -0.02590070094 | AN111: -0.01957240375 | AO111: -0.01307899374 | AP111: -0.006701875409 | AQ111: 0 | AS111: 0.0089 | AU111: 0.0005764624412 | AV111: 0.0007674282356 | AW111: 0.0009321189154 | AX111: 0.001084763997 | AY111: 0.001230427443 | AZ111: 0.001371534159 | BA111: 0.001509402974 | BB111: 0.001644785257 | BC111: 0.001778099372 | BD111: 0.001909547552 | BE111: 0.002039179611 | BF111: 0.002166930049 | BG111: 0.002292682275 | BH111: 0.002416413334 | BI111: 0.00253808913 | BJ111: 0.002657632616 | BK111: 0.002774930541 | BL111: 0.002889837766 | BM111: 0.003002180514 | BN111: 0.003111758949 | BO111: 0.003218401472 | BP111: 0.003322133305 | BQ111: 0.003423035959 | BR111: 0.003521199588 | BS111: 0.003616725427 | BT111: 0.0037097273 | BU111: 0.003800333436 | BV111: 0.003888687803 | BW111: 0.003974933254 | BX111: 0.004059154901 | BY111: 0.004141430737 | BZ111: 0.004221848421 | CA111: 0.004300506434 | CB111: 0.004377514769 | CC111: 0.004452994658 | CD111: 0.004527079759 | CE111: 0.004599915713 | CF111: 0.004671661017 | CG111: 0.004742487009 | CH111: 0.004812578131
B112: 90 | C112: 3.968129313e-06 | D112: -0.05624009853 | E112: -0.0740177478 | F112: -0.08549784853 | G112: -0.09468913256 | H112: -0.09718796146 | I112: -0.1025597946 | J112: -0.1040631464 | K112: -0.1091541792 | L112: -0.1122220845 | M112: -0.1140004705 | N112: -0.1149022312 | O112: -0.1134452619 | P112: -0.1133540608 | Q112: -0.1140207665 | R112: -0.1119882605 | S112: -0.1091070207 | T112: -0.1056316521 | U112: -0.1038666778 | V112: -0.1016638181 | W112: -0.09890504372 | X112: -0.09476202088 | Y112: -0.09233461484 | Z112: -0.08889481554 | AA112: -0.08451185494 | AB112: -0.08068706701 | AC112: -0.07663707261 | AD112: -0.07264644746 | AE112: -0.06804578072 | AF112: -0.06285843154 | AG112: -0.0586154845 | AH112: -0.05350817697 | AI112: -0.04856028507 | AJ112: -0.04344429283 | AK112: -0.03776934825 | AL112: -0.03196142513 | AM112: -0.02589906611 | AN112: -0.01955932834 | AO112: -0.01304332725 | AP112: -0.006700023942 | AQ112: 0 | AS112: 0.009 | AU112: 0.0005851787469 | AV112: 0.0007787760345 | AW112: 0.0009456872011 | AX112: 0.001100356884 | AY112: 0.001247926298 | AZ112: 0.001390857799 | BA112: 0.001530490987 | BB112: 0.001667589497 | BC112: 0.001802579011 | BD112: 0.00193566592 | BE112: 0.002066902021 | BF112: 0.002196222197 | BG112: 0.002323509495 | BH112: 0.002448741652 | BI112: 0.002571885033 | BJ112: 0.002692862463 | BK112: 0.002811560073 | BL112: 0.002927831693 | BM112: 0.003041502148 | BN112: 0.00315236988 | BO112: 0.003260261886 | BP112: 0.00336520426 | BQ112: 0.003467279991 | BR112: 0.003566580756 | BS112: 0.003663209392 | BT112: 0.003757281425 | BU112: 0.003848926908 | BV112: 0.003938291774 | BW112: 0.004025520788 | BX112: 0.004110700287 | BY112: 0.004193909381 | BZ112: 0.004275236933 | CA112: 0.004354782732 | CB112: 0.004432658186 | CC112: 0.004508986048 | CD112: 0.004583901617 | CE112: 0.004657552292 | CF112: 0.004730098449 | CG112: 0.004801713429 | CH112: 0.004872583808
B113: 91 | C113: 3.968129313e-06 | D113: -0.05616464189 | E113: -0.07382746273 | F113: -0.08503250225 | G113: -0.09460271389 | H113: -0.0967736221 | I113: -0.1024513315 | J113: -0.1040419288 | K113: -0.1086210087 | L113: -0.1117326025 | M113: -0.1137802235 | N113: -0.1137628057 | O113: -0.113349317 | P113: -0.1132660642 | Q113: -0.113925796 | R113: -0.1119734693 | S113: -0.1090801465 | T113: -0.105545103 | U113: -0.1033502121 | V113: -0.1015223255 | W113: -0.09883182911 | X113: -0.09467862206 | Y113: -0.09228823324 | Z113: -0.08868281713 | AA113: -0.08442240017 | AB113: -0.08060618698 | AC113: -0.07651814353 | AD113: -0.07253682529 | AE113: -0.0679674293 | AF113: -0.06279701243 | AG113: -0.05837850264 | AH113: -0.05340636937 | AI113: -0.04854993325 | AJ113: -0.04343607514 | AK113: -0.03763816922 | AL113: -0.03195741875 | AM113: -0.02583979224 | AN113: -0.01953392781 | AO113: -0.01304184456 | AP113: -0.006688091938 | AQ113: 0 | AS113: 0.0091 | AU113: 0.0005939305133 | AV113: 0.0007901660177 | AW113: 0.0009593026298 | AX113: 0.001116000952 | AY113: 0.001265479766 | AZ113: 0.001410239031 | BA113: 0.001551639216 | BB113: 0.001690456277 | BC113: 0.001827123255 | BD113: 0.001961850733 | BE113: 0.002094692514 | BF113: 0.00222558388 | BG113: 0.002354407535 | BH113: 0.002481141921 | BI113: 0.002605753878 | BJ113: 0.002728166113 | BK113: 0.002848264153 | BL113: 0.002965900805 | BM113: 0.003080899504 | BN113: 0.00319305698 | BO113: 0.003302198833 | BP113: 0.003408352039 | BQ113: 0.003511601071 | BR113: 0.003612039134 | BS113: 0.003709770676 | BT113: 0.003804912929 | BU113: 0.003897597777 | BV113: 0.003987973119 | BW113: 0.00407618564 | BX113: 0.004162322901 | BY113: 0.004246465134 | BZ113: 0.00432870241 | CA113: 0.004409135825 | CB113: 0.004487878207 | CC113: 0.00456505383 | CD113: 0.004640799638 | CE113: 0.004715264784 | CF113: 0.004788611529 | CG113: 0.004861015217 | CH113: 0.004932664555
B114: 92 | C114: 3.968129313e-06 | D114: -0.05598720462 | E114: -0.07366788365 | F114: -0.08493302193 | G114: -0.09459045578 | H114: -0.09671801233 | I114: -0.1023829423 | J114: -0.103896598 | K114: -0.1086189751 | L114: -0.111204761 | M114: -0.1135930336 | N114: -0.1133075039 | O114: -0.1130283168 | P114: -0.1132562144 | Q114: -0.1133845601 | R114: -0.1117901025 | S114: -0.1090791813 | T114: -0.10553567 | U114: -0.1031401843 | V114: -0.1013204346 | W114: -0.09843533031 | X114: -0.09446301004 | Y114: -0.0920720458 | Z114: -0.08867399072 | AA114: -0.08442003621 | AB114: -0.08033744176 | AC114: -0.07649563427 | AD114: -0.07249163377 | AE114: -0.06782702817 | AF114: -0.06267991748 | AG114: -0.05818128977 | AH114: -0.0533668309 | AI114: -0.04840566008 | AJ114: -0.04341107193 | AK114: -0.03758160982 | AL114: -0.03195109262 | AM114: -0.02583384094 | AN114: -0.01952004634 | AO114: -0.0130391285 | AP114: -0.006684926892 | AQ114: 0 | AS114: 0.0092 | AU114: 0.0006027175314 | AV114: 0.0008015979208 | AW114: 0.0009729648936 | AX114: 0.001131695857 | AY114: 0.001283087468 | AZ114: 0.001429677449 | BA114: 0.001572847227 | BB114: 0.001713385137 | BC114: 0.001851731624 | BD114: 0.00198810149 | BE114: 0.002122550568 | BF114: 0.002255014559 | BG114: 0.002385375839 | BH114: 0.002513613569 | BI114: 0.00263969508 | BJ114: 0.00276354297 | BK114: 0.002885042174 | BL114: 0.003004044483 | BM114: 0.003120371955 | BN114: 0.003233819613 | BO114: 0.00334421167 | BP114: 0.00345157599 | BQ114: 0.003555998538 | BR114: 0.003657574058 | BS114: 0.003756408609 | BT114: 0.003852621139 | BU114: 0.003946345365 | BV114: 0.004037731159 | BW114: 0.004126927126 | BX114: 0.004214022057 | BY114: 0.004299097307 | BZ114: 0.00438224416 | CA114: 0.00446356502 | CB114: 0.004543174137 | CC114: 0.004621197309 | CD114: 0.004697773124 | CE114: 0.004773052494 | CF114: 0.004847199561 | CG114: 0.004920391675 | CH114: 0.004992819675
B115: 93 | C115: 3.968129313e-06 | D115: -0.05582056279 | E115: -0.07358700505 | F115: -0.08490141789 | G115: -0.09440340244 | H115: -0.0967123375 | I115: -0.1023282144 | J115: -0.1035804258 | K115: -0.1085878079 | L115: -0.1108197359 | M115: -0.1135458094 | N115: -0.1132032879 | O115: -0.113018098 | P115: -0.1129359541 | Q115: -0.1131552118 | R115: -0.1115454223 | S115: -0.1090654188 | T115: -0.1054611156 | U115: -0.1029756901 | V115: -0.1011297931 | W115: -0.09828519493 | X115: -0.09421472082 | Y115: -0.09178937071 | Z115: -0.08858443777 | AA115: -0.08413147454 | AB115: -0.0803254308 | AC115: -0.07645997901 | AD115: -0.07244592851 | AE115: -0.06769251765 | AF115: -0.06259834837 | AG115: -0.0581428481 | AH115: -0.05333394947 | AI115: -0.04828071625 | AJ115: -0.04338659421 | AK115: -0.03757313335 | AL115: -0.031909619 | AM115: -0.0257608409 | AN115: -0.01951462813 | AO115: -0.01302759468 | AP115: -0.0066804002 | AQ115: 0 | AS115: 0.0093 | AU115: 0.0006115395957 | AV115: 0.0008130714842 | AW115: 0.0009866736904 | AX115: 0.00114744126 | AY115: 0.001300749036 | AZ115: 0.001449172654 | BA115: 0.001594114592 | BB115: 0.001736375627 | BC115: 0.001876403644 | BD115: 0.002014417697 | BE115: 0.002150475672 | BF115: 0.002284513705 | BG115: 0.00241641386 | BH115: 0.002546156036 | BI115: 0.002673708063 | BJ115: 0.002798992447 | BK115: 0.002921893536 | BL115: 0.00304226212 | BM115: 0.003159918883 | BN115: 0.003274657152 | BO115: 0.003386299761 | BP115: 0.003494875472 | BQ115: 0.003600471747 | BR115: 0.003703184875 | BS115: 0.003803122535 | BT115: 0.003900405394 | BU115: 0.003995169007 | BV115: 0.004087565224 | BW115: 0.004177744574 | BX115: 0.00426579708 | BY115: 0.004351805225 | BZ115: 0.004435861505 | CA115: 0.004518069639 | CB115: 0.004598545296 | CC115: 0.004677415804 | CD115: 0.004754821394 | CE115: 0.004830914738 | CF115: 0.004905861861 | CG115: 0.004979842121 | CH115: 0.005053048486
B116: 94 | C116: 3.968129313e-06 | D116: -0.05575338541 | E116: -0.07334140114 | F116: -0.08484485288 | G116: -0.09437709888 | H116: -0.09602669221 | I116: -0.1021431168 | J116: -0.103313119 | K116: -0.1084785582 | L116: -0.1107609267 | M116: -0.1135337942 | N116: -0.1123434868 | O116: -0.112857518 | P116: -0.1127076578 | Q116: -0.113140508 | R116: -0.1115108356 | S116: -0.1090434688 | T116: -0.1054493364 | U116: -0.1029670205 | V116: -0.1010332325 | W116: -0.0982417257 | X116: -0.09391400481 | Y116: -0.09174760652 | Z116: -0.08856801936 | AA116: -0.08412948673 | AB116: -0.08022207851 | AC116: -0.07644299483 | AD116: -0.07236586831 | AE116: -0.06763556905 | AF116: -0.06242938418 | AG116: -0.05804551393 | AH116: -0.05327956206 | AI116: -0.04825390105 | AJ116: -0.04329488891 | AK116: -0.03745977257 | AL116: -0.03182964545 | AM116: -0.02568538953 | AN116: -0.01948749569 | AO116: -0.01301593983 | AP116: -0.006663650476 | AQ116: 0 | AS116: 0.0094 | AU116: 0.0006203965045 | AV116: 0.0008245864529 | AW116: 0.001000428724 | AX116: 0.00116323683 | AY116: 0.001318464104 | AZ116: 0.001468724254 | BA116: 0.001615440896 | BB116: 0.001759427306 | BC116: 0.001901138853 | BD116: 0.002040798872 | BE116: 0.002178467323 | BF116: 0.002314080798 | BG116: 0.002447521065 | BH116: 0.002578768773 | BI116: 0.002707792267 | BJ116: 0.002834513969 | BK116: 0.002958817655 | BL116: 0.003080553118 | BM116: 0.003199539682 | BN116: 0.003315568984 | BO116: 0.003428462487 | BP116: 0.003538249857 | BQ116: 0.003645020064 | BR116: 0.003748870946 | BS116: 0.003849911811 | BT116: 0.003948265047 | BU116: 0.004044068052 | BV116: 0.00413747466 | BW116: 0.004228637326 | BX116: 0.00431764731 | BY116: 0.004404588225 | BZ116: 0.004489553781 | CA116: 0.004572649015 | CB116: 0.004653991018 | CC116: 0.004733708646 | CD116: 0.004811943778 | CE116: 0.004888850847 | CF116: 0.004964597761 | CG116: 0.005039365884 | CH116: 0.005113350318
B117: 95 | C117: 3.968129313e-06 | D117: -0.05573234496 | E117: -0.07332918328 | F117: -0.0846987871 | G117: -0.09401161799 | H117: -0.09601971171 | I117: -0.1020792288 | J117: -0.1032523495 | K117: -0.1084668161 | L117: -0.1105895901 | M117: -0.1133563497 | N117: -0.1115889174 | O117: -0.1121316071 | P117: -0.1126918971 | Q117: -0.1128188346 | R117: -0.1113427684 | S117: -0.1084987535 | T117: -0.1053558913 | U117: -0.1028411579 | V117: -0.1010182651 | W117: -0.09822166628 | X117: -0.09391287448 | Y117: -0.09163484246 | Z117: -0.08827240934 | AA117: -0.08407298998 | AB117: -0.07998174366 | AC117: -0.07642789975 | AD117: -0.07220563594 | AE117: -0.06759600693 | AF117: -0.06224672394 | AG117: -0.05799612178 | AH117: -0.05327451171 | AI117: -0.04818746337 | AJ117: -0.04307927961 | AK117: -0.037361707 | AL117: -0.03182866065 | AM117: -0.02565632597 | AN117: -0.01945889448 | AO117: -0.01301075133 | AP117: -0.006643694262 | AQ117: 0 | AS117: 0.0095 | AU117: 0.0006292880598 | AV117: 0.0008361425764 | AW117: 0.001014229702 | AX117: 0.001179082239 | AY117: 0.001336232316 | AZ117: 0.001488331863 | BA117: 0.001636825726 | BB117: 0.00178253974 | BC117: 0.001925936796 | BD117: 0.002067244539 | BE117: 0.002206525028 | BF117: 0.002343715328 | BG117: 0.002478696928 | BH117: 0.002611451241 | BI117: 0.002741947138 | BJ117: 0.002870106972 | BK117: 0.002995813955 | BL117: 0.003118916894 | BM117: 0.00323923376 | BN117: 0.003356554508 | BO117: 0.003470699238 | BP117: 0.00358169853 | BQ117: 0.003689642868 | BR117: 0.003794631646 | BS117: 0.003896775804 | BT117: 0.003996199461 | BU117: 0.004093041862 | BV117: 0.004187458825 | BW117: 0.004279604738 | BX117: 0.004369572101 | BY117: 0.004457445658 | BZ117: 0.004543320338 | CA117: 0.004627302496 | CB117: 0.004709510648 | CC117: 0.004790075181 | CD117: 0.004869139623 | CE117: 0.004946860166 | CF117: 0.005023406604 | CG117: 0.005098962308 | CH117: 0.005173724514
B118: 96 | C118: 3.968129313e-06 | D118: -0.05534944487 | E118: -0.07325099197 | F118: -0.08461923412 | G118: -0.09394424511 | H118: -0.09579872359 | I118: -0.1020593495 | J118: -0.1031685407 | K118: -0.1084135671 | L118: -0.1102854928 | M118: -0.1129929245 | N118: -0.111088208 | O118: -0.1120076081 | P118: -0.1126884421 | Q118: -0.1125495542 | R118: -0.1113088993 | S118: -0.1084907447 | T118: -0.1052015862 | U118: -0.1025717118 | V118: -0.1010041945 | W118: -0.0981082212 | X118: -0.09346848333 | Y118: -0.09158834673 | Z118: -0.08793696202 | AA118: -0.08397669886 | AB118: -0.07981164311 | AC118: -0.07629438466 | AD118: -0.07218549573 | AE118: -0.06749559759 | AF118: -0.06224447331 | AG118: -0.0579330668 | AH118: -0.05322285707 | AI118: -0.04815811015 | AJ118: -0.04303864536 | AK118: -0.03731828315 | AL118: -0.03175782339 | AM118: -0.02563901734 | AN118: -0.0194475702 | AO118: -0.01299810486 | AP118: -0.006643043938 | AQ118: 0 | AS118: 0.0096 | AU118: 0.0006382140669 | AV118: 0.0008477396089 | AW118: 0.001028076339 | AX118: 0.001194977168 | AY118: 0.001354053321 | AZ118: 0.001507995103 | BA118: 0.00165826868 | BB118: 0.001805712503 | BC118: 0.001950797025 | BD118: 0.002093754232 | BE118: 0.002234648303 | BF118: 0.002373416797 | BG118: 0.002509940934 | BH118: 0.002644202909 | BI118: 0.002776172135 | BJ118: 0.002905770903 | BK118: 0.003032881872 | BL118: 0.003157352874 | BM118: 0.003279000533 | BN118: 0.003397613132 | BO118: 0.003513009417 | BP118: 0.003625220888 | BQ118: 0.003734339549 | BR118: 0.00384046636 | BS118: 0.003943713897 | BT118: 0.004044208013 | BU118: 0.004142089809 | BV118: 0.004237517089 | BW118: 0.004330646178 | BX118: 0.004421570817 | BY118: 0.004510376887 | BZ118: 0.004597160537 | CA118: 0.004682029442 | CB118: 0.004765103546 | CC118: 0.004846514767 | CD118: 0.004926408284 | CE118: 0.00500494205 | CF118: 0.005082287746 | CG118: 0.00515863075 | CH118: 0.005234170431
B119: 97 | C119: 3.968129313e-06 | D119: -0.05515803672 | E119: -0.07313399928 | F119: -0.08455519719 | G119: -0.09385676085 | H119: -0.09565597534 | I119: -0.1019576374 | J119: -0.1031607278 | K119: -0.1083952627 | L119: -0.1100777921 | M119: -0.1128895761 | N119: -0.1109850882 | O119: -0.1118330561 | P119: -0.1125435456 | Q119: -0.1124041995 | R119: -0.1110214499 | S119: -0.1082738725 | T119: -0.1051902281 | U119: -0.1024737158 | V119: -0.1009740738 | W119: -0.09806583579 | X119: -0.09320516812 | Y119: -0.09157814989 | Z119: -0.08772878383 | AA119: -0.08378861857 | AB119: -0.07967407027 | AC119: -0.07615555241 | AD119: -0.07215058435 | AE119: -0.06742821368 | AF119: -0.0621916881 | AG119: -0.0579210367 | AH119: -0.05319827367 | AI119: -0.04809771385 | AJ119: -0.04302177347 | AK119: -0.03728161079 | AL119: -0.03173212184 | AM119: -0.02559703402 | AN119: -0.01940869397 | AO119: -0.01297123101 | AP119: -0.006616101989 | AQ119: 0 | AS119: 0.0097 | AU119: 0.0006471743343 | AV119: 0.0008593773085 | AW119: 0.001041968353 | AX119: 0.001210921302 | AY119: 0.001371926775 | AZ119: 0.001527713604 | BA119: 0.001679769363 | BB119: 0.001828945178 | BC119: 0.001975719103 | BD119: 0.002120327494 | BE119: 0.002262836675 | BF119: 0.002403184711 | BG119: 0.002541252578 | BH119: 0.00267702326 | BI119: 0.002810466726 | BJ119: 0.002941505219 | BK119: 0.003070020853 | BL119: 0.003195860494 | BM119: 0.00331883943 | BN119: 0.003438744279 | BO119: 0.003555392439 | BP119: 0.003668816338 | BQ119: 0.00377910951 | BR119: 0.003886374484 | BS119: 0.003990725481 | BT119: 0.004092290094 | BU119: 0.004191211278 | BV119: 0.004287648835 | BW119: 0.004381761025 | BX119: 0.004473642836 | BY119: 0.004563381287 | BZ119: 0.004651073751 | CA119: 0.004736829225 | CB119: 0.004820769083 | CC119: 0.004903026775 | CD119: 0.004983749131 | CE119: 0.005063095871 | CF119: 0.005141240557 | CG119: 0.00521837058 | CH119: 0.005294687438
B120: 98 | C120: 3.968129313e-06 | D120: -0.05506000248 | E120: -0.07303701856 | F120: -0.08415642532 | G120: -0.09316994607 | H120: -0.09559764613 | I120: -0.1019063451 | J120: -0.1030822439 | K120: -0.1081936155 | L120: -0.1098702354 | M120: -0.1126765757 | N120: -0.110522661 | O120: -0.1118271689 | P120: -0.1123790586 | Q120: -0.1123587864 | R120: -0.1109656598 | S120: -0.1081959633 | T120: -0.1050031101 | U120: -0.102036697 | V120: -0.1008646101 | W120: -0.09783206875 | X120: -0.09311646512 | Y120: -0.09128747599 | Z120: -0.08771979271 | AA120: -0.08378858416 | AB120: -0.07963632565 | AC120: -0.07612232524 | AD120: -0.07202723145 | AE120: -0.06720367876 | AF120: -0.06212857761 | AG120: -0.05774854346 | AH120: -0.0531178167 | AI120: -0.04796742928 | AJ120: -0.04301036042 | AK120: -0.03727518941 | AL120: -0.03154871985 | AM120: -0.02558877851 | AN120: -0.01939474753 | AO120: -0.01294230525 | AP120: -0.006576827653 | AQ120: 0 | AS120: 0.0098 | AU120: 0.000656168674 | AV120: 0.0008710554378 | AW120: 0.001055905469 | AX120: 0.001226914331 | AY120: 0.001389852338 | AZ120: 0.001547487 | BA120: 0.001701327387 | BB120: 0.001852237353 | BC120: 0.002000702598 | BD120: 0.002146963876 | BE120: 0.002291089675 | BF120: 0.002433018591 | BG120: 0.002572631361 | BH120: 0.002709911783 | BI120: 0.00284483039 | BJ120: 0.002977309386 | BK120: 0.003107230355 | BL120: 0.003234439203 | BM120: 0.00335874989 | BN120: 0.003479947379 | BO120: 0.003597847726 | BP120: 0.003712484298 | BQ120: 0.003823952164 | BR120: 0.003932355427 | BS120: 0.004037809962 | BT120: 0.004140445102 | BU120: 0.004240405668 | BV120: 0.004337853456 | BW120: 0.00443294867 | BX120: 0.004525787548 | BY120: 0.004616458246 | BZ120: 0.004705059367 | CA120: 0.00479170123 | CB120: 0.004876506642 | CC120: 0.004959610587 | CD120: 0.005041161548 | CE120: 0.005121321008 | CF120: 0.005200264419 | CG120: 0.005278181177 | CH120: 0.005355274917
B121: 99 | C121: 3.968129313e-06 | D121: -0.05487817711 | E121: -0.0728811406 | F121: -0.08413206759 | G121: -0.09273132322 | H121: -0.09544224769 | I121: -0.1018651694 | J121: -0.1027344878 | K121: -0.108154339 | L121: -0.1098485102 | M121: -0.1126503371 | N121: -0.1105008222 | O121: -0.1115939542 | P121: -0.1123301611 | Q121: -0.1117591243 | R121: -0.1108307315 | S121: -0.1081869191 | T121: -0.1044352874 | U121: -0.1018507567 | V121: -0.1007542182 | W121: -0.09782374047 | X121: -0.09307306617 | Y121: -0.09125826944 | Z121: -0.08753776043 | AA121: -0.08376333506 | AB121: -0.07961606891 | AC121: -0.07604125669 | AD121: -0.07192038641 | AE121: -0.0671672 | AF121: -0.06173950099 | AG121: -0.05761950583 | AH121: -0.05309005142 | AI121: -0.047876615 | AJ121: -0.04298728367 | AK121: -0.03708248036 | AL121: -0.03147731921 | AM121: -0.02558563762 | AN121: -0.01939186157 | AO121: -0.01292712201 | AP121: -0.006576005732 | AQ121: 0 | AS121: 0.0099 | AU121: 0.000665196901 | AV121: 0.0008827737631 | AW121: 0.001069887416 | AX121: 0.001242955952 | AY121: 0.00140782968 | AZ121: 0.001567314933 | BA121: 0.001722942368 | BB121: 0.001875588626 | BC121: 0.002025747088 | BD121: 0.002173662936 | BE121: 0.002319406847 | BF121: 0.002462917961 | BG121: 0.002604076798 | BH121: 0.002742867977 | BI121: 0.002879262612 | BJ121: 0.003013182882 | BK121: 0.003144509843 | BL121: 0.003273088457 | BM121: 0.003398731363 | BN121: 0.003521221875 | BO121: 0.003640374716 | BP121: 0.003756224198 | BQ121: 0.003868866934 | BR121: 0.00397840861 | BS121: 0.004084966753 | BT121: 0.00418867245 | BU121: 0.004289672386 | BV121: 0.004388130358 | BW121: 0.004484208517 | BX121: 0.004578004352 | BY121: 0.004669607163 | BZ121: 0.004759116782 | CA121: 0.004846644853 | CB121: 0.004932315618 | CC121: 0.005016265597 | CD121: 0.005098644926 | CE121: 0.005179616855 | CF121: 0.005259358723 | CG121: 0.005338061936 | CH121: 0.005415932261
B122: 100 | C122: 3.968129313e-06 | D122: -0.05480964206 | E122: -0.07277815093 | F122: -0.08412517853 | G122: -0.09222446587 | H122: -0.09541531311 | I122: -0.1015998155 | J122: -0.1027125165 | K122: -0.1080744102 | L122: -0.1095832868 | M122: -0.1125624553 | N122: -0.1104763634 | O122: -0.1111259435 | P122: -0.1117631203 | Q122: -0.1116777759 | R122: -0.1105378655 | S122: -0.1078779722 | T122: -0.1044271213 | U122: -0.1018497258 | V122: -0.1005555578 | W122: -0.09778955306 | X122: -0.09305378803 | Y122: -0.09125681359 | Z122: -0.08738019725 | AA122: -0.08375024577 | AB122: -0.07960938319 | AC122: -0.07590962236 | AD122: -0.07171058651 | AE122: -0.06698824692 | AF122: -0.06173217947 | AG122: -0.05756273565 | AH122: -0.05307894754 | AI122: -0.04786129715 | AJ122: -0.0428835969 | AK122: -0.03704717001 | AL122: -0.03133711047 | AM122: -0.02557578889 | AN122: -0.01932423861 | AO122: -0.0129012704 | AP122: -0.006568583125 | AQ122: 0 | AS122: 0.01 | AU122: 0.0006742588336 | AV122: 0.0008945320549 | AW122: 0.001083913925 | AX122: 0.001259045866 | AY122: 0.001425858472 | AZ122: 0.001587197052 | BA122: 0.001744613933 | BB122: 0.001898998601 | BC122: 0.002050852157 | BD122: 0.002200424242 | BE122: 0.00234778774 | BF122: 0.002492882357 | BG122: 0.002635588409 | BH122: 0.002775891352 | BI122: 0.002913762891 | BJ122: 0.003049125191 | BK122: 0.003181858796 | BL122: 0.003311807725 | BM122: 0.003438783308 | BN122: 0.003562567218 | BO122: 0.003682972854 | BP122: 0.003800035479 | BQ122: 0.003913853256 | BR122: 0.00402453346 | BS122: 0.004132195282 | BT122: 0.00423697156 | BU122: 0.00433901085 | BV122: 0.004438478957 | BW122: 0.00453553998 | BX122: 0.00463029266 | BY122: 0.004722827448 | BZ122: 0.004813245403 | CA122: 0.004901659502 | CB122: 0.004988195417 | CC122: 0.005072991211 | CD122: 0.005156198671 | CE122: 0.005237982817 | CF122: 0.005318522875 | CG122: 0.00539801226 | CH122: 0.005476658875
B123: 101 | C123: 3.968129313e-06 | D123: -0.05455194425 | E123: -0.07267658342 | F123: -0.08382749143 | G123: -0.09219102755 | H123: -0.09512409879 | I123: -0.1014943328 | J123: -0.1026883459 | K123: -0.1079015598 | L123: -0.1095569666 | M123: -0.1125438174 | N123: -0.1104235513 | O123: -0.1110719761 | P123: -0.111660762 | Q123: -0.1115283042 | R123: -0.1102227627 | S123: -0.1078196991 | T123: -0.1043525146 | U123: -0.101660036 | V123: -0.100542107 | W123: -0.09773021495 | X123: -0.09280582445 | Y123: -0.09074656409 | Z123: -0.08717533014 | AA123: -0.08366449917 | AB123: -0.07960456752 | AC123: -0.07561044343 | AD123: -0.07157445468 | AE123: -0.06689974494 | AF123: -0.06167949097 | AG123: -0.05752119843 | AH123: -0.0530411808 | AI123: -0.04785246288 | AJ123: -0.04278554871 | AK123: -0.0370333714 | AL123: -0.03129150421 | AM123: -0.02544944203 | AN123: -0.01932362089 | AO123: -0.01289101675 | AP123: -0.006549835479 | AQ123: 0 | AS123: 0.0101 | AU123: 0.0006833542929 | AV123: 0.0009063300875 | AW123: 0.001097984734 | AX123: 0.001275183779 | AY123: 0.001443938394 | AZ123: 0.00160713301 | BA123: 0.001766341713 | BB123: 0.001922466887 | BC123: 0.002076017397 | BD123: 0.002227247366 | BE123: 0.002376231913 | BF123: 0.002522911323 | BG123: 0.002667165723 | BH123: 0.002808981423 | BI123: 0.002948330733 | BJ123: 0.00308513581 | BK123: 0.003219276697 | BL123: 0.003350596484 | BM123: 0.003478905195 | BN123: 0.003603982871 | BO123: 0.003725641595 | BP123: 0.00384391759 | BQ123: 0.003958910574 | BR123: 0.004070729421 | BS123: 0.004179494984 | BT123: 0.004285341864 | BU123: 0.004388420492 | BV123: 0.004488898681 | BW123: 0.004586942482 | BX123: 0.004682651896 | BY123: 0.004776118522 | BZ123: 0.004867444652 | CA123: 0.004956744593 | CB123: 0.005044145458 | CC123: 0.005129786844 | CD123: 0.0052138222 | CE123: 0.00529641831 | CF123: 0.00537775629 | CG123: 0.005458031565 | CH123: 0.005537454173
B124: 102 | C124: 3.968129313e-06 | D124: -0.0543742961 | E124: -0.07243488412 | F124: -0.08366569442 | G124: -0.09211548948 | H124: -0.09495598106 | I124: -0.1007803155 | J124: -0.1025723771 | K124: -0.1074774968 | L124: -0.1094064945 | M124: -0.1124841919 | N124: -0.1098913338 | O124: -0.1110631459 | P124: -0.1116147551 | Q124: -0.1114272297 | R124: -0.1101824843 | S124: -0.1074439023 | T124: -0.1040330017 | U124: -0.1016374115 | V124: -0.1005104922 | W124: -0.0976626171 | X124: -0.09275585548 | Y124: -0.09073567533 | Z124: -0.08710473584 | AA124: -0.08364209349 | AB124: -0.07955180442 | AC124: -0.07560010584 | AD124: -0.07118493064 | AE124: -0.06688235095 | AF124: -0.06152780335 | AG124: -0.05748273444 | AH124: -0.05286280479 | AI124: -0.04760104555 | AJ124: -0.04271441496 | AK124: -0.03701784028 | AL124: -0.03125444265 | AM124: -0.0254048422 | AN124: -0.01931787396 | AO124: -0.01288932702 | AP124: -0.006549526997 | AQ124: 0 | AS124: 0.0102 | AU124: 0.000692483103 | AV124: 0.0009181676389 | AW124: 0.001112099587 | AX124: 0.001291369403 | AY124: 0.00146206913 | AZ124: 0.001627122467 | BA124: 0.001788125345 | BB124: 0.001945993103 | BC124: 0.002101242407 | BD124: 0.002254131891 | BE124: 0.002404738931 | BF124: 0.002553004409 | BG124: 0.002698808279 | BH124: 0.002842137717 | BI124: 0.00298296565 | BJ124: 0.003121214242 | BK124: 0.003256763043 | BL124: 0.003389454218 | BM124: 0.003519096501 | BN124: 0.003645468305 | BO124: 0.003768380405 | BP124: 0.00388786999 | BQ124: 0.004004038344 | BR124: 0.00411699594 | BS124: 0.004226865306 | BT124: 0.004333782806 | BU124: 0.004437900751 | BV124: 0.004539388966 | BW124: 0.004638415459 | BX124: 0.004735081492 | BY124: 0.004829479815 | BZ124: 0.004921713957 | CA124: 0.005011899557 | CB124: 0.005100165167 | CC124: 0.005186651925 | CD124: 0.005271514938 | CE124: 0.005354922759 | CF124: 0.005437058393 | CG124: 0.005518119278 | CH124: 0.005598317583
B125: 103 | C125: 3.968129313e-06 | D125: -0.05435777928 | E125: -0.07230596616 | F125: -0.08352609248 | G125: -0.09161952275 | H125: -0.09489033058 | I125: -0.1006483044 | J125: -0.1025119682 | K125: -0.1073290714 | L125: -0.1091769556 | M125: -0.1124210365 | N125: -0.1098108565 | O125: -0.1110305422 | P125: -0.1115361421 | Q125: -0.1109971406 | R125: -0.109536486 | S125: -0.107362068 | T125: -0.1035403275 | U125: -0.1010248543 | V125: -0.1004775489 | W125: -0.09762974206 | X125: -0.09274362136 | Y125: -0.09048478633 | Z125: -0.08710023217 | AA125: -0.08320263519 | AB125: -0.07944605224 | AC125: -0.07528840586 | AD125: -0.07100177446 | AE125: -0.06680048304 | AF125: -0.06151205574 | AG125: -0.05747722668 | AH125: -0.05279185746 | AI125: -0.04747962805 | AJ125: -0.04251357841 | AK125: -0.0369662328 | AL125: -0.03124055503 | AM125: -0.0254015579 | AN125: -0.01931592776 | AO125: -0.01288277886 | AP125: -0.006541652963 | AQ125: 0 | AS125: 0.0103 | AU125: 0.0007016450908 | AV125: 0.0009300444906 | AW125: 0.001126258228 | AX125: 0.001307602454 | AY125: 0.001480250369 | AZ125: 0.001647165089 | BA125: 0.001809964473 | BB125: 0.001969576873 | BC125: 0.002126526791 | BD125: 0.002281077406 | BE125: 0.002433308367 | BF125: 0.002583161174 | BG125: 0.002730515622 | BH125: 0.002875359768 | BI125: 0.003017667166 | BJ125: 0.003157360001 | BK125: 0.003294317335 | BL125: 0.003428380425 | BM125: 0.003559356715 | BN125: 0.003687023002 | BO125: 0.003811188759 | BP125: 0.00393189215 | BQ125: 0.00404923603 | BR125: 0.00416333248 | BS125: 0.004274305705 | BT125: 0.004382293839 | BU125: 0.004487451077 | BV125: 0.004589949261 | BW125: 0.004689958357 | BX125: 0.004787580892 | BY125: 0.00488291077 | BZ125: 0.004976052759 | CA125: 0.005067123833 | CB125: 0.005156253982 | CC125: 0.005243585892 | CD125: 0.005329276324 | CE125: 0.005413495602 | CF125: 0.005496428623 | CG125: 0.005578274834 | CH125: 0.00565924854
B126: 104 | C126: 3.968129313e-06 | D126: -0.05414038364 | E126: -0.07190605589 | F126: -0.08341409706 | G126: -0.09073539684 | H126: -0.09476741074 | I126: -0.1006397771 | J126: -0.1024637286 | K126: -0.1071233745 | L126: -0.10915247 | M126: -0.1123718135 | N126: -0.1097999477 | O126: -0.1109371518 | P126: -0.1113859951 | Q126: -0.1107815365 | R126: -0.1093740426 | S126: -0.1072783532 | T126: -0.1035158009 | U126: -0.1010155141 | V126: -0.10040795 | W126: -0.09756584265 | X126: -0.09260851967 | Y126: -0.09043882158 | Z126: -0.08705192668 | AA126: -0.08318674621 | AB126: -0.07936135021 | AC126: -0.07518237978 | AD126: -0.07096640344 | AE126: -0.06677587089 | AF126: -0.06150596861 | AG126: -0.05741076291 | AH126: -0.05274452318 | AI126: -0.04747440732 | AJ126: -0.04236169573 | AK126: -0.03694737953 | AL126: -0.03122412896 | AM126: -0.0253665585 | AN126: -0.01930696072 | AO126: -0.01288094524 | AP126: -0.006530146017 | AQ126: 0 | AS126: 0.0104 | AU126: 0.000710840086 | AV126: 0.000941960428 | AW126: 0.001140460409 | AX126: 0.001323882652 | AY126: 0.001498481807 | AZ126: 0.001667260547 | BA126: 0.001831858747 | BB126: 0.001993217826 | BC126: 0.002151870163 | BD126: 0.002308083506 | BE126: 0.002461939802 | BF126: 0.002613381185 | BG126: 0.002762287307 | BH126: 0.002908647117 | BI126: 0.003052434813 | BJ126: 0.003193572607 | BK126: 0.003331939088 | BL126: 0.003467374608 | BM126: 0.003599685333 | BN126: 0.003728646451 | BO126: 0.00385406614 | BP126: 0.003975983548 | BQ126: 0.004094503107 | BR126: 0.004209738509 | BS126: 0.004321815647 | BT126: 0.004430874426 | BU126: 0.00453707093 | BV126: 0.004640579022 | BW126: 0.004741570631 | BX126: 0.004840149549 | BY126: 0.004936410839 | BZ126: 0.005030460508 | CA126: 0.005122416869 | CB126: 0.005212411354 | CC126: 0.00530058819 | CD126: 0.005387105803 | CE126: 0.005472136285 | CF126: 0.005555866425 | CG126: 0.005638497682 | CH126: 0.005720246494
B127: 105 | C127: 3.968129313e-06 | D127: -0.05387126407 | E127: -0.07190251441 | F127: -0.08312029158 | G127: -0.0907146563 | H127: -0.0947379101 | I127: -0.1004586173 | J127: -0.1024565211 | K127: -0.1067766002 | L127: -0.1090820074 | M127: -0.1123555194 | N127: -0.1095875986 | O127: -0.1103516442 | P127: -0.1110902621 | Q127: -0.1103174849 | R127: -0.1093628885 | S127: -0.1072641473 | T127: -0.1032007458 | U127: -0.1009947958 | V127: -0.100382377 | W127: -0.0971663991 | X127: -0.09256876116 | Y127: -0.09022624766 | Z127: -0.08704613611 | AA127: -0.08305556033 | AB127: -0.0792317931 | AC127: -0.07516869697 | AD127: -0.07089978102 | AE127: -0.06675023765 | AF127: -0.06150036308 | AG127: -0.05740767486 | AH127: -0.05267679094 | AI127: -0.04738978326 | AJ127: -0.04228903492 | AK127: -0.03685001481 | AL127: -0.03121969185 | AM127: -0.02534928993 | AN127: -0.01923319427 | AO127: -0.01286830981 | AP127: -0.006525899802 | AQ127: 0 | AS127: 0.0105 | AU127: 0.0007200679211 | AV127: 0.0009539152395 | AW127: 0.001154705883 | AX127: 0.001340209723 | AY127: 0.001516763142 | AZ127: 0.001687408517 | BA127: 0.001853807823 | BB127: 0.0020169156 | BC127: 0.002177272141 | BD127: 0.002335149794 | BE127: 0.002490632824 | BF127: 0.002643664016 | BG127: 0.002794122893 | BH127: 0.002941999314 | BI127: 0.003087268128 | BJ127: 0.003229851589 | BK127: 0.003369627821 | BL127: 0.003506436279 | BM127: 0.003640081861 | BN127: 0.003770338152 | BO127: 0.003897012043 | BP127: 0.004020143673 | BQ127: 0.004139839056 | BR127: 0.004256213508 | BS127: 0.004369394607 | BT127: 0.004479524038 | BU127: 0.004586759779 | BV127: 0.004691277716 | BW127: 0.004793251745 | BX127: 0.004892786926 | BY127: 0.004989979483 | BZ127: 0.005084936665 | CA127: 0.005177778125 | CB127: 0.005268636738 | CC127: 0.00535765828 | CD127: 0.005445002834 | CE127: 0.005530844266 | CF127: 0.005615371257 | CG127: 0.005698787277 | CH127: 0.005781310899
B128: 106 | C128: 3.968129313e-06 | D128: -0.05384140136 | E128: -0.07189596268 | F128: -0.0830622651 | G128: -0.09070798106 | H128: -0.09469886446 | I128: -0.1004435849 | J128: -0.1016981842 | K128: -0.106768176 | L128: -0.1089898723 | M128: -0.112336813 | N128: -0.1095836344 | O128: -0.1101372643 | P128: -0.1106926725 | Q128: -0.1102646015 | R128: -0.1093579491 | S128: -0.10723783 | T128: -0.1031891262 | U128: -0.100904837 | V128: -0.0999178672 | W128: -0.09716063762 | X128: -0.09252255979 | Y128: -0.09014176699 | Z128: -0.08692036997 | AA128: -0.08304447408 | AB128: -0.07922489547 | AC128: -0.07507336641 | AD128: -0.07080471041 | AE128: -0.06671148769 | AF128: -0.06139722834 | AG128: -0.05739003497 | AH128: -0.05265340045 | AI128: -0.04738604699 | AJ128: -0.04224448552 | AK128: -0.03675588354 | AL128: -0.03118118275 | AM128: -0.02524099852 | AN128: -0.01919701953 | AO128: -0.01286696989 | AP128: -0.006505194474 | AQ128: 0 | AS128: 0.0106 | AU128: 0.0007293284312 | AV128: 0.0009659087173 | AW128: 0.00116899441 | AX128: 0.001356583397 | AY128: 0.00153509408 | AZ128: 0.001707608681 | BA128: 0.001875811361 | BB128: 0.002040669836 | BC128: 0.002202732351 | BD128: 0.002362275878 | BE128: 0.002519387026 | BF128: 0.002674009247 | BG128: 0.00282602195 | BH128: 0.002975415915 | BI128: 0.00312216666 | BJ128: 0.003266196486 | BK128: 0.003407383063 | BL128: 0.00354556496 | BM128: 0.003680545812 | BN128: 0.003812097612 | BO128: 0.003940025969 | BP128: 0.00406437202 | BQ128: 0.004185243371 | BR128: 0.004302756963 | BS128: 0.004417042069 | BT128: 0.004528242158 | BU128: 0.004636517104 | BV128: 0.004742044821 | BW128: 0.004845001173 | BX128: 0.004945492495 | BY128: 0.005043616172 | BZ128: 0.005139480699 | CA128: 0.005233207069 | CB128: 0.005324929604 | CC128: 0.005414795626 | CD128: 0.005502966882 | CE128: 0.00558961901 | CF128: 0.005674942584 | CG128: 0.005759143086 | CH128: 0.005842441224
B129: 107 | C129: 3.968129313e-06 | D129: -0.05381175957 | E129: -0.07174734456 | F129: -0.08285687722 | G129: -0.09069346246 | H129: -0.09466558248 | I129: -0.1001223306 | J129: -0.1013966005 | K129: -0.1064995101 | L129: -0.1089460459 | M129: -0.1122721303 | N129: -0.1092459628 | O129: -0.1099691941 | P129: -0.1104668416 | Q129: -0.1101463176 | R129: -0.1084543522 | S129: -0.1072038658 | T129: -0.1030190374 | U129: -0.1008479106 | V129: -0.09973054069 | W129: -0.09696431705 | X129: -0.09241408492 | Y129: -0.09013319728 | Z129: -0.08680337046 | AA129: -0.08298147332 | AB129: -0.07909575867 | AC129: -0.07501547205 | AD129: -0.07077880162 | AE129: -0.06667139258 | AF129: -0.06137545471 | AG129: -0.05735963031 | AH129: -0.05250942398 | AI129: -0.04732487684 | AJ129: -0.04220912769 | AK129: -0.03673770196 | AL129: -0.03115182239 | AM129: -0.02520700102 | AN129: -0.01917116535 | AO129: -0.01286331896 | AP129: -0.006505086476 | AQ129: 0 | AS129: 0.0107 | AU129: 0.0007386214538 | AV129: 0.0009779406565 | AW129: 0.001183325751 | AX129: 0.001373003408 | AY129: 0.00155347433 | AZ129: 0.001727860727 | BA129: 0.001897869029 | BB129: 0.002064480182 | BC129: 0.002228250422 | BD129: 0.002389461375 | BE129: 0.00254820201 | BF129: 0.002704416467 | BG129: 0.002857984054 | BH129: 0.003008896487 | BI129: 0.003157129962 | BJ129: 0.003302606842 | BK129: 0.003445204351 | BL129: 0.003584760179 | BM129: 0.003721076709 | BN129: 0.003853924346 | BO129: 0.003983107428 | BP129: 0.004108668095 | BQ129: 0.004230715553 | BR129: 0.004349368373 | BS129: 0.004464757528 | BT129: 0.004577028275 | BU129: 0.004686342391 | BV129: 0.00479287982 | BW129: 0.004896818399 | BX129: 0.004998265738 | BY129: 0.005097320387 | BZ129: 0.005194092088 | CA129: 0.005288703179 | CB129: 0.005381289428 | CC129: 0.005471999706 | CD129: 0.005560997425 | CE129: 0.005648459995 | CF129: 0.005734579883 | CG129: 0.005819564585 | CH129: 0.005903636943
B130: 108 | C130: 3.968129313e-06 | D130: -0.05375762079 | E130: -0.07173052174 | F130: -0.0828401418 | G130: -0.09016066918 | H130: -0.09452305722 | I130: -0.100042386 | J130: -0.101386789 | K130: -0.1064530192 | L130: -0.1089242196 | M130: -0.1121430162 | N130: -0.1091920271 | O130: -0.1098401839 | P130: -0.1104651723 | Q130: -0.1092275215 | R130: -0.1083459971 | S130: -0.1070336273 | T130: -0.1029149978 | U130: -0.1008253871 | V130: -0.09951291681 | W130: -0.0962715848 | X130: -0.09238969041 | Y130: -0.09003468813 | Z130: -0.08653296578 | AA130: -0.08284950376 | AB130: -0.07889937522 | AC130: -0.07498135181 | AD130: -0.07071936951 | AE130: -0.06666665657 | AF130: -0.06129360502 | AG130: -0.05723556595 | AH130: -0.05249865831 | AI130: -0.04729485592 | AJ130: -0.04215351388 | AK130: -0.03672130591 | AL130: -0.03113757229 | AM130: -0.02519177091 | AN130: -0.01916233132 | AO130: -0.01284621676 | AP130: -0.006502968993 | AQ130: 0 | AS130: 0.0108 | AU130: 0.0007479468291 | AV130: 0.0009900108557 | AW130: 0.001197699672 | AX130: 0.001389469493 | AY130: 0.001571903605 | AZ130: 0.001748164347 | BA130: 0.001919980499 | BB130: 0.002088346293 | BC130: 0.002253825993 | BD130: 0.002416705905 | BE130: 0.002577077384 | BF130: 0.00273488527 | BG130: 0.002890008786 | BH130: 0.0030424406 | BI130: 0.003192157597 | BJ130: 0.003339082211 | BK130: 0.003483091229 | BL130: 0.003624021474 | BM130: 0.003761674082 | BN130: 0.003895817879 | BO130: 0.004026255938 | BP130: 0.004153031412 | BQ130: 0.00427625511 | BR130: 0.004396047241 | BS130: 0.004512540484 | BT130: 0.004625881889 | BU130: 0.004736235137 | BV130: 0.004843782208 | BW130: 0.004948702915 | BX130: 0.005051106145 | BY130: 0.005151091616 | BZ130: 0.005248770321 | CA130: 0.005344265942 | CB130: 0.005437715696 | CC130: 0.005529270006 | CD130: 0.005619093946 | CE130: 0.005707366703 | CF130: 0.005794282638 | CG130: 0.005880051258 | CH130: 0.005964897543
B131: 109 | C131: 3.968129313e-06 | D131: -0.05374830692 | E131: -0.07145121305 | F131: -0.08281176706 | G131: -0.09009497293 | H131: -0.09443952979 | I131: -0.09957177757 | J131: -0.1012406124 | K131: -0.1061435573 | L131: -0.108901999 | M131: -0.1120872439 | N131: -0.1091296462 | O131: -0.1098361836 | P131: -0.1104066826 | Q131: -0.1088863508 | R131: -0.1082735434 | S131: -0.1068059454 | T131: -0.102903709 | U131: -0.1008231845 | V131: -0.09938132756 | W131: -0.09608389363 | X131: -0.09231990467 | Y131: -0.08967455434 | Z131: -0.08650147664 | AA131: -0.08263034169 | AB131: -0.07878026239 | AC131: -0.07483797467 | AD131: -0.0706759982 | AE131: -0.06663527191 | AF131: -0.06120652493 | AG131: -0.0571346105 | AH131: -0.05244260936 | AI131: -0.04722742193 | AJ131: -0.04203617004 | AK131: -0.03671257206 | AL131: -0.03110028092 | AM131: -0.0251916953 | AN131: -0.01916042672 | AO131: -0.01283510358 | AP131: -0.006494382606 | AQ131: 0 | AS131: 0.0109 | AU131: 0.0007573043997 | AV131: 0.001002119116 | AW131: 0.001212115943 | AX131: 0.001405981397 | AY131: 0.001590381624 | AZ131: 0.001768519237 | BA131: 0.001942145448 | BB131: 0.002112267829 | BC131: 0.002279458706 | BD131: 0.002444009098 | BE131: 0.002606012762 | BF131: 0.002765415257 | BG131: 0.002922095738 | BH131: 0.003076047834 | BI131: 0.003227249133 | BJ131: 0.003375622151 | BK131: 0.003521043249 | BL131: 0.003663348389 | BM131: 0.003802337469 | BN131: 0.003937777743 | BO131: 0.004069471027 | BP131: 0.004197461493 | BQ131: 0.00432186156 | BR131: 0.004442793083 | BS131: 0.004560390449 | BT131: 0.004674802507 | BU131: 0.004786194847 | BV131: 0.004894751488 | BW131: 0.005000654221 | BX131: 0.005104013215 | BY131: 0.005204929358 | BZ131: 0.005303514894 | CA131: 0.005399894853 | CB131: 0.005494207904 | CC131: 0.005586606019 | CD131: 0.005677255941 | CE131: 0.00576633863 | CF131: 0.005854050343 | CG131: 0.005940602601 | CH131: 0.006026222517
B132: 110 | C132: 3.968129313e-06 | D132: -0.05367411702 | E132: -0.07143863974 | F132: -0.08250958222 | G132: -0.08995388497 | H132: -0.09439599715 | I132: -0.09956614775 | J132: -0.100794076 | K132: -0.1060047429 | L132: -0.1087081318 | M132: -0.1120586735 | N132: -0.109100839 | O132: -0.1096628096 | P132: -0.1101723236 | Q132: -0.1088746655 | R132: -0.1081829176 | S132: -0.1067259424 | T132: -0.1028440127 | U132: -0.1007655433 | V132: -0.09918039049 | W132: -0.09538122992 | X132: -0.09216414682 | Y132: -0.08940382473 | Z132: -0.08649710599 | AA132: -0.08255412328 | AB132: -0.07871768714 | AC132: -0.07480253851 | AD132: -0.07065670749 | AE132: -0.06659957296 | AF132: -0.06118891781 | AG132: -0.05704693381 | AH132: -0.05220742042 | AI132: -0.04717372907 | AJ132: -0.04192455233 | AK132: -0.03662213647 | AL132: -0.0310088621 | AM132: -0.02517518539 | AN132: -0.01910374246 | AO132: -0.01282474632 | AP132: -0.006489909035 | AQ132: 0 | AS132: 0.011 | AU132: 0.0007666940105 | AV132: 0.001014265243 | AW132: 0.001226574337 | AX132: 0.001422538864 | AY132: 0.001608908111 | AZ132: 0.001788925099 | BA132: 0.001964363559 | BB132: 0.002136244453 | BC132: 0.002305148211 | BD132: 0.002471370587 | BE132: 0.002635007763 | BF132: 0.002796006037 | BG132: 0.002954244505 | BH132: 0.003109717773 | BI132: 0.003262404147 | BJ132: 0.003412226231 | BK132: 0.003559059971 | BL132: 0.003702740477 | BM132: 0.003843066415 | BN132: 0.003979803478 | BO132: 0.004112752229 | BP132: 0.004241957866 | BQ132: 0.004367534429 | BR132: 0.00448960542 | BS132: 0.004608306941 | BT132: 0.004723789645 | BU132: 0.004836221034 | BV132: 0.004945787171 | BW132: 0.005052671827 | BX132: 0.005156986456 | BY132: 0.005258833118 | BZ132: 0.005358325312 | CA132: 0.005455589417 | CB132: 0.005550765554 | CC132: 0.005644007249 | CD132: 0.005735482911 | CE132: 0.005825375278 | CF132: 0.0059138825 | CG132: 0.006001218114 | CH132: 0.006087611368
B133: 111 | C133: 3.968129313e-06 | D133: -0.05365717569 | E133: -0.07141848538 | F133: -0.08241084612 | G133: -0.08949588444 | H133: -0.0943855135 | I133: -0.09956499767 | J133: -0.1007454445 | K133: -0.1059758086 | L133: -0.1085722357 | M133: -0.1120350018 | N133: -0.1090216407 | O133: -0.1096089996 | P133: -0.1100206717 | Q133: -0.1087623415 | R133: -0.1080667149 | S133: -0.1064741028 | T133: -0.1028116299 | U133: -0.1007645893 | V133: -0.0991599688 | W133: -0.09532676906 | X133: -0.09216355486 | Y133: -0.08934739207 | Z133: -0.08647466654 | AA133: -0.08217811489 | AB133: -0.07850512509 | AC133: -0.07472241366 | AD133: -0.07055466839 | AE133: -0.06652158684 | AF133: -0.06106414852 | AG133: -0.05704634241 | AH133: -0.05215021268 | AI133: -0.04717045778 | AJ133: -0.04190626137 | AK133: -0.03646232823 | AL133: -0.03098047026 | AM133: -0.02513376228 | AN133: -0.01907249371 | AO133: -0.01282005317 | AP133: -0.00648962227 | AQ133: 0 | AS133: 0.0111 | AU133: 0.0007761155089 | AV133: 0.001026449044 | AW133: 0.001241074631 | AX133: 0.001439141646 | AY133: 0.001627482792 | AZ133: 0.001809381639 | BA133: 0.001986634519 | BB133: 0.002160275836 | BC133: 0.002330894161 | BD133: 0.002498790011 | BE133: 0.002664062015 | BF133: 0.002826657222 | BG133: 0.002986454689 | BH133: 0.003143450012 | BI133: 0.003297622221 | BJ133: 0.003448894025 | BK133: 0.003597140961 | BL133: 0.003742197296 | BM133: 0.003883860474 | BN133: 0.00402189463 | BO133: 0.004156099085 | BP133: 0.004286520071 | BQ133: 0.00441327325 | BR133: 0.004536483781 | BS133: 0.004656289487 | BT133: 0.004772842826 | BU133: 0.004886313219 | BV133: 0.004996888775 | BW133: 0.005104755249 | BX133: 0.005210025383 | BY133: 0.005312802411 | BZ133: 0.005413201089 | CA133: 0.005511349145 | CB133: 0.005607388158 | CC133: 0.005701473207 | CD133: 0.005793774368 | CE133: 0.005884476157 | CF133: 0.005973778621 | CG133: 0.00606189731 | CH133: 0.006149063608
B134: 112 | C134: 3.968129313e-06 | D134: -0.05350606109 | E134: -0.07131268608 | F134: -0.08235992275 | G134: -0.08912679746 | H134: -0.09437038732 | I134: -0.09952123286 | J134: -0.1006709564 | K134: -0.1059229433 | L134: -0.108200549 | M134: -0.112034602 | N134: -0.1090128694 | O134: -0.1094639873 | P134: -0.1099593632 | Q134: -0.1082766126 | R134: -0.1078302559 | S134: -0.1063417252 | T134: -0.1027988681 | U134: -0.1005945419 | V134: -0.09901352727 | W134: -0.09531176148 | X134: -0.09214468165 | Y134: -0.08930017041 | Z134: -0.08638145448 | AA134: -0.0819835494 | AB134: -0.07846158521 | AC134: -0.07469491588 | AD134: -0.07053875082 | AE134: -0.06650296934 | AF134: -0.06104743963 | AG134: -0.05691055357 | AH134: -0.05212363456 | AI134: -0.04714685702 | AJ134: -0.04187815276 | AK134: -0.03633850435 | AL134: -0.03093897981 | AM134: -0.0251274236 | AN134: -0.01901741592 | AO134: -0.01280974451 | AP134: -0.006471077216 | AQ134: 0 | AS134: 0.0112 | AU134: 0.0007855687443 | AV134: 0.001038670328 | AW134: 0.001255616605 | AX134: 0.001455789497 | AY134: 0.001646105398 | AZ134: 0.001829888569 | BA134: 0.00200895802 | BB134: 0.002184361654 | BC134: 0.002356696217 | BD134: 0.002526267016 | BE134: 0.002693175149 | BF134: 0.002857368434 | BG134: 0.0030187259 | BH134: 0.003177244148 | BI134: 0.003332902945 | BJ134: 0.003485625114 | BK134: 0.003635285793 | BL134: 0.003781718413 | BM134: 0.003924719205 | BN134: 0.004064050754 | BO134: 0.004199511145 | BP134: 0.004331147651 | BQ134: 0.004459077564 | BR134: 0.004583427704 | BS134: 0.004704337621 | BT134: 0.004821961582 | BU134: 0.004936470932 | BV134: 0.005048055829 | BW134: 0.005156904014 | BX134: 0.00526312952 | BY134: 0.005366836759 | BZ134: 0.005468141745 | CA134: 0.00556717356 | CB134: 0.005664075237 | CC134: 0.005759003411 | CD134: 0.00585212983 | CE134: 0.005943640787 | CF134: 0.006033738224 | CG134: 0.006122639706 | CH134: 0.006210578754
B135: 113 | C135: 3.968129313e-06 | D135: -0.05349237501 | E135: -0.07120663673 | F135: -0.08214986233 | G135: -0.08911795698 | H135: -0.09430287777 | I135: -0.09945092738 | J135: -0.1006321109 | K135: -0.1058626906 | L135: -0.1080072429 | M135: -0.1119857235 | N135: -0.1090091181 | O135: -0.1092595807 | P135: -0.109902343 | Q135: -0.1075895189 | R135: -0.1078222097 | S135: -0.1057394219 | T135: -0.1025419216 | U135: -0.1004913889 | V135: -0.09893013764 | W135: -0.09505195594 | X135: -0.0919673618 | Y135: -0.0892194661 | Z135: -0.08626622373 | AA135: -0.08165820739 | AB135: -0.07834566575 | AC135: -0.07468865483 | AD135: -0.0704852523 | AE135: -0.0664814966 | AF135: -0.06103575704 | AG135: -0.05668283491 | AH135: -0.05209029396 | AI135: -0.04696955168 | AJ135: -0.041798953 | AK135: -0.03632545381 | AL135: -0.0309062831 | AM135: -0.02512394398 | AN135: -0.01900713974 | AO135: -0.0128036741 | AP135: -0.006469080924 | AQ135: 0 | AS135: 0.0113 | AU135: 0.0007950535687 | AV135: 0.001050928911 | AW135: 0.001270200043 | AX135: 0.001472482174 | AY135: 0.001664775666 | AZ135: 0.001850445604 | BA135: 0.00203133376 | BB135: 0.002208501586 | BC135: 0.002382554043 | BD135: 0.002553801253 | BE135: 0.002722346803 | BF135: 0.002888139298 | BG135: 0.003051057753 | BH135: 0.003211099786 | BI135: 0.003368245915 | BJ135: 0.003522419086 | BK135: 0.003673494046 | BL135: 0.003821303402 | BM135: 0.003965642176 | BN135: 0.004106271412 | BO135: 0.004242987967 | BP135: 0.00437584016 | BQ135: 0.00450494692 | BR135: 0.004630436735 | BS135: 0.004752450884 | BT135: 0.004871145453 | BU135: 0.00498669371 | BV135: 0.005099287866 | BW135: 0.005209117654 | BX135: 0.005316298399 | BY135: 0.005420935693 | BZ135: 0.00552314681 | CA135: 0.005623062188 | CB135: 0.005720826317 | CC135: 0.00581659739 | CD135: 0.005910548825 | CE135: 0.006002868693 | CF135: 0.006093760835 | CG135: 0.006183444831 | CH135: 0.006272156336
B136: 114 | C136: 3.968129313e-06 | D136: -0.05340146315 | E136: -0.07114041903 | F136: -0.08205512756 | G136: -0.08911483034 | H136: -0.09425008272 | I136: -0.09916869302 | J136: -0.1006123713 | K136: -0.1058336075 | L136: -0.1079269953 | M136: -0.1118329481 | N136: -0.10893339 | O136: -0.1091022858 | P136: -0.1098192856 | Q136: -0.1075108414 | R136: -0.1077702522 | S136: -0.1054842852 | T136: -0.1025006541 | U136: -0.1004403143 | V136: -0.09884958255 | W136: -0.09503245501 | X136: -0.09177457693 | Y136: -0.08896600459 | Z136: -0.08625556082 | AA136: -0.08140568544 | AB136: -0.07833501451 | AC136: -0.07452441405 | AD136: -0.07039793351 | AE136: -0.06646919671 | AF136: -0.0609789289 | AG136: -0.05667933257 | AH136: -0.05203329754 | AI136: -0.04687948567 | AJ136: -0.04176690908 | AK136: -0.03619758883 | AL136: -0.03086939139 | AM136: -0.02507135924 | AN136: -0.01899928692 | AO136: -0.01275534563 | AP136: -0.006455363848 | AQ136: 0 | AS136: 0.0114 | AU136: 0.0008045698359 | AV136: 0.001063224607 | AW136: 0.001284824729 | AX136: 0.00148921944 | AY136: 0.001683493334 | AZ136: 0.001871052463 | BA136: 0.002053761439 | BB136: 0.002232695318 | BC136: 0.002408467309 | BD136: 0.002581392379 | BE136: 0.002751576622 | BF136: 0.002918969446 | BG136: 0.003083449869 | BH136: 0.003245016539 | BI136: 0.003403650734 | BJ136: 0.003559275535 | BK136: 0.003711765308 | BL136: 0.003860951842 | BM136: 0.004006628961 | BN136: 0.004148556174 | BO136: 0.004286529114 | BP136: 0.004420597156 | BQ136: 0.004550880873 | BR136: 0.004677510425 | BS136: 0.004800628826 | BT136: 0.004920393984 | BU136: 0.005036981096 | BV136: 0.005150584429 | BW136: 0.00526139571 | BX136: 0.005369531559 | BY136: 0.00547509875 | BZ136: 0.005578215821 | CA136: 0.005679014566 | CB136: 0.005777640935 | CC136: 0.005874254679 | CD136: 0.005969030887 | CE136: 0.006062159412 | CF136: 0.00615384599 | CG136: 0.006244312218 | CH136: 0.006333795887
B137: 115 | C137: 3.968129313e-06 | D137: -0.05331083362 | E137: -0.07113510617 | F137: -0.08191658698 | G137: -0.08863040134 | H137: -0.09413068088 | I137: -0.09847056516 | J137: -0.100481625 | K137: -0.1055832322 | L137: -0.1078587156 | M137: -0.1114727187 | N137: -0.1083522687 | O137: -0.10905275 | P137: -0.1098006911 | Q137: -0.1073027305 | R137: -0.1077356036 | S137: -0.104922478 | T137: -0.1024119003 | U137: -0.1004185248 | V137: -0.09871893462 | W137: -0.09502832443 | X137: -0.09147198764 | Y137: -0.08869017886 | Z137: -0.08614301757 | AA137: -0.08132589568 | AB137: -0.0782297554 | AC137: -0.07452254791 | AD137: -0.07035590959 | AE137: -0.06629435342 | AF137: -0.06079933299 | AG137: -0.05660025049 | AH137: -0.05197074141 | AI137: -0.04687484598 | AJ137: -0.04162841786 | AK137: -0.03616313055 | AL137: -0.03086879294 | AM137: -0.02506130269 | AN137: -0.0189969283 | AO137: -0.01273694752 | AP137: -0.006447999375 | AQ137: 0 | AS137: 0.0115 | AU137: 0.0008141174019 | AV137: 0.001075557235 | AW137: 0.001299490456 | AX137: 0.001506001058 | AY137: 0.001702258146 | AZ137: 0.00189170887 | BA137: 0.002076240765 | BB137: 0.002256942541 | BC137: 0.002434435691 | BD137: 0.002609040054 | BE137: 0.002780864253 | BF137: 0.002949858516 | BG137: 0.003115901876 | BH137: 0.003278994023 | BI137: 0.003439117011 | BJ137: 0.003596194062 | BK137: 0.003750099173 | BL137: 0.003900663321 | BM137: 0.004047679141 | BN137: 0.004190904613 | BO137: 0.004330134156 | BP137: 0.004465418207 | BQ137: 0.004596878986 | BR137: 0.004724648334 | BS137: 0.004848871005 | BT137: 0.00496970673 | BU137: 0.005087332642 | BV137: 0.005201945067 | BW137: 0.00531373773 | BX137: 0.005422828546 | BY137: 0.005529325476 | BZ137: 0.005633348323 | CA137: 0.005735030238 | CB137: 0.005834518634 | CC137: 0.00593197482 | CD137: 0.00602757556 | CE137: 0.006121512485 | CF137: 0.006213993232 | CG137: 0.006305241411 | CH137: 0.006395496951
B138: 116 | C138: 3.968129313e-06 | D138: -0.05325182938 | E138: -0.07110923204 | F138: -0.08182718444 | G138: -0.08858387853 | H138: -0.09389427195 | I138: -0.09844133505 | J138: -0.1004078689 | K138: -0.1052211552 | L138: -0.1077580539 | M138: -0.111286442 | N138: -0.1083406897 | O138: -0.1089359687 | P138: -0.1094472838 | Q138: -0.1069958664 | R138: -0.1074853877 | S138: -0.1048519636 | T138: -0.1024088682 | U138: -0.1003659833 | V138: -0.09865106709 | W138: -0.09489581968 | X138: -0.09123560482 | Y138: -0.08864373814 | Z138: -0.0860331586 | AA138: -0.08127529913 | AB138: -0.07818841805 | AC138: -0.07451803076 | AD138: -0.07030745119 | AE138: -0.06626569017 | AF138: -0.06078927644 | AG138: -0.05658234925 | AH138: -0.05183248779 | AI138: -0.04687283711 | AJ138: -0.04161581217 | AK138: -0.03611483798 | AL138: -0.03084959883 | AM138: -0.02504302408 | AN138: -0.01898459286 | AO138: -0.01273663122 | AP138: -0.00643504004 | AQ138: 0 | AS138: 0.0116 | AU138: 0.0008236961251 | AV138: 0.001087926617 | AW138: 0.001314197014 | AX138: 0.001522826798 | AY138: 0.001721069849 | AZ138: 0.001912414554 | BA138: 0.002098771448 | BB138: 0.002281242948 | BC138: 0.002460458869 | BD138: 0.002636743946 | BE138: 0.002810209352 | BF138: 0.002980806151 | BG138: 0.003148413405 | BH138: 0.003313031862 | BI138: 0.003474644359 | BJ138: 0.003633174274 | BK138: 0.00378849524 | BL138: 0.003940437433 | BM138: 0.004088792304 | BN138: 0.004233316313 | BO138: 0.004373802672 | BP138: 0.004510302885 | BQ138: 0.004642940829 | BR138: 0.004771850028 | BS138: 0.004897176982 | BT138: 0.005019083252 | BU138: 0.005137747908 | BV138: 0.005253369339 | BW138: 0.005366143269 | BX138: 0.005476188915 | BY138: 0.005583615424 | BZ138: 0.005688543866 | CA138: 0.005791108755 | CB138: 0.005891458963 | CC138: 0.005989757364 | CD138: 0.006086182392 | CE138: 0.006180927462 | CF138: 0.006274202109 | CG138: 0.00636623196 | CH138: 0.006457259077
B139: 117 | C139: 3.968129313e-06 | D139: -0.05321300502 | E139: -0.07101238719 | F139: -0.0817898775 | G139: -0.08856586497 | H139: -0.09381925786 | I139: -0.09842157332 | J139: -0.1002377596 | K139: -0.1049724379 | L139: -0.107723706 | M139: -0.1108113205 | N139: -0.1082772491 | O139: -0.1087372734 | P139: -0.1092737692 | Q139: -0.106875788 | R139: -0.1074714226 | S139: -0.1046745394 | T139: -0.1023704359 | U139: -0.1002815708 | V139: -0.0986271504 | W139: -0.09481973712 | X139: -0.09111640917 | Y139: -0.08843058991 | Z139: -0.08594283478 | AA139: -0.08112710125 | AB139: -0.0778845711 | AC139: -0.0744417068 | AD139: -0.07009547009 | AE139: -0.06625495679 | AF139: -0.06077188798 | AG139: -0.05656080495 | AH139: -0.051776715 | AI139: -0.04685530406 | AJ139: -0.04157395247 | AK139: -0.03609571121 | AL139: -0.03074271139 | AM139: -0.02494911806 | AN139: -0.01889092376 | AO139: -0.01272331843 | AP139: -0.006427839935 | AQ139: 0 | AS139: 0.0117 | AU139: 0.0008333058654 | AV139: 0.001100332576 | AW139: 0.001328944201 | AX139: 0.001539696431 | AY139: 0.001739928194 | AZ139: 0.001933169246 | BA139: 0.002121353203 | BB139: 0.002305596239 | BC139: 0.002486536527 | BD139: 0.002664503726 | BE139: 0.002839611578 | BF139: 0.003011812 | BG139: 0.003180984096 | BH139: 0.003347129685 | BI139: 0.003510232401 | BJ139: 0.003670215783 | BK139: 0.003826953114 | BL139: 0.003980273775 | BM139: 0.004129968042 | BN139: 0.004275790862 | BO139: 0.004417534245 | BP139: 0.00455525077 | BQ139: 0.004689065978 | BR139: 0.00481911508 | BS139: 0.004945546328 | BT139: 0.005068523117 | BU139: 0.005188226458 | BV139: 0.005304856806 | BW139: 0.005418611889 | BX139: 0.005529612225 | BY139: 0.005637968153 | BZ139: 0.005743802011 | CA139: 0.005847249674 | CB139: 0.005948461481 | CC139: 0.006047601866 | CD139: 0.00614485094 | CE139: 0.006240403899 | CF139: 0.006334472178 | CG139: 0.00642728342 | CH139: 0.006519081824
B140: 118 | C140: 3.968129313e-06 | D140: -0.05320869072 | E140: -0.07026131344 | F140: -0.08153327608 | G140: -0.0884917046 | H140: -0.09376339984 | I140: -0.09809827599 | J140: -0.1001364465 | K140: -0.1049246303 | L140: -0.1073763157 | M140: -0.110568737 | N140: -0.1081715756 | O140: -0.1084697161 | P140: -0.1092279813 | Q140: -0.1068457486 | R140: -0.1072730643 | S140: -0.1043821463 | T140: -0.1021143998 | U140: -0.1001424573 | V140: -0.09837052152 | W140: -0.09479237216 | X140: -0.09093317804 | Y140: -0.08829167615 | Z140: -0.08576046194 | AA140: -0.08082993583 | AB140: -0.07787087176 | AC140: -0.074328616 | AD140: -0.0700626587 | AE140: -0.06622816137 | AF140: -0.06073131823 | AG140: -0.05650803671 | AH140: -0.05177493765 | AI140: -0.04684551057 | AJ140: -0.04156693902 | AK140: -0.03606001046 | AL140: -0.03073530868 | AM140: -0.02494871978 | AN140: -0.01884289131 | AO140: -0.01269078567 | AP140: -0.006423041229 | AQ140: 0 | AS140: 0.0118 | AU140: 0.000842946485 | AV140: 0.00111277494 | AW140: 0.001343731815 | AX140: 0.001556609734 | AY140: 0.001758832936 | AZ140: 0.001953972682 | BA140: 0.002143985748 | BB140: 0.002330002117 | BC140: 0.002512668356 | BD140: 0.00269231907 | BE140: 0.002869070595 | BF140: 0.003042875716 | BG140: 0.003213613592 | BH140: 0.003381287127 | BI140: 0.003545880761 | BJ140: 0.003707318209 | BK140: 0.003865472408 | BL140: 0.004020171955 | BM140: 0.004171205957 | BN140: 0.004318327855 | BO140: 0.004461328465 | BP140: 0.00460026145 | BQ140: 0.004735254016 | BR140: 0.00486644307 | BS140: 0.004993978621 | BT140: 0.005118025901 | BU140: 0.005238767865 | BV140: 0.005356407041 | BW140: 0.005471143159 | BX140: 0.005583098046 | BY140: 0.00569238323 | BZ140: 0.005799122322 | CA140: 0.005903452562 | CB140: 0.006005525752 | CC140: 0.006105507893 | CD140: 0.006203580769 | CE140: 0.006299941362 | CF140: 0.006394803004 | CG140: 0.006488395357 | CH140: 0.006580964756
B141: 119 | C141: 3.968129313e-06 | D141: -0.05298036049 | E141: -0.07022295704 | F141: -0.08146005315 | G141: -0.08834392405 | H141: -0.09372755376 | I141: -0.09802176021 | J141: -0.1001199392 | K141: -0.1047550168 | L141: -0.1073040232 | M141: -0.11023335 | N141: -0.108116546 | O141: -0.1083220475 | P141: -0.109225668 | Q141: -0.1068078115 | R141: -0.1069991271 | S141: -0.1041586887 | T141: -0.1021114844 | U141: -0.1001186966 | V141: -0.09833985504 | W141: -0.09474409061 | X141: -0.09083322935 | Y141: -0.08829047642 | Z141: -0.08555443327 | AA141: -0.08078390603 | AB141: -0.077845184 | AC141: -0.07423305966 | AD141: -0.07000825655 | AE141: -0.06614732353 | AF141: -0.0606438049 | AG141: -0.056401697 | AH141: -0.05173595699 | AI141: -0.04680507418 | AJ141: -0.04154171279 | AK141: -0.03603948087 | AL141: -0.03068362012 | AM141: -0.02487899439 | AN141: -0.01881613418 | AO141: -0.0126646312 | AP141: -0.006419382466 | AQ141: 0 | AS141: 0.0119 | AU141: 0.0008526178481 | AV141: 0.001125253537 | AW141: 0.001358559657 | AX141: 0.001573566484 | AY141: 0.001777783832 | AZ141: 0.001974824602 | BA141: 0.002166668808 | BB141: 0.002354460291 | BC141: 0.002538854049 | BD141: 0.002720189661 | BE141: 0.002898586074 | BF141: 0.003073996958 | BG141: 0.003246301543 | BH141: 0.003415503828 | BI141: 0.003581589072 | BJ141: 0.003744481176 | BK141: 0.003904052739 | BL141: 0.004060131584 | BM141: 0.004212505654 | BN141: 0.004360926894 | BO141: 0.004505184931 | BP141: 0.004645334516 | BQ141: 0.004781504532 | BR141: 0.004913833585 | BS141: 0.005042473444 | BT141: 0.005167591184 | BU141: 0.005289371709 | BV141: 0.005408019619 | BW141: 0.005523736655 | BX141: 0.00563664595 | BY141: 0.005746860228 | BZ141: 0.005854504372 | CA141: 0.005959716989 | CB141: 0.006062651348 | CC141: 0.006163475014 | CD141: 0.00626237145 | CE141: 0.006359539419 | CF141: 0.006455194157 | CG141: 0.006549567341 | CH141: 0.006642907443
B142: 120 | C142: 3.968129313e-06 | D142: -0.05297851491 | E142: -0.06998829424 | F142: -0.08138744024 | G142: -0.08833673407 | H142: -0.09362546622 | I142: -0.09776804636 | J142: -0.09995103243 | K142: -0.1046872699 | L142: -0.1071450989 | M142: -0.1099512944 | N142: -0.1079340885 | O142: -0.1082528353 | P142: -0.1091647705 | Q142: -0.1064349631 | R142: -0.1066769916 | S142: -0.1041089436 | T142: -0.102096384 | U142: -0.09998169007 | V142: -0.09802677192 | W142: -0.09443881965 | X142: -0.09080461846 | Y142: -0.08815833917 | Z142: -0.08545401982 | AA142: -0.08069929165 | AB142: -0.07740167111 | AC142: -0.07414216234 | AD142: -0.06992215133 | AE142: -0.06614159997 | AF142: -0.06058647734 | AG142: -0.05629367184 | AH142: -0.05172219491 | AI142: -0.04675696805 | AJ142: -0.0415065764 | AK142: -0.03600608678 | AL142: -0.03064665916 | AM142: -0.02486282482 | AN142: -0.01879193119 | AO142: -0.01266198016 | AP142: -0.00639959838 | AQ142: 0 | AS142: 0.012 | AU142: 0.0008623198204 | AV142: 0.001137768199 | AW142: 0.001373427532 | AX142: 0.001590566462 | AY142: 0.001796780645 | AZ142: 0.00199572475 | BA142: 0.002189402108 | BB142: 0.002378970474 | BC142: 0.002565093304 | BD142: 0.002748115185 | BE142: 0.00292815769 | BF142: 0.00310517539 | BG142: 0.003279047602 | BH142: 0.003449779433 | BI142: 0.003617356973 | BJ142: 0.003781704314 | BK142: 0.003942693732 | BL142: 0.004100152278 | BM142: 0.004253866746 | BN142: 0.004403587585 | BO142: 0.004549103244 | BP142: 0.004690469568 | BQ142: 0.004827817122 | BR142: 0.004961286216 | BS142: 0.005091030386 | BT142: 0.005217218554 | BU142: 0.005340037575 | BV142: 0.005459694126 | BW142: 0.00557639196 | BX142: 0.005690255521 | BY142: 0.005801398728 | BZ142: 0.005909947741 | CA142: 0.006016042535 | CB142: 0.006119837846 | CC142: 0.006221502807 | CD142: 0.006321222559 | CE142: 0.00641919765 | CF142: 0.006515645215 | CG142: 0.006610798951 | CH142: 0.006704909464
B143: 121 | C143: 3.968129313e-06 | D143: -0.05268334171 | E143: -0.06996003919 | F143: -0.08123691582 | G143: -0.08822513808 | H143: -0.09361364131 | I143: -0.09772152895 | J143: -0.09986239967 | K143: -0.1046118555 | L143: -0.106825709 | M143: -0.1096345675 | N143: -0.1073730967 | O143: -0.107890113 | P143: -0.1090948812 | Q143: -0.1064024952 | R143: -0.1066745011 | S143: -0.104042177 | T143: -0.1020947079 | U143: -0.09992388585 | V143: -0.09795360836 | W143: -0.09440088366 | X143: -0.09077141239 | Y143: -0.08796834168 | Z143: -0.0854433638 | AA143: -0.08050840668 | AB143: -0.0772201904 | AC143: -0.07397389917 | AD143: -0.06984903098 | AE143: -0.06604215176 | AF143: -0.06056880963 | AG143: -0.056185057 | AH143: -0.05158180487 | AI143: -0.04671748493 | AJ143: -0.04146396236 | AK143: -0.03598734189 | AL143: -0.03060880522 | AM143: -0.02485929431 | AN143: -0.01876851452 | AO143: -0.01266133688 | AP143: -0.006392538785 | AQ143: 0 | AS143: 0.0121 | AU143: 0.0008720522699 | AV143: 0.001150318758 | AW143: 0.001388335247 | AX143: 0.001607609454 | AY143: 0.001815823138 | AZ143: 0.002016672872 | BA143: 0.002212185381 | BB143: 0.00240353238 | BC143: 0.002591385826 | BD143: 0.002776095331 | BE143: 0.00295778512 | BF143: 0.003136410682 | BG143: 0.00331185143 | BH143: 0.003484113593 | BI143: 0.003653184104 | BJ143: 0.003818987259 | BK143: 0.003981395015 | BL143: 0.004140233662 | BM143: 0.004295288849 | BN143: 0.004446309541 | BO143: 0.004593083013 | BP143: 0.004735666211 | BQ143: 0.004874191387 | BR143: 0.005008800564 | BS143: 0.005139649045 | BT143: 0.005266907604 | BU143: 0.005390765054 | BV143: 0.005511430152 | BW143: 0.005629108662 | BX143: 0.005743926344 | BY143: 0.005855998316 | BZ143: 0.005965452014 | CA143: 0.006072428783 | CB143: 0.006177084832 | CC143: 0.006279590857 | CD143: 0.006380133681 | CE143: 0.006478915637 | CF143: 0.006576155762 | CG143: 0.00667208977 | CH143: 0.006766970403
B144: 122 | C144: 3.968129313e-06 | D144: -0.05267472735 | E144: -0.0698778257 | F144: -0.08119262194 | G144: -0.08820933392 | H144: -0.0934239084 | I144: -0.09771301726 | J144: -0.09978738651 | K144: -0.1045143451 | L144: -0.1067120098 | M144: -0.1095484077 | N144: -0.1070935964 | O144: -0.107752806 | P144: -0.1090431591 | Q144: -0.1063924144 | R144: -0.106672498 | S144: -0.1039494317 | T144: -0.1019972038 | U144: -0.09990635363 | V144: -0.09779730065 | W144: -0.09428000311 | X144: -0.09035576856 | Y144: -0.08793962478 | Z144: -0.08539408294 | AA144: -0.08022978333 | AB144: -0.07720068917 | AC144: -0.0739199629 | AD144: -0.06978351305 | AE144: -0.06602182159 | AF144: -0.06055224252 | AG144: -0.05613107602 | AH144: -0.05153027416 | AI144: -0.04667803551 | AJ144: -0.04144769251 | AK144: -0.03596133565 | AL144: -0.03057495838 | AM144: -0.02484411407 | AN144: -0.01874981353 | AO144: -0.01262052203 | AP144: -0.006385199967 | AQ144: 0 | AS144: 0.0122 | AU144: 0.0008818150661 | AV144: 0.001162905052 | AW144: 0.001403282612 | AX144: 0.001624695248 | AY144: 0.001834911081 | AZ144: 0.00203766872 | BA144: 0.002235018361 | BB144: 0.002428145731 | BC144: 0.002617731321 | BD144: 0.002804129796 | BE144: 0.00298746805 | BF144: 0.003167702506 | BG144: 0.00334471269 | BH144: 0.003518505964 | BI144: 0.003689070115 | BJ144: 0.003856329651 | BK144: 0.004020156222 | BL144: 0.004180375365 | BM144: 0.004336771589 | BN144: 0.004489092383 | BO144: 0.004637123853 | BP144: 0.004780924056 | BQ144: 0.004920626936 | BR144: 0.005056376231 | BS144: 0.005188329022 | BT144: 0.005316657935 | BU144: 0.005441553746 | BV144: 0.005563227292 | BW144: 0.005681886357 | BX144: 0.005797658014 | BY144: 0.005910658584 | BZ144: 0.006021016783 | CA144: 0.006128875327 | CB144: 0.006234391895 | CC144: 0.006337738755 | CD144: 0.006439104407 | CE144: 0.006538692971 | CF144: 0.006636725389 | CG144: 0.006733439389 | CH144: 0.006829089852
B145: 123 | C145: 3.968129313e-06 | D145: -0.05264035452 | E145: -0.06984792973 | F145: -0.08095191758 | G145: -0.08817915864 | H145: -0.09336854988 | I145: -0.09763370206 | J145: -0.0996745204 | K145: -0.1043003609 | L145: -0.1064755665 | M145: -0.1094608775 | N145: -0.1070472344 | O145: -0.1075949458 | P145: -0.1088413267 | Q145: -0.1063592278 | R145: -0.1066234536 | S145: -0.1039386763 | T145: -0.1019812006 | U145: -0.09989698956 | V145: -0.09774448734 | W145: -0.09426307803 | X145: -0.09020203962 | Y145: -0.08790093009 | Z145: -0.08530494798 | AA145: -0.08006687428 | AB145: -0.07718707958 | AC145: -0.07370630609 | AD145: -0.06956178417 | AE145: -0.06593264617 | AF145: -0.06053243766 | AG145: -0.05597563419 | AH145: -0.05151475002 | AI145: -0.04665341403 | AJ145: -0.04141101362 | AK145: -0.03595632306 | AL145: -0.030548872 | AM145: -0.02480598717 | AN145: -0.01872338057 | AO145: -0.01259706438 | AP145: -0.006367947075 | AQ145: 0 | AS145: 0.0123 | AU145: 0.0008916080803 | AV145: 0.001175526918 | AW145: 0.00141826944 | AX145: 0.001641823633 | AY145: 0.001854044245 | AZ145: 0.002058712048 | BA145: 0.002257900787 | BB145: 0.002452810252 | BC145: 0.002644129501 | BD145: 0.002832218278 | BE145: 0.003017206168 | BF145: 0.003199050542 | BG145: 0.003377631052 | BH145: 0.003552956208 | BI145: 0.003725014659 | BJ145: 0.003893731138 | BK145: 0.004058976994 | BL145: 0.00422057702 | BM145: 0.004378314593 | BN145: 0.004531935733 | BO145: 0.004681225384 | BP145: 0.00482624272 | BQ145: 0.004967123381 | BR145: 0.00510401283 | BS145: 0.005237069925 | BT145: 0.005366469153 | BU145: 0.005492403253 | BV145: 0.005615085149 | BW145: 0.005734724644 | BX145: 0.00585145013 | BY145: 0.005965379132 | BZ145: 0.006076641646 | CA145: 0.006185381763 | CB145: 0.006291758633 | CC145: 0.006395946096 | CD145: 0.006498134332 | CE145: 0.00659852925 | CF145: 0.006697353691 | CG145: 0.006794847405 | CH145: 0.006891267407
B146: 124 | C146: 3.968129313e-06 | D146: -0.05255918502 | E146: -0.06972576789 | F146: -0.08091280066 | G146: -0.08806377598 | H146: -0.0932015584 | I146: -0.09756815286 | J146: -0.09945425123 | K146: -0.1042882813 | L146: -0.106403223 | M146: -0.1090791281 | N146: -0.1069769761 | O146: -0.1074636153 | P146: -0.1086284042 | Q146: -0.1062945327 | R146: -0.1063914224 | S146: -0.1036748002 | T146: -0.1017840223 | U146: -0.09969790495 | V146: -0.09763373323 | W146: -0.09366154702 | X146: -0.09019327984 | Y146: -0.08771899987 | Z146: -0.08529524339 | AA146: -0.07990801914 | AB146: -0.07718496222 | AC146: -0.07368644315 | AD146: -0.06932526794 | AE146: -0.06588240603 | AF146: -0.0605291144 | AG146: -0.05595900227 | AH146: -0.05145234343 | AI146: -0.0465556451 | AJ146: -0.041387816 | AK146: -0.03588869552 | AL146: -0.0305214622 | AM146: -0.02477683431 | AN146: -0.0187070208 | AO146: -0.01254429335 | AP146: -0.006352480989 | AQ146: 0 | AS146: 0.0124 | AU146: 0.0009014311858 | AV146: 0.001188184197 | AW146: 0.001433295545 | AX146: 0.001658994404 | AY146: 0.001873222404 | AZ146: 0.002079802613 | BA146: 0.002280832402 | BB146: 0.00247752567 | BC146: 0.00267058008 | BD146: 0.002860360481 | BE146: 0.003046999167 | BF146: 0.003230454473 | BG146: 0.00341060619 | BH146: 0.003587463989 | BI146: 0.003761017394 | BJ146: 0.00393119137 | BK146: 0.004097856975 | BL146: 0.004260838266 | BM146: 0.004419917497 | BN146: 0.004574839222 | BO146: 0.004725387232 | BP146: 0.004871621824 | BQ146: 0.005013680342 | BR146: 0.005151709976 | BS146: 0.005285871368 | BT146: 0.005416340869 | BU146: 0.005543313186 | BV146: 0.005667003331 | BW146: 0.005787623131 | BX146: 0.005905302299 | BY146: 0.006020159564 | BZ146: 0.006132326208 | CA146: 0.006241947694 | CB146: 0.006349184649 | CC146: 0.006454212483 | CD146: 0.00655722306 | CE146: 0.006658424074 | CF146: 0.006758040272 | CG146: 0.006856313421 | CH146: 0.006953502673
B147: 125 | C147: 3.968129313e-06 | D147: -0.0525354698 | E147: -0.06962935566 | F147: -0.08080607822 | G147: -0.0877133905 | H147: -0.09317644738 | I147: -0.09749800723 | J147: -0.09930765834 | K147: -0.1041414924 | L147: -0.1063209564 | M147: -0.108642408 | N147: -0.106665774 | O147: -0.1074396369 | P147: -0.1085284663 | Q147: -0.1061994725 | R147: -0.1060493267 | S147: -0.1035495341 | T147: -0.1017198994 | U147: -0.09953469653 | V147: -0.09757329303 | W147: -0.09335217591 | X147: -0.09010992281 | Y147: -0.08765432559 | Z147: -0.08527435463 | AA147: -0.07983539249 | AB147: -0.07717475116 | AC147: -0.07362567593 | AD147: -0.06919935428 | AE147: -0.06588191972 | AF147: -0.06046648064 | AG147: -0.05593377747 | AH147: -0.05139245809 | AI147: -0.04652677011 | AJ147: -0.04129394928 | AK147: -0.035885973 | AL147: -0.03045899545 | AM147: -0.02476186866 | AN147: -0.01869729076 | AO147: -0.0125405963 | AP147: -0.006344157873 | AQ147: 0 | AS147: 0.0125 | AU147: 0.0009112842571 | AV147: 0.001200876731 | AW147: 0.001448360745 | AX147: 0.001676207357 | AY147: 0.001892445336 | AZ147: 0.002100940176 | BA147: 0.002303812951 | BB147: 0.002502291718 | BC147: 0.002697082779 | BD147: 0.002888556113 | BE147: 0.003076846743 | BF147: 0.003261913985 | BG147: 0.003443637783 | BH147: 0.003622028978 | BI147: 0.003797077982 | BJ147: 0.003968710004 | BK147: 0.004136795817 | BL147: 0.00430115875 | BM147: 0.00446157994 | BN147: 0.004617802485 | BO147: 0.00476960903 | BP147: 0.004917060998 | BQ147: 0.005060297444 | BR147: 0.005199467291 | BS147: 0.005334732971 | BT147: 0.005466272702 | BU147: 0.00559428316 | BV147: 0.005718981453 | BW147: 0.005840581432 | BX147: 0.005959214132 | BY147: 0.006074999492 | BZ147: 0.006188070078 | CA147: 0.00629857273 | CB147: 0.006406669552 | CC147: 0.006512537526 | CD147: 0.006616370199 | CE147: 0.006718377054 | CF147: 0.006818784741 | CG147: 0.006917837045 | CH147: 0.007015795257
B148: 126 | C148: 3.968129313e-06 | D148: -0.05248295596 | E148: -0.06962858399 | F148: -0.08072470505 | G148: -0.08769934462 | H148: -0.09305959178 | I148: -0.09749194743 | J148: -0.09905358634 | K148: -0.1040341424 | L148: -0.1062136213 | M148: -0.1086241966 | N148: -0.1066635418 | O148: -0.1070666461 | P148: -0.108293771 | Q148: -0.1061984845 | R148: -0.1060131372 | S148: -0.1035494768 | T148: -0.1014932919 | U148: -0.09952388644 | V148: -0.09747360025 | W148: -0.09324972458 | X148: -0.09009457324 | Y148: -0.08757880982 | Z148: -0.08507540526 | AA148: -0.07977692728 | AB148: -0.07701478981 | AC148: -0.07350730066 | AD148: -0.06919366289 | AE148: -0.06575045717 | AF148: -0.0602926718 | AG148: -0.05590256602 | AH148: -0.05136345811 | AI148: -0.04652599985 | AJ148: -0.04128437609 | AK148: -0.03575174219 | AL148: -0.03040905645 | AM148: -0.02475486805 | AN148: -0.01865568665 | AO148: -0.01253966007 | AP148: -0.006343868418 | AQ148: 0 | AS148: 0.0126 | AU148: 0.0009211671709 | AV148: 0.001213604365 | AW148: 0.00146346486 | AX148: 0.001693462291 | AY148: 0.001911712823 | AZ148: 0.002122124503 | BA148: 0.002326842183 | BB148: 0.002527108132 | BC148: 0.002723637322 | BD148: 0.002916804887 | BE148: 0.0031067486 | BF148: 0.003293428772 | BG148: 0.003476725513 | BH148: 0.003656650851 | BI148: 0.003833196093 | BJ148: 0.004006286701 | BK148: 0.004175793174 | BL148: 0.00434153812 | BM148: 0.004503301567 | BN148: 0.004660825163 | BO148: 0.004813890412 | BP148: 0.004962559873 | BQ148: 0.005106974317 | BR148: 0.005247284404 | BS148: 0.005383654359 | BT148: 0.005516264273 | BU148: 0.005645312797 | BV148: 0.005771019134 | BW148: 0.005893599163 | BX148: 0.006013185246 | BY148: 0.006129898531 | BZ148: 0.006243872872 | CA148: 0.006355256487 | CB148: 0.006464212957 | CC148: 0.00657092084 | CD148: 0.006675575364 | CE148: 0.006778387803 | CF148: 0.006879586711 | CG148: 0.006979417894 | CH148: 0.007078144776
B149: 127 | C149: 3.968129313e-06 | D149: -0.05235017217 | E149: -0.06958627079 | F149: -0.08072282145 | G149: -0.08764451148 | H149: -0.09305781648 | I149: -0.09733107973 | J149: -0.09904124222 | K149: -0.1039459608 | L149: -0.1061086974 | M149: -0.1086216447 | N149: -0.106586163 | O149: -0.1069941891 | P149: -0.1082655499 | Q149: -0.1059487627 | R149: -0.1059011861 | S149: -0.103323585 | T149: -0.1014752011 | U149: -0.09919937834 | V149: -0.09741058045 | W149: -0.0928030592 | X149: -0.09009397129 | Y149: -0.08753159466 | Z149: -0.08502557089 | AA149: -0.07969464879 | AB149: -0.07696927086 | AC149: -0.07349782026 | AD149: -0.06902431405 | AE149: -0.06571684148 | AF149: -0.06026405374 | AG149: -0.05586586277 | AH149: -0.05134925554 | AI149: -0.04638835623 | AJ149: -0.04120836713 | AK149: -0.03574888226 | AL149: -0.03039301615 | AM149: -0.02471701498 | AN149: -0.01865398755 | AO149: -0.01253456492 | AP149: -0.006341856405 | AQ149: 0 | AS149: 0.0127 | AU149: 0.0009310798051 | AV149: 0.001226366946 | AW149: 0.001478607713 | AX149: 0.001710759008 | AY149: 0.001931024647 | AZ149: 0.00214335536 | BA149: 0.002349919852 | BB149: 0.00255197465 | BC149: 0.002750243434 | BD149: 0.002945106517 | BE149: 0.003136704441 | BF149: 0.003324998529 | BG149: 0.003509869069 | BH149: 0.003691329287 | BI149: 0.003869371398 | BJ149: 0.004043921127 | BK149: 0.004214848707 | BL149: 0.004381976031 | BM149: 0.004545082029 | BN149: 0.004703906901 | BO149: 0.004858231022 | BP149: 0.005008118089 | BQ149: 0.005153710596 | BR149: 0.005295160946 | BS149: 0.005432635162 | BT149: 0.005566315212 | BU149: 0.005696401724 | BV149: 0.005823116 | BW149: 0.00594667595 | BX149: 0.006067215264 | BY149: 0.006184856304 | BZ149: 0.006299734211 | CA149: 0.006411998585 | CB149: 0.006521814485 | CC149: 0.006629362043 | CD149: 0.006734838174 | CE149: 0.006838455942 | CF149: 0.006940445804 | CG149: 0.007041055586 | CH149: 0.007140550849
B150: 128 | C150: 3.968129313e-06 | D150: -0.05233182836 | E150: -0.06958296573 | F150: -0.08064341398 | G150: -0.08759601893 | H150: -0.09286290521 | I150: -0.0971847018 | J150: -0.09899343942 | K150: -0.1038832611 | L150: -0.1059688415 | M150: -0.1083169819 | N150: -0.1064641429 | O150: -0.106747097 | P150: -0.1079679706 | Q150: -0.1059136297 | R150: -0.1058549821 | S150: -0.103264187 | T150: -0.1013468223 | U150: -0.09903913724 | V150: -0.0973613772 | W150: -0.09258756948 | X150: -0.09006600103 | Y150: -0.08744598572 | Z150: -0.08487738639 | AA150: -0.07960487439 | AB150: -0.07695211427 | AC150: -0.07340332189 | AD150: -0.06895469933 | AE150: -0.06563773042 | AF150: -0.06021788689 | AG150: -0.05580398244 | AH150: -0.05129606901 | AI150: -0.04633752845 | AJ150: -0.04119501892 | AK150: -0.03566674548 | AL150: -0.03037970191 | AM150: -0.02467825851 | AN150: -0.01865317854 | AO150: -0.01251619685 | AP150: -0.006340762702 | AQ150: 0 | AS150: 0.0128 | AU150: 0.0009410220393 | AV150: 0.001239164322 | AW150: 0.001493789128 | AX150: 0.001728097312 | AY150: 0.001950380595 | AZ150: 0.002164632518 | BA150: 0.002373045713 | BB150: 0.002576891017 | BC150: 0.002776900848 | BD150: 0.002973460725 | BE150: 0.003166713978 | BF150: 0.003356622956 | BG150: 0.003543068142 | BH150: 0.00372606397 | BI150: 0.003905603575 | BJ150: 0.004081612953 | BK150: 0.00425396208 | BL150: 0.004422472144 | BM150: 0.004586920979 | BN150: 0.004747047351 | BO150: 0.004902630506 | BP150: 0.005053735289 | BQ150: 0.005200505922 | BR150: 0.005343096556 | BS150: 0.005481675016 | BT150: 0.005616425152 | BU150: 0.005747549572 | BV150: 0.005875271681 | BW150: 0.005999811422 | BX150: 0.006121303815 | BY150: 0.006239872438 | BZ150: 0.006355653722 | CA150: 0.00646879865 | CB150: 0.006579473761 | CC150: 0.006687860762 | CD150: 0.006794158256 | CE150: 0.006898581096 | CF150: 0.007001361645 | CG150: 0.007102749748 | CH150: 0.007203013104
B151: 129 | C151: 3.968129313e-06 | D151: -0.05231037128 | E151: -0.06935794582 | F151: -0.0805818012 | G151: -0.08759550139 | H151: -0.09274821366 | I151: -0.0971227682 | J151: -0.09893789959 | K151: -0.1037711758 | L151: -0.1058653284 | M151: -0.1082876511 | N151: -0.1059548309 | O151: -0.1066202108 | P151: -0.1079532155 | Q151: -0.1059051563 | R151: -0.1057874859 | S151: -0.1030224313 | T151: -0.1012935357 | U151: -0.09896265128 | V151: -0.09735089163 | W151: -0.09243979311 | X151: -0.08989440268 | Y151: -0.08743472191 | Z151: -0.08481215589 | AA151: -0.07953747872 | AB151: -0.07679510203 | AC151: -0.07337044327 | AD151: -0.06878034614 | AE151: -0.06556450859 | AF151: -0.06018197339 | AG151: -0.05580373875 | AH151: -0.05124439942 | AI151: -0.0462021793 | AJ151: -0.04111429388 | AK151: -0.03566069616 | AL151: -0.03036870383 | AM151: -0.02467251994 | AN151: -0.01864921711 | AO151: -0.01251556909 | AP151: -0.006335723674 | AQ151: 0 | AS151: 0.0129 | AU151: =NORMSDIST(-(Correlation*NORMSINV(D$16)-NORMSINV($AS151))/CorrTerm) -> 0.0009509937548 | AV151: =NORMSDIST(-(Correlation*NORMSINV(E$16)-NORMSINV($AS151))/CorrTerm) -> 0.001251996344 | AW151: =NORMSDIST(-(Correlation*NORMSINV(F$16)-NORMSINV($AS151))/CorrTerm) -> 0.001509008932 | AX151: =NORMSDIST(-(Correlation*NORMSINV(G$16)-NORMSINV($AS151))/CorrTerm) -> 0.00174547701 | AY151: =NORMSDIST(-(Correlation*NORMSINV(H$16)-NORMSINV($AS151))/CorrTerm) -> 0.001969780457 | AZ151: =NORMSDIST(-(Correlation*NORMSINV(I$16)-NORMSINV($AS151))/CorrTerm) -> 0.002185955751 | BA151: =NORMSDIST(-(Correlation*NORMSINV(J$16)-NORMSINV($AS151))/CorrTerm) -> 0.002396219527 | BB151: =NORMSDIST(-(Correlation*NORMSINV(K$16)-NORMSINV($AS151))/CorrTerm) -> 0.002601856978 | BC151: =NORMSDIST(-(Correlation*NORMSINV(L$16)-NORMSINV($AS151))/CorrTerm) -> 0.002803609297 | BD151: =NORMSDIST(-(Correlation*NORMSINV(M$16)-NORMSINV($AS151))/CorrTerm) -> 0.003001867234 | BE151: =NORMSDIST(-(Correlation*NORMSINV(N$16)-NORMSINV($AS151))/CorrTerm) -> 0.003196776923 | BF151: =NORMSDIST(-(Correlation*NORMSINV(O$16)-NORMSINV($AS151))/CorrTerm) -> 0.003388301759 | BG151: =NORMSDIST(-(Correlation*NORMSINV(P$16)-NORMSINV($AS151))/CorrTerm) -> 0.003576322429 | BH151: =NORMSDIST(-(Correlation*NORMSINV(Q$16)-NORMSINV($AS151))/CorrTerm) -> 0.003760854589 | BI151: =NORMSDIST(-(Correlation*NORMSINV(R$16)-NORMSINV($AS151))/CorrTerm) -> 0.003941892306 | BJ151: =NORMSDIST(-(Correlation*NORMSINV(S$16)-NORMSINV($AS151))/CorrTerm) -> 0.004119361854 | BK151: =NORMSDIST(-(Correlation*NORMSINV(T$16)-NORMSINV($AS151))/CorrTerm) -> 0.004293132962 | BL151: =NORMSDIST(-(Correlation*NORMSINV(U$16)-NORMSINV($AS151))/CorrTerm) -> 0.004463026122 | BM151: =NORMSDIST(-(Correlation*NORMSINV(V$16)-NORMSINV($AS151))/CorrTerm) -> 0.004628818078 | BN151: =NORMSDIST(-(Correlation*NORMSINV(W$16)-NORMSINV($AS151))/CorrTerm) -> 0.004790246168 | BO151: =NORMSDIST(-(Correlation*NORMSINV(X$16)-NORMSINV($AS151))/CorrTerm) -> 0.004947088516 | BP151: =NORMSDIST(-(Correlation*NORMSINV(Y$16)-NORMSINV($AS151))/CorrTerm) -> 0.005099411121 | BQ151: =NORMSDIST(-(Correlation*NORMSINV(Z$16)-NORMSINV($AS151))/CorrTerm) -> 0.00524735994 | BR151: =NORMSDIST(-(Correlation*NORMSINV(AA$16)-NORMSINV($AS151))/CorrTerm) -> 0.005391090876 | BS151: =NORMSDIST(-(Correlation*NORMSINV(AB$16)-NORMSINV($AS151))/CorrTerm) -> 0.005530773563 | BT151: =NORMSDIST(-(Correlation*NORMSINV(AC$16)-NORMSINV($AS151))/CorrTerm) -> 0.005666593732 | BU151: =NORMSDIST(-(Correlation*NORMSINV(AD$16)-NORMSINV($AS151))/CorrTerm) -> 0.005798755979 | BV151: =NORMSDIST(-(Correlation*NORMSINV(AE$16)-NORMSINV($AS151))/CorrTerm) -> 0.005927485813 | BW151: =NORMSDIST(-(Correlation*NORMSINV(AF$16)-NORMSINV($AS151))/CorrTerm) -> 0.006053005213 | BX151: =NORMSDIST(-(Correlation*NORMSINV(AG$16)-NORMSINV($AS151))/CorrTerm) -> 0.006175450533 | BY151: =NORMSDIST(-(Correlation*NORMSINV(AH$16)-NORMSINV($AS151))/CorrTerm) -> 0.006294946566 | BZ151: =NORMSDIST(-(Correlation*NORMSINV(AI$16)-NORMSINV($AS151))/CorrTerm) -> 0.006411631038 | CA151: =NORMSDIST(-(Correlation*NORMSINV(AJ$16)-NORMSINV($AS151))/CorrTerm) -> 0.006525656315 | CB151: =NORMSDIST(-(Correlation*NORMSINV(AK$16)-NORMSINV($AS151))/CorrTerm) -> 0.006637190416 | CC151: =NORMSDIST(-(Correlation*NORMSINV(AL$16)-NORMSINV($AS151))/CorrTerm) -> 0.006746416629 | CD151: =NORMSDIST(-(Correlation*NORMSINV(AM$16)-NORMSINV($AS151))/CorrTerm) -> 0.00685353524 | CE151: =NORMSDIST(-(Correlation*NORMSINV(AN$16)-NORMSINV($AS151))/CorrTerm) -> 0.006958762896 | CF151: =NORMSDIST(-(Correlation*NORMSINV(AO$16)-NORMSINV($AS151))/CorrTerm) -> 0.007062333865 | CG151: =NORMSDIST(-(Correlation*NORMSINV(AP$16)-NORMSINV($AS151))/CorrTerm) -> 0.007164500012 | CH151: =NORMSDIST(-(Correlation*NORMSINV(AQ$16)-NORMSINV($AS151))/CorrTerm) -> 0.007265531172
B152: 130 | C152: 3.968129313e-06 | D152: -0.05230754254 | E152: -0.06926464105 | F152: -0.08034818153 | G152: -0.08751712132 | H152: -0.09242146246 | I152: -0.09694516861 | J152: -0.09874020878 | K152: -0.1036909774 | L152: -0.1058465822 | M152: -0.1080694226 | N152: -0.1058415787 | O152: -0.1065735426 | P152: -0.1077067835 | Q152: -0.1058265202 | R152: -0.1057439991 | S152: -0.1028765211 | T152: -0.1012859679 | U152: -0.09880520452 | V152: -0.09722810035 | W152: -0.09230555626 | X152: -0.08965977213 | Y152: -0.08728413107 | Z152: -0.08475542872 | AA152: -0.07946341086 | AB152: -0.07662004716 | AC152: -0.07334059879 | AD152: -0.06876528094 | AE152: -0.06545826013 | AF152: -0.06011678813 | AG152: -0.05577322287 | AH152: -0.05111141332 | AI152: -0.04616183003 | AJ152: -0.04094717036 | AK152: -0.03565009685 | AL152: -0.03029277572 | AM152: -0.02465956619 | AN152: -0.01863097018 | AO152: -0.0124913619 | AP152: -0.006332472712 | AQ152: 0 | AS152: =B152/10000 -> 0.013 | AU152: 0.0009609948343 | AV152: 0.001264862865 | AW152: 0.001524266955 | AX152: 0.001762897913 | AY152: 0.001989224026 | AZ152: 0.002207324835 | BA152: 0.002419441056 | BB152: 0.002626872284 | BC152: 0.00283036852 | BD152: 0.00303032577 | BE152: 0.003226892994 | BF152: 0.003420034645 | BG152: 0.00360963163 | BH152: 0.003795700837 | BI152: 0.003978237276 | BJ152: 0.00415716751 | BK152: 0.004332361029 | BL152: 0.004503637634 | BM152: 0.004670772991 | BN152: 0.004833503012 | BO152: 0.004991604709 | BP152: 0.00514514524 | BQ152: 0.005294272303 | BR152: 0.005439143557 | BS152: 0.005579930449 | BT152: 0.005716820597 | BU152: 0.005850020588 | BV152: 0.005979758037 | BW152: 0.006106256963 | BX152: 0.006229655056 | BY152: 0.006350078326 | BZ152: 0.006467665796 | CA152: 0.006582571215 | CB152: 0.006694964088 | CC152: 0.006805029279 | CD152: 0.006912968763 | CE152: 0.007019000979 | CF152: 0.007123362101 | CG152: 0.007226306014 | CH152: 0.007328104691
B153: =B152+1 -> 131 | C153: 3.968129313e-06 | D153: -0.05229758709 | E153: -0.06918252192 | F153: -0.08018666444 | G153: -0.08711007419 | H153: -0.0922933248 | I153: -0.09694243166 | J153: -0.09863334748 | K153: -0.1034291221 | L153: -0.1052594886 | M153: -0.1079749207 | N153: -0.1057822493 | O153: -0.1065258829 | P153: -0.1072518949 | Q153: -0.1058214876 | R153: -0.1056149063 | S153: -0.1028488738 | T153: -0.1009933128 | U153: -0.09848614604 | V153: -0.09719345454 | W153: -0.09230505735 | X153: -0.0894791351 | Y153: -0.08722332669 | Z153: -0.08457434777 | AA153: -0.07938162419 | AB153: -0.07647212601 | AC153: -0.07332538164 | AD153: -0.06871583157 | AE153: -0.06540466643 | AF153: -0.06004571679 | AG153: -0.05577176482 | AH153: -0.05096401878 | AI153: -0.04610072285 | AJ153: -0.04093686081 | AK153: -0.03559944139 | AL153: -0.03025506144 | AM153: -0.02464192248 | AN153: -0.01860596525 | AO153: -0.01247918141 | AP153: -0.006320078432 | AQ153: 0 | AS153: 0.0131 | AU153: 0.000971025162 | AV153: 0.00127776374 | AW153: 0.001539563028 | AX153: 0.001780359831 | AY153: 0.002008711095 | AZ153: 0.002228739551 | BA153: 0.002442710065 | BB153: 0.002651936687 | BC153: 0.002857178259 | BD153: 0.003058836066 | BE153: 0.003257061914 | BF153: 0.003451821328 | BG153: 0.003642995448 | BH153: 0.003830602411 | BI153: 0.004014638175 | BJ153: 0.004195029605 | BK153: 0.004371645959 | BL153: 0.004544306355 | BM153: 0.004712785386 | BN153: 0.004876817549 | BO153: 0.005036178746 | BP153: 0.005190937304 | BQ153: 0.005341242664 | BR153: 0.005487254249 | BS153: 0.005629145323 | BT153: 0.005767105396 | BU153: 0.005901343045 | BV153: 0.006032088 | BW153: 0.006159566318 | BX153: 0.006283917028 | BY153: 0.006405267362 | BZ153: 0.006523757639 | CA153: 0.006639542994 | CB153: 0.006752794418 | CC153: 0.006863698354 | CD153: 0.006972458466 | CE153: 0.007079294986 | CF153: 0.007184445995 | CG153: 0.007288167397 | CH153: 0.007390733301
B154: 132 | C154: 3.968129313e-06 | D154: -0.05229420014 | E154: -0.06910581525 | F154: -0.08017398225 | G154: -0.08699159798 | H154: -0.0922034504 | I154: -0.09673580149 | J154: -0.09850186492 | K154: -0.1033881786 | L154: -0.1051876046 | M154: -0.1078118948 | N154: -0.1056796705 | O154: -0.1065240754 | P154: -0.1072385589 | Q154: -0.1057948776 | R154: -0.1055903732 | S154: -0.1027723197 | T154: -0.1004200611 | U154: -0.09833804101 | V154: -0.09712813985 | W154: -0.09227775164 | X154: -0.0893515059 | Y154: -0.08721062929 | Z154: -0.08448726413 | AA154: -0.07929148285 | AB154: -0.07641081727 | AC154: -0.07328594628 | AD154: -0.06860520821 | AE154: -0.06529437819 | AF154: -0.05999062521 | AG154: -0.05576053888 | AH154: -0.05095713024 | AI154: -0.04589988491 | AJ154: -0.04085016034 | AK154: -0.03555158814 | AL154: -0.03023887398 | AM154: -0.02463185287 | AN154: -0.01860103148 | AO154: -0.01244557414 | AP154: -0.0063103683 | AQ154: 0 | AS154: 0.0132 | AU154: 0.0009810846236 | AV154: 0.001290698824 | AW154: 0.001554896985 | AX154: 0.00179786258 | AY154: 0.002028241463 | AZ154: 0.00225019968 | BA154: 0.002466026324 | BB154: 0.002677049944 | BC154: 0.002884038259 | BD154: 0.003087397855 | BE154: 0.003287283405 | BF154: 0.003483661523 | BG154: 0.003676413594 | BH154: 0.003865559012 | BI154: 0.004051094698 | BJ154: 0.004232947828 | BK154: 0.004410987435 | BL154: 0.004585031962 | BM154: 0.004754854938 | BN154: 0.004920189448 | BO154: 0.005080810294 | BP154: 0.005236786976 | BQ154: 0.005388270685 | BR154: 0.005535422613 | BS154: 0.005678417843 | BT154: 0.005817447782 | BU154: 0.005952723005 | BV154: 0.006084475352 | BW154: 0.006212932927 | BX154: 0.006338236098 | BY154: 0.006460513321 | BZ154: 0.006579906213 | CA154: 0.006696571299 | CB154: 0.006810681053 | CC154: 0.006922423501 | CD154: 0.007032003996 | CE154: 0.007139644563 | CF154: 0.007245585192 | CG154: 0.007350083806 | CH154: 0.007453416652
B155: 133 | C155: 3.968129313e-06 | D155: -0.05212953011 | E155: -0.06892700996 | F155: -0.08012068339 | G155: -0.08693029371 | H155: -0.09213105568 | I155: -0.09643398853 | J155: -0.09849262912 | K155: -0.1031920669 | L155: -0.1051468331 | M155: -0.1077617086 | N155: -0.1056398749 | O155: -0.1064561113 | P155: -0.1071727854 | Q155: -0.1056136938 | R155: -0.1054735265 | S155: -0.1027082821 | T155: -0.1003399141 | U155: -0.09829157365 | V155: -0.09712177157 | W155: -0.09224006096 | X155: -0.08922174055 | Y155: -0.08716871815 | Z155: -0.08442852254 | AA155: -0.07925632966 | AB155: -0.07638245554 | AC155: -0.07320549018 | AD155: -0.06855436268 | AE155: -0.06503532763 | AF155: -0.05998712987 | AG155: -0.05570169713 | AH155: -0.05095410297 | AI155: -0.04584884514 | AJ155: -0.0407489656 | AK155: -0.03551440394 | AL155: -0.0302274647 | AM155: -0.02463147195 | AN155: -0.01859769829 | AO155: -0.01244518517 | AP155: -0.006303190221 | AQ155: 0 | AS155: 0.0133 | AU155: 0.0009911731061 | AV155: 0.001303667977 | AW155: 0.001570268662 | AX155: 0.001815405977 | AY155: 0.00204781493 | AZ155: 0.002271705009 | BA155: 0.002489389604 | BB155: 0.002702211815 | BC155: 0.002910948267 | BD155: 0.003116010877 | BE155: 0.003317557199 | BF155: 0.003515554951 | BG155: 0.003709885778 | BH155: 0.003900570345 | BI155: 0.004087606544 | BJ155: 0.004270921871 | BK155: 0.004450385144 | BL155: 0.004625814138 | BM155: 0.004796981324 | BN155: 0.004963618384 | BO155: 0.005125499024 | BP155: 0.005282693924 | BQ155: 0.00543535603 | BR155: 0.005583648309 | BS155: 0.005727747668 | BT155: 0.005867847415 | BU155: 0.006004160123 | BV155: 0.00613691975 | BW155: 0.006266356445 | BX155: 0.006392611921 | BY155: 0.006515815857 | BZ155: 0.006636111173 | CA155: 0.006753655781 | CB155: 0.006868623645 | CC155: 0.006981204371 | CD155: 0.007091605005 | CE155: 0.007200049364 | CF155: 0.007306779346 | CG155: 0.007412054895 | CH155: 0.007516154395
B156: 134 | C156: 3.968129313e-06 | D156: -0.05189780571 | E156: -0.06886127072 | F156: -0.08008311428 | G156: -0.0866719941 | H156: -0.09213093375 | I156: -0.09596958947 | J156: -0.09842124013 | K156: -0.1030173489 | L156: -0.1051161989 | M156: -0.1077408517 | N156: -0.1056118619 | O156: -0.1063744377 | P156: -0.1070892357 | Q156: -0.1053196927 | R156: -0.1053342956 | S156: -0.1025251539 | T156: -0.1002501271 | U156: -0.09821182474 | V156: -0.09679938159 | W156: -0.09217911579 | X156: -0.08918889859 | Y156: -0.08704701497 | Z156: -0.0842448256 | AA156: -0.07920189673 | AB156: -0.07623278483 | AC156: -0.07315799303 | AD156: -0.06843045802 | AE156: -0.0649901311 | AF156: -0.05997126392 | AG156: -0.05558543704 | AH156: -0.05095285031 | AI156: -0.04582753371 | AJ156: -0.04067235084 | AK156: -0.03546324962 | AL156: -0.03020263202 | AM156: -0.02458772735 | AN156: -0.01856150695 | AO156: -0.01244251963 | AP156: -0.0062977864 | AQ156: 0 | AS156: 0.0134 | AU156: 0.001001290498 | AV156: 0.001316671057 | AW156: 0.001585677896 | AX156: 0.00183298984 | AY156: 0.002067431299 | AZ156: 0.002293255325 | BA156: 0.002512799681 | BB156: 0.002727422063 | BC156: 0.002937908036 | BD156: 0.003144674872 | BE156: 0.003347883026 | BF156: 0.003547501336 | BG156: 0.003743411718 | BH156: 0.003935636119 | BI156: 0.004124173416 | BJ156: 0.004308951431 | BK156: 0.004489838777 | BL156: 0.00466665257 | BM156: 0.004839164227 | BN156: 0.005007104035 | BO156: 0.005170244611 | BP156: 0.00532865782 | BQ156: 0.00548249837 | BR156: 0.005631931006 | BS156: 0.005777134465 | BT156: 0.005918303958 | BU156: 0.006055654061 | BV156: 0.006189420853 | BW156: 0.006319836532 | BX156: 0.006447044154 | BY156: 0.006571174628 | BZ156: 0.006692372174 | CA156: 0.006810796098 | CB156: 0.00692662185 | CC156: 0.007040040621 | CD156: 0.007151261148 | CE156: 0.007260509043 | CF156: 0.007368028112 | CG156: 0.00747408032 | CH156: 0.007578946187
B157: 135 | C157: 3.968129313e-06 | D157: -0.0517742037 | E157: -0.06856037967 | F157: -0.07990107957 | G157: -0.08659700057 | H157: -0.09199260568 | I157: -0.09591642978 | J157: -0.09826950808 | K157: -0.1028599393 | L157: -0.104893099 | M157: -0.1077396872 | N157: -0.1054958501 | O157: -0.1063460661 | P157: -0.1067853761 | Q157: -0.1052235347 | R157: -0.1051960891 | S157: -0.1022960444 | T157: -0.09996354305 | U157: -0.09797373725 | V157: -0.09672950375 | W157: -0.09206124017 | X157: -0.08899266685 | Y157: -0.0870326965 | Z157: -0.08416613084 | AA157: -0.07908593063 | AB157: -0.07605964363 | AC157: -0.07308683585 | AD157: -0.06842456965 | AE157: -0.06497813963 | AF157: -0.05993441875 | AG157: -0.05552906119 | AH157: -0.05093867688 | AI157: -0.04574500354 | AJ157: -0.04066782312 | AK157: -0.03543538472 | AL157: -0.03018243084 | AM157: -0.02458270845 | AN157: -0.018549947 | AO157: -0.01244008798 | AP157: -0.006291436645 | AQ157: 0 | AS157: 0.0135 | AU157: 0.001011436689 | AV157: 0.001329707927 | AW157: 0.001601124528 | AX157: 0.001850613992 | AY157: 0.002087090376 | AZ157: 0.00231485042 | BA157: 0.002536256332 | BB157: 0.002752680453 | BC157: 0.002964917321 | BD157: 0.003173389586 | BE157: 0.003378260623 | BF157: 0.003579500405 | BG157: 0.003776991132 | BH157: 0.003970756047 | BI157: 0.004160795019 | BJ157: 0.004347036209 | BK157: 0.004529348031 | BL157: 0.004707546948 | BM157: 0.004881403333 | BN157: 0.005050646084 | BO157: 0.005215046734 | BP157: 0.00537467834 | BQ157: 0.005529697378 | BR157: 0.005680270374 | BS157: 0.005826577902 | BT157: 0.005968817079 | BU157: 0.006107204487 | BV157: 0.006241978328 | BW157: 0.006373372852 | BX157: 0.006501532462 | BY157: 0.006626589296 | BZ157: 0.00674868888 | CA157: 0.00686799191 | CB157: 0.00698467533 | CC157: 0.007098931913 | CD157: 0.007210972087 | CE157: 0.007321023262 | CF157: 0.007429331152 | CG157: 0.007536159743 | CH157: 0.007641791691
B158: 136 | C158: 3.968129313e-06 | D158: -0.05172225206 | E158: -0.06849107325 | F158: -0.07977353444 | G158: -0.08651560508 | H158: -0.0918887174 | I158: -0.09559904649 | J158: -0.09812311571 | K158: -0.1026103512 | L158: -0.1048275552 | M158: -0.1074674073 | N158: -0.1054914302 | O158: -0.1058806763 | P158: -0.1065440263 | Q158: -0.1051714693 | R158: -0.1051274881 | S158: -0.10218925 | T158: -0.09992305877 | U158: -0.09785927565 | V158: -0.09664046367 | W158: -0.09188669999 | X158: -0.08896754414 | Y158: -0.08690187484 | Z158: -0.0840246736 | AA158: -0.07899473812 | AB158: -0.07591217907 | AC158: -0.07297170263 | AD158: -0.06826358129 | AE158: -0.06490053191 | AF158: -0.05987220676 | AG158: -0.05551573489 | AH158: -0.05093246699 | AI158: -0.04568300209 | AJ158: -0.0405230402 | AK158: -0.03540798606 | AL158: -0.03015187886 | AM158: -0.02456987969 | AN158: -0.01850741218 | AO158: -0.01243690282 | AP158: -0.006279300092 | AQ158: 0 | AS158: 0.0136 | AU158: 0.001021611571 | AV158: 0.00134277845 | AW158: 0.0016166084 | AX158: 0.001868278255 | AY158: 0.002106791967 | AZ158: 0.002336490086 | BA158: 0.002559759338 | BB158: 0.002777986754 | BC158: 0.00299197588 | BD158: 0.003202154767 | BE158: 0.003408689729 | BF158: 0.00361155189 | BG158: 0.003810623745 | BH158: 0.004005929845 | BI158: 0.004197471065 | BJ158: 0.00438517591 | BK158: 0.004568912604 | BL158: 0.004748496968 | BM158: 0.004923698334 | BN158: 0.005094244218 | BO158: 0.005259905077 | BP158: 0.005420755166 | BQ158: 0.005576952732 | BR158: 0.005728666092 | BS158: 0.005876077655 | BT158: 0.006019386451 | BU158: 0.006158811071 | BV158: 0.006294591844 | BW158: 0.006426965073 | BX158: 0.006556076512 | BY158: 0.006682059529 | BZ158: 0.006805060956 | CA158: 0.006925242886 | CB158: 0.007042783751 | CC158: 0.007157877911 | CD158: 0.007270737488 | CE158: 0.007381591688 | CF158: 0.007490688132 | CG158: 0.007598292829 | CH158: 0.007704690573
B159: 137 | C159: 3.968129313e-06 | D159: -0.05170454294 | E159: -0.0684526128 | F159: -0.07962134077 | G159: -0.08627604151 | H159: -0.09180907197 | I159: -0.09558887866 | J159: -0.09811339602 | K159: -0.1023193063 | L159: -0.1047588178 | M159: -0.1071582643 | N159: -0.1054451988 | O159: -0.1057840312 | P159: -0.1063726621 | Q159: -0.104993365 | R159: -0.1050897361 | S159: -0.1021029094 | T159: -0.09991720166 | U159: -0.09767560462 | V159: -0.09647159174 | W159: -0.09180360702 | X159: -0.08885733909 | Y159: -0.08678558994 | Z159: -0.08396601474 | AA159: -0.0789052135 | AB159: -0.07572762597 | AC159: -0.07294204782 | AD159: -0.06823396911 | AE159: -0.06489661809 | AF159: -0.05982873096 | AG159: -0.05551155702 | AH159: -0.05086203362 | AI159: -0.04565740142 | AJ159: -0.04051046568 | AK159: -0.03539892898 | AL159: -0.03007484183 | AM159: -0.02452094399 | AN159: -0.01847899433 | AO159: -0.01242997254 | AP159: -0.006272172355 | AQ159: 0 | AS159: 0.0137 | AU159: 0.001031815036 | AV159: 0.001355882491 | AW159: 0.001632129355 | AX159: 0.001885982456 | AY159: 0.002126535883 | AZ159: 0.00235817412 | BA159: 0.002583308483 | BB159: 0.002803340738 | BC159: 0.003019083474 | BD159: 0.003230970166 | BE159: 0.003439170086 | BF159: 0.003643655523 | BG159: 0.003844309283 | BH159: 0.004041157234 | BI159: 0.004234201267 | BJ159: 0.004423370242 | BK159: 0.004608532201 | BL159: 0.004789502328 | BM159: 0.004966048924 | BN159: 0.005137898129 | BO159: 0.005304819329 | BP159: 0.005466887983 | BQ159: 0.005624264116 | BR159: 0.005777117838 | BS159: 0.005925633401 | BT159: 0.00607001175 | BU159: 0.006210473489 | BV159: 0.006347261076 | BW159: 0.00648061287 | BX159: 0.006610675976 | BY159: 0.006737584998 | BZ159: 0.006861488074 | CA159: 0.006982548694 | CB159: 0.007100946783 | CC159: 0.007216878286 | CD159: 0.007330557022 | CE159: 0.00744221399 | CF159: 0.007552098723 | CG159: 0.007660479251 | CH159: 0.007767642504
B160: 138 | C160: 3.968129313e-06 | D160: -0.05166981026 | E160: -0.06837522019 | F160: -0.07961879672 | G160: -0.08603142948 | H160: -0.09178734218 | I160: -0.0953566654 | J160: -0.09802419966 | K160: -0.1022776975 | L160: -0.1047153484 | M160: -0.1071085645 | N160: -0.1053871438 | O160: -0.1056378758 | P160: -0.1062148767 | Q160: -0.1045940366 | R160: -0.1050894908 | S160: -0.1019178934 | T160: -0.09981809997 | U160: -0.09754559141 | V160: -0.09637516091 | W160: -0.09177385538 | X160: -0.08880655536 | Y160: -0.08657303415 | Z160: -0.08393090822 | AA160: -0.07885361997 | AB160: -0.07570244082 | AC160: -0.07277917303 | AD160: -0.06796351184 | AE160: -0.0647606408 | AF160: -0.05963261722 | AG160: -0.05541179176 | AH160: -0.05076062308 | AI160: -0.04561012406 | AJ160: -0.04048387219 | AK160: -0.03539352441 | AL160: -0.03006696498 | AM160: -0.02449428459 | AN160: -0.01847657021 | AO160: -0.01240769916 | AP160: -0.006269296248 | AQ160: 0 | AS160: 0.0138 | AU160: 0.001042046978 | AV160: 0.001369019917 | AW160: 0.001647687239 | AX160: 0.001903726424 | AY160: 0.002146321938 | AZ160: 0.00237990232 | BA160: 0.002606903551 | BB160: 0.00282874218 | BC160: 0.003046239867 | BD160: 0.003259835538 | BE160: 0.003469701441 | BF160: 0.003675811045 | BG160: 0.003878047478 | BH160: 0.004076437939 | BI160: 0.004270985344 | BJ160: 0.004461618917 | BK160: 0.004648206529 | BL160: 0.004830562731 | BM160: 0.005008454803 | BN160: 0.005181607512 | BO160: 0.005349789182 | BP160: 0.00551307648 | BQ160: 0.005671631216 | BR160: 0.005825625297 | BS160: 0.005975244823 | BT160: 0.006120692658 | BU160: 0.006262191421 | BV160: 0.006399985702 | BW160: 0.006534315919 | BX160: 0.006665330532 | BY160: 0.006793165379 | BZ160: 0.00691796991 | CA160: 0.007039909011 | CB160: 0.007159164101 | CC160: 0.007275932714 | CD160: 0.007390430362 | CE160: 0.007502889843 | CF160: 0.007613562599 | CG160: 0.007722718683 | CH160: 0.00783064716
B161: 139 | C161: 3.968129313e-06 | D161: -0.0516176395 | E161: -0.06826413485 | F161: -0.07947920722 | G161: -0.08594441107 | H161: -0.09178179506 | I161: -0.09533473036 | J161: -0.09800235291 | K161: -0.1022206197 | L161: -0.1043556168 | M161: -0.1067525839 | N161: -0.10530105 | O161: -0.1056329459 | P161: -0.1059608357 | Q161: -0.1043996408 | R161: -0.1050021746 | S161: -0.1016030287 | T161: -0.09967971627 | U161: -0.09751669029 | V161: -0.09619507832 | W161: -0.09116496437 | X161: -0.08855134591 | Y161: -0.0865703612 | Z161: -0.08389691672 | AA161: -0.07880669492 | AB161: -0.0756454137 | AC161: -0.07273373564 | AD161: -0.06794820101 | AE161: -0.0646578709 | AF161: -0.05955757064 | AG161: -0.05538352116 | AH161: -0.05071600986 | AI161: -0.04558834711 | AJ161: -0.0404380789 | AK161: -0.03527331885 | AL161: -0.03006092599 | AM161: -0.02449396671 | AN161: -0.01846064215 | AO161: -0.0123980462 | AP161: -0.006265801118 | AQ161: 0 | AS161: 0.0139 | AU161: 0.001052307292 | AV161: 0.001382190597 | AW161: 0.0016632819 | AX161: 0.001921509987 | AY161: 0.002166149944 | AZ161: 0.002401674489 | BA161: 0.002630544333 | BB161: 0.002854190858 | BC161: 0.003073444827 | BD161: 0.003288750641 | BE161: 0.003500283543 | BF161: 0.003708018195 | BG161: 0.003911838062 | BH161: 0.004111771685 | BI161: 0.004307823016 | BJ161: 0.004499921653 | BK161: 0.004687935299 | BL161: 0.004871677885 | BM161: 0.005050915673 | BN161: 0.005225372066 | BO161: 0.005394814331 | BP161: 0.00555932035 | BQ161: 0.005719053723 | BR161: 0.005874188159 | BS161: 0.006024911609 | BT161: 0.00617142886 | BU161: 0.00631396455 | BV161: 0.006452765404 | BW161: 0.006588073902 | BX161: 0.006720039859 | BY161: 0.006848800353 | BZ161: 0.006974506143 | CA161: 0.007097323516 | CB161: 0.007217435385 | CC161: 0.007335040873 | CD161: 0.007450357188 | CE161: 0.007563618927 | CF161: 0.007675079441 | CG161: 0.007785010805 | CH161: 0.007893704221
B162: 140 | C162: 3.968129313e-06 | D162: -0.05154959749 | E162: -0.06822764981 | F162: -0.07942120571 | G162: -0.08592258255 | H162: -0.09168972783 | I162: -0.09527627617 | J162: -0.09798453706 | K162: -0.1021983967 | L162: -0.1041196711 | M162: -0.1065760748 | N162: -0.1052577502 | O162: -0.1056232057 | P162: -0.1059539407 | Q162: -0.1043347627 | R162: -0.1044766488 | S162: -0.1013918047 | T162: -0.09966210061 | U162: -0.0974511881 | V162: -0.09618557636 | W162: -0.09088921912 | X162: -0.08848179274 | Y162: -0.08637375325 | Z162: -0.08388185302 | AA162: -0.07876392545 | AB162: -0.07561436564 | AC162: -0.07267308325 | AD162: -0.06787809901 | AE162: -0.06458640156 | AF162: -0.05952993473 | AG162: -0.05532898478 | AH162: -0.05068884711 | AI162: -0.04554232137 | AJ162: -0.04042657505 | AK162: -0.03526868321 | AL162: -0.02996563694 | AM162: -0.02445223781 | AN162: -0.01845646815 | AO162: -0.01239395904 | AP162: -0.006261898 | AQ162: 0 | AS162: 0.014 | AU162: 0.001062595874 | AV162: 0.0013953944 | AW162: 0.001678913188 | AX162: 0.00193933298 | AY162: 0.002186019721 | AZ162: 0.002423490429 | BA162: 0.002654230619 | BB162: 0.00287968655 | BC162: 0.003100698123 | BD162: 0.003317715235 | BE162: 0.003530916143 | BF162: 0.003740276719 | BG162: 0.003945680774 | BH162: 0.004147158205 | BI162: 0.00434471401 | BJ162: 0.004538278168 | BK162: 0.004727718226 | BL162: 0.0049128475 | BM162: 0.005093431241 | BN162: 0.005269191495 | BO162: 0.005439894477 | BP162: 0.005605619292 | BQ162: 0.005766531333 | BR162: 0.005922806117 | BS162: 0.00607463345 | BT162: 0.006222220045 | BU162: 0.006365792565 | BV162: 0.00650559987 | BW162: 0.006641886505 | BX162: 0.006774803645 | BY162: 0.006904489605 | BZ162: 0.007031096458 | CA162: 0.007154791892 | CB162: 0.007275760317 | CC162: 0.007394202447 | CD162: 0.007510337184 | CE162: 0.007624400924 | CF162: 0.007736648931 | CG162: 0.0078473553 | CH162: 0.007956813371
B163: 141 | C163: 3.968129313e-06 | D163: -0.05152582154 | E163: -0.06798880374 | F163: -0.07931460114 | G163: -0.08575520767 | H163: -0.09168575126 | I163: -0.09456313007 | J163: -0.09790220605 | K163: -0.101715029 | L163: -0.1041060491 | M163: -0.1059437029 | N163: -0.1050767041 | O163: -0.1054346091 | P163: -0.105847769 | Q163: -0.1041819394 | R163: -0.104354709 | S163: -0.1010813463 | T163: -0.09957827594 | U163: -0.09740553099 | V163: -0.09614564881 | W163: -0.09067111084 | X163: -0.08844186742 | Y163: -0.08637013627 | Z163: -0.08387651925 | AA163: -0.07876174011 | AB163: -0.075409604 | AC163: -0.07264684642 | AD163: -0.06779879778 | AE163: -0.06456343836 | AF163: -0.05946847837 | AG163: -0.05532036008 | AH163: -0.05051551836 | AI163: -0.04551711324 | AJ163: -0.04041317782 | AK163: -0.03522753206 | AL163: -0.02994874416 | AM163: -0.02432255398 | AN163: -0.01842525263 | AO163: -0.01239036017 | AP163: -0.006253781779 | AQ163: 0 | AS163: 0.0141 | AU163: 0.001072912622 | AV163: 0.001408631198 | AW163: 0.001694580953 | AX163: 0.001957195235 | AY163: 0.002205931087 | AZ163: 0.002445349946 | BA163: 0.002677962203 | BB163: 0.002905229041 | BC163: 0.003127999529 | BD163: 0.003346729085 | BE163: 0.003561598998 | BF163: 0.003772586363 | BG163: 0.003979575354 | BH163: 0.004182597233 | BI163: 0.004381658052 | BJ163: 0.004576688185 | BK163: 0.004767555029 | BL163: 0.00495407129 | BM163: 0.005136001217 | BN163: 0.005313065505 | BO163: 0.005485029325 | BP163: 0.005651973006 | BQ163: 0.005814063744 | BR163: 0.005971478867 | BS163: 0.00612441004 | BT163: 0.006273065908 | BU163: 0.006417675158 | BV163: 0.006558488792 | BW163: 0.00669575342 | BX163: 0.006829621577 | BY163: 0.006960232822 | BZ163: 0.007087740543 | CA163: 0.007212313829 | CB163: 0.007334138587 | CC163: 0.007453417123 | CD163: 0.007570370037 | CE163: 0.007685235524 | CF163: 0.007798270758 | CG163: 0.007909751858 | CH163: 0.008019974299
B164: 142 | C164: 3.968129313e-06 | D164: -0.05145946693 | E164: -0.06797554407 | F164: -0.07930279712 | G164: -0.08568610942 | H164: -0.09121928406 | I164: -0.09448517752 | J164: -0.09771738592 | K164: -0.1010485491 | L164: -0.1036111939 | M164: -0.1058890155 | N164: -0.105075936 | O164: -0.1053059433 | P164: -0.105667168 | Q164: -0.104120313 | R164: -0.1040929791 | S164: -0.1008265284 | T164: -0.0995671199 | U164: -0.09719235929 | V164: -0.09607721995 | W164: -0.09059076182 | X164: -0.088430778 | Y164: -0.08636034897 | Z164: -0.08374165041 | AA164: -0.0785168144 | AB164: -0.07523270576 | AC164: -0.07246304722 | AD164: -0.067756417 | AE164: -0.06398922091 | AF164: -0.05942330622 | AG164: -0.05520041357 | AH164: -0.05048197377 | AI164: -0.04551400159 | AJ164: -0.04039040586 | AK164: -0.03519955546 | AL164: -0.02992579106 | AM164: -0.02427677019 | AN164: -0.01839673103 | AO164: -0.01238890562 | AP164: -0.006247080125 | AQ164: 0 | AS164: 0.0142 | AU164: 0.001083257435 | AV164: 0.001421900863 | AW164: 0.00171028505 | AX164: 0.001975096589 | AY164: 0.002225883864 | AZ164: 0.002467252849 | BA164: 0.002701738883 | BB164: 0.002930818117 | BC164: 0.00315534882 | BD164: 0.003375791956 | BE164: 0.003592331865 | BF164: 0.003804946879 | BG164: 0.004013521547 | BH164: 0.004218088506 | BI164: 0.004418654877 | BJ164: 0.004615151433 | BK164: 0.004807445429 | BL164: 0.004995348973 | BM164: 0.005178625316 | BN164: 0.005356993808 | BO164: 0.005530218581 | BP164: 0.005698381198 | BQ164: 0.005861650659 | BR164: 0.00602020611 | BS164: 0.006174241079 | BT164: 0.006323966146 | BU164: 0.006469612025 | BV164: 0.006611431863 | BW164: 0.006749674339 | BX164: 0.00688449335 | BY164: 0.007016029699 | BZ164: 0.00714443809 | CA164: 0.007269889017 | CB164: 0.007392569886 | CC164: 0.007512684593 | CD164: 0.007630455439 | CE164: 0.007746122417 | CF164: 0.007859944614 | CG164: 0.00797220017 | CH164: 0.008083186698
B165: 143 | C165: 3.968129313e-06 | D165: -0.05140554489 | E165: -0.06796792297 | F165: -0.07914342884 | G165: -0.08544621241 | H165: -0.09105629667 | I165: -0.09436514244 | J165: -0.09744522578 | K165: -0.1010447907 | L165: -0.1035835384 | M165: -0.1058459995 | N165: -0.1049594796 | O165: -0.1052638764 | P165: -0.1055938944 | Q165: -0.1040052137 | R165: -0.1040699934 | S165: -0.1006230993 | T165: -0.09942644858 | U165: -0.09707898591 | V165: -0.09602924882 | W165: -0.09057811238 | X165: -0.08840361841 | Y165: -0.08625408526 | Z165: -0.08362396326 | AA165: -0.07844887615 | AB165: -0.0750383893 | AC165: -0.07241789379 | AD165: -0.06763086723 | AE165: -0.06396773292 | AF165: -0.05925554496 | AG165: -0.05519473962 | AH165: -0.05042931742 | AI165: -0.04548321281 | AJ165: -0.04030657517 | AK165: -0.03518870629 | AL165: -0.02985538523 | AM165: -0.0242711431 | AN165: -0.01839458622 | AO165: -0.0123531467 | AP165: -0.006246091558 | AQ165: 0 | AS165: 0.0143 | AU165: 0.001093630213 | AV165: 0.001435203271 | AW165: 0.001726025332 | AX165: 0.00199303688 | AY165: 0.002245877875 | AZ165: 0.002489198948 | BA165: 0.002725560456 | BB165: 0.002956453564 | BC165: 0.003182745775 | BD165: 0.00340490362 | BE165: 0.003623114506 | BF165: 0.003837358021 | BG165: 0.004047519098 | BH165: 0.004253631765 | BI165: 0.004455704218 | BJ165: 0.00465366764 | BK165: 0.004847389153 | BL165: 0.005036680271 | BM165: 0.005221303255 | BN165: 0.005400976118 | BO165: 0.005575461957 | BP165: 0.005744843576 | BQ165: 0.005909291785 | BR165: 0.00606898755 | BS165: 0.00622412627 | BT165: 0.006374920459 | BU165: 0.006521602867 | BV165: 0.006664428784 | BW165: 0.006803648961 | BX165: 0.006939418661 | BY165: 0.007071879932 | BZ165: 0.007201188796 | CA165: 0.007327517152 | CB165: 0.007451053909 | CC165: 0.007572004553 | CD165: 0.007690593085 | CE165: 0.0078070613 | CF165: 0.007921670195 | CG165: 0.008034699933 | CH165: 0.008146450264
B166: 144 | C166: 3.968129313e-06 | D166: -0.05138781542 | E166: -0.06789876468 | F166: -0.07906709253 | G166: -0.08539454159 | H166: -0.09091624383 | I166: -0.09414451604 | J166: -0.09742576613 | K166: -0.1009089973 | L166: -0.103580708 | M166: -0.1056090789 | N166: -0.1048340418 | O166: -0.1051687433 | P166: -0.1054839113 | Q166: -0.1039903885 | R166: -0.1037431606 | S166: -0.1005207232 | T166: -0.09940698777 | U166: -0.09703398832 | V166: -0.09601508936 | W166: -0.09043698475 | X166: -0.08836039412 | Y166: -0.08624407485 | Z166: -0.083507418 | AA166: -0.0783145547 | AB166: -0.07501314102 | AC166: -0.07239475617 | AD166: -0.06760407767 | AE166: -0.0639469365 | AF166: -0.05923256568 | AG166: -0.05514807867 | AH166: -0.0504017437 | AI166: -0.04547290179 | AJ166: -0.04027408469 | AK166: -0.03518456618 | AL166: -0.02980426903 | AM166: -0.02426343657 | AN166: -0.01839023079 | AO166: -0.01234183732 | AP166: -0.006239576516 | AQ166: 0 | AS166: 0.0144 | AU166: 0.001104030856 | AV166: 0.001448538298 | AW166: 0.001741801656 | AX166: 0.002011015949 | AY166: 0.002265912946 | AZ166: 0.002511188057 | BA166: 0.002749426725 | BB166: 0.002982135175 | BC166: 0.003210190174 | BD166: 0.003434063847 | BE166: 0.003653946685 | BF166: 0.003869819546 | BG166: 0.00408156776 | BH166: 0.004289226755 | BI166: 0.004492805814 | BJ166: 0.00469223654 | BK166: 0.004887385928 | BL166: 0.005078064908 | BM166: 0.005264034756 | BN166: 0.005445012153 | BO166: 0.005620759169 | BP166: 0.005791359854 | BQ166: 0.005956986832 | BR166: 0.006117822897 | BS166: 0.006274065319 | BT166: 0.006425928554 | BU166: 0.006573647387 | BV166: 0.006717479257 | BW166: 0.006857676987 | BX166: 0.006994397211 | BY166: 0.007127783221 | BZ166: 0.007257992361 | CA166: 0.007385197936 | CB166: 0.007509590356 | CC166: 0.007631376703 | CD166: 0.007750782676 | CE166: 0.007868051872 | CF166: 0.0079834472 | CG166: 0.008097250847 | CH166: 0.008209764697
